Workbook

Sheet Calc-V (hidden)
A1: 1 | B1: 2 | C1: 3 | D1: 4 | E1: 5 | F1: 6 | G1: 7 | H1: 8 | I1: 9 | J1: 10 | K1: 11 | L1: 12 | M1: 13 | N1: 14 | O1: 15 | P1: 16 | Q1: 17 | R1: 18 | S1: 19 | T1: 20 | U1: 21 | V1: 22 | W1: 23 | X1: 24 | Y1: 25 | Z1: 26 | AA1: 27 | AB1: 28 | AC1: 29 | AD1: 30 | AE1: 31 | AF1: 32 | AG1: 33 | AH1: 34 | AI1: 35 | AJ1: 36 | AK1: 37 | AL1: 38 | AM1: 39 | AN1: 40 | AO1: 41 | AP1: 42 | AQ1: 43 | AR1: 44 | AS1: 45 | AT1: 46 | AU1: 47 | AV1: 48 | AW1: 49 | AX1: 50 | AY1: 51 | AZ1: 52 | BA1: 53 | BB1: 54 | BC1: 55 | BD1: 56 | BE1: 57 | BF1: 58 | BG1: 59 | BH1: 60 | BI1: 61 | BJ1: 62 | BK1: 63
D2: Total overnight respite nights provided | H2: Total overnight respite weeks provided | L2: Total daytime respite hours provided | P2: Total daytime respite weeks provided (rounded) | T2: Total respite weeks provided (rounded) | X2: Populations | AB2: Overnight respite 65+ | AF2: Daytime Respite 65+ | AK2: Overnight respite 18-64 | AO2: Daytime Respite 18-64 | AT2: Overnight respite 0-17 | AX2: Daytime Respite 0-17 | BC2: Overnight respite TOTALS | BG2: Daytime Respite TOTALS
C3: Year | D3: 65+ | E3: 18-64 | F3: 0-17 | G3: Total | H3: 65+ | I3: 18-64 | J3: 0-17 | K3: Total | L3: 65+ | M3: 18-64 | N3: 0-17 | O3: Total | P3: 65+ | Q3: 18-64 | R3: 0-17 | S3: Total | T3: 65+ | U3: 18-64 | V3: 0-17 | W3: Total | X3: 65+ | Y3: 18-64 | Z3: 0-17 | AA3: Total | AB3: In a Care Home | AC3: At Home | AD3: Other | AE3: Total (Nights) | AF3: In a Care Home | AG3: Day Care centre | AH3: At Home | AI3: Other | AJ3: Total (hours) | AK3: In a Care Home | AL3: At Home | AM3: Other | AN3: Total (Nights) | AO3: In a Care Home | AP3: Day Care centre | AQ3: At Home | AR3: Other | AS3: Total (hours) | AT3: In a Care Home | AU3: At Home | AV3: Other | AW3: Total (Nights) | AX3: In a Care Home | AY3: Day Care centre | AZ3: At Home | BA3: Other | BB3: Total (hours) | BC3: In a Care Home | BD3: At Home | BE3: Other | BF3: Total (Nights) | BG3: In a Care Home | BH3: Day Care centre | BI3: At Home | BJ3: Other | BK3: Total (hours)
A4: Aberdeen City2007/080 | B4: Aberdeen City | C4: 2007/080 | D4: 10548 | E4: 3142 | F4: 1392 | G4: 15082 | H4: 1506.857143 | I4: 448.8571429 | J4: 198.8571429 | K4: 2154.571429 | L4: 42489 | M4: 106084 | N4: 58904 | O4: 207477 | P4: 809.3142857 | Q4: 2020.647619 | R4: 1121.980952 | S4: 3951.942857 | T4: 2316.171429 | U4: 2469.504762 | V4: 1320.838095 | W4: 6106.514286 | X4: 32165 | Y4: 143007 | Z4: 37288 | AA4: 212460
A5: Aberdeenshire2007/080 | B5: Aberdeenshire | C5: 2007/080 | D5: 15506 | E5: 4107 | F5: 1120 | G5: 20733 | H5: 2215.142857 | I5: 586.7142857 | J5: 160 | K5: 2961.857143 | L5: 51377 | M5: 18218 | N5: 67770 | O5: 137365 | P5: 978.6095238 | Q5: 347.0095238 | R5: 1290.857143 | S5: 2616.47619 | T5: 3193.752381 | U5: 933.7238095 | V5: 1450.857143 | W5: 5578.333333 | X5: 37339 | Y5: 153631 | Z5: 53420 | AA5: 244390
A6: Angus2007/080 | B6: Angus | C6: 2007/080 | D6: 5829 | E6: 1635 | F6: 847 | G6: 8311 | H6: 832.7142857 | I6: 233.5714286 | J6: 121 | K6: 1187.285714 | L6: 25649 | M6: 9380 | N6: 4340 | O6: 39369 | P6: 488.552381 | Q6: 178.6666667 | R6: 82.66666667 | S6: 749.8857143 | T6: 1321.266667 | U6: 412.2380952 | V6: 203.6666667 | W6: 1937.171429 | X6: 21312 | Y6: 68761 | Z6: 23467 | AA6: 113540
A7: Argyll & Bute2007/080 | B7: Argyll & Bute | C7: 2007/080 | D7: 4539 | E7: 1878 | F7: 1226 | G7: 7643 | H7: 648.4285714 | I7: 268.2857143 | J7: 175.1428571 | K7: 1091.857143 | L7: 65551 | M7: 33962 | N7: 31211 | O7: 130724 | P7: 1248.590476 | Q7: 646.8952381 | R7: 594.4952381 | S7: 2489.980952 | T7: 1897.019048 | U7: 915.1809524 | V7: 769.6380952 | W7: 3581.838095 | X7: 18267 | Y7: 55062 | Z7: 17461 | AA7: 90790
A8: Clackmannanshire2007/080 | B8: Clackmannanshire | C8: 2007/080 | D8: 3357 | E8: 1479 | F8: 584 | G8: 5420 | H8: 479.5714286 | I8: 211.2857143 | J8: 83.42857143 | K8: 774.2857143 | L8: 72948 | M8: 51914 | N8: 8433 | O8: 133295 | P8: 1389.485714 | Q8: 988.8380952 | R8: 160.6285714 | S8: 2538.952381 | T8: 1869.057143 | U8: 1200.12381 | V8: 244.0571429 | W8: 3313.238095 | X8: 7533 | Y8: 32194 | Z8: 10873 | AA8: 50600
A9: Dumfries & Galloway2007/080 | B9: Dumfries & Galloway | C9: 2007/080 | D9: 5679 | E9: 2183 | F9: 1468 | G9: 9330 | H9: 811.2857143 | I9: 311.8571429 | J9: 209.7142857 | K9: 1332.857143 | L9: 12769 | M9: 4101 | N9: 35016 | O9: 51886 | P9: 243.2190476 | Q9: 78.11428571 | R9: 666.9714286 | S9: 988.3047619 | T9: 1054.504762 | U9: 389.9714286 | V9: 876.6857143 | W9: 2321.161905 | X9: 31016 | Y9: 89795 | Z9: 29559 | AA9: 150370
A10: Dundee City2007/080 | B10: Dundee City | C10: 2007/080 | D10: 7831 | E10: 4393 | F10: 1935 | G10: 14159 | H10: 1118.714286 | I10: 627.5714286 | J10: 276.4285714 | K10: 2022.714286 | L10: 51123 | M10: 99657 | N10: 25253 | O10: 176033 | P10: 973.7714286 | Q10: 1898.228571 | R10: 481.0095238 | S10: 3353.009524 | T10: 2092.485714 | U10: 2525.8 | V10: 757.4380952 | W10: 5375.72381 | X10: 25239 | Y10: 90766 | Z10: 27695 | AA10: 143700
A11: East Ayrshire2007/080 | B11: East Ayrshire | C11: 2007/080 | D11: 6079 | E11: 5698 | F11: 1115 | G11: 12892 | H11: 868.4285714 | I11: 814 | J11: 159.2857143 | K11: 1841.714286 | L11: 78560 | M11: 29535 | N11: 2242 | O11: 110337 | P11: 1496.380952 | Q11: 562.5714286 | R11: 42.7047619 | S11: 2101.657143 | T11: 2364.809524 | U11: 1376.571429 | V11: 201.9904762 | W11: 3943.371429 | X11: 20125 | Y11: 75541 | Z11: 25284 | AA11: 120950
A12: East Dunbartonshire2007/080 | B12: East Dunbartonshire | C12: 2007/080 | D12: 4100 | E12: 2312 | F12: 835 | G12: 7247 | H12: 585.7142857 | I12: 330.2857143 | J12: 119.2857143 | K12: 1035.285714 | L12: 230245 | M12: 39597 | N12: 18638 | O12: 288480 | P12: 4385.619048 | Q12: 754.2285714 | R12: 355.0095238 | S12: 5494.857143 | T12: 4971.333333 | U12: 1084.514286 | V12: 474.2952381 | W12: 6530.142857 | X12: 18833 | Y12: 63674 | Z12: 22543 | AA12: 105050
A13: East Lothian2007/080 | B13: East Lothian | C13: 2007/080 | D13: 4495 | E13: 3128 | F13: 870 | G13: 8493 | H13: 642.1428571 | I13: 446.8571429 | J13: 124.2857143 | K13: 1213.285714 | L13: 3856 | M13: 843 | N13: 23252 | O13: 27951 | P13: 73.44761905 | Q13: 16.05714286 | R13: 442.8952381 | S13: 532.4 | T13: 715.5904762 | U13: 462.9142857 | V13: 567.1809524 | W13: 1745.685714 | X13: 16661 | Y13: 57806 | Z13: 21093 | AA13: 95560
A14: East Renfrewshire2007/080 | B14: East Renfrewshire | C14: 2007/080 | D14: 7884 | E14: 2058 | F14: 714 | G14: 10656 | H14: 1126.285714 | I14: 294 | J14: 102 | K14: 1522.285714 | L14: 132992 | M14: 8453 | N14: 18216 | O14: 159661 | P14: 2533.180952 | Q14: 161.0095238 | R14: 346.9714286 | S14: 3041.161905 | T14: 3659.466667 | U14: 455.0095238 | V14: 448.9714286 | W14: 4563.447619 | X14: 15377 | Y14: 53840 | Z14: 20623 | AA14: 89840
A15: Edinburgh, City of2007/080 | B15: Edinburgh, City of | C15: 2007/080 | D15: 10688 | E15: 10479 | F15: 6340 | G15: 27507 | H15: 1526.857143 | I15: 1497 | J15: 905.7142857 | K15: 3929.571429 | L15: 401653 | M15: 353404 | N15: 152987 | O15: 908044 | P15: 7650.533333 | Q15: 6731.504762 | R15: 2914.038095 | S15: 17296.07619 | T15: 9177.390476 | U15: 8228.504762 | V15: 3819.752381 | W15: 21225.64762 | X15: 67571 | Y15: 308713 | Z15: 79756 | AA15: 456040
A16: Eilean Siar2007/080 | B16: Eilean Siar | C16: 2007/080 | D16: 4158 | E16: 665 | F16: 141 | G16: 4964 | H16: 594 | I16: 95 | J16: 20.14285714 | K16: 709.1428571 | L16: 11691 | M16: 1396 | N16: 2425 | O16: 15512 | P16: 222.6857143 | Q16: 26.59047619 | R16: 46.19047619 | S16: 295.4666667 | T16: 816.6857143 | U16: 121.5904762 | V16: 66.33333333 | W16: 1004.609524 | X16: 5548 | Y16: 16202 | Z16: 5460 | AA16: 27210
A17: Falkirk2007/080 | B17: Falkirk | C17: 2007/080 | D17: 7256 | E17: 4149 | F17: 1067 | G17: 12472 | H17: 1036.571429 | I17: 592.7142857 | J17: 152.4285714 | K17: 1781.714286 | L17: 43414 | M17: 12172 | N17: 21724 | O17: 77310 | P17: 826.9333333 | Q17: 231.847619 | R17: 413.7904762 | S17: 1472.571429 | T17: 1863.504762 | U17: 824.5619048 | V17: 566.2190476 | W17: 3254.285714 | X17: 23880 | Y17: 96535 | Z17: 31905 | AA17: 152320
A18: Fife2007/080 | B18: Fife | C18: 2007/080 | D18: 18450 | E18: 10040 | F18: 1785 | G18: 30275 | H18: 2635.714286 | I18: 1434.285714 | J18: 255 | K18: 4325 | L18: 162531 | M18: 25997 | N18: 22516 | O18: 211044 | P18: 3095.828571 | Q18: 495.1809524 | R18: 428.8761905 | S18: 4019.885714 | T18: 5731.542857 | U18: 1929.466667 | V18: 683.8761905 | W18: 8344.885714 | X18: 60068 | Y18: 225503 | Z18: 73179 | AA18: 358750
A19: Glasgow City2007/080 | B19: Glasgow City | C19: 2007/080 | D19: 25169 | E19: 13503 | F19: 9811 | G19: 48483 | H19: 3595.571429 | I19: 1929 | J19: 1401.571429 | K19: 6926.142857 | L19: 262264 | M19: 641347 | N19: 56249 | O19: 959860 | P19: 4995.504762 | Q19: 12216.13333 | R19: 1071.409524 | S19: 18283.04762 | T19: 8591.07619 | U19: 14145.13333 | V19: 2472.980952 | W19: 25209.19048 | X19: 83851 | Y19: 375836 | Z19: 112073 | AA19: 571760
A20: Highland2007/080 | B20: Highland | C20: 2007/080 | D20: 6379 | E20: 5207 | F20: 3418 | G20: 15004 | H20: 911.2857143 | I20: 743.8571429 | J20: 488.2857143 | K20: 2143.428571 | L20: 27661 | M20: 32959 | N20: 29331 | O20: 89951 | P20: 526.8761905 | Q20: 627.7904762 | R20: 558.6857143 | S20: 1713.352381 | T20: 1438.161905 | U20: 1371.647619 | V20: 1046.971429 | W20: 3856.780952 | X20: 39182 | Y20: 138596 | Z20: 46222 | AA20: 224000
A21: Inverclyde2007/080 | B21: Inverclyde | C21: 2007/080 | D21: 2962 | E21: 2089 | F21: 882 | G21: 5933 | H21: 423.1428571 | I21: 298.4285714 | J21: 126 | K21: 847.5714286 | L21: 157442 | M21: 156968 | N21: 8168 | O21: 322578 | P21: 2998.895238 | Q21: 2989.866667 | R21: 155.5809524 | S21: 6144.342857 | T21: 3422.038095 | U21: 3288.295238 | V21: 281.5809524 | W21: 6991.914286 | X21: 14254 | Y21: 51151 | Z21: 16705 | AA21: 82110
A22: Midlothian2007/080 | B22: Midlothian | C22: 2007/080 | D22: 3562 | E22: 2090 | F22: 745 | G22: 6397 | H22: 508.8571429 | I22: 298.5714286 | J22: 106.4285714 | K22: 913.8571429 | L22: 26201 | M22: 71541 | N22: 16218 | O22: 113960 | P22: 499.0666667 | Q22: 1362.685714 | R22: 308.9142857 | S22: 2170.666667 | T22: 1007.92381 | U22: 1661.257143 | V22: 415.3428571 | W22: 3084.52381 | X22: 12782 | Y22: 50085 | Z22: 17503 | AA22: 80370
A23: Moray2007/080 | B23: Moray | C23: 2007/080 | D23: 2829 | E23: 3001 | F23: 998 | G23: 6828 | H23: 404.1428571 | I23: 428.7142857 | J23: 142.5714286 | K23: 975.4285714 | L23: 22664.25 | M23: 13445.25 | N23: 8478.75 | O23: 44588.25 | P23: 431.7 | Q23: 256.1 | R23: 161.5 | S23: 849.3 | T23: 835.8428571 | U23: 684.8142857 | V23: 304.0714286 | W23: 1824.728571 | X23: 15741 | Y23: 56552 | Z23: 19147 | AA23: 91440
A24: North Ayrshire2007/080 | B24: North Ayrshire | C24: 2007/080 | D24: 10526 | E24: 3914 | F24: 2034 | G24: 16474 | H24: 1503.714286 | I24: 559.1428571 | J24: 290.5714286 | K24: 2353.428571 | L24: 87038 | M24: 14036 | N24: 11254 | O24: 112328 | P24: 1657.866667 | Q24: 267.352381 | R24: 214.3619048 | S24: 2139.580952 | T24: 3161.580952 | U24: 826.4952381 | V24: 504.9333333 | W24: 4493.009524 | X24: 24077 | Y24: 84486 | Z24: 28857 | AA24: 137420
A25: North Lanarkshire2007/080 | B25: North Lanarkshire | C25: 2007/080 | D25: 11143 | E25: 8761 | F25: 2397 | G25: 22301 | H25: 1591.857143 | I25: 1251.571429 | J25: 342.4285714 | K25: 3185.857143 | L25: 244257 | M25: 102974 | N25: 11745 | O25: 358976 | P25: 4652.514286 | Q25: 1961.409524 | R25: 223.7142857 | S25: 6837.638095 | T25: 6244.371429 | U25: 3212.980952 | V25: 566.1428571 | W25: 10023.49524 | X25: 47640 | Y25: 210250 | Z25: 73280 | AA25: 331170
A26: Orkney Islands2007/080 | B26: Orkney Islands | C26: 2007/080 | D26: 2433 | E26: 758 | F26: 504 | G26: 3695 | H26: 347.5714286 | I26: 108.2857143 | J26: 72 | K26: 527.8571429 | L26: 15076 | M26: 28543 | N26: 2119 | O26: 45738 | P26: 287.1619048 | Q26: 543.6761905 | R26: 40.36190476 | S26: 871.2 | T26: 634.7333333 | U26: 651.9619048 | V26: 112.3619048 | W26: 1399.057143 | X26: 3789 | Y26: 12535 | Z26: 4256 | AA26: 20580
A27: Perth & Kinross2007/080 | B27: Perth & Kinross | C27: 2007/080 | D27: 13793 | E27: 3491 | F27: 611 | G27: 17895 | H27: 1970.428571 | I27: 498.7142857 | J27: 87.28571429 | K27: 2556.428571 | L27: 90662 | M27: 14924 | N27: 15264 | O27: 120850 | P27: 1726.895238 | Q27: 284.2666667 | R27: 290.7428571 | S27: 2301.904762 | T27: 3697.32381 | U27: 782.9809524 | V27: 378.0285714 | W27: 4858.333333 | X27: 27401 | Y27: 85417 | Z27: 28322 | AA27: 141140
A28: Renfrewshire2007/080 | B28: Renfrewshire | C28: 2007/080 | D28: 8071 | E28: 6692 | F28: 2797 | G28: 17560 | H28: 1153 | I28: 956 | J28: 399.5714286 | K28: 2508.571429 | L28: 16549 | M28: 40700 | N28: 31781 | O28: 89030 | P28: 315.2190476 | Q28: 775.2380952 | R28: 605.352381 | S28: 1695.809524 | T28: 1468.219048 | U28: 1731.238095 | V28: 1004.92381 | W28: 4204.380952 | X28: 27887 | Y28: 108234 | Z28: 35739 | AA28: 171860
A29: Scottish Borders2007/080 | B29: Scottish Borders | C29: 2007/080 | D29: 5701 | E29: 2181 | F29: 1216 | G29: 9098 | H29: 814.4285714 | I29: 311.5714286 | J29: 173.7142857 | K29: 1299.714286 | L29: 1104 | M29: 6273 | N29: 9504 | O29: 16881 | P29: 21.02857143 | Q29: 119.4857143 | R29: 181.0285714 | S29: 321.5428571 | T29: 835.4571429 | U29: 431.0571429 | V29: 354.7428571 | W29: 1621.257143 | X29: 21925 | Y29: 67613 | Z29: 22662 | AA29: 112200
A30: Shetland Islands2007/080 | B30: Shetland Islands | C30: 2007/080 | D30: 6652 | E30: 1491 | F30: 622 | G30: 8765 | H30: 950.2857143 | I30: 213 | J30: 88.85714286 | K30: 1252.142857 | L30: 7207 | M30: 1605 | N30: 8908 | O30: 17720 | P30: 137.2761905 | Q30: 30.57142857 | R30: 169.6761905 | S30: 337.5238095 | T30: 1087.561905 | U30: 243.5714286 | V30: 258.5333333 | W30: 1589.666667 | X30: 3455 | Y30: 13775 | Z30: 5120 | AA30: 22350
A31: South Ayrshire2007/080 | B31: South Ayrshire | C31: 2007/080 | D31: 9777 | E31: 1690 | F31: 1444 | G31: 12911 | H31: 1396.714286 | I31: 241.4285714 | J31: 206.2857143 | K31: 1844.428571 | L31: 16298 | M31: 16520 | N31: 35783 | O31: 68601 | P31: 310.4380952 | Q31: 314.6666667 | R31: 681.5809524 | S31: 1306.685714 | T31: 1707.152381 | U31: 556.0952381 | V31: 887.8666667 | W31: 3151.114286 | X31: 22834 | Y31: 67943 | Z31: 21603 | AA31: 112380
A32: South Lanarkshire2007/080 | B32: South Lanarkshire | C32: 2007/080 | D32: 17728 | E32: 6947 | F32: 2802 | G32: 27477 | H32: 2532.571429 | I32: 992.4285714 | J32: 400.2857143 | K32: 3925.285714 | L32: 264643 | M32: 47363 | N32: 42336 | O32: 354342 | P32: 5040.819048 | Q32: 902.152381 | R32: 806.4 | S32: 6749.371429 | T32: 7573.390476 | U32: 1894.580952 | V32: 1206.685714 | W32: 10674.65714 | X32: 49806 | Y32: 195598 | Z32: 64976 | AA32: 310380
A33: Stirling2007/080 | B33: Stirling | C33: 2007/080 | D33: 7197 | E33: 1103 | F33: 1051 | G33: 9351 | H33: 1028.142857 | I33: 157.5714286 | J33: 150.1428571 | K33: 1335.857143 | L33: 6697 | M33: 1695 | N33: 22704 | O33: 31096 | P33: 127.5619048 | Q33: 32.28571429 | R33: 432.4571429 | S33: 592.3047619 | T33: 1155.704762 | U33: 189.8571429 | V33: 582.6 | W33: 1928.161905 | X33: 14491 | Y33: 55287 | Z33: 18652 | AA33: 88430
A34: West Dunbartonshire2007/080 | B34: West Dunbartonshire | C34: 2007/080 | D34: 4341 | E34: 2630 | F34: 1188 | G34: 8159 | H34: 620.1428571 | I34: 375.7142857 | J34: 169.7142857 | K34: 1165.571429 | L34: 133483 | M34: 164803 | N34: 29252 | O34: 327538 | P34: 2542.533333 | Q34: 3139.104762 | R34: 557.1809524 | S34: 6238.819048 | T34: 3162.67619 | U34: 3514.819048 | V34: 726.8952381 | W34: 7404.390476 | X34: 14625 | Y34: 57733 | Z34: 19012 | AA34: 91370
A35: West Lothian2007/080 | B35: West Lothian | C35: 2007/080 | D35: 3453 | E35: 3315 | F35: 992 | G35: 7760 | H35: 493.2857143 | I35: 473.5714286 | J35: 141.7142857 | K35: 1108.571429 | L35: 9129 | M35: 3208 | N35: 13036 | O35: 25373 | P35: 173.8857143 | Q35: 61.1047619 | R35: 248.3047619 | S35: 483.2952381 | T35: 667.1714286 | U35: 534.6761905 | V35: 390.0190476 | W35: 1591.866667 | X35: 21331 | Y35: 108830 | Z35: 39309 | AA35: 169470
A36: Aberdeen City2008/090 | B36: Aberdeen City | C36: 2008/090 | D36: 8720 | E36: 3001 | F36: 1193 | G36: 12914 | H36: 1245.714286 | I36: 428.7142857 | J36: 170.4285714 | K36: 1844.857143 | L36: 32821 | M36: 86834 | N36: 32200 | O36: 151855 | P36: 625.1619048 | Q36: 1653.980952 | R36: 613.3333333 | S36: 2892.47619 | T36: 1870.87619 | U36: 2082.695238 | V36: 783.7619048 | W36: 4737.333333 | X36: 32096 | Y36: 144797 | Z36: 37127 | AA36: 214020
A37: Aberdeenshire2008/090 | B37: Aberdeenshire | C37: 2008/090 | D37: 16771 | E37: 4548 | F37: 877 | G37: 22196 | H37: 2395.857143 | I37: 649.7142857 | J37: 125.2857143 | K37: 3170.857143 | L37: 45708 | M37: 15504 | N37: 67023 | O37: 128235 | P37: 870.6285714 | Q37: 295.3142857 | R37: 1276.628571 | S37: 2442.571429 | T37: 3266.485714 | U37: 945.0285714 | V37: 1401.914286 | W37: 5613.428571 | X37: 38307 | Y37: 155076 | Z37: 53457 | AA37: 246840
A38: Angus2008/090 | B38: Angus | C38: 2008/090 | D38: 6657 | E38: 1754 | F38: 812 | G38: 9223 | H38: 951 | I38: 250.5714286 | J38: 116 | K38: 1317.571429 | L38: 25342 | M38: 11169 | N38: 5050 | O38: 41561 | P38: 482.7047619 | Q38: 212.7428571 | R38: 96.19047619 | S38: 791.6380952 | T38: 1433.704762 | U38: 463.3142857 | V38: 212.1904762 | W38: 2109.209524 | X38: 21817 | Y38: 69123 | Z38: 23550 | AA38: 114490
A39: Argyll & Bute2008/090 | B39: Argyll & Bute | C39: 2008/090 | D39: 3461 | E39: 1167 | F39: 1774 | G39: 6402 | H39: 494.4285714 | I39: 166.7142857 | J39: 253.4285714 | K39: 914.5714286 | L39: 83796 | M39: 31708 | N39: 26567 | O39: 142071 | P39: 1596.114286 | Q39: 603.9619048 | R39: 506.0380952 | S39: 2706.114286 | T39: 2090.542857 | U39: 770.6761905 | V39: 759.4666667 | W39: 3620.685714 | X39: 18527 | Y39: 54270 | Z39: 17113 | AA39: 89910
A40: Clackmannanshire2008/090 | B40: Clackmannanshire | C40: 2008/090 | D40: 3554 | E40: 1977 | F40: 330 | G40: 5861 | H40: 507.7142857 | I40: 282.4285714 | J40: 47.14285714 | K40: 837.2857143 | L40: 69189 | M40: 49381 | N40: 10663 | O40: 129233 | P40: 1317.885714 | Q40: 940.5904762 | R40: 203.1047619 | S40: 2461.580952 | T40: 1825.6 | U40: 1223.019048 | V40: 250.247619 | W40: 3298.866667 | X40: 7679 | Y40: 32536 | Z40: 10975 | AA40: 51190
A41: Dumfries & Galloway2008/090 | B41: Dumfries & Galloway | C41: 2008/090 | D41: 4729 | E41: 1933 | F41: 1886 | G41: 8548 | H41: 675.5714286 | I41: 276.1428571 | J41: 269.4285714 | K41: 1221.142857 | L41: 11180 | M41: 4088 | N41: 24787 | O41: 40055 | P41: 212.952381 | Q41: 77.86666667 | R41: 472.1333333 | S41: 762.952381 | T41: 888.5238095 | U41: 354.0095238 | V41: 741.5619048 | W41: 1984.095238 | X41: 31669 | Y41: 89871 | Z41: 29470 | AA41: 151010
A42: Dundee City2008/090 | B42: Dundee City | C42: 2008/090 | D42: 8078 | E42: 5344 | F42: 1717 | G42: 15139 | H42: 1154 | I42: 763.4285714 | J42: 245.2857143 | K42: 2162.714286 | L42: 54727 | M42: 94246 | N42: 23631 | O42: 172604 | P42: 1042.419048 | Q42: 1795.161905 | R42: 450.1142857 | S42: 3287.695238 | T42: 2196.419048 | U42: 2558.590476 | V42: 695.4 | W42: 5450.409524 | X42: 25085 | Y42: 91559 | Z42: 27646 | AA42: 144290
A43: East Ayrshire2008/090 | B43: East Ayrshire | C43: 2008/090 | D43: 6249 | E43: 4881 | F43: 1315 | G43: 12445 | H43: 892.7142857 | I43: 697.2857143 | J43: 187.8571429 | K43: 1777.857143 | L43: 86684 | M43: 30583 | N43: 5134 | O43: 122401 | P43: 1651.12381 | Q43: 582.5333333 | R43: 97.79047619 | S43: 2331.447619 | T43: 2543.838095 | U43: 1279.819048 | V43: 285.647619 | W43: 4109.304762 | X43: 20395 | Y43: 75986 | Z43: 25209 | AA43: 121590
A44: East Dunbartonshire2008/090 | B44: East Dunbartonshire | C44: 2008/090 | D44: 3312 | E44: 2517 | F44: 877 | G44: 6706 | H44: 473.1428571 | I44: 359.5714286 | J44: 125.2857143 | K44: 958 | L44: 256258 | M44: 38146 | N44: 20096 | O44: 314500 | P44: 4881.104762 | Q44: 726.5904762 | R44: 382.7809524 | S44: 5990.47619 | T44: 5354.247619 | U44: 1086.161905 | V44: 508.0666667 | W44: 6948.47619 | X44: 19223 | Y44: 63436 | Z44: 22281 | AA44: 104940
A45: East Lothian2008/090 | B45: East Lothian | C45: 2008/090 | D45: 5032 | E45: 2970 | F45: 826 | G45: 8828 | H45: 718.8571429 | I45: 424.2857143 | J45: 118 | K45: 1261.142857 | L45: 4199 | M45: 806 | N45: 17752 | O45: 22757 | P45: 79.98095238 | Q45: 15.35238095 | R45: 338.1333333 | S45: 433.4666667 | T45: 798.8380952 | U45: 439.6380952 | V45: 456.1333333 | W45: 1694.609524 | X45: 16921 | Y45: 59242 | Z45: 21307 | AA45: 97470
A46: East Renfrewshire2008/090 | B46: East Renfrewshire | C46: 2008/090 | D46: 5038 | E46: 2160 | F46: 1209 | G46: 8407 | H46: 719.7142857 | I46: 308.5714286 | J46: 172.7142857 | K46: 1201 | L46: 133170 | M46: 13899 | N46: 19320 | O46: 166389 | P46: 2536.571429 | Q46: 264.7428571 | R46: 368 | S46: 3169.314286 | T46: 3256.285714 | U46: 573.3142857 | V46: 540.7142857 | W46: 4370.314286 | X46: 15595 | Y46: 53802 | Z46: 20473 | AA46: 89870
A47: Edinburgh, City of2008/090 | B47: Edinburgh, City of | C47: 2008/090 | D47: 10153 | E47: 10645 | F47: 6735 | G47: 27533 | H47: 1450.428571 | I47: 1520.714286 | J47: 962.1428571 | K47: 3933.285714 | L47: 444409 | M47: 339333 | N47: 127911 | O47: 911653 | P47: 8464.933333 | Q47: 6463.485714 | R47: 2436.4 | S47: 17364.81905 | T47: 9915.361905 | U47: 7984.2 | V47: 3398.542857 | W47: 21298.10476 | X47: 67695 | Y47: 311507 | Z47: 79318 | AA47: 458520
A48: Eilean Siar2008/090 | B48: Eilean Siar | C48: 2008/090 | D48: 4656 | E48: 833 | F48: 142 | G48: 5631 | H48: 665.1428571 | I48: 119 | J48: 20.28571429 | K48: 804.4285714 | L48: 11595 | M48: 1170 | N48: 2713 | O48: 15478 | P48: 220.8571429 | Q48: 22.28571429 | R48: 51.67619048 | S48: 294.8190476 | T48: 886 | U48: 141.2857143 | V48: 71.96190476 | W48: 1099.247619 | X48: 5675 | Y48: 16206 | Z48: 5399 | AA48: 27280
A49: Falkirk2008/090 | B49: Falkirk | C49: 2008/090 | D49: 7000 | E49: 4138 | F49: 1770 | G49: 12908 | H49: 1000 | I49: 591.1428571 | J49: 252.8571429 | K49: 1844 | L49: 43785 | M49: 11519 | N49: 22890 | O49: 78194 | P49: 834 | Q49: 219.4095238 | R49: 436 | S49: 1489.409524 | T49: 1834 | U49: 810.552381 | V49: 688.8571429 | W49: 3333.409524 | X49: 24272 | Y49: 97003 | Z49: 32015 | AA49: 153290
A50: Fife2008/090 | B50: Fife | C50: 2008/090 | D50: 17203 | E50: 7882 | F50: 2893 | G50: 27978 | H50: 2457.571429 | I50: 1126 | J50: 413.2857143 | K50: 3996.857143 | L50: 157257 | M50: 22732 | N50: 28257 | O50: 208246 | P50: 2995.371429 | Q50: 432.9904762 | R50: 538.2285714 | S50: 3966.590476 | T50: 5452.942857 | U50: 1558.990476 | V50: 951.5142857 | W50: 7963.447619 | X50: 61067 | Y50: 225648 | Z50: 73335 | AA50: 360050
A51: Glasgow City2008/090 | B51: Glasgow City | C51: 2008/090 | D51: 24406 | E51: 14213 | F51: 7064 | G51: 45683 | H51: 3486.571429 | I51: 2030.428571 | J51: 1009.142857 | K51: 6526.142857 | L51: 257664 | M51: 564660 | N51: 40381 | O51: 862705 | P51: 4907.885714 | Q51: 10755.42857 | R51: 769.1619048 | S51: 16432.47619 | T51: 8394.457143 | U51: 12785.85714 | V51: 1778.304762 | W51: 22958.61905 | X51: 83255 | Y51: 381501 | Z51: 111444 | AA51: 576200
A52: Highland2008/090 | B52: Highland | C52: 2008/090 | D52: 6895 | E52: 4740 | F52: 3268 | G52: 14903 | H52: 985 | I52: 677.1428571 | J52: 466.8571429 | K52: 2129 | L52: 30773 | M52: 32523 | N52: 27291 | O52: 90587 | P52: 586.152381 | Q52: 619.4857143 | R52: 519.8285714 | S52: 1725.466667 | T52: 1571.152381 | U52: 1296.628571 | V52: 986.6857143 | W52: 3854.466667 | X52: 40335 | Y52: 140021 | Z52: 46624 | AA52: 226980
A53: Inverclyde2008/090 | B53: Inverclyde | C53: 2008/090 | D53: 3257 | E53: 2416 | F53: 808 | G53: 6481 | H53: 465.2857143 | I53: 345.1428571 | J53: 115.4285714 | K53: 925.8571429 | L53: 192742 | M53: 108181 | N53: 6900 | O53: 307823 | P53: 3671.27619 | Q53: 2060.590476 | R53: 131.4285714 | S53: 5863.295238 | T53: 4136.561905 | U53: 2405.733333 | V53: 246.8571429 | W53: 6789.152381 | X53: 14384 | Y53: 51129 | Z53: 16487 | AA53: 82000
A54: Midlothian2008/090 | B54: Midlothian | C54: 2008/090 | D54: 3891 | E54: 2975 | F54: 970 | G54: 7836 | H54: 555.8571429 | I54: 425 | J54: 138.5714286 | K54: 1119.428571 | L54: 27830 | M54: 74415 | N54: 17561 | O54: 119806 | P54: 530.0952381 | Q54: 1417.428571 | R54: 334.4952381 | S54: 2282.019048 | T54: 1085.952381 | U54: 1842.428571 | V54: 473.0666667 | W54: 3401.447619 | X54: 13027 | Y54: 50939 | Z54: 17574 | AA54: 81540
A55: Moray2008/090 | B55: Moray | C55: 2008/090 | D55: 2867 | E55: 2812 | F55: 925 | G55: 6604 | H55: 409.5714286 | I55: 401.7142857 | J55: 132.1428571 | K55: 943.4285714 | L55: 28350 | M55: 11513 | N55: 8664 | O55: 48527 | P55: 540 | Q55: 219.2952381 | R55: 165.0285714 | S55: 924.3238095 | T55: 949.5714286 | U55: 621.0095238 | V55: 297.1714286 | W55: 1867.752381 | X55: 16194 | Y55: 57418 | Z55: 19218 | AA55: 92830
A56: North Ayrshire2008/090 | B56: North Ayrshire | C56: 2008/090 | D56: 12143 | E56: 4708 | F56: 1628 | G56: 18479 | H56: 1734.714286 | I56: 672.5714286 | J56: 232.5714286 | K56: 2639.857143 | L56: 89121 | M56: 15156 | N56: 13399 | O56: 117676 | P56: 1697.542857 | Q56: 288.6857143 | R56: 255.2190476 | S56: 2241.447619 | T56: 3432.257143 | U56: 961.2571429 | V56: 487.7904762 | W56: 4881.304762 | X56: 24529 | Y56: 84515 | Z56: 28866 | AA56: 137910
A57: North Lanarkshire2008/090 | B57: North Lanarkshire | C57: 2008/090 | D57: 9342 | E57: 8337 | F57: 2119 | G57: 19798 | H57: 1334.571429 | I57: 1191 | J57: 302.7142857 | K57: 2828.285714 | L57: 289476 | M57: 225469 | N57: 9511 | O57: 524456 | P57: 5513.828571 | Q57: 4294.647619 | R57: 181.1619048 | S57: 9989.638095 | T57: 6848.4 | U57: 5485.647619 | V57: 483.8761905 | W57: 12817.92381 | X57: 48407 | Y57: 211313 | Z57: 73570 | AA57: 333290
A58: Orkney Islands2008/090 | B58: Orkney Islands | C58: 2008/090 | D58: 2248 | E58: 605 | F58: 557 | G58: 3410 | H58: 321.1428571 | I58: 86.42857143 | J58: 79.57142857 | K58: 487.1428571 | L58: 16701 | M58: 26427 | N58: 2380 | O58: 45508 | P58: 318.1142857 | Q58: 503.3714286 | R58: 45.33333333 | S58: 866.8190476 | T58: 639.2571429 | U58: 589.8 | V58: 124.9047619 | W58: 1353.961905 | X58: 3904 | Y58: 12606 | Z58: 4230 | AA58: 20740
A59: Perth & Kinross2008/090 | B59: Perth & Kinross | C59: 2008/090 | D59: 12895 | E59: 3949 | F59: 545 | G59: 17389 | H59: 1842.142857 | I59: 564.1428571 | J59: 77.85714286 | K59: 2484.142857 | L59: 107028 | M59: 17290 | N59: 13674 | O59: 137992 | P59: 2038.628571 | Q59: 329.3333333 | R59: 260.4571429 | S59: 2628.419048 | T59: 3880.771429 | U59: 893.4761905 | V59: 338.3142857 | W59: 5112.561905 | X59: 27973 | Y59: 86468 | Z59: 28689 | AA59: 143130
A60: Renfrewshire2008/090 | B60: Renfrewshire | C60: 2008/090 | D60: 8172 | E60: 7538 | F60: 2826 | G60: 18536 | H60: 1167.428571 | I60: 1076.857143 | J60: 403.7142857 | K60: 2648 | L60: 11569 | M60: 31365 | N60: 38670 | O60: 81604 | P60: 220.3619048 | Q60: 597.4285714 | R60: 736.5714286 | S60: 1554.361905 | T60: 1387.790476 | U60: 1674.285714 | V60: 1140.285714 | W60: 4202.361905 | X60: 28295 | Y60: 108637 | Z60: 35708 | AA60: 172640
A61: Scottish Borders2008/090 | B61: Scottish Borders | C61: 2008/090 | D61: 6932 | E61: 3068 | F61: 1368 | G61: 11368 | H61: 990.2857143 | I61: 438.2857143 | J61: 195.4285714 | K61: 1624 | L61: 1297 | M61: 6146 | N61: 8781 | O61: 16224 | P61: 24.7047619 | Q61: 117.0666667 | R61: 167.2571429 | S61: 309.0285714 | T61: 1014.990476 | U61: 555.352381 | V61: 362.6857143 | W61: 1933.028571 | X61: 22460 | Y61: 68190 | Z61: 22710 | AA61: 113360
A62: Shetland Islands2008/090 | B62: Shetland Islands | C62: 2008/090 | D62: 5165 | E62: 2014 | F62: 983 | G62: 8162 | H62: 737.8571429 | I62: 287.7142857 | J62: 140.4285714 | K62: 1166 | L62: 7882 | M62: 2985 | N62: 11950 | O62: 22817 | P62: 150.1333333 | Q62: 56.85714286 | R62: 227.6190476 | S62: 434.6095238 | T62: 887.9904762 | U62: 344.5714286 | V62: 368.047619 | W62: 1600.609524 | X62: 3585 | Y62: 13817 | Z62: 5078 | AA62: 22480
A63: South Ayrshire2008/090 | B63: South Ayrshire | C63: 2008/090 | D63: 10032 | E63: 2255 | F63: 1503 | G63: 13790 | H63: 1433.142857 | I63: 322.1428571 | J63: 214.7142857 | K63: 1970 | L63: 16640 | M63: 12955 | N63: 36026 | O63: 65621 | P63: 316.952381 | Q63: 246.7619048 | R63: 686.2095238 | S63: 1249.92381 | T63: 1750.095238 | U63: 568.9047619 | V63: 900.9238095 | W63: 3219.92381 | X63: 23254 | Y63: 67815 | Z63: 21541 | AA63: 112610
A64: South Lanarkshire2008/090 | B64: South Lanarkshire | C64: 2008/090 | D64: 20854 | E64: 7620 | F64: 3125 | G64: 31599 | H64: 2979.142857 | I64: 1088.571429 | J64: 446.4285714 | K64: 4514.142857 | L64: 269517 | M64: 55948 | N64: 45640 | O64: 371105 | P64: 5133.657143 | Q64: 1065.67619 | R64: 869.3333333 | S64: 7068.666667 | T64: 8112.8 | U64: 2154.247619 | V64: 1315.761905 | W64: 11582.80952 | X64: 50596 | Y64: 195910 | Z64: 64814 | AA64: 311320
A65: Stirling2008/090 | B65: Stirling | C65: 2008/090 | D65: 4359 | E65: 1210 | F65: 1748 | G65: 7317 | H65: 622.7142857 | I65: 172.8571429 | J65: 249.7142857 | K65: 1045.285714 | L65: 7301 | M65: 1696 | N65: 19754 | O65: 28751 | P65: 139.0666667 | Q65: 32.3047619 | R65: 376.2666667 | S65: 547.6380952 | T65: 761.7809524 | U65: 205.1619048 | V65: 625.9809524 | W65: 1592.92381 | X65: 14803 | Y65: 55229 | Z65: 18508 | AA65: 88540
A66: West Dunbartonshire2008/090 | B66: West Dunbartonshire | C66: 2008/090 | D66: 3935 | E66: 3131 | F66: 1303 | G66: 8369 | H66: 562.1428571 | I66: 447.2857143 | J66: 186.1428571 | K66: 1195.571429 | L66: 153900 | M66: 142296 | N66: 27462 | O66: 323658 | P66: 2931.428571 | Q66: 2710.4 | R66: 523.0857143 | S66: 6164.914286 | T66: 3493.571429 | U66: 3157.685714 | V66: 709.2285714 | W66: 7360.485714 | X66: 14665 | Y66: 57608 | Z66: 18917 | AA66: 91190
A67: West Lothian2008/090 | B67: West Lothian | C67: 2008/090 | D67: 4260 | E67: 3964 | F67: 930 | G67: 9154 | H67: 608.5714286 | I67: 566.2857143 | J67: 132.8571429 | K67: 1307.714286 | L67: 8768 | M67: 4319 | N67: 16334 | O67: 29421 | P67: 167.0095238 | Q67: 82.26666667 | R67: 311.1238095 | S67: 560.4 | T67: 775.5809524 | U67: 648.552381 | V67: 443.9809524 | W67: 1868.114286 | X67: 22057 | Y67: 109698 | Z67: 39625 | AA67: 171380
A68: Aberdeen City2008/091 | B68: Aberdeen City | C68: 2008/091 | D68: 8720 | E68: 3001 | F68: 1193 | G68: 12914 | H68: 1245.714286 | I68: 428.7142857 | J68: 170.4285714 | K68: 1844.857143 | L68: 32821 | M68: 86834 | N68: 6691 | O68: 126346 | P68: 625.1619048 | Q68: 1653.980952 | R68: 127.447619 | S68: 2406.590476 | T68: 1870.87619 | U68: 2082.695238 | V68: 297.8761905 | W68: 4251.447619 | X68: 32096 | Y68: 144797 | Z68: 37127 | AA68: 214020
A69: Aberdeenshire2008/091 | B69: Aberdeenshire | C69: 2008/091 | D69: 16771 | E69: 4548 | F69: 877 | G69: 22196 | H69: 2395.857143 | I69: 649.7142857 | J69: 125.2857143 | K69: 3170.857143 | L69: 56069 | M69: 25546 | N69: 67023 | O69: 148638 | P69: 1067.980952 | Q69: 486.5904762 | R69: 1276.628571 | S69: 2831.2 | T69: 3463.838095 | U69: 1136.304762 | V69: 1401.914286 | W69: 6002.057143 | X69: 38307 | Y69: 155076 | Z69: 53457 | AA69: 246840
A70: Angus2008/091 | B70: Angus | C70: 2008/091 | D70: 8573 | E70: 1653 | F70: 812 | G70: 11038 | H70: 1224.714286 | I70: 236.1428571 | J70: 116 | K70: 1576.857143 | L70: 86353 | M70: 4798 | N70: 5050 | O70: 96201 | P70: 1644.819048 | Q70: 91.39047619 | R70: 96.19047619 | S70: 1832.4 | T70: 2869.533333 | U70: 327.5333333 | V70: 212.1904762 | W70: 3409.257143 | X70: 21817 | Y70: 69123 | Z70: 23550 | AA70: 114490
A71: Argyll & Bute2008/091 | B71: Argyll & Bute | C71: 2008/091 | D71: 3461 | E71: 1167 | F71: 1774 | G71: 6402 | H71: 494.4285714 | I71: 166.7142857 | J71: 253.4285714 | K71: 914.5714286 | L71: 83796 | M71: 31708 | N71: 26567 | O71: 142071 | P71: 1596.114286 | Q71: 603.9619048 | R71: 506.0380952 | S71: 2706.114286 | T71: 2090.542857 | U71: 770.6761905 | V71: 759.4666667 | W71: 3620.685714 | X71: 18527 | Y71: 54270 | Z71: 17113 | AA71: 89910
A72: Clackmannanshire2008/091 | B72: Clackmannanshire | C72: 2008/091 | D72: 3554 | E72: 1977 | F72: 330 | G72: 5861 | H72: 507.7142857 | I72: 282.4285714 | J72: 47.14285714 | K72: 837.2857143 | L72: 69189 | M72: 49381 | N72: 10663 | O72: 129233 | P72: 1317.885714 | Q72: 940.5904762 | R72: 203.1047619 | S72: 2461.580952 | T72: 1825.6 | U72: 1223.019048 | V72: 250.247619 | W72: 3298.866667 | X72: 7679 | Y72: 32536 | Z72: 10975 | AA72: 51190
A73: Dumfries & Galloway2008/091 | B73: Dumfries & Galloway | C73: 2008/091 | D73: 4729 | E73: 1933 | F73: 1886 | G73: 8548 | H73: 675.5714286 | I73: 276.1428571 | J73: 269.4285714 | K73: 1221.142857 | L73: 11180 | M73: 4088 | N73: 24787 | O73: 40055 | P73: 212.952381 | Q73: 77.86666667 | R73: 472.1333333 | S73: 762.952381 | T73: 888.5238095 | U73: 354.0095238 | V73: 741.5619048 | W73: 1984.095238 | X73: 31669 | Y73: 89871 | Z73: 29470 | AA73: 151010
A74: Dundee City2008/091 | B74: Dundee City | C74: 2008/091 | D74: 8078 | E74: 5344 | F74: 1717 | G74: 15139 | H74: 1154 | I74: 763.4285714 | J74: 245.2857143 | K74: 2162.714286 | L74: 54727 | M74: 135798 | N74: 23631 | O74: 214156 | P74: 1042.419048 | Q74: 2586.628571 | R74: 450.1142857 | S74: 4079.161905 | T74: 2196.419048 | U74: 3350.057143 | V74: 695.4 | W74: 6241.87619 | X74: 25085 | Y74: 91559 | Z74: 27646 | AA74: 144290
A75: East Ayrshire2008/091 | B75: East Ayrshire | C75: 2008/091 | D75: 6249 | E75: 4881 | F75: 1315 | G75: 12445 | H75: 892.7142857 | I75: 697.2857143 | J75: 187.8571429 | K75: 1777.857143 | L75: 86684 | M75: 139907 | N75: 5134 | O75: 231725 | P75: 1651.12381 | Q75: 2664.895238 | R75: 97.79047619 | S75: 4413.809524 | T75: 2543.838095 | U75: 3362.180952 | V75: 285.647619 | W75: 6191.666667 | X75: 20395 | Y75: 75986 | Z75: 25209 | AA75: 121590
A76: East Dunbartonshire2008/091 | B76: East Dunbartonshire | C76: 2008/091 | D76: 3312 | E76: 2517 | F76: 877 | G76: 6706 | H76: 473.1428571 | I76: 359.5714286 | J76: 125.2857143 | K76: 958 | L76: 256258 | M76: 38146 | N76: 20096 | O76: 314500 | P76: 4881.104762 | Q76: 726.5904762 | R76: 382.7809524 | S76: 5990.47619 | T76: 5354.247619 | U76: 1086.161905 | V76: 508.0666667 | W76: 6948.47619 | X76: 19223 | Y76: 63436 | Z76: 22281 | AA76: 104940
A77: East Lothian2008/091 | B77: East Lothian | C77: 2008/091 | D77: 5032 | E77: 2970 | F77: 826 | G77: 8828 | H77: 718.8571429 | I77: 424.2857143 | J77: 118 | K77: 1261.142857 | L77: 4199 | M77: 806 | N77: 17752 | O77: 22757 | P77: 79.98095238 | Q77: 15.35238095 | R77: 338.1333333 | S77: 433.4666667 | T77: 798.8380952 | U77: 439.6380952 | V77: 456.1333333 | W77: 1694.609524 | X77: 16921 | Y77: 59242 | Z77: 21307 | AA77: 97470
A78: East Renfrewshire2008/091 | B78: East Renfrewshire | C78: 2008/091 | D78: 5038 | E78: 2160 | F78: 1209 | G78: 8407 | H78: 719.7142857 | I78: 308.5714286 | J78: 172.7142857 | K78: 1201 | L78: 133170 | M78: 13899 | N78: 19320 | O78: 166389 | P78: 2536.571429 | Q78: 264.7428571 | R78: 368 | S78: 3169.314286 | T78: 3256.285714 | U78: 573.3142857 | V78: 540.7142857 | W78: 4370.314286 | X78: 15595 | Y78: 53802 | Z78: 20473 | AA78: 89870
A79: Edinburgh, City of2008/091 | B79: Edinburgh, City of | C79: 2008/091 | D79: 10153 | E79: 10645 | F79: 6735 | G79: 27533 | H79: 1450.428571 | I79: 1520.714286 | J79: 962.1428571 | K79: 3933.285714 | L79: 444409 | M79: 339333 | N79: 127911 | O79: 911653 | P79: 8464.933333 | Q79: 6463.485714 | R79: 2436.4 | S79: 17364.81905 | T79: 9915.361905 | U79: 7984.2 | V79: 3398.542857 | W79: 21298.10476 | X79: 67695 | Y79: 311507 | Z79: 79318 | AA79: 458520
A80: Eilean Siar2008/091 | B80: Eilean Siar | C80: 2008/091 | D80: 4656 | E80: 833 | F80: 142 | G80: 5631 | H80: 665.1428571 | I80: 119 | J80: 20.28571429 | K80: 804.4285714 | L80: 11595 | M80: 1170 | N80: 2713 | O80: 15478 | P80: 220.8571429 | Q80: 22.28571429 | R80: 51.67619048 | S80: 294.8190476 | T80: 886 | U80: 141.2857143 | V80: 71.96190476 | W80: 1099.247619 | X80: 5675 | Y80: 16206 | Z80: 5399 | AA80: 27280
A81: Falkirk2008/091 | B81: Falkirk | C81: 2008/091 | D81: 5939 | E81: 3781 | F81: 1762 | G81: 11482 | H81: 848.4285714 | I81: 540.1428571 | J81: 251.7142857 | K81: 1640.285714 | L81: 43785 | M81: 11519 | N81: 28574 | O81: 83878 | P81: 834 | Q81: 219.4095238 | R81: 544.2666667 | S81: 1597.67619 | T81: 1682.428571 | U81: 759.552381 | V81: 795.9809524 | W81: 3237.961905 | X81: 24272 | Y81: 97003 | Z81: 32015 | AA81: 153290
A82: Fife2008/091 | B82: Fife | C82: 2008/091 | D82: 17203 | E82: 7882 | F82: 2893 | G82: 27978 | H82: 2457.571429 | I82: 1126 | J82: 413.2857143 | K82: 3996.857143 | L82: 341457 | M82: 379946 | N82: 48873 | O82: 770276 | P82: 6503.942857 | Q82: 7237.066667 | R82: 930.9142857 | S82: 14671.92381 | T82: 8961.514286 | U82: 8363.066667 | V82: 1344.2 | W82: 18668.78095 | X82: 61067 | Y82: 225648 | Z82: 73335 | AA82: 360050
A83: Glasgow City2008/091 | B83: Glasgow City | C83: 2008/091 | D83: 24406 | E83: 14213 | F83: 7064 | G83: 45683 | H83: 3486.571429 | I83: 2030.428571 | J83: 1009.142857 | K83: 6526.142857 | L83: 257664 | M83: 564660 | N83: 40381 | O83: 862705 | P83: 4907.885714 | Q83: 10755.42857 | R83: 769.1619048 | S83: 16432.47619 | T83: 8394.457143 | U83: 12785.85714 | V83: 1778.304762 | W83: 22958.61905 | X83: 83255 | Y83: 381501 | Z83: 111444 | AA83: 576200
A84: Highland2008/091 | B84: Highland | C84: 2008/091 | D84: 6895 | E84: 4740 | F84: 3268 | G84: 14903 | H84: 985 | I84: 677.1428571 | J84: 466.8571429 | K84: 2129 | L84: 82822 | M84: 32523 | N84: 27291 | O84: 142636 | P84: 1577.561905 | Q84: 619.4857143 | R84: 519.8285714 | S84: 2716.87619 | T84: 2562.561905 | U84: 1296.628571 | V84: 986.6857143 | W84: 4845.87619 | X84: 40335 | Y84: 140021 | Z84: 46624 | AA84: 226980
A85: Inverclyde2008/091 | B85: Inverclyde | C85: 2008/091 | D85: 3257 | E85: 2416 | F85: 808 | G85: 6481 | H85: 465.2857143 | I85: 345.1428571 | J85: 115.4285714 | K85: 925.8571429 | L85: 464049 | M85: 128618 | N85: 6900 | O85: 599567 | P85: 8839.028571 | Q85: 2449.866667 | R85: 131.4285714 | S85: 11420.32381 | T85: 9304.314286 | U85: 2795.009524 | V85: 246.8571429 | W85: 12346.18095 | X85: 14384 | Y85: 51129 | Z85: 16487 | AA85: 82000
A86: Midlothian2008/091 | B86: Midlothian | C86: 2008/091 | D86: 3891 | E86: 2975 | F86: 387 | G86: 7253 | H86: 555.8571429 | I86: 425 | J86: 55.28571429 | K86: 1036.142857 | L86: 27830 | M86: 74415 | N86: 17091 | O86: 119336 | P86: 530.0952381 | Q86: 1417.428571 | R86: 325.5428571 | S86: 2273.066667 | T86: 1085.952381 | U86: 1842.428571 | V86: 380.8285714 | W86: 3309.209524 | X86: 13027 | Y86: 50939 | Z86: 17574 | AA86: 81540
A87: Moray2008/091 | B87: Moray | C87: 2008/091 | D87: 2867 | E87: 2812 | F87: 925 | G87: 6604 | H87: 409.5714286 | I87: 401.7142857 | J87: 132.1428571 | K87: 943.4285714 | L87: 24420 | M87: 11513 | N87: 8664 | O87: 44597 | P87: 465.1428571 | Q87: 219.2952381 | R87: 165.0285714 | S87: 849.4666667 | T87: 874.7142857 | U87: 621.0095238 | V87: 297.1714286 | W87: 1792.895238 | X87: 16194 | Y87: 57418 | Z87: 19218 | AA87: 92830
A88: North Ayrshire2008/091 | B88: North Ayrshire | C88: 2008/091 | D88: 12143 | E88: 4708 | F88: 1628 | G88: 18479 | H88: 1734.714286 | I88: 672.5714286 | J88: 232.5714286 | K88: 2639.857143 | L88: 89121 | M88: 15156 | N88: 13399 | O88: 117676 | P88: 1697.542857 | Q88: 288.6857143 | R88: 255.2190476 | S88: 2241.447619 | T88: 3432.257143 | U88: 961.2571429 | V88: 487.7904762 | W88: 4881.304762 | X88: 24529 | Y88: 84515 | Z88: 28866 | AA88: 137910
A89: North Lanarkshire2008/091 | B89: North Lanarkshire | C89: 2008/091 | D89: 9342 | E89: 8337 | F89: 2119 | G89: 19798 | H89: 1334.571429 | I89: 1191 | J89: 302.7142857 | K89: 2828.285714 | L89: 289476 | M89: 225469 | N89: 9511 | O89: 524456 | P89: 5513.828571 | Q89: 4294.647619 | R89: 181.1619048 | S89: 9989.638095 | T89: 6848.4 | U89: 5485.647619 | V89: 483.8761905 | W89: 12817.92381 | X89: 48407 | Y89: 211313 | Z89: 73570 | AA89: 333290
A90: Orkney Islands2008/091 | B90: Orkney Islands | C90: 2008/091 | D90: 2248 | E90: 605 | F90: 557 | G90: 3410 | H90: 321.1428571 | I90: 86.42857143 | J90: 79.57142857 | K90: 487.1428571 | L90: 28715 | M90: 37556 | N90: 5328 | O90: 71599 | P90: 546.952381 | Q90: 715.352381 | R90: 101.4857143 | S90: 1363.790476 | T90: 868.0952381 | U90: 801.7809524 | V90: 181.0571429 | W90: 1850.933333 | X90: 3904 | Y90: 12606 | Z90: 4230 | AA90: 20740
A91: Perth & Kinross2008/091 | B91: Perth & Kinross | C91: 2008/091 | D91: 12895 | E91: 3949 | F91: 545 | G91: 17389 | H91: 1842.142857 | I91: 564.1428571 | J91: 77.85714286 | K91: 2484.142857 | L91: 107028 | M91: 17290 | N91: 13674 | O91: 137992 | P91: 2038.628571 | Q91: 329.3333333 | R91: 260.4571429 | S91: 2628.419048 | T91: 3880.771429 | U91: 893.4761905 | V91: 338.3142857 | W91: 5112.561905 | X91: 27973 | Y91: 86468 | Z91: 28689 | AA91: 143130
A92: Renfrewshire2008/091 | B92: Renfrewshire | C92: 2008/091 | D92: 8172 | E92: 7538 | F92: 2826 | G92: 18536 | H92: 1167.428571 | I92: 1076.857143 | J92: 403.7142857 | K92: 2648 | L92: 11569 | M92: 31365 | N92: 28645.3 | O92: 71579.3 | P92: 220.3619048 | Q92: 597.4285714 | R92: 545.6247619 | S92: 1363.415238 | T92: 1387.790476 | U92: 1674.285714 | V92: 949.3390476 | W92: 4011.415238 | X92: 28295 | Y92: 108637 | Z92: 35708 | AA92: 172640
A93: Scottish Borders2008/091 | B93: Scottish Borders | C93: 2008/091 | D93: 5761 | E93: 3068 | F93: 2255 | G93: 11084 | H93: 823 | I93: 438.2857143 | J93: 322.1428571 | K93: 1583.428571 | L93: 1297 | M93: 6146 | N93: 10107 | O93: 17550 | P93: 24.7047619 | Q93: 117.0666667 | R93: 192.5142857 | S93: 334.2857143 | T93: 847.7047619 | U93: 555.352381 | V93: 514.6571429 | W93: 1917.714286 | X93: 22460 | Y93: 68190 | Z93: 22710 | AA93: 113360
A94: Shetland Islands2008/091 | B94: Shetland Islands | C94: 2008/091 | D94: 5165 | E94: 2014 | F94: 983 | G94: 8162 | H94: 737.8571429 | I94: 287.7142857 | J94: 140.4285714 | K94: 1166 | L94: 7882 | M94: 2985 | N94: 11950 | O94: 22817 | P94: 150.1333333 | Q94: 56.85714286 | R94: 227.6190476 | S94: 434.6095238 | T94: 887.9904762 | U94: 344.5714286 | V94: 368.047619 | W94: 1600.609524 | X94: 3585 | Y94: 13817 | Z94: 5078 | AA94: 22480
A95: South Ayrshire2008/091 | B95: South Ayrshire | C95: 2008/091 | D95: 10032 | E95: 2255 | F95: 1503 | G95: 13790 | H95: 1433.142857 | I95: 322.1428571 | J95: 214.7142857 | K95: 1970 | L95: 16640 | M95: 12955 | N95: 36026 | O95: 65621 | P95: 316.952381 | Q95: 246.7619048 | R95: 686.2095238 | S95: 1249.92381 | T95: 1750.095238 | U95: 568.9047619 | V95: 900.9238095 | W95: 3219.92381 | X95: 23254 | Y95: 67815 | Z95: 21541 | AA95: 112610
A96: South Lanarkshire2008/091 | B96: South Lanarkshire | C96: 2008/091 | D96: 20854 | E96: 7620 | F96: 3125 | G96: 31599 | H96: 2979.142857 | I96: 1088.571429 | J96: 446.4285714 | K96: 4514.142857 | L96: 269517 | M96: 55948 | N96: 45640 | O96: 371105 | P96: 5133.657143 | Q96: 1065.67619 | R96: 869.3333333 | S96: 7068.666667 | T96: 8112.8 | U96: 2154.247619 | V96: 1315.761905 | W96: 11582.80952 | X96: 50596 | Y96: 195910 | Z96: 64814 | AA96: 311320
A97: Stirling2008/091 | B97: Stirling | C97: 2008/091 | D97: 4359 | E97: 1210 | F97: 1748 | G97: 7317 | H97: 622.7142857 | I97: 172.8571429 | J97: 249.7142857 | K97: 1045.285714 | L97: 7301 | M97: 1696 | N97: 19754 | O97: 28751 | P97: 139.0666667 | Q97: 32.3047619 | R97: 376.2666667 | S97: 547.6380952 | T97: 761.7809524 | U97: 205.1619048 | V97: 625.9809524 | W97: 1592.92381 | X97: 14803 | Y97: 55229 | Z97: 18508 | AA97: 88540
A98: West Dunbartonshire2008/091 | B98: West Dunbartonshire | C98: 2008/091 | D98: 3935 | E98: 3131 | F98: 1303 | G98: 8369 | H98: 562.1428571 | I98: 447.2857143 | J98: 186.1428571 | K98: 1195.571429 | L98: 153900 | M98: 142296 | N98: 27462 | O98: 323658 | P98: 2931.428571 | Q98: 2710.4 | R98: 523.0857143 | S98: 6164.914286 | T98: 3493.571429 | U98: 3157.685714 | V98: 709.2285714 | W98: 7360.485714 | X98: 14665 | Y98: 57608 | Z98: 18917 | AA98: 91190
A99: West Lothian2008/091 | B99: West Lothian | C99: 2008/091 | D99: 4260 | E99: 3964 | F99: 930 | G99: 9154 | H99: 608.5714286 | I99: 566.2857143 | J99: 132.8571429 | K99: 1307.714286 | L99: 8768 | M99: 21479 | N99: 16334 | O99: 46581 | P99: 167.0095238 | Q99: 409.1238095 | R99: 311.1238095 | S99: 887.2571429 | T99: 775.5809524 | U99: 975.4095238 | V99: 443.9809524 | W99: 2194.971429 | X99: 22057 | Y99: 109698 | Z99: 39625 | AA99: 171380
A100: Aberdeen City2009/101 | B100: Aberdeen City | C100: 2009/101 | D100: 8251 | E100: 2420 | F100: 1243 | G100: 11914 | H100: 1178.714286 | I100: 345.7142857 | J100: 177.5714286 | K100: 1702 | L100: 36824.8 | M100: 35299.25 | N100: 9369.5 | O100: 81493.55 | P100: 701.4247619 | Q100: 672.3666667 | R100: 178.4666667 | S100: 1552.258095 | T100: 1880.139048 | U100: 1018.080952 | V100: 356.0380952 | W100: 3254.258095 | X100: 32071 | Y100: 147154 | Z100: 37795 | AA100: 217020
A101: Aberdeenshire2009/101 | B101: Aberdeenshire | C101: 2009/101 | D101: 16200 | E101: 4648.5166 | F101: 953 | G101: 21801.5166 | H101: 2314.285714 | I101: 664.0738 | J101: 136.1428571 | K101: 3114.502371 | L101: 70056.13 | M101: 67838.58 | N101: 76661.04 | O101: 214555.75 | P101: 1334.402476 | Q101: 1292.163429 | R101: 1460.210286 | S101: 4086.77619 | T101: 3648.68819 | U101: 1956.237229 | V101: 1596.353143 | W101: 7201.278562 | X101: 39227 | Y101: 156181 | Z101: 53612 | AA101: 249020
A102: Angus2009/101 | B102: Angus | C102: 2009/101 | D102: 8465 | E102: 1915 | F102: 1012 | G102: 11392 | H102: 1209.285714 | I102: 273.5714286 | J102: 144.5714286 | K102: 1627.428571 | L102: 102072 | M102: 5185 | N102: 8395 | O102: 115652 | P102: 1944.228571 | Q102: 98.76190476 | R102: 159.9047619 | S102: 2202.895238 | T102: 3153.514286 | U102: 372.3333333 | V102: 304.4761905 | W102: 3830.32381 | X102: 22293 | Y102: 69158 | Z102: 23379 | AA102: 114830
A103: Argyll & Bute2009/101 | B103: Argyll & Bute | C103: 2009/101 | D103: 4686 | E103: 1445 | F103: 1509 | G103: 7640 | H103: 669.4285714 | I103: 206.4285714 | J103: 215.5714286 | K103: 1091.428571 | L103: 77851 | M103: 72290 | N103: 34338 | O103: 184479 | P103: 1482.87619 | Q103: 1376.952381 | R103: 654.0571429 | S103: 3513.885714 | T103: 2152.304762 | U103: 1583.380952 | V103: 869.6285714 | W103: 4605.314286 | X103: 18800 | Y103: 53734 | Z103: 16916 | AA103: 89450
A104: Clackmannanshire2009/101 | B104: Clackmannanshire | C104: 2009/101 | D104: 3414 | E104: 2075 | F104: 264 | G104: 5753 | H104: 487.7142857 | I104: 296.4285714 | J104: 37.71428571 | K104: 821.8571429 | L104: 66731 | M104: 50383 | N104: 10158 | O104: 127272 | P104: 1271.066667 | Q104: 959.6761905 | R104: 193.4857143 | S104: 2424.228571 | T104: 1758.780952 | U104: 1256.104762 | V104: 231.2 | W104: 3246.085714 | X104: 7839 | Y104: 32538 | Z104: 10913 | AA104: 51290
A105: Dumfries & Galloway2009/101 | B105: Dumfries & Galloway | C105: 2009/101 | D105: 4647 | E105: 1858 | F105: 1978 | G105: 8483 | H105: 663.8571429 | I105: 265.4285714 | J105: 282.5714286 | K105: 1211.857143 | L105: 9991 | M105: 4177 | N105: 25994 | O105: 40162 | P105: 190.3047619 | Q105: 79.56190476 | R105: 495.1238095 | S105: 764.9904762 | T105: 854.1619048 | U105: 344.9904762 | V105: 777.6952381 | W105: 1976.847619 | X105: 32284 | Y105: 89620 | Z105: 29256 | AA105: 151160
A106: Dundee City2009/101 | B106: Dundee City | C106: 2009/101 | D106: 8093 | E106: 6462 | F106: 1814 | G106: 16369 | H106: 1156.142857 | I106: 923.1428571 | J106: 259.1428571 | K106: 2338.428571 | L106: 60749.5 | M106: 160906.25 | N106: 24621 | O106: 246276.75 | P106: 1157.133333 | Q106: 3064.880952 | R106: 468.9714286 | S106: 4690.985714 | T106: 2313.27619 | U106: 3988.02381 | V106: 728.1142857 | W106: 7029.414286 | X106: 24909 | Y106: 92480 | Z106: 27781 | AA106: 145170
A107: East Ayrshire2009/101 | B107: East Ayrshire | C107: 2009/101 | D107: 6537 | E107: 4907 | F107: 1204 | G107: 12648 | H107: 933.8571429 | I107: 701 | J107: 172 | K107: 1806.857143 | L107: 84059.53 | M107: 155320 | N107: 8985 | O107: 248364.53 | P107: 1601.133905 | Q107: 2958.47619 | R107: 171.1428571 | S107: 4730.752952 | T107: 2534.991048 | U107: 3659.47619 | V107: 343.1428571 | W107: 6537.610095 | X107: 20732 | Y107: 76325 | Z107: 25053 | AA107: 122110
A108: East Dunbartonshire2009/101 | B108: East Dunbartonshire | C108: 2009/101 | D108: 4098 | E108: 2484 | F108: 1064 | G108: 7646 | H108: 585.4285714 | I108: 354.8571429 | J108: 152 | K108: 1092.285714 | L108: 280703 | M108: 37367.36 | N108: 24006.64 | O108: 342077 | P108: 5346.72381 | Q108: 711.7592381 | R108: 457.2693333 | S108: 6515.752381 | T108: 5932.152381 | U108: 1066.616381 | V108: 609.2693333 | W108: 7608.038095 | X108: 19707 | Y108: 63321 | Z108: 21932 | AA108: 104960
A109: East Lothian2009/101 | B109: East Lothian | C109: 2009/101 | D109: 4368 | E109: 2759 | F109: 1078 | G109: 8205 | H109: 624 | I109: 394.1428571 | J109: 154 | K109: 1172.142857 | L109: 4630.5 | M109: 821 | N109: 20379 | O109: 25830.5 | P109: 88.2 | Q109: 15.63809524 | R109: 388.1714286 | S109: 492.0095238 | T109: 712.2 | U109: 409.7809524 | V109: 542.1714286 | W109: 1664.152381 | X109: 17292 | Y109: 59700 | Z109: 21348 | AA109: 98340
A110: East Renfrewshire2009/101 | B110: East Renfrewshire | C110: 2009/101 | D110: 4371 | E110: 2770.5 | F110: 1286 | G110: 8427.5 | H110: 624.4285714 | I110: 395.7857143 | J110: 183.7142857 | K110: 1203.928571 | L110: 128127 | M110: 22149 | N110: 18686.5 | O110: 168962.5 | P110: 2440.514286 | Q110: 421.8857143 | R110: 355.9333333 | S110: 3218.333333 | T110: 3064.942857 | U110: 817.6714286 | V110: 539.647619 | W110: 4422.261905 | X110: 15922 | Y110: 53623 | Z110: 20435 | AA110: 89980
A111: Edinburgh, City of2009/101 | B111: Edinburgh, City of | C111: 2009/101 | D111: 10540 | E111: 11509 | F111: 6707 | G111: 28756 | H111: 1505.714286 | I111: 1644.142857 | J111: 958.1428571 | K111: 4108 | L111: 431206 | M111: 395953 | N111: 102748 | O111: 929907 | P111: 8213.447619 | Q111: 7541.961905 | R111: 1957.104762 | S111: 17712.51429 | T111: 9719.161905 | U111: 9186.104762 | V111: 2915.247619 | W111: 21820.51429 | X111: 67972 | Y111: 314895 | Z111: 80373 | AA111: 463240
A112: Eilean Siar2009/101 | B112: Eilean Siar | C112: 2009/101 | D112: 4940 | E112: 664 | F112: 141 | G112: 5745 | H112: 705.7142857 | I112: 94.85714286 | J112: 20.14285714 | K112: 820.7142857 | L112: 14313 | M112: 3965 | N112: 2713 | O112: 20991 | P112: 272.6285714 | Q112: 75.52380952 | R112: 51.67619048 | S112: 399.8285714 | T112: 978.3428571 | U112: 170.3809524 | V112: 71.81904762 | W112: 1220.542857 | X112: 5791 | Y112: 16226 | Z112: 5403 | AA112: 27420
A113: Falkirk2009/101 | B113: Falkirk | C113: 2009/101 | D113: 5774 | E113: 3877 | F113: 1981 | G113: 11632 | H113: 824.8571429 | I113: 553.8571429 | J113: 283 | K113: 1661.714286 | L113: 44820.36 | M113: 12607.07 | N113: 30301.4 | O113: 87728.83 | P113: 853.7211429 | Q113: 240.1346667 | R113: 577.1695238 | S113: 1671.025333 | T113: 1678.578286 | U113: 793.9918095 | V113: 860.1695238 | W113: 3332.739619 | X113: 24658 | Y113: 97609 | Z113: 31943 | AA113: 154210
A114: Fife2009/101 | B114: Fife | C114: 2009/101 | D114: 15944 | E114: 10554 | F114: 2250 | G114: 28748 | H114: 2277.714286 | I114: 1507.714286 | J114: 321.4285714 | K114: 4106.857143 | L114: 328132 | M114: 484890 | N114: 45441 | O114: 858463 | P114: 6250.133333 | Q114: 9236 | R114: 865.5428571 | S114: 16351.67619 | T114: 8527.847619 | U114: 10743.71429 | V114: 1186.971429 | W114: 20458.53333 | X114: 62178 | Y114: 225922 | Z114: 73310 | AA114: 361410
A115: Glasgow City2009/101 | B115: Glasgow City | C115: 2009/101 | D115: 20742 | E115: 14480 | F115: 8246 | G115: 43468 | H115: 2963.142857 | I115: 2068.571429 | J115: 1178 | K115: 6209.714286 | L115: 315715 | M115: 437841 | N115: 57153 | O115: 810709 | P115: 6013.619048 | Q115: 8339.828571 | R115: 1088.628571 | S115: 15442.07619 | T115: 8976.761905 | U115: 10408.4 | V115: 2266.628571 | W115: 21651.79048 | X115: 82724 | Y115: 386551 | Z115: 112345 | AA115: 581620
A116: Highland2009/101 | B116: Highland | C116: 2009/101 | D116: 10433 | E116: 5293 | F116: 3583 | G116: 19309 | H116: 1490.428571 | I116: 756.1428571 | J116: 511.8571429 | K116: 2758.428571 | L116: 84270 | M116: 37194 | N116: 32439 | O116: 153903 | P116: 1605.142857 | Q116: 708.4571429 | R116: 617.8857143 | S116: 2931.485714 | T116: 3095.571429 | U116: 1464.6 | V116: 1129.742857 | W116: 5689.914286 | X116: 41510 | Y116: 140378 | Z116: 46862 | AA116: 228750
A117: Inverclyde2009/101 | B117: Inverclyde | C117: 2009/101 | D117: 3444 | E117: 2604 | F117: 749 | G117: 6797 | H117: 492 | I117: 372 | J117: 107 | K117: 971 | L117: 476959 | M117: 137797 | N117: 5170 | O117: 619926 | P117: 9084.933333 | Q117: 2624.704762 | R117: 98.47619048 | S117: 11808.11429 | T117: 9576.933333 | U117: 2996.704762 | V117: 205.4761905 | W117: 12779.11429 | X117: 14566 | Y117: 50930 | Z117: 16174 | AA117: 81670
A118: Midlothian2009/101 | B118: Midlothian | C118: 2009/101 | D118: 2623 | E118: 3252 | F118: 446 | G118: 6321 | H118: 374.7142857 | I118: 464.5714286 | J118: 63.71428571 | K118: 903 | L118: 36824.8 | M118: 80062 | N118: 22394 | O118: 139280.8 | P118: 701.4247619 | Q118: 1524.990476 | R118: 426.552381 | S118: 2652.967619 | T118: 1076.139048 | U118: 1989.561905 | V118: 490.2666667 | W118: 3555.967619 | X118: 13337 | Y118: 50945 | Z118: 17618 | AA118: 81900
A119: Moray2009/101 | B119: Moray | C119: 2009/101 | D119: 4138 | E119: 3161 | F119: 1298 | G119: 8597 | H119: 591.1428571 | I119: 451.5714286 | J119: 185.4285714 | K119: 1228.142857 | L119: 17746.8 | M119: 13599.5 | N119: 6455.8 | O119: 37802.1 | P119: 338.0342857 | Q119: 259.0380952 | R119: 122.967619 | S119: 720.04 | T119: 929.1771429 | U119: 710.6095238 | V119: 308.3961905 | W119: 1948.182857 | X119: 16593 | Y119: 57166 | Z119: 19411 | AA119: 93170
A120: North Ayrshire2009/101 | B120: North Ayrshire | C120: 2009/101 | D120: 10394 | E120: 5318 | F120: 1568 | G120: 17280 | H120: 1484.857143 | I120: 759.7142857 | J120: 224 | K120: 2468.571429 | L120: 90671 | M120: 18504 | N120: 11807 | O120: 120982 | P120: 1727.066667 | Q120: 352.4571429 | R120: 224.8952381 | S120: 2304.419048 | T120: 3211.92381 | U120: 1112.171429 | V120: 448.8952381 | W120: 4772.990476 | X120: 25037 | Y120: 84201 | Z120: 28592 | AA120: 137830
A121: North Lanarkshire2009/101 | B121: North Lanarkshire | C121: 2009/101 | D121: 11051 | E121: 8138 | F121: 1880 | G121: 21069 | H121: 1578.714286 | I121: 1162.571429 | J121: 268.5714286 | K121: 3009.857143 | L121: 210799.84 | M121: 207522.5 | N121: 13631 | O121: 431953.34 | P121: 4015.235048 | Q121: 3952.809524 | R121: 259.6380952 | S121: 8227.682667 | T121: 5593.949333 | U121: 5115.380952 | V121: 528.2095238 | W121: 11237.53981 | X121: 49324 | Y121: 212227 | Z121: 73609 | AA121: 335160
A122: Orkney Islands2009/101 | B122: Orkney Islands | C122: 2009/101 | D122: 2142 | E122: 655 | F122: 568 | G122: 3365 | H122: 306 | I122: 93.57142857 | J122: 81.14285714 | K122: 480.7142857 | L122: 20491 | M122: 34136 | N122: 6982 | O122: 61609 | P122: 390.3047619 | Q122: 650.2095238 | R122: 132.9904762 | S122: 1173.504762 | T122: 696.3047619 | U122: 744 | V122: 214.1333333 | W122: 1654.219048 | X122: 4032 | Y122: 12706 | Z122: 4202 | AA122: 20940
A123: Perth & Kinross2009/101 | B123: Perth & Kinross | C123: 2009/101 | D123: 12066 | E123: 3163 | F123: 529 | G123: 15758 | H123: 1723.714286 | I123: 451.8571429 | J123: 75.57142857 | K123: 2251.142857 | L123: 167395 | M123: 31920 | N123: 14243 | O123: 213558 | P123: 3188.47619 | Q123: 608 | R123: 271.2952381 | S123: 4067.771429 | T123: 4912.190476 | U123: 1059.857143 | V123: 346.8666667 | W123: 6318.914286 | X123: 28454 | Y123: 87130 | Z123: 28786 | AA123: 144370
A124: Renfrewshire2009/101 | B124: Renfrewshire | C124: 2009/101 | D124: 7179 | E124: 7733 | F124: 3081 | G124: 17993 | H124: 1025.571429 | I124: 1104.714286 | J124: 440.1428571 | K124: 2570.428571 | L124: 10594 | M124: 40950 | N124: 25030 | O124: 76574 | P124: 201.7904762 | Q124: 780 | R124: 476.7619048 | S124: 1458.552381 | T124: 1227.361905 | U124: 1884.714286 | V124: 916.9047619 | W124: 4028.980952 | X124: 28793 | Y124: 108902 | Z124: 35325 | AA124: 173020
A125: Scottish Borders2009/101 | B125: Scottish Borders | C125: 2009/101 | D125: 5570 | E125: 3706 | F125: 2243 | G125: 11519 | H125: 795.7142857 | I125: 529.4285714 | J125: 320.4285714 | K125: 1645.571429 | L125: 962 | M125: 7521 | N125: 11401 | O125: 19884 | P125: 18.32380952 | Q125: 143.2571429 | R125: 217.1619048 | S125: 378.7428571 | T125: 814.0380952 | U125: 672.6857143 | V125: 537.5904762 | W125: 2024.314286 | X125: 23040 | Y125: 67967 | Z125: 22583 | AA125: 113590
A126: Shetland Islands2009/101 | B126: Shetland Islands | C126: 2009/101 | D126: 6568 | E126: 1885 | F126: 1022 | G126: 9475 | H126: 938.2857143 | I126: 269.2857143 | J126: 146 | K126: 1353.571429 | L126: 7530 | M126: 2286 | N126: 11542 | O126: 21358 | P126: 143.4285714 | Q126: 43.54285714 | R126: 219.847619 | S126: 406.8190476 | T126: 1081.714286 | U126: 312.8285714 | V126: 365.847619 | W126: 1760.390476 | X126: 3681 | Y126: 14008 | Z126: 5101 | AA126: 22790
A127: South Ayrshire2009/101 | B127: South Ayrshire | C127: 2009/101 | D127: 8661 | E127: 2217 | F127: 1127 | G127: 12005 | H127: 1237.285714 | I127: 316.7142857 | J127: 161 | K127: 1715 | L127: 17528 | M127: 12437 | N127: 50206.21 | O127: 80171.21 | P127: 333.8666667 | Q127: 236.8952381 | R127: 956.3087619 | S127: 1527.070667 | T127: 1571.152381 | U127: 553.6095238 | V127: 1117.308762 | W127: 3242.070667 | X127: 23641 | Y127: 67456 | Z127: 21393 | AA127: 112490
A128: South Lanarkshire2009/101 | B128: South Lanarkshire | C128: 2009/101 | D128: 23036 | E128: 9653 | F128: 3646 | G128: 36335 | H128: 3290.857143 | I128: 1379 | J128: 520.8571429 | K128: 5190.714286 | L128: 279963.28 | M128: 61097 | N128: 49711.29 | O128: 390771.57 | P128: 5332.633905 | Q128: 1163.752381 | R128: 946.8817143 | S128: 7443.268 | T128: 8623.491048 | U128: 2542.752381 | V128: 1467.738857 | W128: 12633.98229 | X128: 51552 | Y128: 196114 | Z128: 64514 | AA128: 312180
A129: Stirling2009/101 | B129: Stirling | C129: 2009/101 | D129: 4087 | E129: 1258 | F129: 828 | G129: 6173 | H129: 583.8571429 | I129: 179.7142857 | J129: 118.2857143 | K129: 881.8571429 | L129: 8732 | M129: 2360 | N129: 26430 | O129: 37522 | P129: 166.3238095 | Q129: 44.95238095 | R129: 503.4285714 | S129: 714.7047619 | T129: 750.1809524 | U129: 224.6666667 | V129: 621.7142857 | W129: 1596.561905 | X129: 15144 | Y129: 55353 | Z129: 18193 | AA129: 88690
A130: West Dunbartonshire2009/101 | B130: West Dunbartonshire | C130: 2009/101 | D130: 3129 | E130: 3981 | F130: 1187 | G130: 8297 | H130: 447 | I130: 568.7142857 | J130: 169.5714286 | K130: 1185.285714 | L130: 176812.89 | M130: 140749.35 | N130: 27111 | O130: 344673.24 | P130: 3367.864571 | Q130: 2680.94 | R130: 516.4 | S130: 6565.204571 | T130: 3814.864571 | U130: 3249.654286 | V130: 685.9714286 | W130: 7750.490286 | X130: 14761 | Y130: 57514 | Z130: 18805 | AA130: 91080
A131: West Lothian2009/101 | B131: West Lothian | C131: 2009/101 | D131: 4563 | E131: 4389 | F131: 908 | G131: 9860 | H131: 651.8571429 | I131: 627 | J131: 129.7142857 | K131: 1408.571429 | L131: 9806 | M131: 39669 | N131: 19109 | O131: 68584 | P131: 186.7809524 | Q131: 755.6 | R131: 363.9809524 | S131: 1306.361905 | T131: 838.6380952 | U131: 1382.6 | V131: 493.6952381 | W131: 2714.933333 | X131: 22693 | Y131: 110547 | Z131: 39800 | AA131: 173040
A132: Aberdeen City2009/102 | B132: Aberdeen City | C132: 2009/102 | D132: 8251 | E132: 2420 | F132: 1243 | G132: 11914 | H132: 1178.714286 | I132: 345.7142857 | J132: 177.5714286 | K132: 1702 | L132: 36824.8 | M132: 35299.25 | N132: 9369.5 | O132: 81493.55 | P132: 701.4247619 | Q132: 672.3666667 | R132: 178.4666667 | S132: 1552.258095 | T132: 1880.139048 | U132: 1018.080952 | V132: 356.0380952 | W132: 3254.258095 | X132: 32071 | Y132: 147154 | Z132: 37795 | AA132: 217020 | AB132: 8031 | AC132: 220 | AD132: 0 | AE132: 8251 | AF132: 1133 | AG132: 13206.5 | AH132: 15964.5 | AI132: 6520.8 | AJ132: 36824.8 | AK132: 1990 | AL132: 430 | AM132: 0 | AN132: 2420 | AO132: 0 | AP132: 18621.5 | AQ132: 4528.5 | AR132: 12149.25 | AS132: 35299.25 | AT132: 1201 | AU132: 0 | AV132: 42 | AW132: 1243 | AX132: 437.5 | AY132: 0 | AZ132: 330 | BA132: 8602 | BB132: 9369.5 | BC132: 11222 | BD132: 650 | BE132: 42 | BF132: 11914 | BG132: 1570.5 | BH132: 31828 | BI132: 20823 | BJ132: 27272.05 | BK132: 81493.55
A133: Aberdeenshire2009/102 | B133: Aberdeenshire | C133: 2009/102 | D133: 16200 | E133: 4648.5166 | F133: 953 | G133: 21801.5166 | H133: 2314.285714 | I133: 664.0738 | J133: 136.1428571 | K133: 3114.502371 | L133: 70056.13 | M133: 67838.58 | N133: 76661.04 | O133: 214555.75 | P133: 1334.402476 | Q133: 1292.163429 | R133: 1460.210286 | S133: 4086.77619 | T133: 3648.68819 | U133: 1956.237229 | V133: 1596.353143 | W133: 7201.278562 | X133: 39227 | Y133: 156181 | Z133: 53612 | AA133: 249020 | AB133: 15533 | AC133: 0 | AD133: 667 | AE133: 16200 | AF133: 2637 | AG133: 1277 | AH133: 12952 | AI133: 53190.13 | AJ133: 70056.13 | AK133: 4212.071 | AL133: 0 | AM133: 436.4456 | AN133: 4648.5166 | AO133: 301 | AP133: 13107 | AQ133: 10168.25 | AR133: 44262.33 | AS133: 67838.58 | AT133: 758 | AU133: 0 | AV133: 195 | AW133: 953 | AX133: 64 | AY133: 28745.04 | AZ133: 18142 | BA133: 29710 | BB133: 76661.04 | BC133: 20503.071 | BD133: 0 | BE133: 1298.4456 | BF133: 21801.5166 | BG133: 3002 | BH133: 43129.04 | BI133: 41262.25 | BJ133: 127162.46 | BK133: 214555.75
A134: Angus2009/102 | B134: Angus | C134: 2009/102 | D134: 8465 | E134: 1915 | F134: 1012 | G134: 11392 | H134: 1209.285714 | I134: 273.5714286 | J134: 144.5714286 | K134: 1627.428571 | L134: 102072 | M134: 4140 | N134: 8395 | O134: 114607 | P134: 1944.228571 | Q134: 78.85714286 | R134: 159.9047619 | S134: 2182.990476 | T134: 3153.514286 | U134: 352.4285714 | V134: 304.4761905 | W134: 3810.419048 | X134: 22293 | Y134: 69158 | Z134: 23379 | AA134: 114830 | AB134: 8465 | AC134: 0 | AD134: 0 | AE134: 8465 | AF134: 0 | AG134: 78144 | AH134: 23928 | AI134: 0 | AJ134: 102072 | AK134: 1915 | AL134: 0 | AM134: 0 | AN134: 1915 | AO134: 0 | AP134: 0 | AQ134: 5185 | AR134: 0 | AS134: 5185 | AT134: 366 | AU134: 0 | AV134: 646 | AW134: 1012 | AX134: 130 | AY134: 0 | AZ134: 0 | BA134: 8265 | BB134: 8395 | BC134: 10746 | BD134: 0 | BE134: 646 | BF134: 11392 | BG134: 130 | BH134: 78144 | BI134: 29113 | BJ134: 8265 | BK134: 115652
A135: Argyll & Bute2009/102 | B135: Argyll & Bute | C135: 2009/102 | D135: 4686 | E135: 1445 | F135: 1509 | G135: 7640 | H135: 669.4285714 | I135: 206.4285714 | J135: 215.5714286 | K135: 1091.428571 | L135: 77851 | M135: 72290 | N135: 34338 | O135: 184479 | P135: 1482.87619 | Q135: 1376.952381 | R135: 654.0571429 | S135: 3513.885714 | T135: 2152.304762 | U135: 1583.380952 | V135: 869.6285714 | W135: 4605.314286 | X135: 18800 | Y135: 53734 | Z135: 16916 | AA135: 89450 | AB135: 4313 | AC135: 0 | AD135: 373 | AE135: 4686 | AF135: 0 | AG135: 61489 | AH135: 0 | AI135: 16362 | AJ135: 77851 | AK135: 1030 | AL135: 0 | AM135: 415 | AN135: 1445 | AO135: 0 | AP135: 29881 | AQ135: 0 | AR135: 42409 | AS135: 72290 | AT135: 1199 | AU135: 0 | AV135: 310 | AW135: 1509 | AX135: 0 | AY135: 8824 | AZ135: 0 | BA135: 25514 | BB135: 34338 | BC135: 6542 | BD135: 0 | BE135: 1098 | BF135: 7640 | BG135: 0 | BH135: 100194 | BI135: 0 | BJ135: 84285 | BK135: 184479
A136: Clackmannanshire2009/102 | B136: Clackmannanshire | C136: 2009/102 | D136: 3414 | E136: 2075 | F136: 264 | G136: 5753 | H136: 487.7142857 | I136: 296.4285714 | J136: 37.71428571 | K136: 821.8571429 | L136: 66731 | M136: 50383 | N136: 10158 | O136: 127272 | P136: 1271.066667 | Q136: 959.6761905 | R136: 193.4857143 | S136: 2424.228571 | T136: 1758.780952 | U136: 1256.104762 | V136: 231.2 | W136: 3246.085714 | X136: 7839 | Y136: 32538 | Z136: 10913 | AA136: 51290 | AB136: 3036 | AC136: 0 | AD136: 378 | AE136: 3414 | AF136: 0 | AG136: 57375 | AH136: 1327 | AI136: 8029 | AJ136: 66731 | AK136: 414 | AL136: 718 | AM136: 943 | AN136: 2075 | AO136: 0 | AP136: 45100 | AQ136: 3965 | AR136: 1318 | AS136: 50383 | AT136: 264 | AU136: 0 | AV136: 0 | AW136: 264 | AX136: 0 | AY136: 0 | AZ136: 2340 | BA136: 7818 | BB136: 10158 | BC136: 3714 | BD136: 718 | BE136: 1321 | BF136: 5753 | BG136: 0 | BH136: 102475 | BI136: 7632 | BJ136: 17165 | BK136: 127272
A137: Dumfries & Galloway2009/102 | B137: Dumfries & Galloway | C137: 2009/102 | D137: 5012 | E137: 4448 | F137: 1978 | G137: 11438 | H137: 716 | I137: 635.4285714 | J137: 282.5714286 | K137: 1634 | L137: 9991 | M137: 4177 | N137: 25994 | O137: 40162 | P137: 190.3047619 | Q137: 79.56190476 | R137: 495.1238095 | S137: 764.9904762 | T137: 906.3047619 | U137: 714.9904762 | V137: 777.6952381 | W137: 2398.990476 | X137: 32284 | Y137: 89620 | Z137: 29256 | AA137: 151160 | AB137: 4633 | AC137: 14 | AD137: 0 | AE137: 4647 | AF137: 0 | AG137: 0 | AH137: 9991 | AI137: 0 | AJ137: 9991 | AK137: 1695 | AL137: 163 | AM137: 0 | AN137: 1858 | AO137: 0 | AP137: 0 | AQ137: 4177 | AR137: 0 | AS137: 4177 | AT137: 1886 | AU137: 92 | AV137: 0 | AW137: 1978 | AX137: 0 | AY137: 6243 | AZ137: 19751 | BA137: 0 | BB137: 25994 | BC137: 8214 | BD137: 269 | BE137: 0 | BF137: 8483 | BG137: 0 | BH137: 6243 | BI137: 33919 | BJ137: 0 | BK137: 40162
A138: Dundee City2009/102 | B138: Dundee City | C138: 2009/102 | D138: 8093 | E138: 6462 | F138: 1814 | G138: 16369 | H138: 1156.142857 | I138: 923.1428571 | J138: 259.1428571 | K138: 2338.428571 | L138: 60749.5 | M138: 176253 | N138: 24621 | O138: 261623.5 | P138: 1157.133333 | Q138: 3357.2 | R138: 468.9714286 | S138: 4983.304762 | T138: 2313.27619 | U138: 4280.342857 | V138: 728.1142857 | W138: 7321.733333 | X138: 24909 | Y138: 92480 | Z138: 27781 | AA138: 145170 | AB138: 8091 | AC138: 2 | AD138: 0 | AE138: 8093 | AF138: 0 | AG138: 31610 | AH138: 29139.5 | AI138: 0 | AJ138: 60749.5 | AK138: 6140 | AL138: 322 | AM138: 0 | AN138: 6462 | AO138: 0 | AP138: 85208 | AQ138: 1345.25 | AR138: 74353 | AS138: 160906.25 | AT138: 636 | AU138: 176 | AV138: 1002 | AW138: 1814 | AX138: 0 | AY138: 3980 | AZ138: 9374 | BA138: 11267 | BB138: 24621 | BC138: 14867 | BD138: 500 | BE138: 1002 | BF138: 16369 | BG138: 0 | BH138: 120798 | BI138: 39858.75 | BJ138: 85620 | BK138: 246276.75
A139: East Ayrshire2009/102 | B139: East Ayrshire | C139: 2009/102 | D139: 6537 | E139: 4907 | F139: 1204 | G139: 12648 | H139: 933.8571429 | I139: 701 | J139: 172 | K139: 1806.857143 | L139: 84059.53 | M139: 155320 | N139: 8985 | O139: 248364.53 | P139: 1601.133905 | Q139: 2958.47619 | R139: 171.1428571 | S139: 4730.752952 | T139: 2534.991048 | U139: 3659.47619 | V139: 343.1428571 | W139: 6537.610095 | X139: 20732 | Y139: 76325 | Z139: 25053 | AA139: 122110 | AB139: 4849 | AC139: 1688 | AD139: 0 | AE139: 6537 | AF139: 0 | AG139: 65404 | AH139: 18655.53 | AI139: 0 | AJ139: 84059.53 | AK139: 4907 | AL139: 0 | AM139: 0 | AN139: 4907 | AO139: 0 | AP139: 124226 | AQ139: 31094 | AR139: 0 | AS139: 155320 | AT139: 1099 | AU139: 105 | AV139: 0 | AW139: 1204 | AX139: 0 | AY139: 0 | AZ139: 0 | BA139: 8985 | BB139: 8985 | BC139: 10855 | BD139: 1793 | BE139: 0 | BF139: 12648 | BG139: 0 | BH139: 189630 | BI139: 49749.53 | BJ139: 8985 | BK139: 248364.53
A140: East Dunbartonshire2009/102 | B140: East Dunbartonshire | C140: 2009/102 | D140: 4098 | E140: 2484 | F140: 1064 | G140: 7646 | H140: 585.4285714 | I140: 354.8571429 | J140: 152 | K140: 1092.285714 | L140: 280703 | M140: 37367.36 | N140: 24006.64 | O140: 342077 | P140: 5346.72381 | Q140: 711.7592381 | R140: 457.2693333 | S140: 6515.752381 | T140: 5932.152381 | U140: 1066.616381 | V140: 609.2693333 | W140: 7608.038095 | X140: 19707 | Y140: 63321 | Z140: 21932 | AA140: 104960 | AB140: 3881 | AC140: 217 | AD140: 0 | AE140: 4098 | AF140: 0 | AG140: 84685 | AH140: 196018 | AI140: 0 | AJ140: 280703 | AK140: 2276 | AL140: 208 | AM140: 0 | AN140: 2484 | AO140: 60 | AP140: 9493 | AQ140: 19095.36 | AR140: 8719 | AS140: 37367.36 | AT140: 1053 | AU140: 0 | AV140: 11 | AW140: 1064 | AX140: 0 | AY140: 0 | AZ140: 13943.89 | BA140: 10062.75 | BB140: 24006.64 | BC140: 7210 | BD140: 425 | BE140: 11 | BF140: 7646 | BG140: 60 | BH140: 94178 | BI140: 229057.25 | BJ140: 18781.75 | BK140: 342077
A141: East Lothian2009/102 | B141: East Lothian | C141: 2009/102 | D141: 4368 | E141: 2759 | F141: 1078 | G141: 8205 | H141: 624 | I141: 394.1428571 | J141: 154 | K141: 1172.142857 | L141: 4630.5 | M141: 821 | N141: 20379 | O141: 25830.5 | P141: 88.2 | Q141: 15.63809524 | R141: 388.1714286 | S141: 492.0095238 | T141: 712.2 | U141: 409.7809524 | V141: 542.1714286 | W141: 1664.152381 | X141: 17292 | Y141: 59700 | Z141: 21348 | AA141: 98340 | AB141: 4202 | AC141: 166 | AD141: - | AE141: 4368 | AF141: - | AG141: - | AH141: 4630.5 | AI141: - | AJ141: 4630.5 | AK141: 2019 | AL141: 740 | AM141: - | AN141: 2759 | AO141: - | AP141: - | AQ141: 821 | AR141: - | AS141: 821 | AT141: 728 | AU141: 350 | AV141: 0 | AW141: 1078 | AX141: 1904 | AY141: 10192 | AZ141: 7598 | BA141: 685 | BB141: 20379 | BC141: 6949 | BD141: 1256 | BE141: 0 | BF141: 8205 | BG141: 1904 | BH141: 10192 | BI141: 13049.5 | BJ141: 685 | BK141: 25830.5
A142: East Renfrewshire2009/102 | B142: East Renfrewshire | C142: 2009/102 | D142: 4371 | E142: 2770.5 | F142: 1286 | G142: 8427.5 | H142: 624.4285714 | I142: 395.7857143 | J142: 183.7142857 | K142: 1203.928571 | L142: 128127 | M142: 22149 | N142: 18686.5 | O142: 168962.5 | P142: 2440.514286 | Q142: 421.8857143 | R142: 355.9333333 | S142: 3218.333333 | T142: 3064.942857 | U142: 817.6714286 | V142: 539.647619 | W142: 4422.261905 | X142: 15922 | Y142: 53623 | Z142: 20435 | AA142: 89980 | AB142: 3964 | AC142: 356 | AD142: 51 | AE142: 4371 | AF142: 0 | AG142: 112015 | AH142: 7264 | AI142: 8848 | AJ142: 128127 | AK142: 2003 | AL142: 623 | AM142: 144.5 | AN142: 2770.5 | AO142: 0 | AP142: 0 | AQ142: 1467 | AR142: 20682 | AS142: 22149 | AT142: 1086 | AU142: 26 | AV142: 174 | AW142: 1286 | AX142: 0 | AY142: 0 | AZ142: 8671 | BA142: 10015.5 | BB142: 18686.5 | BC142: 7053 | BD142: 1005 | BE142: 369.5 | BF142: 8427.5 | BG142: 0 | BH142: 112015 | BI142: 17402 | BJ142: 39545.5 | BK142: 168962.5
A143: Edinburgh, City of2009/102 | B143: Edinburgh, City of | C143: 2009/102 | D143: 10540 | E143: 11509 | F143: 6707 | G143: 28756 | H143: 1505.714286 | I143: 1644.142857 | J143: 958.1428571 | K143: 4108 | L143: 431206 | M143: 395953 | N143: 102748 | O143: 929907 | P143: 8213.447619 | Q143: 7541.961905 | R143: 1957.104762 | S143: 17712.51429 | T143: 9719.161905 | U143: 9186.104762 | V143: 2915.247619 | W143: 21820.51429 | X143: 67972 | Y143: 314895 | Z143: 80373 | AA143: 463240 | AB143: 10242 | AC143: 0 | AD143: 298 | AE143: 10540 | AF143: 150917 | AG143: 246982 | AH143: 1233 | AI143: 32074 | AJ143: 431206 | AK143: 10253 | AL143: 0 | AM143: 1256 | AN143: 11509 | AO143: 133350 | AP143: 142309 | AQ143: 1151 | AR143: 119143 | AS143: 395953 | AT143: 4002 | AU143: 0 | AV143: 2705 | AW143: 6707 | AX143: 0 | AY143: 67452 | AZ143: 0 | BA143: 35296 | BB143: 102748 | BC143: 24497 | BD143: 0 | BE143: 4259 | BF143: 28756 | BG143: 284267 | BH143: 456743 | BI143: 2384 | BJ143: 186513 | BK143: 929907
A144: Eilean Siar2009/102 | B144: Eilean Siar | C144: 2009/102 | D144: 4940 | E144: 664 | F144: 141 | G144: 5745 | H144: 705.7142857 | I144: 94.85714286 | J144: 20.14285714 | K144: 820.7142857 | L144: 14313 | M144: 3965 | N144: 2713 | O144: 20991 | P144: 272.6285714 | Q144: 75.52380952 | R144: 51.67619048 | S144: 399.8285714 | T144: 978.3428571 | U144: 170.3809524 | V144: 71.81904762 | W144: 1220.542857 | X144: 5791 | Y144: 16226 | Z144: 5403 | AA144: 27420 | AB144: 4836 | AC144: 0 | AD144: 104 | AE144: 4940 | AF144: 0 | AG144: 4037 | AH144: 10276 | AI144: 0 | AJ144: 14313 | AK144: 574 | AL144: 0 | AM144: 90 | AN144: 664 | AO144: 0 | AP144: 2984 | AQ144: 981 | AR144: 0 | AS144: 3965 | AT144: 141 | AU144: 0 | AV144: 0 | AW144: 141 | AX144: 2713 | AY144: 0 | AZ144: 0 | BA144: 0 | BB144: 2713 | BC144: 5551 | BD144: 0 | BE144: 194 | BF144: 5745 | BG144: 2713 | BH144: 7021 | BI144: 11257 | BJ144: 0 | BK144: 20991
A145: Falkirk2009/102 | B145: Falkirk | C145: 2009/102 | D145: 5774 | E145: 3877 | F145: 1981 | G145: 11632 | H145: 824.8571429 | I145: 553.8571429 | J145: 283 | K145: 1661.714286 | L145: 44820.36 | M145: 12607.07 | N145: 30301.4 | O145: 87728.83 | P145: 853.7211429 | Q145: 240.1346667 | R145: 577.1695238 | S145: 1671.025333 | T145: 1678.578286 | U145: 793.9918095 | V145: 860.1695238 | W145: 3332.739619 | X145: 24658 | Y145: 97609 | Z145: 31943 | AA145: 154210 | AB145: 5566 | AC145: 0 | AD145: 208 | AE145: 5774 | AF145: 0 | AG145: 2939.14 | AH145: 21775.22 | AI145: 20106 | AJ145: 44820.36 | AK145: 3225 | AL145: 0 | AM145: 652 | AN145: 3877 | AO145: 0 | AP145: 0 | AQ145: 1903.57 | AR145: 10703.5 | AS145: 12607.07 | AT145: 1219 | AU145: 0 | AV145: 762 | AW145: 1981 | AX145: 0 | AY145: 0 | AZ145: 0 | BA145: 30301.4 | BB145: 30301.4 | BC145: 10010 | BD145: 0 | BE145: 1622 | BF145: 11632 | BG145: 0 | BH145: 2939.14 | BI145: 23678.79 | BJ145: 61110.9 | BK145: 87728.83
A146: Fife2009/102 | B146: Fife | C146: 2009/102 | D146: 15906 | E146: 8831 | F146: 2250 | G146: 26987 | H146: 2272.285714 | I146: 1261.571429 | J146: 321.4285714 | K146: 3855.285714 | L146: 387359 | M146: 533903 | N146: 54229 | O146: 975491 | P146: 7378.266667 | Q146: 10169.58095 | R146: 1032.933333 | S146: 18580.78095 | T146: 9650.552381 | U146: 11431.15238 | V146: 1354.361905 | W146: 22436.06667 | X146: 62178 | Y146: 225922 | Z146: 73310 | AA146: 361410 | AB146: 15663 | AC146: 0 | AD146: 281 | AE146: 15944 | AF146: 321518 | AG146: 0 | AH146: 0 | AI146: 6614 | AJ146: 328132 | AK146: 9938 | AL146: 0 | AM146: 616 | AN146: 10554 | AO146: 468081 | AP146: 0 | AQ146: 0 | AR146: 16809 | AS146: 484890 | AT146: 2074 | AU146: 176 | AV146: 0 | AW146: 2250 | AX146: 0 | AY146: 0 | AZ146: 0 | BA146: 45441 | BB146: 45441 | BC146: 27675 | BD146: 176 | BE146: 897 | BF146: 28748 | BG146: 789599 | BH146: 0 | BI146: 0 | BJ146: 68864 | BK146: 858463
A147: Glasgow City2009/102 | B147: Glasgow City | C147: 2009/102 | D147: 20742 | E147: 14480 | F147: 8246 | G147: 43468 | H147: 2963.142857 | I147: 2068.571429 | J147: 1178 | K147: 6209.714286 | L147: 315715 | M147: 437841 | N147: 57153 | O147: 810709 | P147: 6013.619048 | Q147: 8339.828571 | R147: 1088.628571 | S147: 15442.07619 | T147: 8976.761905 | U147: 10408.4 | V147: 2266.628571 | W147: 21651.79048 | X147: 82724 | Y147: 386551 | Z147: 112345 | AA147: 581620 | AB147: 20638 | AC147: 0 | AD147: 104 | AE147: 20742 | AF147: 0 | AG147: 315715 | AH147: 0 | AI147: 0 | AJ147: 315715 | AK147: 14376 | AL147: 0 | AM147: 104 | AN147: 14480 | AO147: 0 | AP147: 437841 | AQ147: 0 | AR147: 0 | AS147: 437841 | AT147: 7053 | AU147: 0 | AV147: 1193 | AW147: 8246 | AX147: 0 | AY147: 31617 | AZ147: 0 | BA147: 25536 | BB147: 57153 | BC147: 42067 | BD147: 0 | BE147: 1401 | BF147: 43468 | BG147: 0 | BH147: 785173 | BI147: 0 | BJ147: 25536 | BK147: 810709
A148: Highland2009/102 | B148: Highland | C148: 2009/102 | D148: 10433 | E148: 5293 | F148: 3583 | G148: 19309 | H148: 1490.428571 | I148: 756.1428571 | J148: 511.8571429 | K148: 2758.428571 | L148: 84270 | M148: 37194 | N148: 32439 | O148: 153903 | P148: 1605.142857 | Q148: 708.4571429 | R148: 617.8857143 | S148: 2931.485714 | T148: 3095.571429 | U148: 1464.6 | V148: 1129.742857 | W148: 5689.914286 | X148: 41510 | Y148: 140378 | Z148: 46862 | AA148: 228750 | AB148: 10066 | AC148: 331 | AD148: 36 | AE148: 10433 | AF148: 0 | AG148: 34369 | AH148: 48899 | AI148: 1002 | AJ148: 84270 | AK148: 4915 | AL148: 222 | AM148: 156 | AN148: 5293 | AO148: 0 | AP148: 20290 | AQ148: 16524 | AR148: 380 | AS148: 37194 | AT148: 2440 | AU148: 0 | AV148: 1143 | AW148: 3583 | AX148: 0 | AY148: 6723 | AZ148: 16985 | BA148: 8731 | BB148: 32439 | BC148: 17421 | BD148: 553 | BE148: 1335 | BF148: 19309 | BG148: 0 | BH148: 61382 | BI148: 82408 | BJ148: 10113 | BK148: 153903
A149: Inverclyde2009/102 | B149: Inverclyde | C149: 2009/102 | D149: 3444 | E149: 2604 | F149: 749 | G149: 6797 | H149: 492 | I149: 372 | J149: 107 | K149: 971 | L149: 476959 | M149: 137797 | N149: 5170 | O149: 619926 | P149: 9084.933333 | Q149: 2624.704762 | R149: 98.47619048 | S149: 11808.11429 | T149: 9576.933333 | U149: 2996.704762 | V149: 205.4761905 | W149: 12779.11429 | X149: 14566 | Y149: 50930 | Z149: 16174 | AA149: 81670 | AB149: 2488 | AC149: 0 | AD149: 956 | AE149: 3444 | AF149: 0 | AG149: 65592 | AH149: 388866 | AI149: 22501 | AJ149: 476959 | AK149: 1878 | AL149: 0 | AM149: 726 | AN149: 2604 | AO149: 0 | AP149: 76178 | AQ149: 32002.5 | AR149: 29616.5 | AS149: 137797 | AT149: 694 | AU149: 0 | AV149: 55 | AW149: 749 | AX149: 0 | AY149: 0 | AZ149: 2342.5 | BA149: 2827.5 | BB149: 5170 | BC149: 5060 | BD149: 0 | BE149: 1737 | BF149: 6797 | BG149: 0 | BH149: 141770 | BI149: 423211 | BJ149: 54945 | BK149: 619926
A150: Midlothian2009/102 | B150: Midlothian | C150: 2009/102 | D150: 2623 | E150: 3252 | F150: 446 | G150: 6321 | H150: 374.7142857 | I150: 464.5714286 | J150: 63.71428571 | K150: 903 | L150: 36824.8 | M150: 80062 | N150: 22394 | O150: 139280.8 | P150: 701.4247619 | Q150: 1524.990476 | R150: 426.552381 | S150: 2652.967619 | T150: 1076.139048 | U150: 1989.561905 | V150: 490.2666667 | W150: 3555.967619 | X150: 13337 | Y150: 50945 | Z150: 17618 | AA150: 81900 | AB150: 2604 | AC150: 0 | AD150: 19 | AE150: 2623 | AF150: 0 | AG150: 18028.3 | AH150: 9102.5 | AI150: 9694 | AJ150: 36824.8 | AK150: 2611 | AL150: 0 | AM150: 641 | AN150: 3252 | AO150: 0 | AP150: 62464 | AQ150: 17016 | AR150: 582 | AS150: 80062 | AT150: 265 | AU150: 0 | AV150: 181 | AW150: 446 | AX150: 0 | AY150: 10917 | AZ150: 0 | BA150: 11477 | BB150: 22394 | BC150: 5480 | BD150: 0 | BE150: 841 | BF150: 6321 | BG150: 0 | BH150: 91409.3 | BI150: 26118.5 | BJ150: 21753 | BK150: 139280.8
A151: Moray2009/102 | B151: Moray | C151: 2009/102 | D151: 4138 | E151: 3161 | F151: 1298 | G151: 8597 | H151: 591.1428571 | I151: 451.5714286 | J151: 185.4285714 | K151: 1228.142857 | L151: 17746.8 | M151: 13599.5 | N151: 6455.8 | O151: 37802.1 | P151: 338.0342857 | Q151: 259.0380952 | R151: 122.967619 | S151: 720.04 | T151: 929.1771429 | U151: 710.6095238 | V151: 308.3961905 | W151: 1948.182857 | X151: 16593 | Y151: 57166 | Z151: 19411 | AA151: 93170 | AB151: 3922 | AC151: 216 | AD151: 0 | AE151: 4138 | AF151: 0 | AG151: 6911 | AH151: 10835.8 | AI151: 0 | AJ151: 17746.8 | AK151: 3161 | AL151: 0 | AM151: 0 | AN151: 3161 | AO151: 0 | AP151: 5433 | AQ151: 8166.5 | AR151: 0 | AS151: 13599.5 | AT151: 1298 | AU151: 0 | AV151: 0 | AW151: 1298 | AX151: 2213.8 | AY151: 0 | AZ151: 4242 | BA151: 0 | BB151: 6455.8 | BC151: 8381 | BD151: 216 | BE151: 0 | BF151: 8597 | BG151: 2213.8 | BH151: 12344 | BI151: 23244.3 | BJ151: 0 | BK151: 37802.1
A152: North Ayrshire2009/102 | B152: North Ayrshire | C152: 2009/102 | D152: 10394 | E152: 5318 | F152: 1568 | G152: 17280 | H152: 1484.857143 | I152: 759.7142857 | J152: 224 | K152: 2468.571429 | L152: 90671 | M152: 18504 | N152: 11807 | O152: 120982 | P152: 1727.066667 | Q152: 352.4571429 | R152: 224.8952381 | S152: 2304.419048 | T152: 3211.92381 | U152: 1112.171429 | V152: 448.8952381 | W152: 4772.990476 | X152: 25037 | Y152: 84201 | Z152: 28592 | AA152: 137830 | AB152: 10394 | AC152: 0 | AD152: 0 | AE152: 10394 | AF152: 0 | AG152: 80984 | AH152: 9687 | AI152: 0 | AJ152: 90671 | AK152: 5042 | AL152: 0 | AM152: 276 | AN152: 5318 | AO152: 0 | AP152: 16320 | AQ152: 2184 | AR152: 0 | AS152: 18504 | AT152: 1111 | AU152: 457 | AV152: 0 | AW152: 1568 | AX152: 0 | AY152: 0 | AZ152: 0 | BA152: 11807 | BB152: 11807 | BC152: 16547 | BD152: 457 | BE152: 276 | BF152: 17280 | BG152: 0 | BH152: 97304 | BI152: 11871 | BJ152: 11807 | BK152: 120982
A153: North Lanarkshire2009/102 | B153: North Lanarkshire | C153: 2009/102 | D153: 11051 | E153: 8138 | F153: 1880 | G153: 21069 | H153: 1578.714286 | I153: 1162.571429 | J153: 268.5714286 | K153: 3009.857143 | L153: 210799.84 | M153: 207522.5 | N153: 13631 | O153: 431953.34 | P153: 4015.235048 | Q153: 3952.809524 | R153: 259.6380952 | S153: 8227.682667 | T153: 5593.949333 | U153: 5115.380952 | V153: 528.2095238 | W153: 11237.53981 | X153: 49324 | Y153: 212227 | Z153: 73609 | AA153: 335160 | AB153: 11051 | AC153: 0 | AD153: 0 | AE153: 11051 | AF153: 0 | AG153: 174761 | AH153: 3564 | AI153: 32474.84 | AJ153: 210799.84 | AK153: 8131 | AL153: 7 | AM153: 0 | AN153: 8138 | AO153: 0 | AP153: 511 | AQ153: 15454 | AR153: 191557.5 | AS153: 207522.5 | AT153: 1866 | AU153: 14 | AV153: 0 | AW153: 1880 | AX153: 0 | AY153: 10887 | AZ153: 2251 | BA153: 493 | BB153: 13631 | BC153: 21048 | BD153: 21 | BE153: 0 | BF153: 21069 | BG153: 0 | BH153: 186159 | BI153: 21269 | BJ153: 224525.34 | BK153: 431953.34
A154: Orkney Islands2009/102 | B154: Orkney Islands | C154: 2009/102 | D154: 2142 | E154: 655 | F154: 568 | G154: 3365 | H154: 306 | I154: 93.57142857 | J154: 81.14285714 | K154: 480.7142857 | L154: 20491 | M154: 38486 | N154: 6982 | O154: 65959 | P154: 390.3047619 | Q154: 733.0666667 | R154: 132.9904762 | S154: 1256.361905 | T154: 696.3047619 | U154: 826.6380952 | V154: 214.1333333 | W154: 1737.07619 | X154: 4032 | Y154: 12706 | Z154: 4202 | AA154: 20940 | AB154: 2142 | AC154: 0 | AD154: 0 | AE154: 2142 | AF154: 0 | AG154: 15970 | AH154: 2084 | AI154: 2437 | AJ154: 20491 | AK154: 636 | AL154: 19 | AM154: 0 | AN154: 655 | AO154: 21 | AP154: 22299 | AQ154: 11816 | AR154: 0 | AS154: 34136 | AT154: 568 | AU154: 0 | AV154: 0 | AW154: 568 | AX154: 1784 | AY154: 0 | AZ154: 5198 | BA154: 0 | BB154: 6982 | BC154: 3346 | BD154: 19 | BE154: 0 | BF154: 3365 | BG154: 1805 | BH154: 38269 | BI154: 19098 | BJ154: 2437 | BK154: 61609
A155: Perth & Kinross2009/102 | B155: Perth & Kinross | C155: 2009/102 | D155: 12066 | E155: 3163 | F155: 529 | G155: 15758 | H155: 1723.714286 | I155: 451.8571429 | J155: 75.57142857 | K155: 2251.142857 | L155: 167395 | M155: 31920 | N155: 14243 | O155: 213558 | P155: 3188.47619 | Q155: 608 | R155: 271.2952381 | S155: 4067.771429 | T155: 4912.190476 | U155: 1059.857143 | V155: 346.8666667 | W155: 6318.914286 | X155: 28454 | Y155: 87130 | Z155: 28786 | AA155: 144370 | AB155: 11807 | AC155: 259 | AD155: 0 | AE155: 12066 | AF155: 0 | AG155: 10730 | AH155: 155626 | AI155: 1039 | AJ155: 167395 | AK155: 3126 | AL155: 37 | AM155: 0 | AN155: 3163 | AO155: 0 | AP155: 12176 | AQ155: 19091 | AR155: 653 | AS155: 31920 | AT155: 478 | AU155: 51 | AV155: 0 | AW155: 529 | AX155: 0 | AY155: 0 | AZ155: 8533 | BA155: 5710 | BB155: 14243 | BC155: 15411 | BD155: 347 | BE155: 0 | BF155: 15758 | BG155: 0 | BH155: 22906 | BI155: 183250 | BJ155: 7402 | BK155: 213558
A156: Renfrewshire2009/102 | B156: Renfrewshire | C156: 2009/102 | D156: 7179 | E156: 7733 | F156: 3081 | G156: 17993 | H156: 1025.571429 | I156: 1104.714286 | J156: 440.1428571 | K156: 2570.428571 | L156: 10594 | M156: 40950 | N156: 25030 | O156: 76574 | P156: 201.7904762 | Q156: 780 | R156: 476.7619048 | S156: 1458.552381 | T156: 1227.361905 | U156: 1884.714286 | V156: 916.9047619 | W156: 4028.980952 | X156: 28793 | Y156: 108902 | Z156: 35325 | AA156: 173020 | AB156: 7179 | AC156: 0 | AD156: 0 | AE156: 7179 | AF156: 0 | AG156: 0 | AH156: 72 | AI156: 10522 | AJ156: 10594 | AK156: 7733 | AL156: 0 | AM156: 0 | AN156: 7733 | AO156: 0 | AP156: 0 | AQ156: 36433 | AR156: 4517 | AS156: 40950 | AT156: 3081 | AU156: 0 | AV156: 0 | AW156: 3081 | AX156: 0 | AY156: 0 | AZ156: 4194 | BA156: 20836 | BB156: 25030 | BC156: 17993 | BD156: 0 | BE156: 0 | BF156: 17993 | BG156: 0 | BH156: 0 | BI156: 40699 | BJ156: 35875 | BK156: 76574
A157: Scottish Borders2009/102 | B157: Scottish Borders | C157: 2009/102 | D157: 5570 | E157: 3706 | F157: 2243 | G157: 11519 | H157: 795.7142857 | I157: 529.4285714 | J157: 320.4285714 | K157: 1645.571429 | L157: 962 | M157: 7521 | N157: 11401 | O157: 19884 | P157: 18.32380952 | Q157: 143.2571429 | R157: 217.1619048 | S157: 378.7428571 | T157: 814.0380952 | U157: 672.6857143 | V157: 537.5904762 | W157: 2024.314286 | X157: 23040 | Y157: 67967 | Z157: 22583 | AA157: 113590 | AB157: 5479 | AC157: 0 | AD157: 91 | AE157: 5570 | AF157: 0 | AG157: 0 | AH157: 962 | AI157: 0 | AJ157: 962 | AK157: 1770 | AL157: 19 | AM157: 1917 | AN157: 3706 | AO157: 0 | AP157: 0 | AQ157: 5335 | AR157: 2186 | AS157: 7521 | AT157: 638 | AU157: 0 | AV157: 1605 | AW157: 2243 | AX157: 1296 | AY157: 0 | AZ157: 0 | BA157: 10105 | BB157: 11401 | BC157: 7887 | BD157: 19 | BE157: 3613 | BF157: 11519 | BG157: 1296 | BH157: 0 | BI157: 6297 | BJ157: 12291 | BK157: 19884
A158: Shetland Islands2009/102 | B158: Shetland Islands | C158: 2009/102 | D158: 6568 | E158: 1885 | F158: 1022 | G158: 9475 | H158: 938.2857143 | I158: 269.2857143 | J158: 146 | K158: 1353.571429 | L158: 7530 | M158: 4774 | N158: 16350 | O158: 28654 | P158: 143.4285714 | Q158: 90.93333333 | R158: 311.4285714 | S158: 545.7904762 | T158: 1081.714286 | U158: 360.2190476 | V158: 457.4285714 | W158: 1899.361905 | X158: 3681 | Y158: 14008 | Z158: 5101 | AA158: 22790 | AB158: 6568 | AC158: 0 | AD158: 0 | AE158: 6568 | AF158: 0 | AG158: 0 | AH158: 7530 | AI158: 0 | AJ158: 7530 | AK158: 1642 | AL158: 32 | AM158: 211 | AN158: 1885 | AO158: 1997 | AP158: 0 | AQ158: 289 | AR158: 0 | AS158: 2286 | AT158: 891 | AU158: 21 | AV158: 110 | AW158: 1022 | AX158: 11541 | AY158: 0 | AZ158: 1 | BA158: 0 | BB158: 11542 | BC158: 9101 | BD158: 53 | BE158: 321 | BF158: 9475 | BG158: 13538 | BH158: 0 | BI158: 7820 | BJ158: 0 | BK158: 21358
A159: South Ayrshire2009/102 | B159: South Ayrshire | C159: 2009/102 | D159: 8697 | E159: 2217 | F159: 1127 | G159: 12041 | H159: 1242.428571 | I159: 316.7142857 | J159: 161 | K159: 1720.142857 | L159: 103016 | M159: 101693 | N159: 50206 | O159: 254915 | P159: 1962.209524 | Q159: 1937.009524 | R159: 956.3047619 | S159: 4855.52381 | T159: 3204.638095 | U159: 2253.72381 | V159: 1117.304762 | W159: 6575.666667 | X159: 23641 | Y159: 67456 | Z159: 21393 | AA159: 112490 | AB159: 8637 | AC159: 24 | AD159: 0 | AE159: 8661 | AF159: 0 | AG159: 0 | AH159: 17528 | AI159: 0 | AJ159: 17528 | AK159: 377 | AL159: 25 | AM159: 1815 | AN159: 2217 | AO159: 0 | AP159: 0 | AQ159: 3444 | AR159: 8993 | AS159: 12437 | AT159: 0 | AU159: 0 | AV159: 1127 | AW159: 1127 | AX159: 0 | AY159: 8288 | AZ159: 16513.21 | BA159: 25405 | BB159: 50206.21 | BC159: 9014 | BD159: 49 | BE159: 2942 | BF159: 12005 | BG159: 0 | BH159: 8288 | BI159: 37485.21 | BJ159: 34398 | BK159: 80171.21
A160: South Lanarkshire2009/102 | B160: South Lanarkshire | C160: 2009/102 | D160: 23036 | E160: 9653 | F160: 3646 | G160: 36335 | H160: 3290.857143 | I160: 1379 | J160: 520.8571429 | K160: 5190.714286 | L160: 279963.28 | M160: 61097 | N160: 49711.29 | O160: 390771.57 | P160: 5332.633905 | Q160: 1163.752381 | R160: 946.8817143 | S160: 7443.268 | T160: 8623.491048 | U160: 2542.752381 | V160: 1467.738857 | W160: 12633.98229 | X160: 51552 | Y160: 196114 | Z160: 64514 | AA160: 312180 | AB160: 23005 | AC160: 26 | AD160: 5 | AE160: 23036 | AF160: 0 | AG160: 253279.28 | AH160: 26609 | AI160: 75 | AJ160: 279963.28 | AK160: 8704 | AL160: 178 | AM160: 771 | AN160: 9653 | AO160: 0 | AP160: 0 | AQ160: 48172 | AR160: 12925 | AS160: 61097 | AT160: 3196 | AU160: 295 | AV160: 155 | AW160: 3646 | AX160: 0 | AY160: 1288.29 | AZ160: 34869 | BA160: 13554 | BB160: 49711.29 | BC160: 34905 | BD160: 499 | BE160: 931 | BF160: 36335 | BG160: 0 | BH160: 254567.57 | BI160: 109650 | BJ160: 26554 | BK160: 390771.57
A161: Stirling2009/102 | B161: Stirling | C161: 2009/102 | D161: 4087 | E161: 1258 | F161: 828 | G161: 6173 | H161: 583.8571429 | I161: 179.7142857 | J161: 118.2857143 | K161: 881.8571429 | L161: 8732 | M161: 2360 | N161: 26430 | O161: 37522 | P161: 166.3238095 | Q161: 44.95238095 | R161: 503.4285714 | S161: 714.7047619 | T161: 750.1809524 | U161: 224.6666667 | V161: 621.7142857 | W161: 1596.561905 | X161: 15144 | Y161: 55353 | Z161: 18193 | AA161: 88690 | AB161: 4087 | AC161: 0 | AD161: 0 | AE161: 4087 | AF161: 0 | AG161: 0 | AH161: 8732 | AI161: 0 | AJ161: 8732 | AK161: 1258 | AL161: 0 | AM161: 0 | AN161: 1258 | AO161: 0 | AP161: 0 | AQ161: 2360 | AR161: 0 | AS161: 2360 | AT161: 737 | AU161: 91 | AV161: 0 | AW161: 828 | AX161: 0 | AY161: 4800 | AZ161: 15480 | BA161: 6150 | BB161: 26430 | BC161: 6082 | BD161: 91 | BE161: 0 | BF161: 6173 | BG161: 0 | BH161: 4800 | BI161: 26572 | BJ161: 6150 | BK161: 37522
A162: West Dunbartonshire2009/102 | B162: West Dunbartonshire | C162: 2009/102 | D162: 3129 | E162: 3981 | F162: 1187 | G162: 8297 | H162: 447 | I162: 568.7142857 | J162: 169.5714286 | K162: 1185.285714 | L162: 176812.89 | M162: 140749.35 | N162: 27111 | O162: 344673.24 | P162: 3367.864571 | Q162: 2680.94 | R162: 516.4 | S162: 6565.204571 | T162: 3814.864571 | U162: 3249.654286 | V162: 685.9714286 | W162: 7750.490286 | X162: 14761 | Y162: 57514 | Z162: 18805 | AA162: 91080 | AB162: 3129 | AC162: 0 | AD162: 0 | AE162: 3129 | AF162: 0 | AG162: 131241.7 | AH162: 42867.49 | AI162: 2703.7 | AJ162: 176812.89 | AK162: 3807 | AL162: 0 | AM162: 174 | AN162: 3981 | AO162: 0 | AP162: 68483.3 | AQ162: 9828.55 | AR162: 62437.5 | AS162: 140749.35 | AT162: 1164 | AU162: 23 | AV162: 0 | AW162: 1187 | AX162: 413 | AY162: 4891 | AZ162: 3857 | BA162: 17950 | BB162: 27111 | BC162: 8100 | BD162: 23 | BE162: 174 | BF162: 8297 | BG162: 413 | BH162: 204616 | BI162: 56553.04 | BJ162: 83091.2 | BK162: 344673.24
A163: West Lothian2009/102 | B163: West Lothian | C163: 2009/102 | D163: 4563 | E163: 4389 | F163: 908 | G163: 9860 | H163: 651.8571429 | I163: 627 | J163: 129.7142857 | K163: 1408.571429 | L163: 9806 | M163: 39669 | N163: 19109 | O163: 68584 | P163: 186.7809524 | Q163: 755.6 | R163: 363.9809524 | S163: 1306.361905 | T163: 838.6380952 | U163: 1382.6 | V163: 493.6952381 | W163: 2714.933333 | X163: 22693 | Y163: 110547 | Z163: 39800 | AA163: 173040 | AB163: 4563 | AC163: 0 | AD163: 0 | AE163: 4563 | AF163: 0 | AG163: 0 | AH163: 8818 | AI163: 988 | AJ163: 9806 | AK163: 4389 | AL163: 0 | AM163: 0 | AN163: 4389 | AO163: 0 | AP163: 17160 | AQ163: 3098 | AR163: 19411 | AS163: 39669 | AT163: 594 | AU163: 0 | AV163: 314 | AW163: 908 | AX163: 0 | AY163: 0 | AZ163: 3245 | BA163: 15864 | BB163: 19109 | BC163: 9546 | BD163: 0 | BE163: 314 | BF163: 9860 | BG163: 0 | BH163: 17160 | BI163: 15161 | BJ163: 36263 | BK163: 68584
A164: Aberdeen City2010/112 | B164: Aberdeen City | C164: 2010/112 | D164: 7625 | E164: 1761 | F164: 1413 | G164: 10799 | H164: 1089.285714 | I164: 251.5714286 | J164: 201.8571429 | K164: 1542.714286 | L164: 61410.25 | M164: 10402.5 | N164: 9580.5 | O164: 81393.25 | P164: 1169.719048 | Q164: 198.1428571 | R164: 182.4857143 | S164: 1550.347619 | T164: 2259.004762 | U164: 449.7142857 | V164: 384.3428571 | W164: 3093.061905 | X164: 31983 | Y164: 150735 | Z164: 37012 | AA164: 219730 | AB164: 8031 | AC164: 220 | AD164: 0 | AE164: 8251 | AF164: 1133 | AG164: 13206.5 | AH164: 15964.5 | AI164: 6520.8 | AJ164: 36824.8 | AK164: 1990 | AL164: 430 | AM164: 0 | AN164: 2420 | AO164: 0 | AP164: 18621.5 | AQ164: 4528.5 | AR164: 12149.25 | AS164: 35299.25 | AT164: 1201 | AU164: 0 | AV164: 42 | AW164: 1243 | AX164: 437.5 | AY164: 0 | AZ164: 330 | BA164: 8602 | BB164: 9369.5 | BC164: 11222 | BD164: 650 | BE164: 42 | BF164: 11914 | BG164: 1570.5 | BH164: 31828 | BI164: 20823 | BJ164: 27272.05 | BK164: 81493.55
A165: Aberdeenshire2010/112 | B165: Aberdeenshire | C165: 2010/112 | D165: 18773 | E165: 4107 | F165: 948 | G165: 23828 | H165: 2681.857143 | I165: 586.7142857 | J165: 135.4285714 | K165: 3404 | L165: 61610.65 | M165: 49210 | N165: 62601 | O165: 173421.65 | P165: 1173.53619 | Q165: 937.3333333 | R165: 1192.4 | S165: 3303.269524 | T165: 3855.393333 | U165: 1524.047619 | V165: 1327.828571 | W165: 6707.269524 | X165: 40062 | Y165: 157500 | Z165: 53868 | AA165: 251430 | AB165: 15533 | AC165: 0 | AD165: 667 | AE165: 16200 | AF165: 2637 | AG165: 1277 | AH165: 12952 | AI165: 53190.13 | AJ165: 70056.13 | AK165: 4212.071 | AL165: 0 | AM165: 436.4456 | AN165: 4648.5166 | AO165: 301 | AP165: 13107 | AQ165: 10168.25 | AR165: 44262.33 | AS165: 67838.58 | AT165: 758 | AU165: 0 | AV165: 195 | AW165: 953 | AX165: 64 | AY165: 28745.04 | AZ165: 18142 | BA165: 29710 | BB165: 76661.04 | BC165: 20503.071 | BD165: 0 | BE165: 1298.4456 | BF165: 21801.5166 | BG165: 3002 | BH165: 43129.04 | BI165: 41262.25 | BJ165: 127162.46 | BK165: 214555.75
A166: Angus2010/112 | B166: Angus | C166: 2010/112 | D166: 7625 | E166: 1183 | F166: 885 | G166: 9693 | H166: 1089.285714 | I166: 169 | J166: 126.4285714 | K166: 1384.714286 | L166: 114048 | M166: 4094 | N166: 8958.2 | O166: 127100.2 | P166: 2172.342857 | Q166: 77.98095238 | R166: 170.632381 | S166: 2420.95619 | T166: 3261.628571 | U166: 246.9809524 | V166: 297.0609524 | W166: 3805.670476 | X166: 22708 | Y166: 69386 | Z166: 23316 | AA166: 115410 | AB166: 8465 | AC166: 0 | AD166: 0 | AE166: 8465 | AF166: 0 | AG166: 78144 | AH166: 23928 | AI166: 0 | AJ166: 102072 | AK166: 1915 | AL166: 0 | AM166: 0 | AN166: 1915 | AO166: 0 | AP166: 0 | AQ166: 4140 | AR166: 0 | AS166: 4140 | AT166: 366 | AU166: 0 | AV166: 646 | AW166: 1012 | AX166: 130 | AY166: 0 | AZ166: 0 | BA166: 8265 | BB166: 8395 | BC166: 10746 | BD166: 0 | BE166: 646 | BF166: 11392 | BG166: 130 | BH166: 78144 | BI166: 28068 | BJ166: 8265 | BK166: 114607
A167: Argyll & Bute2010/112 | B167: Argyll & Bute | C167: 2010/112 | D167: 3579 | E167: 983 | F167: 1312 | G167: 5874 | H167: 511.2857143 | I167: 140.4285714 | J167: 187.4285714 | K167: 839.1428571 | L167: 67005 | M167: 79179 | N167: 43835.3 | O167: 190019.3 | P167: 1276.285714 | Q167: 1508.171429 | R167: 834.9580952 | S167: 3619.415238 | T167: 1787.571429 | U167: 1648.6 | V167: 1022.386667 | W167: 4458.558095 | X167: 19111 | Y167: 52780 | Z167: 16729 | AA167: 88620 | AB167: 4313 | AC167: 0 | AD167: 373 | AE167: 4686 | AF167: 0 | AG167: 61489 | AH167: 0 | AI167: 16362 | AJ167: 77851 | AK167: 1030 | AL167: 0 | AM167: 415 | AN167: 1445 | AO167: 0 | AP167: 29881 | AQ167: 0 | AR167: 42409 | AS167: 72290 | AT167: 1199 | AU167: 0 | AV167: 310 | AW167: 1509 | AX167: 0 | AY167: 8824 | AZ167: 0 | BA167: 25514 | BB167: 34338 | BC167: 6542 | BD167: 0 | BE167: 1098 | BF167: 7640 | BG167: 0 | BH167: 100194 | BI167: 0 | BJ167: 84285 | BK167: 184479
A168: Clackmannanshire2010/112 | B168: Clackmannanshire | C168: 2010/112 | D168: 3221 | E168: 1967 | F168: 358 | G168: 5546 | H168: 460.1428571 | I168: 281 | J168: 51.14285714 | K168: 792.2857143 | L168: 62941 | M168: 50902 | N168: 5506 | O168: 119349 | P168: 1198.87619 | Q168: 969.5619048 | R168: 104.8761905 | S168: 2273.314286 | T168: 1659.019048 | U168: 1250.561905 | V168: 156.0190476 | W168: 3065.6 | X168: 8078 | Y168: 32435 | Z168: 10817 | AA168: 51330 | AB168: 3036 | AC168: 0 | AD168: 378 | AE168: 3414 | AF168: 0 | AG168: 57375 | AH168: 1327 | AI168: 8029 | AJ168: 66731 | AK168: 414 | AL168: 718 | AM168: 943 | AN168: 2075 | AO168: 0 | AP168: 45100 | AQ168: 3965 | AR168: 1318 | AS168: 50383 | AT168: 264 | AU168: 0 | AV168: 0 | AW168: 264 | AX168: 0 | AY168: 0 | AZ168: 2340 | BA168: 7818 | BB168: 10158 | BC168: 3714 | BD168: 718 | BE168: 1321 | BF168: 5753 | BG168: 0 | BH168: 102475 | BI168: 7632 | BJ168: 17165 | BK168: 127272
A169: Dumfries & Galloway2010/112 | B169: Dumfries & Galloway | C169: 2010/112 | D169: 4154 | E169: 6774 | F169: 2216 | G169: 13144 | H169: 593.4285714 | I169: 967.7142857 | J169: 316.5714286 | K169: 1877.714286 | L169: 12978 | M169: 5907 | N169: 25993 | O169: 44878 | P169: 247.2 | Q169: 112.5142857 | R169: 495.1047619 | S169: 854.8190476 | T169: 840.6285714 | U169: 1080.228571 | V169: 811.6761905 | W169: 2732.533333 | X169: 32712 | Y169: 89347 | Z169: 29041 | AA169: 151100 | AB169: 4633 | AC169: 379 | AD169: 0 | AE169: 5012 | AF169: 0 | AG169: 0 | AH169: 9991 | AI169: 0 | AJ169: 9991 | AK169: 2051 | AL169: 2397 | AM169: 0 | AN169: 4448 | AO169: 0 | AP169: 0 | AQ169: 4177 | AR169: 0 | AS169: 4177 | AT169: 1886 | AU169: 92 | AV169: 0 | AW169: 1978 | AX169: 0 | AY169: 6243 | AZ169: 19751 | BA169: 0 | BB169: 25994 | BC169: 8570 | BD169: 2868 | BE169: 0 | BF169: 11438 | BG169: 0 | BH169: 6243 | BI169: 33919 | BJ169: 0 | BK169: 40162
A170: Dundee City2010/112 | B170: Dundee City | C170: 2010/112 | D170: 11424 | E170: 6476 | F170: 1789 | G170: 19689 | H170: 1632 | I170: 925.1428571 | J170: 255.5714286 | K170: 2812.714286 | L170: 59320 | M170: 187572 | N170: 25310 | O170: 272202 | P170: 1129.904762 | Q170: 3572.8 | R170: 482.0952381 | S170: 5184.8 | T170: 2761.904762 | U170: 4497.942857 | V170: 737.6666667 | W170: 7997.514286 | X170: 24812 | Y170: 94034 | Z170: 27214 | AA170: 146060 | AB170: 8091 | AC170: 2 | AD170: 0 | AE170: 8093 | AF170: 0 | AG170: 31610 | AH170: 29139.5 | AI170: 0 | AJ170: 60749.5 | AK170: 6140 | AL170: 322 | AM170: 0 | AN170: 6462 | AO170: 0 | AP170: 85208 | AQ170: 1345.25 | AR170: 89700 | AS170: 176253.25 | AT170: 636 | AU170: 176 | AV170: 1002 | AW170: 1814 | AX170: 0 | AY170: 3980 | AZ170: 9374 | BA170: 11267 | BB170: 24621 | BC170: 14867 | BD170: 500 | BE170: 1002 | BF170: 16369 | BG170: 0 | BH170: 120798 | BI170: 39858.75 | BJ170: 100967 | BK170: 261623.75
A171: East Ayrshire2010/112 | B171: East Ayrshire | C171: 2010/112 | D171: 6509 | E171: 4828 | F171: 1280 | G171: 12617 | H171: 929.8571429 | I171: 689.7142857 | J171: 182.8571429 | K171: 1802.428571 | L171: 85141.17857 | M171: 156291.1071 | N171: 9455 | O171: 250887.2857 | P171: 1621.736735 | Q171: 2976.973469 | R171: 180.0952381 | S171: 4778.805442 | T171: 2551.593878 | U171: 3666.687755 | V171: 362.952381 | W171: 6581.234014 | X171: 21144 | Y171: 76352 | Z171: 24914 | AA171: 122410 | AB171: 4849 | AC171: 1688 | AD171: 0 | AE171: 6537 | AF171: 0 | AG171: 65404 | AH171: 18655.53 | AI171: 0 | AJ171: 84059.53 | AK171: 4907 | AL171: 0 | AM171: 0 | AN171: 4907 | AO171: 0 | AP171: 124226 | AQ171: 31094 | AR171: 0 | AS171: 155320 | AT171: 1099 | AU171: 105 | AV171: 0 | AW171: 1204 | AX171: 0 | AY171: 0 | AZ171: 0 | BA171: 8985 | BB171: 8985 | BC171: 10855 | BD171: 1793 | BE171: 0 | BF171: 12648 | BG171: 0 | BH171: 189630 | BI171: 49749.53 | BJ171: 8985 | BK171: 248364.53
A172: East Dunbartonshire2010/112 | B172: East Dunbartonshire | C172: 2010/112 | D172: 3910 | E172: 2293 | F172: 880 | G172: 7083 | H172: 558.5714286 | I172: 327.5714286 | J172: 125.7142857 | K172: 1011.857143 | L172: 244541.12 | M172: 43607.79 | N172: 24263.05 | O172: 312411.96 | P172: 4657.926095 | Q172: 830.6245714 | R172: 462.1533333 | S172: 5950.704 | T172: 5216.497524 | U172: 1158.196 | V172: 587.867619 | W172: 6962.561143 | X172: 20164 | Y172: 63143 | Z172: 21613 | AA172: 104920 | AB172: 3881 | AC172: 217 | AD172: 0 | AE172: 4098 | AF172: 0 | AG172: 84685 | AH172: 196018 | AI172: 0 | AJ172: 280703 | AK172: 2276 | AL172: 208 | AM172: 0 | AN172: 2484 | AO172: 60 | AP172: 9493 | AQ172: 19095.36 | AR172: 8719 | AS172: 37367.36 | AT172: 1053 | AU172: 0 | AV172: 11 | AW172: 1064 | AX172: 0 | AY172: 0 | AZ172: 13943.89 | BA172: 10062.75 | BB172: 24006.64 | BC172: 7210 | BD172: 425 | BE172: 11 | BF172: 7646 | BG172: 60 | BH172: 94178 | BI172: 229057.25 | BJ172: 18781.75 | BK172: 342077
A173: East Lothian2010/112 | B173: East Lothian | C173: 2010/112 | D173: 5158 | E173: 2731 | F173: 1041 | G173: 8930 | H173: 736.8571429 | I173: 390.1428571 | J173: 148.7142857 | K173: 1275.714286 | L173: 4745 | M173: 728 | N173: 20226 | O173: 25699 | P173: 90.38095238 | Q173: 13.86666667 | R173: 385.2571429 | S173: 489.5047619 | T173: 827.2380952 | U173: 404.0095238 | V173: 533.9714286 | W173: 1765.219048 | X173: 17522 | Y173: 60428 | Z173: 21190 | AA173: 99140 | AB173: 4202 | AC173: 166 | AD173: - | AE173: 4368 | AF173: - | AG173: - | AH173: 4630.5 | AI173: - | AJ173: 4630.5 | AK173: 2019 | AL173: 740 | AM173: - | AN173: 2759 | AO173: - | AP173: - | AQ173: 821 | AR173: - | AS173: 821 | AT173: 728 | AU173: 350 | AV173: 0 | AW173: 1078 | AX173: 1904 | AY173: 10192 | AZ173: 7598 | BA173: 685 | BB173: 20379 | BC173: 6949 | BD173: 1256 | BE173: 0 | BF173: 8205 | BG173: 1904 | BH173: 10192 | BI173: 13049.5 | BJ173: 685 | BK173: 25830.5
A174: East Renfrewshire2010/112 | B174: East Renfrewshire | C174: 2010/112 | D174: 4358 | E174: 2660.25 | F174: 1059 | G174: 8077.25 | H174: 622.5714286 | I174: 380.0357143 | J174: 151.2857143 | K174: 1153.892857 | L174: 119008 | M174: 23764 | N174: 18980 | O174: 161752 | P174: 2266.819048 | Q174: 452.647619 | R174: 361.5238095 | S174: 3080.990476 | T174: 2889.390476 | U174: 832.6833333 | V174: 512.8095238 | W174: 4234.883333 | X174: 16166 | Y174: 53853 | Z174: 20391 | AA174: 90410 | AB174: 3964 | AC174: 356 | AD174: 51 | AE174: 4371 | AF174: 0 | AG174: 112015 | AH174: 7264 | AI174: 8848 | AJ174: 128127 | AK174: 2003 | AL174: 623 | AM174: 144.5 | AN174: 2770.5 | AO174: 0 | AP174: 0 | AQ174: 1467 | AR174: 20682 | AS174: 22149 | AT174: 1086 | AU174: 26 | AV174: 174 | AW174: 1286 | AX174: 0 | AY174: 0 | AZ174: 8671 | BA174: 10015.5 | BB174: 18686.5 | BC174: 7053 | BD174: 1005 | BE174: 369.5 | BF174: 8427.5 | BG174: 0 | BH174: 112015 | BI174: 17402 | BJ174: 39545.5 | BK174: 168962.5
A175: Edinburgh, City of2010/112 | B175: Edinburgh, City of | C175: 2010/112 | D175: 12575 | E175: 10643 | F175: 5862 | G175: 29080 | H175: 1796.428571 | I175: 1520.428571 | J175: 837.4285714 | K175: 4154.285714 | L175: 476695 | M175: 339457 | N175: 112241 | O175: 928393 | P175: 9079.904762 | Q175: 6465.847619 | R175: 2137.92381 | S175: 17683.67619 | T175: 10876.33333 | U175: 7986.27619 | V175: 2975.352381 | W175: 21837.9619 | X175: 68374 | Y175: 321295 | Z175: 80271 | AA175: 469940 | AB175: 10242 | AC175: 0 | AD175: 298 | AE175: 10540 | AF175: 150917 | AG175: 246982 | AH175: 1233 | AI175: 32074 | AJ175: 431206 | AK175: 10253 | AL175: 0 | AM175: 1256 | AN175: 11509 | AO175: 133350 | AP175: 142309 | AQ175: 1151 | AR175: 119143 | AS175: 395953 | AT175: 4002 | AU175: 0 | AV175: 2705 | AW175: 6707 | AX175: 0 | AY175: 67452 | AZ175: 0 | BA175: 35296 | BB175: 102748 | BC175: 24497 | BD175: 0 | BE175: 4259 | BF175: 28756 | BG175: 284267 | BH175: 456743 | BI175: 2384 | BJ175: 186513 | BK175: 929907
A176: Eilean Siar2010/112 | B176: Eilean Siar | C176: 2010/112 | D176: 5580 | E176: 720 | F176: 114 | G176: 6414 | H176: 797.1428571 | I176: 102.8571429 | J176: 16.28571429 | K176: 916.2857143 | L176: 18648.5 | M176: 1206.5 | N176: 2737 | O176: 22592 | P176: 355.2095238 | Q176: 22.98095238 | R176: 52.13333333 | S176: 430.3238095 | T176: 1152.352381 | U176: 125.8380952 | V176: 68.41904762 | W176: 1346.609524 | X176: 5884 | Y176: 16352 | Z176: 5364 | AA176: 27600 | AB176: 4836 | AC176: 0 | AD176: 104 | AE176: 4940 | AF176: 0 | AG176: 4037 | AH176: 10276 | AI176: 0 | AJ176: 14313 | AK176: 574 | AL176: 0 | AM176: 90 | AN176: 664 | AO176: 0 | AP176: 2984 | AQ176: 981 | AR176: 0 | AS176: 3965 | AT176: 141 | AU176: 0 | AV176: 0 | AW176: 141 | AX176: 2713 | AY176: 0 | AZ176: 0 | BA176: 0 | BB176: 2713 | BC176: 5551 | BD176: 0 | BE176: 194 | BF176: 5745 | BG176: 2713 | BH176: 7021 | BI176: 11257 | BJ176: 0 | BK176: 20991
A177: Falkirk2010/112 | B177: Falkirk | C177: 2010/112 | D177: 6013 | E177: 3770 | F177: 1482 | G177: 11265 | H177: 859 | I177: 538.5714286 | J177: 211.7142857 | K177: 1609.285714 | L177: 45258.7 | M177: 12782 | N177: 30854.32 | O177: 88895.02 | P177: 862.0704762 | Q177: 243.4666667 | R177: 587.7013333 | S177: 1693.238476 | T177: 1721.070476 | U177: 782.0380952 | V177: 799.415619 | W177: 3302.52419 | X177: 25138 | Y177: 97899 | Z177: 32103 | AA177: 155140 | AB177: 5566 | AC177: 0 | AD177: 208 | AE177: 5774 | AF177: 0 | AG177: 2939.14 | AH177: 21775.22 | AI177: 20106 | AJ177: 44820.36 | AK177: 3225 | AL177: 0 | AM177: 652 | AN177: 3877 | AO177: 0 | AP177: 0 | AQ177: 1903.57 | AR177: 10703.5 | AS177: 12607.07 | AT177: 1219 | AU177: 0 | AV177: 762 | AW177: 1981 | AX177: 0 | AY177: 0 | AZ177: 0 | BA177: 30301.4 | BB177: 30301.4 | BC177: 10010 | BD177: 0 | BE177: 1622 | BF177: 11632 | BG177: 0 | BH177: 2939.14 | BI177: 23678.79 | BJ177: 61110.9 | BK177: 87728.83
A178: Fife2010/112 | B178: Fife | C178: 2010/112 | D178: 17685 | E178: 9239 | F178: 2193 | G178: 29117 | H178: 2526.428571 | I178: 1319.857143 | J178: 313.2857143 | K178: 4159.571429 | L178: 416793 | M178: 552563 | N178: 55490 | O178: 1024846 | P178: 7938.914286 | Q178: 10525.00952 | R178: 1056.952381 | S178: 19520.87619 | T178: 10465.34286 | U178: 11844.86667 | V178: 1370.238095 | W178: 23680.44762 | X178: 63308 | Y178: 226354 | Z178: 72948 | AA178: 362610 | AB178: 15625 | AC178: 0 | AD178: 281 | AE178: 15906 | AF178: 328202 | AG178: 0 | AH178: 0 | AI178: 59157 | AJ178: 387359 | AK178: 8215 | AL178: 0 | AM178: 616 | AN178: 8831 | AO178: 515314 | AP178: 0 | AQ178: 0 | AR178: 18589 | AS178: 533903 | AT178: 2074 | AU178: 176 | AV178: 0 | AW178: 2250 | AX178: 0 | AY178: 0 | AZ178: 0 | BA178: 54229 | BB178: 54229 | BC178: 25914 | BD178: 176 | BE178: 897 | BF178: 26987 | BG178: 843516 | BH178: 0 | BI178: 0 | BJ178: 131975 | BK178: 975491
A179: Glasgow City2010/112 | B179: Glasgow City | C179: 2010/112 | D179: 13498 | E179: 13290 | F179: 6639 | G179: 33427 | H179: 1928.285714 | I179: 1898.571429 | J179: 948.4285714 | K179: 4775.285714 | L179: 305831 | M179: 564285 | N179: 45352 | O179: 915468 | P179: 5825.352381 | Q179: 10748.28571 | R179: 863.847619 | S179: 17437.48571 | T179: 7753.638095 | U179: 12646.85714 | V179: 1812.27619 | W179: 22212.77143 | X179: 82366 | Y179: 394169 | Z179: 109965 | AA179: 586500 | AB179: 20638 | AC179: 0 | AD179: 104 | AE179: 20742 | AF179: 0 | AG179: 315715 | AH179: 0 | AI179: 0 | AJ179: 315715 | AK179: 14376 | AL179: 0 | AM179: 104 | AN179: 14480 | AO179: 0 | AP179: 437841 | AQ179: 0 | AR179: 0 | AS179: 437841 | AT179: 7053 | AU179: 0 | AV179: 1193 | AW179: 8246 | AX179: 0 | AY179: 31617 | AZ179: 0 | BA179: 25536 | BB179: 57153 | BC179: 42067 | BD179: 0 | BE179: 1401 | BF179: 43468 | BG179: 0 | BH179: 785173 | BI179: 0 | BJ179: 25536 | BK179: 810709
A180: Highland2010/112 | B180: Highland | C180: 2010/112 | D180: 9975 | E180: 3808 | F180: 3101 | G180: 16884 | H180: 1425 | I180: 544 | J180: 443 | K180: 2412 | L180: 78857 | M180: 34202 | N180: 27769 | O180: 140828 | P180: 1502.038095 | Q180: 651.4666667 | R180: 528.9333333 | S180: 2682.438095 | T180: 2927.038095 | U180: 1195.466667 | V180: 971.9333333 | W180: 5094.438095 | X180: 42376 | Y180: 141305 | Z180: 47049 | AA180: 230730 | AB180: 10066 | AC180: 331 | AD180: 36 | AE180: 10433 | AF180: 0 | AG180: 34369 | AH180: 48899 | AI180: 1002 | AJ180: 84270 | AK180: 4915 | AL180: 222 | AM180: 156 | AN180: 5293 | AO180: 0 | AP180: 20290 | AQ180: 16524 | AR180: 380 | AS180: 37194 | AT180: 2440 | AU180: 0 | AV180: 1143 | AW180: 3583 | AX180: 0 | AY180: 6723 | AZ180: 16985 | BA180: 8731 | BB180: 32439 | BC180: 17421 | BD180: 553 | BE180: 1335 | BF180: 19309 | BG180: 0 | BH180: 61382 | BI180: 82408 | BJ180: 10113 | BK180: 153903
A181: Inverclyde2010/112 | B181: Inverclyde | C181: 2010/112 | D181: 3409 | E181: 2570 | F181: 637 | G181: 6616 | H181: 487 | I181: 367.1428571 | J181: 91 | K181: 945.1428571 | L181: 439902.3 | M181: 134111.08 | N181: 3149 | O181: 577162.38 | P181: 8379.091429 | Q181: 2554.496762 | R181: 59.98095238 | S181: 10993.56914 | T181: 8866.091429 | U181: 2921.639619 | V181: 150.9809524 | W181: 11938.712 | X181: 14672 | Y181: 50970 | Z181: 15868 | AA181: 81510 | AB181: 2488 | AC181: 0 | AD181: 956 | AE181: 3444 | AF181: 0 | AG181: 65592 | AH181: 388866 | AI181: 22501 | AJ181: 476959 | AK181: 1878 | AL181: 0 | AM181: 726 | AN181: 2604 | AO181: 0 | AP181: 76178 | AQ181: 32002.5 | AR181: 29616.5 | AS181: 137797 | AT181: 694 | AU181: 0 | AV181: 55 | AW181: 749 | AX181: 0 | AY181: 0 | AZ181: 2342.5 | BA181: 2827.5 | BB181: 5170 | BC181: 5060 | BD181: 0 | BE181: 1737 | BF181: 6797 | BG181: 0 | BH181: 141770 | BI181: 423211 | BJ181: 54945 | BK181: 619926
A182: Midlothian2010/112 | B182: Midlothian | C182: 2010/112 | D182: 2704 | E182: 2770 | F182: 468.3 | G182: 5942.3 | H182: 386.2857143 | I182: 395.7142857 | J182: 66.9 | K182: 848.9 | L182: 34593.95 | M182: 78831.5 | N182: 23513.7 | O182: 136939.15 | P182: 658.932381 | Q182: 1501.552381 | R182: 447.88 | S182: 2608.364762 | T182: 1045.218095 | U182: 1897.266667 | V182: 514.78 | W182: 3457.264762 | X182: 13702 | Y182: 51064 | Z182: 17594 | AA182: 82360 | AB182: 2604 | AC182: 0 | AD182: 19 | AE182: 2623 | AF182: 0 | AG182: 18028.3 | AH182: 9102.5 | AI182: 9694 | AJ182: 36824.8 | AK182: 2611 | AL182: 0 | AM182: 641 | AN182: 3252 | AO182: 0 | AP182: 62464 | AQ182: 17016 | AR182: 582 | AS182: 80062 | AT182: 265 | AU182: 0 | AV182: 181 | AW182: 446 | AX182: 0 | AY182: 10917 | AZ182: 0 | BA182: 11477 | BB182: 22394 | BC182: 5480 | BD182: 0 | BE182: 841 | BF182: 6321 | BG182: 0 | BH182: 91409.3 | BI182: 26118.5 | BJ182: 21753 | BK182: 139280.8
A183: Moray2010/112 | B183: Moray | C183: 2010/112 | D183: 4508 | E183: 3177 | F183: 992 | G183: 8677 | H183: 644 | I183: 453.8571429 | J183: 141.7142857 | K183: 1239.571429 | L183: 16781.75 | M183: 14444.5 | N183: 8123.5 | O183: 39349.75 | P183: 319.652381 | Q183: 275.1333333 | R183: 154.7333333 | S183: 749.5190476 | T183: 963.652381 | U183: 728.9904762 | V183: 296.447619 | W183: 1989.090476 | X183: 17008 | Y183: 57269 | Z183: 19413 | AA183: 93690 | AB183: 3922 | AC183: 216 | AD183: 0 | AE183: 4138 | AF183: 0 | AG183: 6911 | AH183: 10835.8 | AI183: 0 | AJ183: 17746.8 | AK183: 3161 | AL183: 0 | AM183: 0 | AN183: 3161 | AO183: 0 | AP183: 5433 | AQ183: 8166.5 | AR183: 0 | AS183: 13599.5 | AT183: 1298 | AU183: 0 | AV183: 0 | AW183: 1298 | AX183: 2213.8 | AY183: 0 | AZ183: 4242 | BA183: 0 | BB183: 6455.8 | BC183: 8381 | BD183: 216 | BE183: 0 | BF183: 8597 | BG183: 2213.8 | BH183: 12344 | BI183: 23244.3 | BJ183: 0 | BK183: 37802.1
A184: North Ayrshire2010/112 | B184: North Ayrshire | C184: 2010/112 | D184: 9912 | E184: 5163 | F184: 1664 | G184: 16739 | H184: 1416 | I184: 737.5714286 | J184: 237.7142857 | K184: 2391.285714 | L184: 95990 | M184: 16013 | N184: 16821.6 | O184: 128824.6 | P184: 1828.380952 | Q184: 305.0095238 | R184: 320.4114286 | S184: 2453.801905 | T184: 3244.380952 | U184: 1042.580952 | V184: 558.1257143 | W184: 4845.087619 | X184: 25539 | Y184: 83963 | Z184: 28288 | AA184: 137790 | AB184: 10394 | AC184: 0 | AD184: 0 | AE184: 10394 | AF184: 0 | AG184: 80984 | AH184: 9687 | AI184: 0 | AJ184: 90671 | AK184: 5042 | AL184: 0 | AM184: 276 | AN184: 5318 | AO184: 0 | AP184: 16320 | AQ184: 2184 | AR184: 0 | AS184: 18504 | AT184: 1111 | AU184: 457 | AV184: 0 | AW184: 1568 | AX184: 0 | AY184: 0 | AZ184: 0 | BA184: 11807 | BB184: 11807 | BC184: 16547 | BD184: 457 | BE184: 276 | BF184: 17280 | BG184: 0 | BH184: 97304 | BI184: 11871 | BJ184: 11807 | BK184: 120982
A185: North Lanarkshire2010/112 | B185: North Lanarkshire | C185: 2010/112 | D185: 10672 | E185: 7883 | F185: 1602 | G185: 20157 | H185: 1524.571429 | I185: 1126.142857 | J185: 228.8571429 | K185: 2879.571429 | L185: 198397 | M185: 190967 | N185: 24179 | O185: 413543 | P185: 3778.990476 | Q185: 3637.466667 | R185: 460.552381 | S185: 7877.009524 | T185: 5303.561905 | U185: 4763.609524 | V185: 689.4095238 | W185: 10756.58095 | X185: 49956 | Y185: 213059 | Z185: 73265 | AA185: 336280 | AB185: 11051 | AC185: 0 | AD185: 0 | AE185: 11051 | AF185: 0 | AG185: 174761 | AH185: 3564 | AI185: 32474.84 | AJ185: 210799.84 | AK185: 8131 | AL185: 7 | AM185: 0 | AN185: 8138 | AO185: 0 | AP185: 511 | AQ185: 15454 | AR185: 191557.5 | AS185: 207522.5 | AT185: 1866 | AU185: 14 | AV185: 0 | AW185: 1880 | AX185: 0 | AY185: 10887 | AZ185: 2251 | BA185: 493 | BB185: 13631 | BC185: 21048 | BD185: 21 | BE185: 0 | BF185: 21069 | BG185: 0 | BH185: 186159 | BI185: 21268.5 | BJ185: 224525.34 | BK185: 431952.84
A186: Orkney Islands2010/112 | B186: Orkney Islands | C186: 2010/112 | D186: 2171 | E186: 712 | F186: 525 | G186: 3408 | H186: 310.1428571 | I186: 101.7142857 | J186: 75 | K186: 486.8571429 | L186: 21251 | M186: 45769.5 | N186: 8354 | O186: 75374.5 | P186: 404.7809524 | Q186: 871.8 | R186: 159.1238095 | S186: 1435.704762 | T186: 714.9238095 | U186: 973.5142857 | V186: 234.1238095 | W186: 1922.561905 | X186: 4157 | Y186: 12855 | Z186: 4208 | AA186: 21220 | AB186: 2142 | AC186: 0 | AD186: 0 | AE186: 2142 | AF186: 0 | AG186: 15970 | AH186: 2084 | AI186: 2437 | AJ186: 20491 | AK186: 636 | AL186: 19 | AM186: 0 | AN186: 655 | AO186: 1102.5 | AP186: 25567.5 | AQ186: 11816 | AR186: 0 | AS186: 38486 | AT186: 568 | AU186: 0 | AV186: 0 | AW186: 568 | AX186: 1784 | AY186: 0 | AZ186: 5198 | BA186: 0 | BB186: 6982 | BC186: 3346 | BD186: 19 | BE186: 0 | BF186: 3365 | BG186: 2886.5 | BH186: 41537.5 | BI186: 19098 | BJ186: 2437 | BK186: 65959
A187: Perth & Kinross2010/112 | B187: Perth & Kinross | C187: 2010/112 | D187: 14180 | E187: 1828 | F187: 554 | G187: 16562 | H187: 2025.714286 | I187: 261.1428571 | J187: 79.14285714 | K187: 2366 | L187: 151037 | M187: 35286 | N187: 14839 | O187: 201162 | P187: 2876.895238 | Q187: 672.1142857 | R187: 282.647619 | S187: 3831.657143 | T187: 4902.609524 | U187: 933.2571429 | V187: 361.7904762 | W187: 6197.657143 | X187: 29072 | Y187: 87688 | Z187: 28840 | AA187: 145600 | AB187: 11807 | AC187: 259 | AD187: 0 | AE187: 12066 | AF187: 0 | AG187: 10730 | AH187: 155626 | AI187: 1039 | AJ187: 167395 | AK187: 3126 | AL187: 37 | AM187: 0 | AN187: 3163 | AO187: 0 | AP187: 12176 | AQ187: 19091 | AR187: 653 | AS187: 31920 | AT187: 478 | AU187: 51 | AV187: 0 | AW187: 529 | AX187: 0 | AY187: 0 | AZ187: 8533 | BA187: 5710 | BB187: 14243 | BC187: 15411 | BD187: 347 | BE187: 0 | BF187: 15758 | BG187: 0 | BH187: 22906 | BI187: 183250 | BJ187: 7402 | BK187: 213558
A188: Renfrewshire2010/112 | B188: Renfrewshire | C188: 2010/112 | D188: 7234 | E188: 6722 | F188: 2589 | G188: 16545 | H188: 1033.428571 | I188: 960.2857143 | J188: 369.8571429 | K188: 2363.571429 | L188: 19236 | M188: 27618.2 | N188: 21826.1 | O188: 68680.3 | P188: 366.4 | Q188: 526.0609524 | R188: 415.7352381 | S188: 1308.19619 | T188: 1399.828571 | U188: 1486.346667 | V188: 785.592381 | W188: 3671.767619 | X188: 29101 | Y188: 109572 | Z188: 35027 | AA188: 173700 | AB188: 7179 | AC188: 0 | AD188: 0 | AE188: 7179 | AF188: 0 | AG188: 0 | AH188: 72 | AI188: 10522 | AJ188: 10594 | AK188: 7733 | AL188: 0 | AM188: 0 | AN188: 7733 | AO188: 0 | AP188: 0 | AQ188: 36433 | AR188: 4517 | AS188: 40950 | AT188: 3081 | AU188: 0 | AV188: 0 | AW188: 3081 | AX188: 0 | AY188: 0 | AZ188: 4194 | BA188: 20836 | BB188: 25030 | BC188: 17993 | BD188: 0 | BE188: 0 | BF188: 17993 | BG188: 0 | BH188: 0 | BI188: 40699 | BJ188: 35875 | BK188: 76574
A189: Scottish Borders2010/112 | B189: Scottish Borders | C189: 2010/112 | D189: 6346 | E189: 2337 | F189: 2095 | G189: 10778 | H189: 906.5714286 | I189: 333.8571429 | J189: 299.2857143 | K189: 1539.714286 | L189: 2649.7 | M189: 11452 | N189: 12910 | O189: 27011.7 | P189: 50.47047619 | Q189: 218.1333333 | R189: 245.9047619 | S189: 514.5085714 | T189: 957.0419048 | U189: 551.9904762 | V189: 545.1904762 | W189: 2054.222857 | X189: 23481 | Y189: 67819 | Z189: 22390 | AA189: 113690 | AB189: 5479 | AC189: 0 | AD189: 91 | AE189: 5570 | AF189: 0 | AG189: 0 | AH189: 962 | AI189: 0 | AJ189: 962 | AK189: 1770 | AL189: 19 | AM189: 1917 | AN189: 3706 | AO189: 0 | AP189: 0 | AQ189: 5335 | AR189: 2186 | AS189: 7521 | AT189: 638 | AU189: 0 | AV189: 1605 | AW189: 2243 | AX189: 1296 | AY189: 0 | AZ189: 0 | BA189: 10105 | BB189: 11401 | BC189: 7887 | BD189: 19 | BE189: 3613 | BF189: 11519 | BG189: 1296 | BH189: 0 | BI189: 6297 | BJ189: 12291 | BK189: 19884
A190: Shetland Islands2010/112 | B190: Shetland Islands | C190: 2010/112 | D190: 9677 | E190: 1951 | F190: 1198 | G190: 12826 | H190: 1382.428571 | I190: 278.7142857 | J190: 171.1428571 | K190: 1832.285714 | L190: 5295.25 | M190: 5827.75 | N190: 18495 | O190: 29618 | P190: 100.8619048 | Q190: 111.0047619 | R190: 352.2857143 | S190: 564.152381 | T190: 1483.290476 | U190: 389.7190476 | V190: 523.4285714 | W190: 2396.438095 | X190: 3739 | Y190: 14203 | Z190: 5118 | AA190: 23060 | AB190: 6568 | AC190: 0 | AD190: 0 | AE190: 6568 | AF190: 0 | AG190: 0 | AH190: 7530 | AI190: 0 | AJ190: 7530 | AK190: 1642 | AL190: 32 | AM190: 211 | AN190: 1885 | AO190: 1997 | AP190: 0 | AQ190: 2777 | AR190: 0 | AS190: 4774 | AT190: 891 | AU190: 21 | AV190: 110 | AW190: 1022 | AX190: 11541 | AY190: 0 | AZ190: 4809 | BA190: 0 | BB190: 16350 | BC190: 9101 | BD190: 53 | BE190: 321 | BF190: 9475 | BG190: 13538 | BH190: 0 | BI190: 15116 | BJ190: 0 | BK190: 28654
A191: South Ayrshire2010/112 | B191: South Ayrshire | C191: 2010/112 | D191: 10717 | E191: 2393 | F191: 1306 | G191: 14416 | H191: 1531 | I191: 341.8571429 | J191: 186.5714286 | K191: 2059.428571 | L191: 102098 | M191: 120697.75 | N191: 52266.5 | O191: 275062.25 | P191: 1944.72381 | Q191: 2299.004762 | R191: 995.552381 | S191: 5239.280952 | T191: 3475.72381 | U191: 2640.861905 | V191: 1182.12381 | W191: 7298.709524 | X191: 23993 | Y191: 67405 | Z191: 21202 | AA191: 112600 | AB191: 8673 | AC191: 24 | AD191: 0 | AE191: 8697 | AF191: 0 | AG191: 85488 | AH191: 17528 | AI191: 0 | AJ191: 103016 | AK191: 377 | AL191: 25 | AM191: 1815 | AN191: 2217 | AO191: 0 | AP191: 89256 | AQ191: 3444 | AR191: 8993 | AS191: 101693 | AT191: 0 | AU191: 0 | AV191: 1127 | AW191: 1127 | AX191: 0 | AY191: 8288 | AZ191: 16513.21 | BA191: 25405 | BB191: 50206.21 | BC191: 9050 | BD191: 49 | BE191: 2942 | BF191: 12041 | BG191: 0 | BH191: 183032 | BI191: 37485.21 | BJ191: 34398 | BK191: 254915.21
A192: South Lanarkshire2010/112 | B192: South Lanarkshire | C192: 2010/112 | D192: 27403 | E192: 13195 | F192: 3323 | G192: 43921 | H192: 3914.714286 | I192: 1885 | J192: 474.7142857 | K192: 6274.428571 | L192: 275426 | M192: 65680 | N192: 56524.57 | O192: 397630.57 | P192: 5246.209524 | Q192: 1251.047619 | R192: 1076.658476 | S192: 7573.915619 | T192: 9160.92381 | U192: 3136.047619 | V192: 1551.372762 | W192: 13848.34419 | X192: 52311 | Y192: 197009 | Z192: 63860 | AA192: 313180 | AB192: 23005 | AC192: 26 | AD192: 5 | AE192: 23036 | AF192: 0 | AG192: 253279.28 | AH192: 26609 | AI192: 75 | AJ192: 279963.28 | AK192: 8704 | AL192: 178 | AM192: 771 | AN192: 9653 | AO192: 0 | AP192: 0 | AQ192: 48172 | AR192: 12925 | AS192: 61097 | AT192: 3196 | AU192: 295 | AV192: 155 | AW192: 3646 | AX192: 0 | AY192: 1288.29 | AZ192: 34869 | BA192: 13554 | BB192: 49711.29 | BC192: 34905 | BD192: 499 | BE192: 931 | BF192: 36335 | BG192: 0 | BH192: 254567.57 | BI192: 109650 | BJ192: 26554 | BK192: 390771.57
A193: Stirling2010/112 | B193: Stirling | C193: 2010/112 | D193: 5268 | E193: 1275 | F193: 755 | G193: 7298 | H193: 752.5714286 | I193: 182.1428571 | J193: 107.8571429 | K193: 1042.571429 | L193: 9246 | M193: 2758.94 | N193: 30060 | O193: 42064.94 | P193: 176.1142857 | Q193: 52.5512381 | R193: 572.5714286 | S193: 801.2369524 | T193: 928.6857143 | U193: 234.6940952 | V193: 680.4285714 | W193: 1843.808381 | X193: 15335 | Y193: 55971 | Z193: 18244 | AA193: 89550 | AB193: 4087 | AC193: 0 | AD193: 0 | AE193: 4087 | AF193: 0 | AG193: 0 | AH193: 8732 | AI193: 0 | AJ193: 8732 | AK193: 1258 | AL193: 0 | AM193: 0 | AN193: 1258 | AO193: 0 | AP193: 0 | AQ193: 2360 | AR193: 0 | AS193: 2360 | AT193: 737 | AU193: 91 | AV193: 0 | AW193: 828 | AX193: 0 | AY193: 4800 | AZ193: 15480 | BA193: 6150 | BB193: 26430 | BC193: 6082 | BD193: 91 | BE193: 0 | BF193: 6173 | BG193: 0 | BH193: 4800 | BI193: 26572 | BJ193: 6150 | BK193: 37522
A194: West Dunbartonshire2010/112 | B194: West Dunbartonshire | C194: 2010/112 | D194: 3019 | E194: 3748 | F194: 1083 | G194: 7850 | H194: 431.2857143 | I194: 535.4285714 | J194: 154.7142857 | K194: 1121.428571 | L194: 156803.21 | M194: 152690.83 | N194: 31169 | O194: 340663.04 | P194: 2986.72781 | Q194: 2908.396762 | R194: 593.6952381 | S194: 6488.81981 | T194: 3418.013524 | U194: 3443.825333 | V194: 748.4095238 | W194: 7610.248381 | X194: 14861 | Y194: 57456 | Z194: 18483 | AA194: 90800 | AB194: 3129 | AC194: 0 | AD194: 0 | AE194: 3129 | AF194: 0 | AG194: 131241.7 | AH194: 42867.49 | AI194: 2703.7 | AJ194: 176812.89 | AK194: 3807 | AL194: 0 | AM194: 174 | AN194: 3981 | AO194: 0 | AP194: 68483.3 | AQ194: 9828.55 | AR194: 62437.5 | AS194: 140749.35 | AT194: 1164 | AU194: 23 | AV194: 0 | AW194: 1187 | AX194: 413 | AY194: 4891 | AZ194: 3857 | BA194: 17950 | BB194: 27111 | BC194: 8100 | BD194: 23 | BE194: 174 | BF194: 8297 | BG194: 413 | BH194: 204616 | BI194: 56553.04 | BJ194: 83091.2 | BK194: 344673.24
A195: West Lothian2010/112 | B195: West Lothian | C195: 2010/112 | D195: 4479 | E195: 3920 | F195: 931 | G195: 9330 | H195: 639.8571429 | I195: 560 | J195: 133 | K195: 1332.857143 | L195: 11753 | M195: 31208 | N195: 18603 | O195: 61564 | P195: 223.8666667 | Q195: 594.4380952 | R195: 354.3428571 | S195: 1172.647619 | T195: 863.7238095 | U195: 1154.438095 | V195: 487.3428571 | W195: 2505.504762 | X195: 23387 | Y195: 110818 | Z195: 39885 | AA195: 174090 | AB195: 4563 | AC195: 0 | AD195: 0 | AE195: 4563 | AF195: 0 | AG195: 0 | AH195: 8818 | AI195: 988 | AJ195: 9806 | AK195: 4389 | AL195: 0 | AM195: 0 | AN195: 4389 | AO195: 0 | AP195: 17160 | AQ195: 3098 | AR195: 19411 | AS195: 39669 | AT195: 594 | AU195: 0 | AV195: 314 | AW195: 908 | AX195: 0 | AY195: 0 | AZ195: 3245 | BA195: 15864 | BB195: 19109 | BC195: 9546 | BD195: 0 | BE195: 314 | BF195: 9860 | BG195: 0 | BH195: 17160 | BI195: 15161 | BJ195: 36263 | BK195: 68584
A196: Aberdeen City2010/113 | B196: Aberdeen City | C196: 2010/113 | D196: 7625 | E196: 1761 | F196: 1413 | G196: 10799 | H196: 1089.285714 | I196: 251.5714286 | J196: 201.8571429 | K196: 1542.714286 | L196: 61410.25 | M196: 10402.5 | N196: 9580.5 | O196: 81393.25 | P196: 1169.719048 | Q196: 198.1428571 | R196: 182.4857143 | S196: 1550.347619 | T196: 2259.004762 | U196: 449.7142857 | V196: 384.3428571 | W196: 3093.061905 | X196: 31983 | Y196: 150735 | Z196: 37012 | AA196: 219730 | AB196: 7388 | AC196: 237 | AD196: 0 | AE196: 7625 | AF196: 0 | AG196: 42963.5 | AH196: 13842.25 | AI196: 4604.5 | AJ196: 61410.25 | AK196: 1454 | AL196: 307 | AM196: 0 | AN196: 1761 | AO196: 0 | AP196: 120 | AQ196: 1782.5 | AR196: 8500 | AS196: 10402.5 | AT196: 1354 | AU196: 0 | AV196: 59 | AW196: 1413 | AX196: 785.5 | AY196: 0 | AZ196: 475 | BA196: 8320 | BB196: 9580.5 | BC196: 10196 | BD196: 544 | BE196: 59 | BF196: 10799 | BG196: 785.5 | BH196: 43083.5 | BI196: 16099.75 | BJ196: 21424.5 | BK196: 81393.25
A197: Aberdeenshire2010/113 | B197: Aberdeenshire | C197: 2010/113 | D197: 18659 | E197: 6158 | F197: 800 | G197: 25617 | H197: 2665.571429 | I197: 879.7142857 | J197: 114.2857143 | K197: 3659.571429 | L197: 52112 | M197: 102828 | N197: 57730 | O197: 212670 | P197: 992.6095238 | Q197: 1958.628571 | R197: 1099.619048 | S197: 4050.857143 | T197: 3658.180952 | U197: 2838.342857 | V197: 1213.904762 | W197: 7710.428571 | X197: 40062 | Y197: 157500 | Z197: 53868 | AA197: 251430 | AB197: 18097 | AC197: 53 | AD197: 623 | AE197: 18773 | AF197: 1572 | AG197: 1383 | AH197: 14797.75 | AI197: 43857.9 | AJ197: 61610.65 | AK197: 3686 | AL197: 38 | AM197: 383 | AN197: 4107 | AO197: 0 | AP197: 15110 | AQ197: 14266.25 | AR197: 19833.75 | AS197: 49210 | AT197: 693 | AU197: 0 | AV197: 255 | AW197: 948 | AX197: 0 | AY197: 18943 | AZ197: 14590 | BA197: 29068 | BB197: 62601 | BC197: 22476 | BD197: 91 | BE197: 1261 | BF197: 23828 | BG197: 1572 | BH197: 35436 | BI197: 43654 | BJ197: 92759.65 | BK197: 173421.65
A198: Angus2010/113 | B198: Angus | C198: 2010/113 | D198: 7625 | E198: 1183 | F198: 885 | G198: 9693 | H198: 1089.285714 | I198: 169 | J198: 126.4285714 | K198: 1384.714286 | L198: 114048 | M198: 4094 | N198: 8958.2 | O198: 127100.2 | P198: 2172.342857 | Q198: 77.98095238 | R198: 170.632381 | S198: 2420.95619 | T198: 3261.628571 | U198: 246.9809524 | V198: 297.0609524 | W198: 3805.670476 | X198: 22708 | Y198: 69386 | Z198: 23316 | AA198: 115410 | AB198: 7625 | AC198: 0 | AD198: 0 | AE198: 7625 | AF198: 0 | AG198: 87176 | AH198: 26872 | AI198: 0 | AJ198: 114048 | AK198: 1161 | AL198: 22 | AM198: 0 | AN198: 1183 | AO198: 0 | AP198: 0 | AQ198: 4094 | AR198: 0 | AS198: 4094 | AT198: 380 | AU198: 0 | AV198: 505 | AW198: 885 | AX198: 385.2 | AY198: 0 | AZ198: 0 | BA198: 8573 | BB198: 8958.2 | BC198: 9166 | BD198: 22 | BE198: 505 | BF198: 9693 | BG198: 385.2 | BH198: 87176 | BI198: 30966 | BJ198: 8573 | BK198: 127100.2
A199: Argyll & Bute2010/113 | B199: Argyll & Bute | C199: 2010/113 | D199: 3579 | E199: 983 | F199: 1312 | G199: 5874 | H199: 511.2857143 | I199: 140.4285714 | J199: 187.4285714 | K199: 839.1428571 | L199: 67005 | M199: 79179 | N199: 43835.3 | O199: 190019.3 | P199: 1276.285714 | Q199: 1508.171429 | R199: 834.9580952 | S199: 3619.415238 | T199: 1787.571429 | U199: 1648.6 | V199: 1022.386667 | W199: 4458.558095 | X199: 19111 | Y199: 52780 | Z199: 16729 | AA199: 88620 | AB199: 3117 | AC199: 0 | AD199: 462 | AE199: 3579 | AF199: 0 | AG199: 54680 | AH199: 0 | AI199: 12325 | AJ199: 67005 | AK199: 804 | AL199: 0 | AM199: 179 | AN199: 983 | AO199: 0 | AP199: 27359 | AQ199: 0 | AR199: 51820 | AS199: 79179 | AT199: 1151 | AU199: 0 | AV199: 161 | AW199: 1312 | AX199: 0 | AY199: 13310 | AZ199: 0 | BA199: 30525.3 | BB199: 43835.3 | BC199: 5072 | BD199: 0 | BE199: 802 | BF199: 5874 | BG199: 0 | BH199: 95349 | BI199: 0 | BJ199: 94670.3 | BK199: 190019.3
A200: Clackmannanshire2010/113 | B200: Clackmannanshire | C200: 2010/113 | D200: 3221 | E200: 1967 | F200: 358 | G200: 5546 | H200: 460.1428571 | I200: 281 | J200: 51.14285714 | K200: 792.2857143 | L200: 62941 | M200: 50902 | N200: 5506 | O200: 119349 | P200: 1198.87619 | Q200: 969.5619048 | R200: 104.8761905 | S200: 2273.314286 | T200: 1659.019048 | U200: 1250.561905 | V200: 156.0190476 | W200: 3065.6 | X200: 8078 | Y200: 32435 | Z200: 10817 | AA200: 51330 | AB200: 3119 | AC200: 0 | AD200: 102 | AE200: 3221 | AF200: 0 | AG200: 52180 | AH200: 603 | AI200: 10158 | AJ200: 62941 | AK200: 446 | AL200: 595 | AM200: 926 | AN200: 1967 | AO200: 0 | AP200: 47611 | AQ200: 1801 | AR200: 1490 | AS200: 50902 | AT200: 358 | AU200: 0 | AV200: 0 | AW200: 358 | AX200: 0 | AY200: 0 | AZ200: 1963 | BA200: 3543 | BB200: 5506 | BC200: 3923 | BD200: 595 | BE200: 1028 | BF200: 5546 | BG200: 0 | BH200: 99791 | BI200: 4367 | BJ200: 15191 | BK200: 119349
... 199 more rows

Sheet LKPS (hidden)
A2: Year | C2: Agegrp | D2: Overnight | E2: Daytime | F2: Overall | H2: Type | J2: Local Authority | L2: Drop1 | N2: Drop2 | P2: Drop3
A3: 2006/07 | C3: All ages | D3: 11 | E3: 19 | F3: 23 | H3: All respite | J3: Scotland | L3: Numbers | N3: Nights/Hours | P3: Nights/Hours
A4: 2007/080 | C4: 0-17 | D4: 10 | E4: 18 | F4: 22 | H4: Overnight | J4: Aberdeen City | L4: Rates | N4: Weeks | P4: Weeks
A5: 2008/090 | C5: 18-64 | D5: 9 | E5: 17 | F5: 21 | H5: Daytime | J5: Aberdeenshire | N5: Percentage
A6: 2008/091 | C6: 65+ | D6: 8 | E6: 16 | F6: 20 | J6: Angus
A7: 2009/101 | J7: Argyll & Bute
A8: 2009/102 | J8: Clackmannanshire
A9: 2010/112 | C9: HOURS | J9: Dumfries & Galloway
A10: 2010/113 | C10: Agegrp | D10: Overnight | E10: Daytime | F10: Overnight | G10: Daytime | J10: Dundee City
A11: 2011/123 | C11: All ages | D11: 7 | E11: 15 | F11: 55 | G11: 59 | J11: East Ayrshire
A12: 2012/133 | C12: 0-17 | D12: 6 | E12: 14 | F12: 46 | G12: 50 | J12: East Dunbartonshire
A13: 2012/134 | C13: 18-64 | D13: 5 | E13: 13 | F13: 37 | G13: 41 | J13: East Lothian
A14: 2013/144 | C14: 65+ | D14: 4 | E14: 12 | F14: 28 | G14: 32 | J14: East Renfrewshire
A15: 2014/154 | J15: Edinburgh, City of
J16: Eilean Siar
C17: 2009/102 | D17: 2009/102 | J17: Falkirk
C18: 2010/112 | D18: 2010/112 | J18: Fife
C19: 2010/113 | D19: 2010/113 | J19: Glasgow City
C20: 2011/123 | D20: 2011/124 | J20: Highland
C21: 2012/133 | D21: 2012/133 | J21: Inverclyde
C22: 2012/134 | D22: 2012/134 | J22: Midlothian
C23: 2013/144 | D23: 2013/145 | J23: Moray
C24: 2014/154 | D24: 2014/154 | J24: North Ayrshire
J25: North Lanarkshire
J26: Orkney Islands
J27: Perth & Kinross
J28: Renfrewshire
J29: Scottish Borders
J30: Shetland Islands
J31: South Ayrshire
J32: South Lanarkshire
J33: Stirling
J34: West Dunbartonshire
J35: West Lothian

Sheet Contents
B1: Respite care Statistics 2007/08-Latest
B3: Please refer to the background notes for further information on the data collection
B4: Please refer to the presentation of statistics, to aid interpration of the statistics
B6: Contents | J6: Links
B8: Table 1 - | C8: Number of respite overnight and daytime weeks provided, 2007/08-Latest | J8: Table1
C9: Time series data of the number of respite weeks spilt into overnight and daytime weeks. Data available for Scotland or by individual Local Authority and is presented in a table and bar chart.
B10: Table 2 - | C10: Respite data of the number of respite weeks provided by Local Authority | J10: Table2
C11: Respite data of the number of respite weeks provided by Local Authority and year. Data presented in a table by Local Authority that can shown either numbers or rates per 1,000 population and different age groups.
B12: Table 3 - | C12: Respite overnight nights and daytime hours provided by Local Authority | J12: Table3
C13: Respite data of the number of respite overnight nights and daytime hours provided by Local Authority and year. Data presented in a table by Local Authority that can shown either numbers or rates per 1,000 population and different age groups.
B14: Table 4 - | C14: Breakdown of overnight and daytime respite provision by Local Authority, 2009/10-Latest | J14: Table4
C15: Breakdown of respite data showing where overnight and daytime respite is provided by Local Authority from 2009/10 on. Data presented in a table by Local Authority, where age group and year can be selected. The table shows both the numbers of nights and hours and the % breakdown of locations.
B17: Problem with drop down lists
B19: If the drop down lists are not working please ensure that Macro security settings are set to medium. To do this, go to ‘Tools’ menu and select ‘macro’. Then select ‘Security’ and ensure that the security setting is set to either ‘Medium’ or ‘Low’ (Medium is the recommended option). If your settings were set to ‘High’ you should reset the level when you have finished working with the template. Also when opening the file you will be asked whether you wish to “enable” or disable” macros. You must select “Enable macros”, otherwise the template will not function correctly.

Sheet Background notes
B1: Background information on the collection of the data | C1: Contents
B3: Background information on the collection of the data
B5: Data Sources
B7: Audit Scotland (2008/09)
B8: This data was provided to Audit Scotland by all Local Authorities in Scotland as one of the Statutory Performance Indicators (SPIs). The information was collected and published locally by each council in Scotland. Audit Scotland publishes information about the comparative performance of councils across Scotland in a compendium of all the data. These are available from www.audit-scotland.gov.uk/performance/index.php, but please note that all respite figures have been superseded with those presented in this publication.
B10: Scottish Government (2009/10 to 2014/15)
B11: The Scottish Government is now responsible for the collection of respite data. This follows Audit Scotland’s decision to discontinue the collection of the SPI data for respite care.
B13: Understanding the Statistics in this Report.
B15: All information in this Statistics Release is based on a year from 1st April to 31st March.
B17: In order to provide an estimate of total respite provision across Scotland, respite nights and respite hours have been converted into respite weeks. In order to calculate this, seven respite nights equal one respite week and 52.5 hours equal one respite week. This standard method was agreed by CoSLA and the Scottish Government.
B19: In order to convert Direct Payments onto respite weeks we have assumed that the cost of one week is £630 and the cost of one hour is £12. This rate is derived from an estimate of residential care weekly costs made by the Respite Task Group.
B21: Changes to figures for previous years
B23: As part of the collection of the 2014/15 data Local Authorities were given the opportunity to check their previously submitted respite figures. The changes made to previously published data are given below:
B25: Argyll & Bute, 2013/14: 12,407 daytime respite hours for 18-64 previously allocated to Day Care Centre have been moved to Day Activities not in a Day Care Centre. There is no change to the overall number of respite hours/weeks provided.
B26: East Ayrshire, 2013/14: Daytime respite hours at home for 18-64 reduced from 67,140 to 46,107 following comparison of data with local performance indicators.
B28: In addition, Aberdeen City and Stirling both confirmed that the Direct Payments figures provided in their 2013/14 data submission were for all Direct Payments made, not just those used to provide respite care. Direct Payments made by Stirling to provide respite care in 2013/14 were £122,000, not £1.38m as given in last year’s publication. Aberdeen City were not able to provide a revised figure for Direct Payments in 2013/14.
B30: Data Completeness
B32: While every effort has been made to ensure that data is recorded as completely as possible, the following issues should be noted for the figures published in this report:
B33: East Renfrewshire was unable to submit any data. The most recently available figures, from 2013/14, have been used as an estimate.
B34: The data submitted by Orkney is known to be incomplete, as systems to provide respite care data are not yet in place following the introduction of Self-Directed Support. This means that the number of respite weeks provided by Orkney are likely to be understated, and should not be compared to data from previous years.
B36: Comparability between 2013/14 and 2014/15 data
B38: Local Authorities were asked to only submit one set of data for 2014/15, as there has been no change to the national guidance since 2012/13. However, it is clear from the explanatory material submitted by many of the Authorities alongside their data submissions that a range of factors other than genuine changes in service provision may also have affected their recorded figures.
B40: The roll-out of Self-Directed Support
B41: The Self-Directed Support (SDS) Act came into force across Scotland on 1st April 2014. The level of implementation of SDS varies by Local Authority, with some starting to implement SDS before the Act came into force, and others still working on implementation. This has had some impact on the respite care provision recorded for 2014/15, with the Local Authorities below mentioning that the changes to provision are likely to be related to the roll-out of SDS:
B43: Aberdeenshire: Unable to identify respite provision where SDS has been used
B44: East Ayrshire: People choosing alternatives to respite through SDS Option 1, leading to a reduction in respite provided
B45: Glasgow City: Increased use of SDS leading to a reduced level of respite care recorded
B46: Highland: SDS thought to have had an impact on overnight respite provision for young people
B47: Moray: Increased use of SDS for respite
B48: North Ayrshire: Respite provided through SDS not currently captured for some groups
B49: Orkney Islands: Comparable data is not available due to SDS/Direct Payments - systems are not yet in place to provide that data, so the 2014/15 data is known to be unrepresentative of actual respite provision
B50: Perth & Kinross: Significant changes to case management system and business processes due to SDS/personalisation, so 2014/15 data not consistent with previous years
B51: Renfrewshire: Figures affected by the introduction of SDS resulting in a change to patterns of care packages including respite
B52: Scottish Borders: SDS has contributed to the change in respite provision between 2013/14 and 2014/15
B53: Stirling: SDS contributing to the shift from direct provision to commissioning services from other providers
B55: For Local Authorities that are able to identify respite care that has been provided through Direct Payments (which now forms one option under SDS), the SDS roll-out process would be expected to result in a reduction in the recorded number of overnight / daytime respite weeks and a corresponding increase in the total recorded values of Direct Payments. Of the Authorities listed above, such a situation applies in Aberdeenshire, East Ayrshire, Highland, Moray, Renfrewshire and Stirling.
B57: Some Local Authorities are not currently able to identify support that has been provided for the purpose of providing respite care through Direct Payments (or other SDS options). As SDS rolls out in these Authorities, apparent decreases in the total amounts of respite recorded must also be expected, without necessarily reflecting any change in the level of service provision. Of the Authorities listed above, such a situation applies to Glasgow City, North Ayrshire and Scottish Borders.
B59: Improvements to local recording systems
B60: Several Local Authorities have described what we have interpreted to be substantial changes to aspects of their specific local recording systems over the course of the past year.
B62: Aberdeen City: Data quality issues in 2013/14 data after transferring service management to a Local Authority Trading Company - most of these have been addressed
B63: Aberdeenshire: 2014/15 data includes the correction of an error that led to undercounting of daytime respite hours for the 18-64 age group in 2013/14 data
B64: Falkirk: Possible undercount in respite nights for adults in 2013/14, corrected for 2014/15
B65: Highland: Improved recording of daytime respite data for young people
B66: Inverclyde: Adjustment to types of care that are classified as respite
B67: North Ayrshire: Improved data quality by using finance data rather than service data
B68: Scottish Borders: Improved data collection/recording for adult daytime respite
B69: West Dunbartonshire: Improved recording of day care services for users aged 65 and over
B71: Methodology used by Local Authorities
B73: The guidance for the 2014/15 data collection is the same as that used for the 2013/14 data collection, which is available on the Scottish Government website:
B74: http://www.scotland.gov.uk/Topics/Statistics/Browse/Health/RespiteCarenew
B76: Background information on this guidance has been provided in a Q & A document:
B77: http://www.scotland.gov.uk/Topics/Statistics/Browse/Health/RespiteCarenew/ShortBreakQA
B79: Respite data is something that has proved to be very complex for Local Authorities to capture. This means that each Local Authority may use a variety of data collection methods and sources of information to collect the required information as specified in the guidance.
B81: The data is collected from management/financial information systems, from manual records or direct from private/voluntary respite suppliers and is most commonly a combination of these data sources.
B83: The data will also incorporate a number of different services depending on the services available within a Local Authority, examples of the services included are; Day Care, Home Care, Short Breaks/Holiday breaks, Direct Payments and short stays in Care Homes.
B85: Reasons for large increases/decreases in respite provision
B87: Any large increases or decreases (+/- 20%) in recorded respite provision for overnight and daytime respite weeks were queried with the Local Authorities concerned. Some of the reasons identified within Local Authorities for such changes are detailed below:
B89: Increases in recorded provision:
B90: Improved reporting systems / under-estimation of figures in previous years (see Section 5.5)
B91: Day care centres focusing on providing support to older people with higher levels of need
B92: The introduction of administrative services such as a ‘Respite Bed Bureau’
B93: Promotion of activities that provide respite
B95: Decreases in recorded provision:
B96: The roll out of Self-Directed Support / increased use of Direct Payments (see Section 5.5)
B97: The temporary / permanent closures of care homes / centres
B98: Reductions in residential placements available and / or maximum length of placement stay
B99: Introduction of charging for Day Care services, leading to reduced demand
B100: Improved processes for putting long-term packages of care into place, leading to lower demand for respite care as a stop-gap
B101: High use service users moving to supported living arrangements
B103: Unknown changes in recorded provision
B104: Transition of individuals with significant needs between age categories
B105: Changes to the way that care services are delivered, or to priorities in service delivery
B107: Other data sources
B109: To calculate percentage changes in population between 2007/08 and 2014/15, the National Records of Scotland mid-year population estimates have been used. Scotland and Local Authority-level data is available from the NRS website:
B110: http://www.nrscotland.gov.uk/statistics-and-data/statistics/statistics-by-theme/population/population-estimates/
B112: Further information
B114: Further details and analysis of the data presented in this Statistics Release are available on request from the address given below. The Statistics Release is available on the Internet by accessing the Scottish Government web site:
B115: http://www.gov.scot/Topics/Statistics/Browse/Health/Publications
B116: Information at local authority level is shown in the annex to this Statistics Release.
B118: Health Analytical Services Division
B119: DG Health & Social Care: The Quality Unit
B120: Basement Rear
B121: St Andrews House
B122: Edinburgh
B123: EH1 3DG
B125: Contact: Steven Gillespie
B126: Tel: 0131 244 3777
B127: E-mail: SWStat@scotland.gov.uk
B129: This statistics release was published on 15th December 2015. The previous publication in this series was published on 28th October 2014.

Sheet Presentation of statistics
B1: Presentation of statistics within release | N1: Contents
B3: This statistical release presents the number of respite weeks provided to all age groups within Scotland. | N3: Background notes
B5: Local Authorities have been improving and refining their data collection methodologies since 2007/08. In the years where the methodology has been revised, two different sets of figures are presented:
B6: - a comparable figure based on the same methodology as the previous year
B7: - a figure based on the revised methodology, which is not comparable to previous years but comparable going forward
B9: Using this approach has allowed Local Authorities to revise their methodologies, whilst still allowing for real terms changes in respite provision to be identified.
B11: The diagram below shows how the figures will be presented in this release within tables. There are five sets of comparable figures:
B13: Diagram 1: Example presentation of respite figures (Table)
C14: Number of respite weeks provided
C15: 2007/080 | D15: 2008/090 | E15: 2008/091 | F15: 2009/101 | G15: 2009/102 | H15: 2010/112 | I15: 2010/113 | J15: 2011/123 | K15: 2012/133 | L15: 2012/134 | M15: 2013/144 | N15: 2014/154
B16: Example weeks | C16: XX,XXX | D16: XX,XXX | E16: XX,XXX | F16: XX,XXX | G16: XX,XXX | H16: XX,XXX | I16: XX,XXX | J16: XX,XXX | K16: XX,XXX | L16: XX,XXX | M16: XX,XXX | N16: XX,XXX
B19: 0 - Same methodology used in 2007/08 & 2008/09 making the figures comparable
B20: 1 - Same methodology used in 2008/09 & 2009/10 making the figures comparable
B21: 2 - Same methodology used in 2009/10 & 2010/11 making the figures comparable
B22: 3 - Same methodology used in 2010/11 - 2012/13 making the figures comparable
B23: 4 - Same methodology used for 2012/13 to 2014/15 making the figures comparable, comparisons should not be made at the Local Authority level in the cases described in the Background Notes.

Sheet Table1
B1: ="Number of respite weeks provided to "&A7& " in " &A5&", 2007/08 to 2014/15" -> Number of respite weeks provided to All ages in Scotland, 2007/08 to 2014/15
D3: Select Local Authority | G3: Select age group
A5: Scotland
A6: All ages
A7: =IF(A6="All ages",A6,(IF(A6="0-17","Young people (Aged 0-17)",IF(A6="18-64","Other Adults (Aged 18-64)","Other people (Aged 65+)")))) -> All ages | D7: Number of respite weeks provided
D8: 2007/080 | E8: 2008/090 | F8: 2008/091 | G8: 2009/101 | H8: 2009/102 | I8: 2010/112 | J8: 2010/113 | K8: 2011/123 | L8: 2012/133 | M8: 2012/134 | N8: 2013/144 | O8: 2014/154
A9: =VLOOKUP(A6,LKPS!C3:F6,2,FALSE) -> 11 | C9: Overnight Respite Weeks | D9: =MROUND(VLOOKUP($A$5&D$8,'Calc-V'!$A$4:$W$399,$A9,FALSE),10) -> 62750 | E9: =MROUND(VLOOKUP($A$5&E$8,'Calc-V'!$A$4:$W$399,$A9,FALSE),10) -> 62800 | F9: =MROUND(VLOOKUP($A$5&F$8,'Calc-V'!$A$4:$W$399,$A9,FALSE),10) -> 62730 | G9: =MROUND(VLOOKUP($A$5&G$8,'Calc-V'!$A$4:$W$399,$A9,FALSE),10) -> 64110 | H9: =MROUND(VLOOKUP($A$5&H$8,'Calc-V'!$A$4:$W$399,$A9,FALSE),10) -> 64290 | I9: =MROUND(VLOOKUP($A$5&I$8,'Calc-V'!$A$4:$W$399,$A9,FALSE),10) -> 64650 | J9: =MROUND(VLOOKUP($A$5&J$8,'Calc-V'!$A$4:$W$399,$A9,FALSE),10) -> 64900 | K9: =MROUND(VLOOKUP($A$5&K$8,'Calc-V'!$A$4:$W$399,$A9,FALSE),10) -> 66570 | L9: =MROUND(VLOOKUP($A$5&L$8,'Calc-V'!$A$4:$W$399,$A9,FALSE),10) -> 65880 | M9: =MROUND(VLOOKUP($A$5&M$8,'Calc-V'!$A$4:$W$399,$A9,FALSE),10) -> 65760 | N9: =MROUND(VLOOKUP($A$5&N$8,'Calc-V'!$A$4:$W$399,$A9,FALSE),10) -> 65030 | O9: =MROUND(VLOOKUP($A$5&O$8,'Calc-V'!$A$4:$W$399,$A9,FALSE),10) -> 63080
A10: =VLOOKUP(A6,LKPS!C3:F6,3,FALSE) -> 19 | C10: Daytime Respite Weeks | D10: =MROUND(VLOOKUP($A$5&D$8,'Calc-V'!$A$4:$W$399,$A10,FALSE),10) -> 109980 | E10: =MROUND(VLOOKUP($A$5&E$8,'Calc-V'!$A$4:$W$399,$A10,FALSE),10) -> 111230 | F10: =MROUND(VLOOKUP($A$5&F$8,'Calc-V'!$A$4:$W$399,$A10,FALSE),10) -> 132980 | G10: =MROUND(VLOOKUP($A$5&G$8,'Calc-V'!$A$4:$W$399,$A10,FALSE),10) -> 139460 | H10: =MROUND(VLOOKUP($A$5&H$8,'Calc-V'!$A$4:$W$399,$A10,FALSE),10) -> 145510 | I10: =MROUND(VLOOKUP($A$5&I$8,'Calc-V'!$A$4:$W$399,$A10,FALSE),10) -> 146570 | J10: =MROUND(VLOOKUP($A$5&J$8,'Calc-V'!$A$4:$W$399,$A10,FALSE),10) -> 138820 | K10: =MROUND(VLOOKUP($A$5&K$8,'Calc-V'!$A$4:$W$399,$A10,FALSE),10) -> 138500 | L10: =MROUND(VLOOKUP($A$5&L$8,'Calc-V'!$A$4:$W$399,$A10,FALSE),10) -> 139920 | M10: =MROUND(VLOOKUP($A$5&M$8,'Calc-V'!$A$4:$W$399,$A10,FALSE),10) -> 139320 | N10: =MROUND(VLOOKUP($A$5&N$8,'Calc-V'!$A$4:$W$399,$A10,FALSE),10) -> 137650 | O10: =MROUND(VLOOKUP($A$5&O$8,'Calc-V'!$A$4:$W$399,$A10,FALSE),10) -> 132980
A11: =VLOOKUP(A6,LKPS!C3:F6,4,FALSE) -> 23 | C11: Total | D11: =MROUND(VLOOKUP($A$5&D$8,'Calc-V'!$A$4:$W$399,$A11,FALSE),10) -> 172730 | E11: =MROUND(VLOOKUP($A$5&E$8,'Calc-V'!$A$4:$W$399,$A11,FALSE),10) -> 174030 | F11: =MROUND(VLOOKUP($A$5&F$8,'Calc-V'!$A$4:$W$399,$A11,FALSE),10) -> 195710 | G11: =MROUND(VLOOKUP($A$5&G$8,'Calc-V'!$A$4:$W$399,$A11,FALSE),10) -> 203570 | H11: =MROUND(VLOOKUP($A$5&H$8,'Calc-V'!$A$4:$W$399,$A11,FALSE),10) -> 209800 | I11: =MROUND(VLOOKUP($A$5&I$8,'Calc-V'!$A$4:$W$399,$A11,FALSE),10) -> 211210 | J11: =MROUND(VLOOKUP($A$5&J$8,'Calc-V'!$A$4:$W$399,$A11,FALSE),10) -> 203730 | K11: =MROUND(VLOOKUP($A$5&K$8,'Calc-V'!$A$4:$W$399,$A11,FALSE),10) -> 205070 | L11: =MROUND(VLOOKUP($A$5&L$8,'Calc-V'!$A$4:$W$399,$A11,FALSE),10) -> 205800 | M11: =MROUND(VLOOKUP($A$5&M$8,'Calc-V'!$A$4:$W$399,$A11,FALSE),10) -> 205080 | N11: =MROUND(VLOOKUP($A$5&N$8,'Calc-V'!$A$4:$W$399,$A11,FALSE),10) -> 202690 | O11: =MROUND(VLOOKUP($A$5&O$8,'Calc-V'!$A$4:$W$399,$A11,FALSE),10) -> 196060
N21: 2007/08 | O21: 2008/09 | P21: 2009/10 | Q21: 2010/11 | R21: 2011/12 | S21: 2012/13 | T21: 2013/14 | U21: 2014/15
M22: Overnight | N22: =D9/1000 -> 62.75 | O22: 62.8
M23: Daytime | N23: 109.98 | O23: 111.23
M24: Total | N24: 172.73 | O24: 174.03
M25: Overnight | O25: =F9/1000 -> 62.73 | P25: 64.11
M26: Daytime | O26: 132.98 | P26: 139.46
M27: Total | O27: 195.71 | P27: 203.57
M28: Overnight | P28: =H9/1000 -> 64.29 | Q28: 64.65
M29: Daytime | P29: 145.51 | Q29: 146.57
M30: Total | P30: 209.8 | Q30: 211.21
M31: Overnight | Q31: =J9/1000 -> 64.9 | R31: 66.57 | S31: 65.88
M32: Daytime | Q32: 138.82 | R32: 138.5 | S32: 139.92
M33: Total | Q33: 203.73 | R33: 205.07 | S33: 205.8
S34: =M9/1000 -> 65.76 | T34: 65.03 | U34: =O9/1000 -> 63.08
C35: Source: Audit Scotland SPI data 2006-2008, Scottish Government 2009-2015 | S35: 139.32 | T35: 137.65 | U35: =O10/1000 -> 132.98
C36: All figures rounded to the nearest ten. Total may not add up to the sum of components due to rounding | S36: 205.08 | T36: 202.69 | U36: =O11/1000 -> 196.06
C37: 0 - Same methodology used in 2007/08 & 2008/09 making the figures comparable
C38: 1 - Same methodology used in 2008/09 & 2009/10 making the figures comparable
C39: 2 - Same methodology used in 2009/10 & 2010/11 making the figures comparable
C40: 3 - Same methodology used in 2010/11 - 2012/13 making the figures comparable
C41: 4 - Same methodology used in 2012/13 - 2014/15 making the figures comparable - comparisons should not be made at the Local Authority level in the cases described in the Background Notes.

Sheet Table2
B1: ="Respite weeks by Local Authority provided to "& A6 &", 2007/08 to 2014/15" -> Respite weeks by Local Authority provided to All ages, 2007/08 to 2014/15
D3: Select age group | I3: Select data
A4: Numbers
A5: All ages
A6: =IF(A5="All Ages",A5,A7) -> All ages | D6: =VLOOKUP($A$5,LKPS!$C$3:$F$6,4,FALSE) -> 23 | Q6: =VLOOKUP($A$5,LKPS!$C$3:$E$6,2,FALSE) -> 11 | AD6: =VLOOKUP($A$5,LKPS!$C$3:$E$6,3,FALSE) -> 19 | AS6: =Q6+16 -> 27
A7: =IF(A5="0-17","Young people (Aged 0-17)",IF(A5="18-64","Other Adults (Aged 18-64)","Other people (Aged 65+)")) -> Other people (Aged 65+) | D7: =IF($A$4="Numbers","Total respite weeks provided","Total respite weeks provided per 1,000 population") -> Total respite weeks provided | Q7: =IF($A$4="Numbers","Overnight respite weeks provided","Overnight respite weeks provided per 1,000 population") -> Overnight respite weeks provided | AD7: =IF($A$4="Numbers","Daytime respite weeks provided","Daytime respite weeks provided per 1,000 population") -> Daytime respite weeks provided | AS7: Pops
C8: Local Authority | D8: 2007/080 | E8: 2008/090 | F8: 2008/091 | G8: 2009/101 | H8: 2009/102 | I8: 2010/112 | J8: 2010/113 | K8: 2011/123 | L8: 2012/133 | M8: 2012/134 | N8: 2013/144 | O8: 2014/154 | Q8: 2007/080 | R8: 2008/090 | S8: 2008/091 | T8: 2009/101 | U8: 2009/102 | V8: 2010/112 | W8: 2010/113 | X8: 2011/123 | Y8: 2012/133 | Z8: 2012/134 | AA8: 2013/144 | AB8: 2014/154 | AD8: 2007/080 | AE8: 2008/090 | AF8: 2008/091 | AG8: 2009/101 | AH8: 2009/102 | AI8: 2010/112 | AJ8: 2010/113 | AK8: 2011/123 | AL8: 2012/133 | AM8: 2012/134 | AN8: 2013/144 | AO8: 2014/154 | AS8: 2007/080 | AT8: 2008/090 | AU8: 2008/091 | AV8: 2009/101 | AW8: 2009/102 | AX8: 2010/112 | AY8: 2010/113 | AZ8: 2011/123 | BA8: 2012/133 | BB8: 2012/134 | BC8: 2013/144 | BD8: 2014/154
C9: Aberdeen City | D9: =IF($A$4="Numbers",MROUND(VLOOKUP($C9&D$8,'Calc-V'!$A$4:$W$399,$D$6,FALSE),10),ROUND(VLOOKUP($C9&D$8,'Calc-V'!$A$4:$W$399,$D$6,FALSE)/AS9,3)*1000) -> 6110 | E9: =IF($A$4="Numbers",MROUND(VLOOKUP($C9&E$8,'Calc-V'!$A$4:$W$399,$D$6,FALSE),10),ROUND(VLOOKUP($C9&E$8,'Calc-V'!$A$4:$W$399,$D$6,FALSE)/AT9,3)*1000) -> 4740 | F9: =IF($A$4="Numbers",MROUND(VLOOKUP($C9&F$8,'Calc-V'!$A$4:$W$399,$D$6,FALSE),10),ROUND(VLOOKUP($C9&F$8,'Calc-V'!$A$4:$W$399,$D$6,FALSE)/AU9,3)*1000) -> 4250 | G9: =IF($A$4="Numbers",MROUND(VLOOKUP($C9&G$8,'Calc-V'!$A$4:$W$399,$D$6,FALSE),10),ROUND(VLOOKUP($C9&G$8,'Calc-V'!$A$4:$W$399,$D$6,FALSE)/AV9,3)*1000) -> 3250 | H9: =IF($A$4="Numbers",MROUND(VLOOKUP($C9&H$8,'Calc-V'!$A$4:$W$399,$D$6,FALSE),10),ROUND(VLOOKUP($C9&H$8,'Calc-V'!$A$4:$W$399,$D$6,FALSE)/AW9,3)*1000) -> 3250 | I9: =IF($A$4="Numbers",MROUND(VLOOKUP($C9&I$8,'Calc-V'!$A$4:$W$399,$D$6,FALSE),10),ROUND(VLOOKUP($C9&I$8,'Calc-V'!$A$4:$W$399,$D$6,FALSE)/AX9,3)*1000) -> 3090 | J9: =IF($A$4="Numbers",MROUND(VLOOKUP($C9&J$8,'Calc-V'!$A$4:$W$399,$D$6,FALSE),10),ROUND(VLOOKUP($C9&J$8,'Calc-V'!$A$4:$W$399,$D$6,FALSE)/AY9,3)*1000) -> 3090 | K9: =IF($A$4="Numbers",MROUND(VLOOKUP($C9&K$8,'Calc-V'!$A$4:$W$399,$D$6,FALSE),10),ROUND(VLOOKUP($C9&K$8,'Calc-V'!$A$4:$W$399,$D$6,FALSE)/AZ9,3)*1000) -> 3570 | L9: =IF($A$4="Numbers",MROUND(VLOOKUP($C9&L$8,'Calc-V'!$A$4:$W$399,$D$6,FALSE),10),ROUND(VLOOKUP($C9&L$8,'Calc-V'!$A$4:$W$399,$D$6,FALSE)/BA9,3)*1000) -> 3560 | M9: =IF($A$4="Numbers",MROUND(VLOOKUP($C9&M$8,'Calc-V'!$A$4:$W$399,$D$6,FALSE),10),ROUND(VLOOKUP($C9&M$8,'Calc-V'!$A$4:$W$399,$D$6,FALSE)/BB9,3)*1000) -> 3480 | N9: =IF($A$4="Numbers",MROUND(VLOOKUP($C9&N$8,'Calc-V'!$A$4:$W$399,$D$6,FALSE),10),ROUND(VLOOKUP($C9&N$8,'Calc-V'!$A$4:$W$399,$D$6,FALSE)/BC9,3)*1000) -> 3670 | O9: =IF($A$4="Numbers",MROUND(VLOOKUP($C9&O$8,'Calc-V'!$A$4:$W$399,$D$6,FALSE),10),ROUND(VLOOKUP($C9&O$8,'Calc-V'!$A$4:$W$399,$D$6,FALSE)/BD9,3)*1000) -> 3930 | Q9: =IF($A$4="Numbers",MROUND(VLOOKUP($C9&D$8,'Calc-V'!$A$4:$S$399,$Q$6,FALSE),10),ROUND(VLOOKUP($C9&D$8,'Calc-V'!$A$4:$S$399,$Q$6,FALSE)/AS9,3)*1000) -> 2150 | R9: =IF($A$4="Numbers",MROUND(VLOOKUP($C9&E$8,'Calc-V'!$A$4:$S$399,$Q$6,FALSE),10),ROUND(VLOOKUP($C9&E$8,'Calc-V'!$A$4:$S$399,$Q$6,FALSE)/AT9,3)*1000) -> 1840 | S9: =IF($A$4="Numbers",MROUND(VLOOKUP($C9&F$8,'Calc-V'!$A$4:$S$399,$Q$6,FALSE),10),ROUND(VLOOKUP($C9&F$8,'Calc-V'!$A$4:$S$399,$Q$6,FALSE)/AU9,3)*1000) -> 1840 | T9: =IF($A$4="Numbers",MROUND(VLOOKUP($C9&G$8,'Calc-V'!$A$4:$S$399,$Q$6,FALSE),10),ROUND(VLOOKUP($C9&G$8,'Calc-V'!$A$4:$S$399,$Q$6,FALSE)/AV9,3)*1000) -> 1700 | U9: =IF($A$4="Numbers",MROUND(VLOOKUP($C9&H$8,'Calc-V'!$A$4:$S$399,$Q$6,FALSE),10),ROUND(VLOOKUP($C9&H$8,'Calc-V'!$A$4:$S$399,$Q$6,FALSE)/AW9,3)*1000) -> 1700 | V9: =IF($A$4="Numbers",MROUND(VLOOKUP($C9&I$8,'Calc-V'!$A$4:$S$399,$Q$6,FALSE),10),ROUND(VLOOKUP($C9&I$8,'Calc-V'!$A$4:$S$399,$Q$6,FALSE)/AX9,3)*1000) -> 1540 | W9: =IF($A$4="Numbers",MROUND(VLOOKUP($C9&J$8,'Calc-V'!$A$4:$S$399,$Q$6,FALSE),10),ROUND(VLOOKUP($C9&J$8,'Calc-V'!$A$4:$S$399,$Q$6,FALSE)/AY9,3)*1000) -> 1540 | X9: =IF($A$4="Numbers",MROUND(VLOOKUP($C9&K$8,'Calc-V'!$A$4:$S$399,$Q$6,FALSE),10),ROUND(VLOOKUP($C9&K$8,'Calc-V'!$A$4:$S$399,$Q$6,FALSE)/AZ9,3)*1000) -> 1950 | Y9: =IF($A$4="Numbers",MROUND(VLOOKUP($C9&L$8,'Calc-V'!$A$4:$S$399,$Q$6,FALSE),10),ROUND(VLOOKUP($C9&L$8,'Calc-V'!$A$4:$S$399,$Q$6,FALSE)/BA9,3)*1000) -> 2080 | Z9: =IF($A$4="Numbers",MROUND(VLOOKUP($C9&M$8,'Calc-V'!$A$4:$S$399,$Q$6,FALSE),10),ROUND(VLOOKUP($C9&M$8,'Calc-V'!$A$4:$S$399,$Q$6,FALSE)/BB9,3)*1000) -> 2070 | AA9: =IF($A$4="Numbers",MROUND(VLOOKUP($C9&N$8,'Calc-V'!$A$4:$S$399,$Q$6,FALSE),10),ROUND(VLOOKUP($C9&N$8,'Calc-V'!$A$4:$S$399,$Q$6,FALSE)/BC9,3)*1000) -> 2460 | AB9: =IF($A$4="Numbers",MROUND(VLOOKUP($C9&O$8,'Calc-V'!$A$4:$S$399,$Q$6,FALSE),10),ROUND(VLOOKUP($C9&O$8,'Calc-V'!$A$4:$S$399,$Q$6,FALSE)/BD9,3)*1000) -> 2740 | AD9: =IF($A$4="Numbers",MROUND(VLOOKUP($C9&Q$8,'Calc-V'!$A$4:$S$399,$AD$6,FALSE),10),ROUND(VLOOKUP($C9&Q$8,'Calc-V'!$A$4:$S$399,$AD$6,FALSE)/AS9,3)*1000) -> 3950 | AE9: =IF($A$4="Numbers",MROUND(VLOOKUP($C9&R$8,'Calc-V'!$A$4:$S$399,$AD$6,FALSE),10),ROUND(VLOOKUP($C9&R$8,'Calc-V'!$A$4:$S$399,$AD$6,FALSE)/AT9,3)*1000) -> 2890 | AF9: =IF($A$4="Numbers",MROUND(VLOOKUP($C9&S$8,'Calc-V'!$A$4:$S$399,$AD$6,FALSE),10),ROUND(VLOOKUP($C9&S$8,'Calc-V'!$A$4:$S$399,$AD$6,FALSE)/AU9,3)*1000) -> 2410 | AG9: =IF($A$4="Numbers",MROUND(VLOOKUP($C9&T$8,'Calc-V'!$A$4:$S$399,$AD$6,FALSE),10),ROUND(VLOOKUP($C9&T$8,'Calc-V'!$A$4:$S$399,$AD$6,FALSE)/AV9,3)*1000) -> 1550 | AH9: =IF($A$4="Numbers",MROUND(VLOOKUP($C9&U$8,'Calc-V'!$A$4:$S$399,$AD$6,FALSE),10),ROUND(VLOOKUP($C9&U$8,'Calc-V'!$A$4:$S$399,$AD$6,FALSE)/AW9,3)*1000) -> 1550 | AI9: =IF($A$4="Numbers",MROUND(VLOOKUP($C9&V$8,'Calc-V'!$A$4:$S$399,$AD$6,FALSE),10),ROUND(VLOOKUP($C9&V$8,'Calc-V'!$A$4:$S$399,$AD$6,FALSE)/AX9,3)*1000) -> 1550 | AJ9: =IF($A$4="Numbers",MROUND(VLOOKUP($C9&W$8,'Calc-V'!$A$4:$S$399,$AD$6,FALSE),10),ROUND(VLOOKUP($C9&W$8,'Calc-V'!$A$4:$S$399,$AD$6,FALSE)/AY9,3)*1000) -> 1550 | AK9: =IF($A$4="Numbers",MROUND(VLOOKUP($C9&X$8,'Calc-V'!$A$4:$S$399,$AD$6,FALSE),10),ROUND(VLOOKUP($C9&X$8,'Calc-V'!$A$4:$S$399,$AD$6,FALSE)/AZ9,3)*1000) -> 1620 | AL9: =IF($A$4="Numbers",MROUND(VLOOKUP($C9&Y$8,'Calc-V'!$A$4:$S$399,$AD$6,FALSE),10),ROUND(VLOOKUP($C9&Y$8,'Calc-V'!$A$4:$S$399,$AD$6,FALSE)/BA9,3)*1000) -> 1480 | AM9: =IF($A$4="Numbers",MROUND(VLOOKUP($C9&Z$8,'Calc-V'!$A$4:$S$399,$AD$6,FALSE),10),ROUND(VLOOKUP($C9&Z$8,'Calc-V'!$A$4:$S$399,$AD$6,FALSE)/BB9,3)*1000) -> 1410 | AN9: =IF($A$4="Numbers",MROUND(VLOOKUP($C9&AA$8,'Calc-V'!$A$4:$S$399,$AD$6,FALSE),10),ROUND(VLOOKUP($C9&AA$8,'Calc-V'!$A$4:$S$399,$AD$6,FALSE)/BC9,3)*1000) -> 1210 | AO9: =IF($A$4="Numbers",MROUND(VLOOKUP($C9&AB$8,'Calc-V'!$A$4:$S$399,$AD$6,FALSE),10),ROUND(VLOOKUP($C9&AB$8,'Calc-V'!$A$4:$S$399,$AD$6,FALSE)/BD9,3)*1000) -> 1190 | AS9: =VLOOKUP($C9&AS$8,'Calc-V'!$A$4:$AA$399,$AS$6,FALSE) -> 212460 | AT9: =VLOOKUP($C9&AT$8,'Calc-V'!$A$4:$AA$399,$AS$6,FALSE) -> 214020 | AU9: =VLOOKUP($C9&AU$8,'Calc-V'!$A$4:$AA$399,$AS$6,FALSE) -> 214020 | AV9: =VLOOKUP($C9&AV$8,'Calc-V'!$A$4:$AA$399,$AS$6,FALSE) -> 217020 | AW9: =VLOOKUP($C9&AW$8,'Calc-V'!$A$4:$AA$399,$AS$6,FALSE) -> 217020 | AX9: =VLOOKUP($C9&AX$8,'Calc-V'!$A$4:$AA$399,$AS$6,FALSE) -> 219730 | AY9: =VLOOKUP($C9&AY$8,'Calc-V'!$A$4:$AA$399,$AS$6,FALSE) -> 219730 | AZ9: =VLOOKUP($C9&AZ$8,'Calc-V'!$A$4:$AA$399,$AS$6,FALSE) -> 222460 | BA9: =VLOOKUP($C9&BA$8,'Calc-V'!$A$4:$AA$399,$AS$6,FALSE) -> 224970 | BB9: =VLOOKUP($C9&BB$8,'Calc-V'!$A$4:$AA$399,$AS$6,FALSE) -> 224970 | BC9: =VLOOKUP($C9&BC$8,'Calc-V'!$A$4:$AA$399,$AS$6,FALSE) -> 227130 | BD9: =VLOOKUP($C9&BD$8,'Calc-V'!$A$4:$AA$399,$AS$6,FALSE) -> 228990
C10: Aberdeenshire | D10: =IF($A$4="Numbers",MROUND(VLOOKUP($C10&D$8,'Calc-V'!$A$4:$W$399,$D$6,FALSE),10),ROUND(VLOOKUP($C10&D$8,'Calc-V'!$A$4:$W$399,$D$6,FALSE)/AS10,3)*1000) -> 5580 | E10: =IF($A$4="Numbers",MROUND(VLOOKUP($C10&E$8,'Calc-V'!$A$4:$W$399,$D$6,FALSE),10),ROUND(VLOOKUP($C10&E$8,'Calc-V'!$A$4:$W$399,$D$6,FALSE)/AT10,3)*1000) -> 5610 | F10: =IF($A$4="Numbers",MROUND(VLOOKUP($C10&F$8,'Calc-V'!$A$4:$W$399,$D$6,FALSE),10),ROUND(VLOOKUP($C10&F$8,'Calc-V'!$A$4:$W$399,$D$6,FALSE)/AU10,3)*1000) -> 6000 | G10: =IF($A$4="Numbers",MROUND(VLOOKUP($C10&G$8,'Calc-V'!$A$4:$W$399,$D$6,FALSE),10),ROUND(VLOOKUP($C10&G$8,'Calc-V'!$A$4:$W$399,$D$6,FALSE)/AV10,3)*1000) -> 7200 | H10: =IF($A$4="Numbers",MROUND(VLOOKUP($C10&H$8,'Calc-V'!$A$4:$W$399,$D$6,FALSE),10),ROUND(VLOOKUP($C10&H$8,'Calc-V'!$A$4:$W$399,$D$6,FALSE)/AW10,3)*1000) -> 7200 | I10: =IF($A$4="Numbers",MROUND(VLOOKUP($C10&I$8,'Calc-V'!$A$4:$W$399,$D$6,FALSE),10),ROUND(VLOOKUP($C10&I$8,'Calc-V'!$A$4:$W$399,$D$6,FALSE)/AX10,3)*1000) -> 6710 | J10: =IF($A$4="Numbers",MROUND(VLOOKUP($C10&J$8,'Calc-V'!$A$4:$W$399,$D$6,FALSE),10),ROUND(VLOOKUP($C10&J$8,'Calc-V'!$A$4:$W$399,$D$6,FALSE)/AY10,3)*1000) -> 7710 | K10: =IF($A$4="Numbers",MROUND(VLOOKUP($C10&K$8,'Calc-V'!$A$4:$W$399,$D$6,FALSE),10),ROUND(VLOOKUP($C10&K$8,'Calc-V'!$A$4:$W$399,$D$6,FALSE)/AZ10,3)*1000) -> 7860 | L10: =IF($A$4="Numbers",MROUND(VLOOKUP($C10&L$8,'Calc-V'!$A$4:$W$399,$D$6,FALSE),10),ROUND(VLOOKUP($C10&L$8,'Calc-V'!$A$4:$W$399,$D$6,FALSE)/BA10,3)*1000) -> 8310 | M10: =IF($A$4="Numbers",MROUND(VLOOKUP($C10&M$8,'Calc-V'!$A$4:$W$399,$D$6,FALSE),10),ROUND(VLOOKUP($C10&M$8,'Calc-V'!$A$4:$W$399,$D$6,FALSE)/BB10,3)*1000) -> 6450 | N10: =IF($A$4="Numbers",MROUND(VLOOKUP($C10&N$8,'Calc-V'!$A$4:$W$399,$D$6,FALSE),10),ROUND(VLOOKUP($C10&N$8,'Calc-V'!$A$4:$W$399,$D$6,FALSE)/BC10,3)*1000) -> 6880 | O10: =IF($A$4="Numbers",MROUND(VLOOKUP($C10&O$8,'Calc-V'!$A$4:$W$399,$D$6,FALSE),10),ROUND(VLOOKUP($C10&O$8,'Calc-V'!$A$4:$W$399,$D$6,FALSE)/BD10,3)*1000) -> 6180 | Q10: =IF($A$4="Numbers",MROUND(VLOOKUP($C10&D$8,'Calc-V'!$A$4:$S$399,$Q$6,FALSE),10),ROUND(VLOOKUP($C10&D$8,'Calc-V'!$A$4:$S$399,$Q$6,FALSE)/AS10,3)*1000) -> 2960 | R10: =IF($A$4="Numbers",MROUND(VLOOKUP($C10&E$8,'Calc-V'!$A$4:$S$399,$Q$6,FALSE),10),ROUND(VLOOKUP($C10&E$8,'Calc-V'!$A$4:$S$399,$Q$6,FALSE)/AT10,3)*1000) -> 3170 | S10: =IF($A$4="Numbers",MROUND(VLOOKUP($C10&F$8,'Calc-V'!$A$4:$S$399,$Q$6,FALSE),10),ROUND(VLOOKUP($C10&F$8,'Calc-V'!$A$4:$S$399,$Q$6,FALSE)/AU10,3)*1000) -> 3170 | T10: =IF($A$4="Numbers",MROUND(VLOOKUP($C10&G$8,'Calc-V'!$A$4:$S$399,$Q$6,FALSE),10),ROUND(VLOOKUP($C10&G$8,'Calc-V'!$A$4:$S$399,$Q$6,FALSE)/AV10,3)*1000) -> 3110 | U10: =IF($A$4="Numbers",MROUND(VLOOKUP($C10&H$8,'Calc-V'!$A$4:$S$399,$Q$6,FALSE),10),ROUND(VLOOKUP($C10&H$8,'Calc-V'!$A$4:$S$399,$Q$6,FALSE)/AW10,3)*1000) -> 3110 | V10: =IF($A$4="Numbers",MROUND(VLOOKUP($C10&I$8,'Calc-V'!$A$4:$S$399,$Q$6,FALSE),10),ROUND(VLOOKUP($C10&I$8,'Calc-V'!$A$4:$S$399,$Q$6,FALSE)/AX10,3)*1000) -> 3400 | W10: =IF($A$4="Numbers",MROUND(VLOOKUP($C10&J$8,'Calc-V'!$A$4:$S$399,$Q$6,FALSE),10),ROUND(VLOOKUP($C10&J$8,'Calc-V'!$A$4:$S$399,$Q$6,FALSE)/AY10,3)*1000) -> 3660 | X10: =IF($A$4="Numbers",MROUND(VLOOKUP($C10&K$8,'Calc-V'!$A$4:$S$399,$Q$6,FALSE),10),ROUND(VLOOKUP($C10&K$8,'Calc-V'!$A$4:$S$399,$Q$6,FALSE)/AZ10,3)*1000) -> 4000 | Y10: =IF($A$4="Numbers",MROUND(VLOOKUP($C10&L$8,'Calc-V'!$A$4:$S$399,$Q$6,FALSE),10),ROUND(VLOOKUP($C10&L$8,'Calc-V'!$A$4:$S$399,$Q$6,FALSE)/BA10,3)*1000) -> 4270 | Z10: =IF($A$4="Numbers",MROUND(VLOOKUP($C10&M$8,'Calc-V'!$A$4:$S$399,$Q$6,FALSE),10),ROUND(VLOOKUP($C10&M$8,'Calc-V'!$A$4:$S$399,$Q$6,FALSE)/BB10,3)*1000) -> 3870 | AA10: =IF($A$4="Numbers",MROUND(VLOOKUP($C10&N$8,'Calc-V'!$A$4:$S$399,$Q$6,FALSE),10),ROUND(VLOOKUP($C10&N$8,'Calc-V'!$A$4:$S$399,$Q$6,FALSE)/BC10,3)*1000) -> 4230 | AB10: =IF($A$4="Numbers",MROUND(VLOOKUP($C10&O$8,'Calc-V'!$A$4:$S$399,$Q$6,FALSE),10),ROUND(VLOOKUP($C10&O$8,'Calc-V'!$A$4:$S$399,$Q$6,FALSE)/BD10,3)*1000) -> 3810 | AD10: =IF($A$4="Numbers",MROUND(VLOOKUP($C10&Q$8,'Calc-V'!$A$4:$S$399,$AD$6,FALSE),10),ROUND(VLOOKUP($C10&Q$8,'Calc-V'!$A$4:$S$399,$AD$6,FALSE)/AS10,3)*1000) -> 2620 | AE10: =IF($A$4="Numbers",MROUND(VLOOKUP($C10&R$8,'Calc-V'!$A$4:$S$399,$AD$6,FALSE),10),ROUND(VLOOKUP($C10&R$8,'Calc-V'!$A$4:$S$399,$AD$6,FALSE)/AT10,3)*1000) -> 2440 | AF10: =IF($A$4="Numbers",MROUND(VLOOKUP($C10&S$8,'Calc-V'!$A$4:$S$399,$AD$6,FALSE),10),ROUND(VLOOKUP($C10&S$8,'Calc-V'!$A$4:$S$399,$AD$6,FALSE)/AU10,3)*1000) -> 2830 | AG10: =IF($A$4="Numbers",MROUND(VLOOKUP($C10&T$8,'Calc-V'!$A$4:$S$399,$AD$6,FALSE),10),ROUND(VLOOKUP($C10&T$8,'Calc-V'!$A$4:$S$399,$AD$6,FALSE)/AV10,3)*1000) -> 4090 | AH10: =IF($A$4="Numbers",MROUND(VLOOKUP($C10&U$8,'Calc-V'!$A$4:$S$399,$AD$6,FALSE),10),ROUND(VLOOKUP($C10&U$8,'Calc-V'!$A$4:$S$399,$AD$6,FALSE)/AW10,3)*1000) -> 4090 | AI10: =IF($A$4="Numbers",MROUND(VLOOKUP($C10&V$8,'Calc-V'!$A$4:$S$399,$AD$6,FALSE),10),ROUND(VLOOKUP($C10&V$8,'Calc-V'!$A$4:$S$399,$AD$6,FALSE)/AX10,3)*1000) -> 3300 | AJ10: =IF($A$4="Numbers",MROUND(VLOOKUP($C10&W$8,'Calc-V'!$A$4:$S$399,$AD$6,FALSE),10),ROUND(VLOOKUP($C10&W$8,'Calc-V'!$A$4:$S$399,$AD$6,FALSE)/AY10,3)*1000) -> 4050 | AK10: =IF($A$4="Numbers",MROUND(VLOOKUP($C10&X$8,'Calc-V'!$A$4:$S$399,$AD$6,FALSE),10),ROUND(VLOOKUP($C10&X$8,'Calc-V'!$A$4:$S$399,$AD$6,FALSE)/AZ10,3)*1000) -> 3860 | AL10: =IF($A$4="Numbers",MROUND(VLOOKUP($C10&Y$8,'Calc-V'!$A$4:$S$399,$AD$6,FALSE),10),ROUND(VLOOKUP($C10&Y$8,'Calc-V'!$A$4:$S$399,$AD$6,FALSE)/BA10,3)*1000) -> 4030 | AM10: =IF($A$4="Numbers",MROUND(VLOOKUP($C10&Z$8,'Calc-V'!$A$4:$S$399,$AD$6,FALSE),10),ROUND(VLOOKUP($C10&Z$8,'Calc-V'!$A$4:$S$399,$AD$6,FALSE)/BB10,3)*1000) -> 2570 | AN10: =IF($A$4="Numbers",MROUND(VLOOKUP($C10&AA$8,'Calc-V'!$A$4:$S$399,$AD$6,FALSE),10),ROUND(VLOOKUP($C10&AA$8,'Calc-V'!$A$4:$S$399,$AD$6,FALSE)/BC10,3)*1000) -> 2650 | AO10: =IF($A$4="Numbers",MROUND(VLOOKUP($C10&AB$8,'Calc-V'!$A$4:$S$399,$AD$6,FALSE),10),ROUND(VLOOKUP($C10&AB$8,'Calc-V'!$A$4:$S$399,$AD$6,FALSE)/BD10,3)*1000) -> 2370 | AS10: =VLOOKUP($C10&AS$8,'Calc-V'!$A$4:$AA$399,$AS$6,FALSE) -> 244390 | AT10: =VLOOKUP($C10&AT$8,'Calc-V'!$A$4:$AA$399,$AS$6,FALSE) -> 246840 | AU10: =VLOOKUP($C10&AU$8,'Calc-V'!$A$4:$AA$399,$AS$6,FALSE) -> 246840 | AV10: =VLOOKUP($C10&AV$8,'Calc-V'!$A$4:$AA$399,$AS$6,FALSE) -> 249020 | AW10: =VLOOKUP($C10&AW$8,'Calc-V'!$A$4:$AA$399,$AS$6,FALSE) -> 249020 | AX10: =VLOOKUP($C10&AX$8,'Calc-V'!$A$4:$AA$399,$AS$6,FALSE) -> 251430 | AY10: =VLOOKUP($C10&AY$8,'Calc-V'!$A$4:$AA$399,$AS$6,FALSE) -> 251430 | AZ10: =VLOOKUP($C10&AZ$8,'Calc-V'!$A$4:$AA$399,$AS$6,FALSE) -> 253650 | BA10: =VLOOKUP($C10&BA$8,'Calc-V'!$A$4:$AA$399,$AS$6,FALSE) -> 255540 | BB10: =VLOOKUP($C10&BB$8,'Calc-V'!$A$4:$AA$399,$AS$6,FALSE) -> 255540 | BC10: =VLOOKUP($C10&BC$8,'Calc-V'!$A$4:$AA$399,$AS$6,FALSE) -> 257740 | BD10: =VLOOKUP($C10&BD$8,'Calc-V'!$A$4:$AA$399,$AS$6,FALSE) -> 260500
C11: Angus | D11: =IF($A$4="Numbers",MROUND(VLOOKUP($C11&D$8,'Calc-V'!$A$4:$W$399,$D$6,FALSE),10),ROUND(VLOOKUP($C11&D$8,'Calc-V'!$A$4:$W$399,$D$6,FALSE)/AS11,3)*1000) -> 1940 | E11: =IF($A$4="Numbers",MROUND(VLOOKUP($C11&E$8,'Calc-V'!$A$4:$W$399,$D$6,FALSE),10),ROUND(VLOOKUP($C11&E$8,'Calc-V'!$A$4:$W$399,$D$6,FALSE)/AT11,3)*1000) -> 2110 | F11: =IF($A$4="Numbers",MROUND(VLOOKUP($C11&F$8,'Calc-V'!$A$4:$W$399,$D$6,FALSE),10),ROUND(VLOOKUP($C11&F$8,'Calc-V'!$A$4:$W$399,$D$6,FALSE)/AU11,3)*1000) -> 3410 | G11: =IF($A$4="Numbers",MROUND(VLOOKUP($C11&G$8,'Calc-V'!$A$4:$W$399,$D$6,FALSE),10),ROUND(VLOOKUP($C11&G$8,'Calc-V'!$A$4:$W$399,$D$6,FALSE)/AV11,3)*1000) -> 3830 | H11: =IF($A$4="Numbers",MROUND(VLOOKUP($C11&H$8,'Calc-V'!$A$4:$W$399,$D$6,FALSE),10),ROUND(VLOOKUP($C11&H$8,'Calc-V'!$A$4:$W$399,$D$6,FALSE)/AW11,3)*1000) -> 3810 | I11: =IF($A$4="Numbers",MROUND(VLOOKUP($C11&I$8,'Calc-V'!$A$4:$W$399,$D$6,FALSE),10),ROUND(VLOOKUP($C11&I$8,'Calc-V'!$A$4:$W$399,$D$6,FALSE)/AX11,3)*1000) -> 3810 | J11: =IF($A$4="Numbers",MROUND(VLOOKUP($C11&J$8,'Calc-V'!$A$4:$W$399,$D$6,FALSE),10),ROUND(VLOOKUP($C11&J$8,'Calc-V'!$A$4:$W$399,$D$6,FALSE)/AY11,3)*1000) -> 3810 | K11: =IF($A$4="Numbers",MROUND(VLOOKUP($C11&K$8,'Calc-V'!$A$4:$W$399,$D$6,FALSE),10),ROUND(VLOOKUP($C11&K$8,'Calc-V'!$A$4:$W$399,$D$6,FALSE)/AZ11,3)*1000) -> 4340 | L11: =IF($A$4="Numbers",MROUND(VLOOKUP($C11&L$8,'Calc-V'!$A$4:$W$399,$D$6,FALSE),10),ROUND(VLOOKUP($C11&L$8,'Calc-V'!$A$4:$W$399,$D$6,FALSE)/BA11,3)*1000) -> 4010 | M11: =IF($A$4="Numbers",MROUND(VLOOKUP($C11&M$8,'Calc-V'!$A$4:$W$399,$D$6,FALSE),10),ROUND(VLOOKUP($C11&M$8,'Calc-V'!$A$4:$W$399,$D$6,FALSE)/BB11,3)*1000) -> 4010 | N11: =IF($A$4="Numbers",MROUND(VLOOKUP($C11&N$8,'Calc-V'!$A$4:$W$399,$D$6,FALSE),10),ROUND(VLOOKUP($C11&N$8,'Calc-V'!$A$4:$W$399,$D$6,FALSE)/BC11,3)*1000) -> 4230 | O11: =IF($A$4="Numbers",MROUND(VLOOKUP($C11&O$8,'Calc-V'!$A$4:$W$399,$D$6,FALSE),10),ROUND(VLOOKUP($C11&O$8,'Calc-V'!$A$4:$W$399,$D$6,FALSE)/BD11,3)*1000) -> 3680 | Q11: =IF($A$4="Numbers",MROUND(VLOOKUP($C11&D$8,'Calc-V'!$A$4:$S$399,$Q$6,FALSE),10),ROUND(VLOOKUP($C11&D$8,'Calc-V'!$A$4:$S$399,$Q$6,FALSE)/AS11,3)*1000) -> 1190 | R11: =IF($A$4="Numbers",MROUND(VLOOKUP($C11&E$8,'Calc-V'!$A$4:$S$399,$Q$6,FALSE),10),ROUND(VLOOKUP($C11&E$8,'Calc-V'!$A$4:$S$399,$Q$6,FALSE)/AT11,3)*1000) -> 1320 | S11: =IF($A$4="Numbers",MROUND(VLOOKUP($C11&F$8,'Calc-V'!$A$4:$S$399,$Q$6,FALSE),10),ROUND(VLOOKUP($C11&F$8,'Calc-V'!$A$4:$S$399,$Q$6,FALSE)/AU11,3)*1000) -> 1580 | T11: =IF($A$4="Numbers",MROUND(VLOOKUP($C11&G$8,'Calc-V'!$A$4:$S$399,$Q$6,FALSE),10),ROUND(VLOOKUP($C11&G$8,'Calc-V'!$A$4:$S$399,$Q$6,FALSE)/AV11,3)*1000) -> 1630 | U11: =IF($A$4="Numbers",MROUND(VLOOKUP($C11&H$8,'Calc-V'!$A$4:$S$399,$Q$6,FALSE),10),ROUND(VLOOKUP($C11&H$8,'Calc-V'!$A$4:$S$399,$Q$6,FALSE)/AW11,3)*1000) -> 1630 | V11: =IF($A$4="Numbers",MROUND(VLOOKUP($C11&I$8,'Calc-V'!$A$4:$S$399,$Q$6,FALSE),10),ROUND(VLOOKUP($C11&I$8,'Calc-V'!$A$4:$S$399,$Q$6,FALSE)/AX11,3)*1000) -> 1380 | W11: =IF($A$4="Numbers",MROUND(VLOOKUP($C11&J$8,'Calc-V'!$A$4:$S$399,$Q$6,FALSE),10),ROUND(VLOOKUP($C11&J$8,'Calc-V'!$A$4:$S$399,$Q$6,FALSE)/AY11,3)*1000) -> 1380 | X11: =IF($A$4="Numbers",MROUND(VLOOKUP($C11&K$8,'Calc-V'!$A$4:$S$399,$Q$6,FALSE),10),ROUND(VLOOKUP($C11&K$8,'Calc-V'!$A$4:$S$399,$Q$6,FALSE)/AZ11,3)*1000) -> 1500 | Y11: =IF($A$4="Numbers",MROUND(VLOOKUP($C11&L$8,'Calc-V'!$A$4:$S$399,$Q$6,FALSE),10),ROUND(VLOOKUP($C11&L$8,'Calc-V'!$A$4:$S$399,$Q$6,FALSE)/BA11,3)*1000) -> 1240 | Z11: =IF($A$4="Numbers",MROUND(VLOOKUP($C11&M$8,'Calc-V'!$A$4:$S$399,$Q$6,FALSE),10),ROUND(VLOOKUP($C11&M$8,'Calc-V'!$A$4:$S$399,$Q$6,FALSE)/BB11,3)*1000) -> 1240 | AA11: =IF($A$4="Numbers",MROUND(VLOOKUP($C11&N$8,'Calc-V'!$A$4:$S$399,$Q$6,FALSE),10),ROUND(VLOOKUP($C11&N$8,'Calc-V'!$A$4:$S$399,$Q$6,FALSE)/BC11,3)*1000) -> 2030 | AB11: =IF($A$4="Numbers",MROUND(VLOOKUP($C11&O$8,'Calc-V'!$A$4:$S$399,$Q$6,FALSE),10),ROUND(VLOOKUP($C11&O$8,'Calc-V'!$A$4:$S$399,$Q$6,FALSE)/BD11,3)*1000) -> 1710 | AD11: =IF($A$4="Numbers",MROUND(VLOOKUP($C11&Q$8,'Calc-V'!$A$4:$S$399,$AD$6,FALSE),10),ROUND(VLOOKUP($C11&Q$8,'Calc-V'!$A$4:$S$399,$AD$6,FALSE)/AS11,3)*1000) -> 750 | AE11: =IF($A$4="Numbers",MROUND(VLOOKUP($C11&R$8,'Calc-V'!$A$4:$S$399,$AD$6,FALSE),10),ROUND(VLOOKUP($C11&R$8,'Calc-V'!$A$4:$S$399,$AD$6,FALSE)/AT11,3)*1000) -> 790 | AF11: =IF($A$4="Numbers",MROUND(VLOOKUP($C11&S$8,'Calc-V'!$A$4:$S$399,$AD$6,FALSE),10),ROUND(VLOOKUP($C11&S$8,'Calc-V'!$A$4:$S$399,$AD$6,FALSE)/AU11,3)*1000) -> 1830 | AG11: =IF($A$4="Numbers",MROUND(VLOOKUP($C11&T$8,'Calc-V'!$A$4:$S$399,$AD$6,FALSE),10),ROUND(VLOOKUP($C11&T$8,'Calc-V'!$A$4:$S$399,$AD$6,FALSE)/AV11,3)*1000) -> 2200 | AH11: =IF($A$4="Numbers",MROUND(VLOOKUP($C11&U$8,'Calc-V'!$A$4:$S$399,$AD$6,FALSE),10),ROUND(VLOOKUP($C11&U$8,'Calc-V'!$A$4:$S$399,$AD$6,FALSE)/AW11,3)*1000) -> 2180 | AI11: =IF($A$4="Numbers",MROUND(VLOOKUP($C11&V$8,'Calc-V'!$A$4:$S$399,$AD$6,FALSE),10),ROUND(VLOOKUP($C11&V$8,'Calc-V'!$A$4:$S$399,$AD$6,FALSE)/AX11,3)*1000) -> 2420 | AJ11: =IF($A$4="Numbers",MROUND(VLOOKUP($C11&W$8,'Calc-V'!$A$4:$S$399,$AD$6,FALSE),10),ROUND(VLOOKUP($C11&W$8,'Calc-V'!$A$4:$S$399,$AD$6,FALSE)/AY11,3)*1000) -> 2420 | AK11: =IF($A$4="Numbers",MROUND(VLOOKUP($C11&X$8,'Calc-V'!$A$4:$S$399,$AD$6,FALSE),10),ROUND(VLOOKUP($C11&X$8,'Calc-V'!$A$4:$S$399,$AD$6,FALSE)/AZ11,3)*1000) -> 2830 | AL11: =IF($A$4="Numbers",MROUND(VLOOKUP($C11&Y$8,'Calc-V'!$A$4:$S$399,$AD$6,FALSE),10),ROUND(VLOOKUP($C11&Y$8,'Calc-V'!$A$4:$S$399,$AD$6,FALSE)/BA11,3)*1000) -> 2770 | AM11: =IF($A$4="Numbers",MROUND(VLOOKUP($C11&Z$8,'Calc-V'!$A$4:$S$399,$AD$6,FALSE),10),ROUND(VLOOKUP($C11&Z$8,'Calc-V'!$A$4:$S$399,$AD$6,FALSE)/BB11,3)*1000) -> 2770 | AN11: =IF($A$4="Numbers",MROUND(VLOOKUP($C11&AA$8,'Calc-V'!$A$4:$S$399,$AD$6,FALSE),10),ROUND(VLOOKUP($C11&AA$8,'Calc-V'!$A$4:$S$399,$AD$6,FALSE)/BC11,3)*1000) -> 2190 | AO11: =IF($A$4="Numbers",MROUND(VLOOKUP($C11&AB$8,'Calc-V'!$A$4:$S$399,$AD$6,FALSE),10),ROUND(VLOOKUP($C11&AB$8,'Calc-V'!$A$4:$S$399,$AD$6,FALSE)/BD11,3)*1000) -> 1970 | AS11: =VLOOKUP($C11&AS$8,'Calc-V'!$A$4:$AA$399,$AS$6,FALSE) -> 113540 | AT11: =VLOOKUP($C11&AT$8,'Calc-V'!$A$4:$AA$399,$AS$6,FALSE) -> 114490 | AU11: =VLOOKUP($C11&AU$8,'Calc-V'!$A$4:$AA$399,$AS$6,FALSE) -> 114490 | AV11: =VLOOKUP($C11&AV$8,'Calc-V'!$A$4:$AA$399,$AS$6,FALSE) -> 114830 | AW11: =VLOOKUP($C11&AW$8,'Calc-V'!$A$4:$AA$399,$AS$6,FALSE) -> 114830 | AX11: =VLOOKUP($C11&AX$8,'Calc-V'!$A$4:$AA$399,$AS$6,FALSE) -> 115410 | AY11: =VLOOKUP($C11&AY$8,'Calc-V'!$A$4:$AA$399,$AS$6,FALSE) -> 115410 | AZ11: =VLOOKUP($C11&AZ$8,'Calc-V'!$A$4:$AA$399,$AS$6,FALSE) -> 116200 | BA11: =VLOOKUP($C11&BA$8,'Calc-V'!$A$4:$AA$399,$AS$6,FALSE) -> 116210 | BB11: =VLOOKUP($C11&BB$8,'Calc-V'!$A$4:$AA$399,$AS$6,FALSE) -> 116210 | BC11: =VLOOKUP($C11&BC$8,'Calc-V'!$A$4:$AA$399,$AS$6,FALSE) -> 116240 | BD11: =VLOOKUP($C11&BD$8,'Calc-V'!$A$4:$AA$399,$AS$6,FALSE) -> 116660
C12: Argyll & Bute | D12: =IF($A$4="Numbers",MROUND(VLOOKUP($C12&D$8,'Calc-V'!$A$4:$W$399,$D$6,FALSE),10),ROUND(VLOOKUP($C12&D$8,'Calc-V'!$A$4:$W$399,$D$6,FALSE)/AS12,3)*1000) -> 3580 | E12: =IF($A$4="Numbers",MROUND(VLOOKUP($C12&E$8,'Calc-V'!$A$4:$W$399,$D$6,FALSE),10),ROUND(VLOOKUP($C12&E$8,'Calc-V'!$A$4:$W$399,$D$6,FALSE)/AT12,3)*1000) -> 3620 | F12: =IF($A$4="Numbers",MROUND(VLOOKUP($C12&F$8,'Calc-V'!$A$4:$W$399,$D$6,FALSE),10),ROUND(VLOOKUP($C12&F$8,'Calc-V'!$A$4:$W$399,$D$6,FALSE)/AU12,3)*1000) -> 3620 | G12: =IF($A$4="Numbers",MROUND(VLOOKUP($C12&G$8,'Calc-V'!$A$4:$W$399,$D$6,FALSE),10),ROUND(VLOOKUP($C12&G$8,'Calc-V'!$A$4:$W$399,$D$6,FALSE)/AV12,3)*1000) -> 4610 | H12: =IF($A$4="Numbers",MROUND(VLOOKUP($C12&H$8,'Calc-V'!$A$4:$W$399,$D$6,FALSE),10),ROUND(VLOOKUP($C12&H$8,'Calc-V'!$A$4:$W$399,$D$6,FALSE)/AW12,3)*1000) -> 4610 | I12: =IF($A$4="Numbers",MROUND(VLOOKUP($C12&I$8,'Calc-V'!$A$4:$W$399,$D$6,FALSE),10),ROUND(VLOOKUP($C12&I$8,'Calc-V'!$A$4:$W$399,$D$6,FALSE)/AX12,3)*1000) -> 4460 | J12: =IF($A$4="Numbers",MROUND(VLOOKUP($C12&J$8,'Calc-V'!$A$4:$W$399,$D$6,FALSE),10),ROUND(VLOOKUP($C12&J$8,'Calc-V'!$A$4:$W$399,$D$6,FALSE)/AY12,3)*1000) -> 4460 | K12: =IF($A$4="Numbers",MROUND(VLOOKUP($C12&K$8,'Calc-V'!$A$4:$W$399,$D$6,FALSE),10),ROUND(VLOOKUP($C12&K$8,'Calc-V'!$A$4:$W$399,$D$6,FALSE)/AZ12,3)*1000) -> 3860 | L12: =IF($A$4="Numbers",MROUND(VLOOKUP($C12&L$8,'Calc-V'!$A$4:$W$399,$D$6,FALSE),10),ROUND(VLOOKUP($C12&L$8,'Calc-V'!$A$4:$W$399,$D$6,FALSE)/BA12,3)*1000) -> 3320 | M12: =IF($A$4="Numbers",MROUND(VLOOKUP($C12&M$8,'Calc-V'!$A$4:$W$399,$D$6,FALSE),10),ROUND(VLOOKUP($C12&M$8,'Calc-V'!$A$4:$W$399,$D$6,FALSE)/BB12,3)*1000) -> 3320 | N12: =IF($A$4="Numbers",MROUND(VLOOKUP($C12&N$8,'Calc-V'!$A$4:$W$399,$D$6,FALSE),10),ROUND(VLOOKUP($C12&N$8,'Calc-V'!$A$4:$W$399,$D$6,FALSE)/BC12,3)*1000) -> 2740 | O12: =IF($A$4="Numbers",MROUND(VLOOKUP($C12&O$8,'Calc-V'!$A$4:$W$399,$D$6,FALSE),10),ROUND(VLOOKUP($C12&O$8,'Calc-V'!$A$4:$W$399,$D$6,FALSE)/BD12,3)*1000) -> 2120 | Q12: =IF($A$4="Numbers",MROUND(VLOOKUP($C12&D$8,'Calc-V'!$A$4:$S$399,$Q$6,FALSE),10),ROUND(VLOOKUP($C12&D$8,'Calc-V'!$A$4:$S$399,$Q$6,FALSE)/AS12,3)*1000) -> 1090 | R12: =IF($A$4="Numbers",MROUND(VLOOKUP($C12&E$8,'Calc-V'!$A$4:$S$399,$Q$6,FALSE),10),ROUND(VLOOKUP($C12&E$8,'Calc-V'!$A$4:$S$399,$Q$6,FALSE)/AT12,3)*1000) -> 910 | S12: =IF($A$4="Numbers",MROUND(VLOOKUP($C12&F$8,'Calc-V'!$A$4:$S$399,$Q$6,FALSE),10),ROUND(VLOOKUP($C12&F$8,'Calc-V'!$A$4:$S$399,$Q$6,FALSE)/AU12,3)*1000) -> 910 | T12: =IF($A$4="Numbers",MROUND(VLOOKUP($C12&G$8,'Calc-V'!$A$4:$S$399,$Q$6,FALSE),10),ROUND(VLOOKUP($C12&G$8,'Calc-V'!$A$4:$S$399,$Q$6,FALSE)/AV12,3)*1000) -> 1090 | U12: =IF($A$4="Numbers",MROUND(VLOOKUP($C12&H$8,'Calc-V'!$A$4:$S$399,$Q$6,FALSE),10),ROUND(VLOOKUP($C12&H$8,'Calc-V'!$A$4:$S$399,$Q$6,FALSE)/AW12,3)*1000) -> 1090 | V12: =IF($A$4="Numbers",MROUND(VLOOKUP($C12&I$8,'Calc-V'!$A$4:$S$399,$Q$6,FALSE),10),ROUND(VLOOKUP($C12&I$8,'Calc-V'!$A$4:$S$399,$Q$6,FALSE)/AX12,3)*1000) -> 840 | W12: =IF($A$4="Numbers",MROUND(VLOOKUP($C12&J$8,'Calc-V'!$A$4:$S$399,$Q$6,FALSE),10),ROUND(VLOOKUP($C12&J$8,'Calc-V'!$A$4:$S$399,$Q$6,FALSE)/AY12,3)*1000) -> 840 | X12: =IF($A$4="Numbers",MROUND(VLOOKUP($C12&K$8,'Calc-V'!$A$4:$S$399,$Q$6,FALSE),10),ROUND(VLOOKUP($C12&K$8,'Calc-V'!$A$4:$S$399,$Q$6,FALSE)/AZ12,3)*1000) -> 860 | Y12: =IF($A$4="Numbers",MROUND(VLOOKUP($C12&L$8,'Calc-V'!$A$4:$S$399,$Q$6,FALSE),10),ROUND(VLOOKUP($C12&L$8,'Calc-V'!$A$4:$S$399,$Q$6,FALSE)/BA12,3)*1000) -> 710 | Z12: =IF($A$4="Numbers",MROUND(VLOOKUP($C12&M$8,'Calc-V'!$A$4:$S$399,$Q$6,FALSE),10),ROUND(VLOOKUP($C12&M$8,'Calc-V'!$A$4:$S$399,$Q$6,FALSE)/BB12,3)*1000) -> 710 | AA12: =IF($A$4="Numbers",MROUND(VLOOKUP($C12&N$8,'Calc-V'!$A$4:$S$399,$Q$6,FALSE),10),ROUND(VLOOKUP($C12&N$8,'Calc-V'!$A$4:$S$399,$Q$6,FALSE)/BC12,3)*1000) -> 620 | AB12: =IF($A$4="Numbers",MROUND(VLOOKUP($C12&O$8,'Calc-V'!$A$4:$S$399,$Q$6,FALSE),10),ROUND(VLOOKUP($C12&O$8,'Calc-V'!$A$4:$S$399,$Q$6,FALSE)/BD12,3)*1000) -> 510 | AD12: =IF($A$4="Numbers",MROUND(VLOOKUP($C12&Q$8,'Calc-V'!$A$4:$S$399,$AD$6,FALSE),10),ROUND(VLOOKUP($C12&Q$8,'Calc-V'!$A$4:$S$399,$AD$6,FALSE)/AS12,3)*1000) -> 2490 | AE12: =IF($A$4="Numbers",MROUND(VLOOKUP($C12&R$8,'Calc-V'!$A$4:$S$399,$AD$6,FALSE),10),ROUND(VLOOKUP($C12&R$8,'Calc-V'!$A$4:$S$399,$AD$6,FALSE)/AT12,3)*1000) -> 2710 | AF12: =IF($A$4="Numbers",MROUND(VLOOKUP($C12&S$8,'Calc-V'!$A$4:$S$399,$AD$6,FALSE),10),ROUND(VLOOKUP($C12&S$8,'Calc-V'!$A$4:$S$399,$AD$6,FALSE)/AU12,3)*1000) -> 2710 | AG12: =IF($A$4="Numbers",MROUND(VLOOKUP($C12&T$8,'Calc-V'!$A$4:$S$399,$AD$6,FALSE),10),ROUND(VLOOKUP($C12&T$8,'Calc-V'!$A$4:$S$399,$AD$6,FALSE)/AV12,3)*1000) -> 3510 | AH12: =IF($A$4="Numbers",MROUND(VLOOKUP($C12&U$8,'Calc-V'!$A$4:$S$399,$AD$6,FALSE),10),ROUND(VLOOKUP($C12&U$8,'Calc-V'!$A$4:$S$399,$AD$6,FALSE)/AW12,3)*1000) -> 3510 | AI12: =IF($A$4="Numbers",MROUND(VLOOKUP($C12&V$8,'Calc-V'!$A$4:$S$399,$AD$6,FALSE),10),ROUND(VLOOKUP($C12&V$8,'Calc-V'!$A$4:$S$399,$AD$6,FALSE)/AX12,3)*1000) -> 3620 | AJ12: =IF($A$4="Numbers",MROUND(VLOOKUP($C12&W$8,'Calc-V'!$A$4:$S$399,$AD$6,FALSE),10),ROUND(VLOOKUP($C12&W$8,'Calc-V'!$A$4:$S$399,$AD$6,FALSE)/AY12,3)*1000) -> 3620 | AK12: =IF($A$4="Numbers",MROUND(VLOOKUP($C12&X$8,'Calc-V'!$A$4:$S$399,$AD$6,FALSE),10),ROUND(VLOOKUP($C12&X$8,'Calc-V'!$A$4:$S$399,$AD$6,FALSE)/AZ12,3)*1000) -> 2990 | AL12: =IF($A$4="Numbers",MROUND(VLOOKUP($C12&Y$8,'Calc-V'!$A$4:$S$399,$AD$6,FALSE),10),ROUND(VLOOKUP($C12&Y$8,'Calc-V'!$A$4:$S$399,$AD$6,FALSE)/BA12,3)*1000) -> 2610 | AM12: =IF($A$4="Numbers",MROUND(VLOOKUP($C12&Z$8,'Calc-V'!$A$4:$S$399,$AD$6,FALSE),10),ROUND(VLOOKUP($C12&Z$8,'Calc-V'!$A$4:$S$399,$AD$6,FALSE)/BB12,3)*1000) -> 2610 | AN12: =IF($A$4="Numbers",MROUND(VLOOKUP($C12&AA$8,'Calc-V'!$A$4:$S$399,$AD$6,FALSE),10),ROUND(VLOOKUP($C12&AA$8,'Calc-V'!$A$4:$S$399,$AD$6,FALSE)/BC12,3)*1000) -> 2120 | AO12: =IF($A$4="Numbers",MROUND(VLOOKUP($C12&AB$8,'Calc-V'!$A$4:$S$399,$AD$6,FALSE),10),ROUND(VLOOKUP($C12&AB$8,'Calc-V'!$A$4:$S$399,$AD$6,FALSE)/BD12,3)*1000) -> 1610 | AS12: =VLOOKUP($C12&AS$8,'Calc-V'!$A$4:$AA$399,$AS$6,FALSE) -> 90790 | AT12: =VLOOKUP($C12&AT$8,'Calc-V'!$A$4:$AA$399,$AS$6,FALSE) -> 89910 | AU12: =VLOOKUP($C12&AU$8,'Calc-V'!$A$4:$AA$399,$AS$6,FALSE) -> 89910 | AV12: =VLOOKUP($C12&AV$8,'Calc-V'!$A$4:$AA$399,$AS$6,FALSE) -> 89450 | AW12: =VLOOKUP($C12&AW$8,'Calc-V'!$A$4:$AA$399,$AS$6,FALSE) -> 89450 | AX12: =VLOOKUP($C12&AX$8,'Calc-V'!$A$4:$AA$399,$AS$6,FALSE) -> 88620 | AY12: =VLOOKUP($C12&AY$8,'Calc-V'!$A$4:$AA$399,$AS$6,FALSE) -> 88620 | AZ12: =VLOOKUP($C12&AZ$8,'Calc-V'!$A$4:$AA$399,$AS$6,FALSE) -> 88930 | BA12: =VLOOKUP($C12&BA$8,'Calc-V'!$A$4:$AA$399,$AS$6,FALSE) -> 86900 | BB12: =VLOOKUP($C12&BB$8,'Calc-V'!$A$4:$AA$399,$AS$6,FALSE) -> 86900 | BC12: =VLOOKUP($C12&BC$8,'Calc-V'!$A$4:$AA$399,$AS$6,FALSE) -> 88050 | BD12: =VLOOKUP($C12&BD$8,'Calc-V'!$A$4:$AA$399,$AS$6,FALSE) -> 87660
C13: Clackmannanshire | D13: =IF($A$4="Numbers",MROUND(VLOOKUP($C13&D$8,'Calc-V'!$A$4:$W$399,$D$6,FALSE),10),ROUND(VLOOKUP($C13&D$8,'Calc-V'!$A$4:$W$399,$D$6,FALSE)/AS13,3)*1000) -> 3310 | E13: =IF($A$4="Numbers",MROUND(VLOOKUP($C13&E$8,'Calc-V'!$A$4:$W$399,$D$6,FALSE),10),ROUND(VLOOKUP($C13&E$8,'Calc-V'!$A$4:$W$399,$D$6,FALSE)/AT13,3)*1000) -> 3300 | F13: =IF($A$4="Numbers",MROUND(VLOOKUP($C13&F$8,'Calc-V'!$A$4:$W$399,$D$6,FALSE),10),ROUND(VLOOKUP($C13&F$8,'Calc-V'!$A$4:$W$399,$D$6,FALSE)/AU13,3)*1000) -> 3300 | G13: =IF($A$4="Numbers",MROUND(VLOOKUP($C13&G$8,'Calc-V'!$A$4:$W$399,$D$6,FALSE),10),ROUND(VLOOKUP($C13&G$8,'Calc-V'!$A$4:$W$399,$D$6,FALSE)/AV13,3)*1000) -> 3250 | H13: =IF($A$4="Numbers",MROUND(VLOOKUP($C13&H$8,'Calc-V'!$A$4:$W$399,$D$6,FALSE),10),ROUND(VLOOKUP($C13&H$8,'Calc-V'!$A$4:$W$399,$D$6,FALSE)/AW13,3)*1000) -> 3250 | I13: =IF($A$4="Numbers",MROUND(VLOOKUP($C13&I$8,'Calc-V'!$A$4:$W$399,$D$6,FALSE),10),ROUND(VLOOKUP($C13&I$8,'Calc-V'!$A$4:$W$399,$D$6,FALSE)/AX13,3)*1000) -> 3070 | J13: =IF($A$4="Numbers",MROUND(VLOOKUP($C13&J$8,'Calc-V'!$A$4:$W$399,$D$6,FALSE),10),ROUND(VLOOKUP($C13&J$8,'Calc-V'!$A$4:$W$399,$D$6,FALSE)/AY13,3)*1000) -> 3070 | K13: =IF($A$4="Numbers",MROUND(VLOOKUP($C13&K$8,'Calc-V'!$A$4:$W$399,$D$6,FALSE),10),ROUND(VLOOKUP($C13&K$8,'Calc-V'!$A$4:$W$399,$D$6,FALSE)/AZ13,3)*1000) -> 3000 | L13: =IF($A$4="Numbers",MROUND(VLOOKUP($C13&L$8,'Calc-V'!$A$4:$W$399,$D$6,FALSE),10),ROUND(VLOOKUP($C13&L$8,'Calc-V'!$A$4:$W$399,$D$6,FALSE)/BA13,3)*1000) -> 2870 | M13: =IF($A$4="Numbers",MROUND(VLOOKUP($C13&M$8,'Calc-V'!$A$4:$W$399,$D$6,FALSE),10),ROUND(VLOOKUP($C13&M$8,'Calc-V'!$A$4:$W$399,$D$6,FALSE)/BB13,3)*1000) -> 2870 | N13: =IF($A$4="Numbers",MROUND(VLOOKUP($C13&N$8,'Calc-V'!$A$4:$W$399,$D$6,FALSE),10),ROUND(VLOOKUP($C13&N$8,'Calc-V'!$A$4:$W$399,$D$6,FALSE)/BC13,3)*1000) -> 2940 | O13: =IF($A$4="Numbers",MROUND(VLOOKUP($C13&O$8,'Calc-V'!$A$4:$W$399,$D$6,FALSE),10),ROUND(VLOOKUP($C13&O$8,'Calc-V'!$A$4:$W$399,$D$6,FALSE)/BD13,3)*1000) -> 2660 | Q13: =IF($A$4="Numbers",MROUND(VLOOKUP($C13&D$8,'Calc-V'!$A$4:$S$399,$Q$6,FALSE),10),ROUND(VLOOKUP($C13&D$8,'Calc-V'!$A$4:$S$399,$Q$6,FALSE)/AS13,3)*1000) -> 770 | R13: =IF($A$4="Numbers",MROUND(VLOOKUP($C13&E$8,'Calc-V'!$A$4:$S$399,$Q$6,FALSE),10),ROUND(VLOOKUP($C13&E$8,'Calc-V'!$A$4:$S$399,$Q$6,FALSE)/AT13,3)*1000) -> 840 | S13: =IF($A$4="Numbers",MROUND(VLOOKUP($C13&F$8,'Calc-V'!$A$4:$S$399,$Q$6,FALSE),10),ROUND(VLOOKUP($C13&F$8,'Calc-V'!$A$4:$S$399,$Q$6,FALSE)/AU13,3)*1000) -> 840 | T13: =IF($A$4="Numbers",MROUND(VLOOKUP($C13&G$8,'Calc-V'!$A$4:$S$399,$Q$6,FALSE),10),ROUND(VLOOKUP($C13&G$8,'Calc-V'!$A$4:$S$399,$Q$6,FALSE)/AV13,3)*1000) -> 820 | U13: =IF($A$4="Numbers",MROUND(VLOOKUP($C13&H$8,'Calc-V'!$A$4:$S$399,$Q$6,FALSE),10),ROUND(VLOOKUP($C13&H$8,'Calc-V'!$A$4:$S$399,$Q$6,FALSE)/AW13,3)*1000) -> 820 | V13: =IF($A$4="Numbers",MROUND(VLOOKUP($C13&I$8,'Calc-V'!$A$4:$S$399,$Q$6,FALSE),10),ROUND(VLOOKUP($C13&I$8,'Calc-V'!$A$4:$S$399,$Q$6,FALSE)/AX13,3)*1000) -> 790 | W13: =IF($A$4="Numbers",MROUND(VLOOKUP($C13&J$8,'Calc-V'!$A$4:$S$399,$Q$6,FALSE),10),ROUND(VLOOKUP($C13&J$8,'Calc-V'!$A$4:$S$399,$Q$6,FALSE)/AY13,3)*1000) -> 790 | X13: =IF($A$4="Numbers",MROUND(VLOOKUP($C13&K$8,'Calc-V'!$A$4:$S$399,$Q$6,FALSE),10),ROUND(VLOOKUP($C13&K$8,'Calc-V'!$A$4:$S$399,$Q$6,FALSE)/AZ13,3)*1000) -> 800 | Y13: =IF($A$4="Numbers",MROUND(VLOOKUP($C13&L$8,'Calc-V'!$A$4:$S$399,$Q$6,FALSE),10),ROUND(VLOOKUP($C13&L$8,'Calc-V'!$A$4:$S$399,$Q$6,FALSE)/BA13,3)*1000) -> 720 | Z13: =IF($A$4="Numbers",MROUND(VLOOKUP($C13&M$8,'Calc-V'!$A$4:$S$399,$Q$6,FALSE),10),ROUND(VLOOKUP($C13&M$8,'Calc-V'!$A$4:$S$399,$Q$6,FALSE)/BB13,3)*1000) -> 720 | AA13: =IF($A$4="Numbers",MROUND(VLOOKUP($C13&N$8,'Calc-V'!$A$4:$S$399,$Q$6,FALSE),10),ROUND(VLOOKUP($C13&N$8,'Calc-V'!$A$4:$S$399,$Q$6,FALSE)/BC13,3)*1000) -> 730 | AB13: =IF($A$4="Numbers",MROUND(VLOOKUP($C13&O$8,'Calc-V'!$A$4:$S$399,$Q$6,FALSE),10),ROUND(VLOOKUP($C13&O$8,'Calc-V'!$A$4:$S$399,$Q$6,FALSE)/BD13,3)*1000) -> 760 | AD13: =IF($A$4="Numbers",MROUND(VLOOKUP($C13&Q$8,'Calc-V'!$A$4:$S$399,$AD$6,FALSE),10),ROUND(VLOOKUP($C13&Q$8,'Calc-V'!$A$4:$S$399,$AD$6,FALSE)/AS13,3)*1000) -> 2540 | AE13: =IF($A$4="Numbers",MROUND(VLOOKUP($C13&R$8,'Calc-V'!$A$4:$S$399,$AD$6,FALSE),10),ROUND(VLOOKUP($C13&R$8,'Calc-V'!$A$4:$S$399,$AD$6,FALSE)/AT13,3)*1000) -> 2460 | AF13: =IF($A$4="Numbers",MROUND(VLOOKUP($C13&S$8,'Calc-V'!$A$4:$S$399,$AD$6,FALSE),10),ROUND(VLOOKUP($C13&S$8,'Calc-V'!$A$4:$S$399,$AD$6,FALSE)/AU13,3)*1000) -> 2460 | AG13: =IF($A$4="Numbers",MROUND(VLOOKUP($C13&T$8,'Calc-V'!$A$4:$S$399,$AD$6,FALSE),10),ROUND(VLOOKUP($C13&T$8,'Calc-V'!$A$4:$S$399,$AD$6,FALSE)/AV13,3)*1000) -> 2420 | AH13: =IF($A$4="Numbers",MROUND(VLOOKUP($C13&U$8,'Calc-V'!$A$4:$S$399,$AD$6,FALSE),10),ROUND(VLOOKUP($C13&U$8,'Calc-V'!$A$4:$S$399,$AD$6,FALSE)/AW13,3)*1000) -> 2420 | AI13: =IF($A$4="Numbers",MROUND(VLOOKUP($C13&V$8,'Calc-V'!$A$4:$S$399,$AD$6,FALSE),10),ROUND(VLOOKUP($C13&V$8,'Calc-V'!$A$4:$S$399,$AD$6,FALSE)/AX13,3)*1000) -> 2270 | AJ13: =IF($A$4="Numbers",MROUND(VLOOKUP($C13&W$8,'Calc-V'!$A$4:$S$399,$AD$6,FALSE),10),ROUND(VLOOKUP($C13&W$8,'Calc-V'!$A$4:$S$399,$AD$6,FALSE)/AY13,3)*1000) -> 2270 | AK13: =IF($A$4="Numbers",MROUND(VLOOKUP($C13&X$8,'Calc-V'!$A$4:$S$399,$AD$6,FALSE),10),ROUND(VLOOKUP($C13&X$8,'Calc-V'!$A$4:$S$399,$AD$6,FALSE)/AZ13,3)*1000) -> 2200 | AL13: =IF($A$4="Numbers",MROUND(VLOOKUP($C13&Y$8,'Calc-V'!$A$4:$S$399,$AD$6,FALSE),10),ROUND(VLOOKUP($C13&Y$8,'Calc-V'!$A$4:$S$399,$AD$6,FALSE)/BA13,3)*1000) -> 2150 | AM13: =IF($A$4="Numbers",MROUND(VLOOKUP($C13&Z$8,'Calc-V'!$A$4:$S$399,$AD$6,FALSE),10),ROUND(VLOOKUP($C13&Z$8,'Calc-V'!$A$4:$S$399,$AD$6,FALSE)/BB13,3)*1000) -> 2150 | AN13: =IF($A$4="Numbers",MROUND(VLOOKUP($C13&AA$8,'Calc-V'!$A$4:$S$399,$AD$6,FALSE),10),ROUND(VLOOKUP($C13&AA$8,'Calc-V'!$A$4:$S$399,$AD$6,FALSE)/BC13,3)*1000) -> 2220 | AO13: =IF($A$4="Numbers",MROUND(VLOOKUP($C13&AB$8,'Calc-V'!$A$4:$S$399,$AD$6,FALSE),10),ROUND(VLOOKUP($C13&AB$8,'Calc-V'!$A$4:$S$399,$AD$6,FALSE)/BD13,3)*1000) -> 1900 | AS13: =VLOOKUP($C13&AS$8,'Calc-V'!$A$4:$AA$399,$AS$6,FALSE) -> 50600 | AT13: =VLOOKUP($C13&AT$8,'Calc-V'!$A$4:$AA$399,$AS$6,FALSE) -> 51190 | AU13: =VLOOKUP($C13&AU$8,'Calc-V'!$A$4:$AA$399,$AS$6,FALSE) -> 51190 | AV13: =VLOOKUP($C13&AV$8,'Calc-V'!$A$4:$AA$399,$AS$6,FALSE) -> 51290 | AW13: =VLOOKUP($C13&AW$8,'Calc-V'!$A$4:$AA$399,$AS$6,FALSE) -> 51290 | AX13: =VLOOKUP($C13&AX$8,'Calc-V'!$A$4:$AA$399,$AS$6,FALSE) -> 51330 | AY13: =VLOOKUP($C13&AY$8,'Calc-V'!$A$4:$AA$399,$AS$6,FALSE) -> 51330 | AZ13: =VLOOKUP($C13&AZ$8,'Calc-V'!$A$4:$AA$399,$AS$6,FALSE) -> 51500 | BA13: =VLOOKUP($C13&BA$8,'Calc-V'!$A$4:$AA$399,$AS$6,FALSE) -> 51280 | BB13: =VLOOKUP($C13&BB$8,'Calc-V'!$A$4:$AA$399,$AS$6,FALSE) -> 51280 | BC13: =VLOOKUP($C13&BC$8,'Calc-V'!$A$4:$AA$399,$AS$6,FALSE) -> 51280 | BD13: =VLOOKUP($C13&BD$8,'Calc-V'!$A$4:$AA$399,$AS$6,FALSE) -> 51190
C14: Dumfries & Galloway | D14: =IF($A$4="Numbers",MROUND(VLOOKUP($C14&D$8,'Calc-V'!$A$4:$W$399,$D$6,FALSE),10),ROUND(VLOOKUP($C14&D$8,'Calc-V'!$A$4:$W$399,$D$6,FALSE)/AS14,3)*1000) -> 2320 | E14: =IF($A$4="Numbers",MROUND(VLOOKUP($C14&E$8,'Calc-V'!$A$4:$W$399,$D$6,FALSE),10),ROUND(VLOOKUP($C14&E$8,'Calc-V'!$A$4:$W$399,$D$6,FALSE)/AT14,3)*1000) -> 1980 | F14: =IF($A$4="Numbers",MROUND(VLOOKUP($C14&F$8,'Calc-V'!$A$4:$W$399,$D$6,FALSE),10),ROUND(VLOOKUP($C14&F$8,'Calc-V'!$A$4:$W$399,$D$6,FALSE)/AU14,3)*1000) -> 1980 | G14: =IF($A$4="Numbers",MROUND(VLOOKUP($C14&G$8,'Calc-V'!$A$4:$W$399,$D$6,FALSE),10),ROUND(VLOOKUP($C14&G$8,'Calc-V'!$A$4:$W$399,$D$6,FALSE)/AV14,3)*1000) -> 1980 | H14: =IF($A$4="Numbers",MROUND(VLOOKUP($C14&H$8,'Calc-V'!$A$4:$W$399,$D$6,FALSE),10),ROUND(VLOOKUP($C14&H$8,'Calc-V'!$A$4:$W$399,$D$6,FALSE)/AW14,3)*1000) -> 2400 | I14: =IF($A$4="Numbers",MROUND(VLOOKUP($C14&I$8,'Calc-V'!$A$4:$W$399,$D$6,FALSE),10),ROUND(VLOOKUP($C14&I$8,'Calc-V'!$A$4:$W$399,$D$6,FALSE)/AX14,3)*1000) -> 2730 | J14: =IF($A$4="Numbers",MROUND(VLOOKUP($C14&J$8,'Calc-V'!$A$4:$W$399,$D$6,FALSE),10),ROUND(VLOOKUP($C14&J$8,'Calc-V'!$A$4:$W$399,$D$6,FALSE)/AY14,3)*1000) -> 2730 | K14: =IF($A$4="Numbers",MROUND(VLOOKUP($C14&K$8,'Calc-V'!$A$4:$W$399,$D$6,FALSE),10),ROUND(VLOOKUP($C14&K$8,'Calc-V'!$A$4:$W$399,$D$6,FALSE)/AZ14,3)*1000) -> 2900 | L14: =IF($A$4="Numbers",MROUND(VLOOKUP($C14&L$8,'Calc-V'!$A$4:$W$399,$D$6,FALSE),10),ROUND(VLOOKUP($C14&L$8,'Calc-V'!$A$4:$W$399,$D$6,FALSE)/BA14,3)*1000) -> 3040 | M14: =IF($A$4="Numbers",MROUND(VLOOKUP($C14&M$8,'Calc-V'!$A$4:$W$399,$D$6,FALSE),10),ROUND(VLOOKUP($C14&M$8,'Calc-V'!$A$4:$W$399,$D$6,FALSE)/BB14,3)*1000) -> 3040 | N14: =IF($A$4="Numbers",MROUND(VLOOKUP($C14&N$8,'Calc-V'!$A$4:$W$399,$D$6,FALSE),10),ROUND(VLOOKUP($C14&N$8,'Calc-V'!$A$4:$W$399,$D$6,FALSE)/BC14,3)*1000) -> 3160 | O14: =IF($A$4="Numbers",MROUND(VLOOKUP($C14&O$8,'Calc-V'!$A$4:$W$399,$D$6,FALSE),10),ROUND(VLOOKUP($C14&O$8,'Calc-V'!$A$4:$W$399,$D$6,FALSE)/BD14,3)*1000) -> 3140 | Q14: =IF($A$4="Numbers",MROUND(VLOOKUP($C14&D$8,'Calc-V'!$A$4:$S$399,$Q$6,FALSE),10),ROUND(VLOOKUP($C14&D$8,'Calc-V'!$A$4:$S$399,$Q$6,FALSE)/AS14,3)*1000) -> 1330 | R14: =IF($A$4="Numbers",MROUND(VLOOKUP($C14&E$8,'Calc-V'!$A$4:$S$399,$Q$6,FALSE),10),ROUND(VLOOKUP($C14&E$8,'Calc-V'!$A$4:$S$399,$Q$6,FALSE)/AT14,3)*1000) -> 1220 | S14: =IF($A$4="Numbers",MROUND(VLOOKUP($C14&F$8,'Calc-V'!$A$4:$S$399,$Q$6,FALSE),10),ROUND(VLOOKUP($C14&F$8,'Calc-V'!$A$4:$S$399,$Q$6,FALSE)/AU14,3)*1000) -> 1220 | T14: =IF($A$4="Numbers",MROUND(VLOOKUP($C14&G$8,'Calc-V'!$A$4:$S$399,$Q$6,FALSE),10),ROUND(VLOOKUP($C14&G$8,'Calc-V'!$A$4:$S$399,$Q$6,FALSE)/AV14,3)*1000) -> 1210 | U14: =IF($A$4="Numbers",MROUND(VLOOKUP($C14&H$8,'Calc-V'!$A$4:$S$399,$Q$6,FALSE),10),ROUND(VLOOKUP($C14&H$8,'Calc-V'!$A$4:$S$399,$Q$6,FALSE)/AW14,3)*1000) -> 1630 | V14: =IF($A$4="Numbers",MROUND(VLOOKUP($C14&I$8,'Calc-V'!$A$4:$S$399,$Q$6,FALSE),10),ROUND(VLOOKUP($C14&I$8,'Calc-V'!$A$4:$S$399,$Q$6,FALSE)/AX14,3)*1000) -> 1880 | W14: =IF($A$4="Numbers",MROUND(VLOOKUP($C14&J$8,'Calc-V'!$A$4:$S$399,$Q$6,FALSE),10),ROUND(VLOOKUP($C14&J$8,'Calc-V'!$A$4:$S$399,$Q$6,FALSE)/AY14,3)*1000) -> 1880 | X14: =IF($A$4="Numbers",MROUND(VLOOKUP($C14&K$8,'Calc-V'!$A$4:$S$399,$Q$6,FALSE),10),ROUND(VLOOKUP($C14&K$8,'Calc-V'!$A$4:$S$399,$Q$6,FALSE)/AZ14,3)*1000) -> 1970 | Y14: =IF($A$4="Numbers",MROUND(VLOOKUP($C14&L$8,'Calc-V'!$A$4:$S$399,$Q$6,FALSE),10),ROUND(VLOOKUP($C14&L$8,'Calc-V'!$A$4:$S$399,$Q$6,FALSE)/BA14,3)*1000) -> 1940 | Z14: =IF($A$4="Numbers",MROUND(VLOOKUP($C14&M$8,'Calc-V'!$A$4:$S$399,$Q$6,FALSE),10),ROUND(VLOOKUP($C14&M$8,'Calc-V'!$A$4:$S$399,$Q$6,FALSE)/BB14,3)*1000) -> 1940 | AA14: =IF($A$4="Numbers",MROUND(VLOOKUP($C14&N$8,'Calc-V'!$A$4:$S$399,$Q$6,FALSE),10),ROUND(VLOOKUP($C14&N$8,'Calc-V'!$A$4:$S$399,$Q$6,FALSE)/BC14,3)*1000) -> 2000 | AB14: =IF($A$4="Numbers",MROUND(VLOOKUP($C14&O$8,'Calc-V'!$A$4:$S$399,$Q$6,FALSE),10),ROUND(VLOOKUP($C14&O$8,'Calc-V'!$A$4:$S$399,$Q$6,FALSE)/BD14,3)*1000) -> 1990 | AD14: =IF($A$4="Numbers",MROUND(VLOOKUP($C14&Q$8,'Calc-V'!$A$4:$S$399,$AD$6,FALSE),10),ROUND(VLOOKUP($C14&Q$8,'Calc-V'!$A$4:$S$399,$AD$6,FALSE)/AS14,3)*1000) -> 990 | AE14: =IF($A$4="Numbers",MROUND(VLOOKUP($C14&R$8,'Calc-V'!$A$4:$S$399,$AD$6,FALSE),10),ROUND(VLOOKUP($C14&R$8,'Calc-V'!$A$4:$S$399,$AD$6,FALSE)/AT14,3)*1000) -> 760 | AF14: =IF($A$4="Numbers",MROUND(VLOOKUP($C14&S$8,'Calc-V'!$A$4:$S$399,$AD$6,FALSE),10),ROUND(VLOOKUP($C14&S$8,'Calc-V'!$A$4:$S$399,$AD$6,FALSE)/AU14,3)*1000) -> 760 | AG14: =IF($A$4="Numbers",MROUND(VLOOKUP($C14&T$8,'Calc-V'!$A$4:$S$399,$AD$6,FALSE),10),ROUND(VLOOKUP($C14&T$8,'Calc-V'!$A$4:$S$399,$AD$6,FALSE)/AV14,3)*1000) -> 760 | AH14: =IF($A$4="Numbers",MROUND(VLOOKUP($C14&U$8,'Calc-V'!$A$4:$S$399,$AD$6,FALSE),10),ROUND(VLOOKUP($C14&U$8,'Calc-V'!$A$4:$S$399,$AD$6,FALSE)/AW14,3)*1000) -> 760 | AI14: =IF($A$4="Numbers",MROUND(VLOOKUP($C14&V$8,'Calc-V'!$A$4:$S$399,$AD$6,FALSE),10),ROUND(VLOOKUP($C14&V$8,'Calc-V'!$A$4:$S$399,$AD$6,FALSE)/AX14,3)*1000) -> 850 | AJ14: =IF($A$4="Numbers",MROUND(VLOOKUP($C14&W$8,'Calc-V'!$A$4:$S$399,$AD$6,FALSE),10),ROUND(VLOOKUP($C14&W$8,'Calc-V'!$A$4:$S$399,$AD$6,FALSE)/AY14,3)*1000) -> 850 | AK14: =IF($A$4="Numbers",MROUND(VLOOKUP($C14&X$8,'Calc-V'!$A$4:$S$399,$AD$6,FALSE),10),ROUND(VLOOKUP($C14&X$8,'Calc-V'!$A$4:$S$399,$AD$6,FALSE)/AZ14,3)*1000) -> 930 | AL14: =IF($A$4="Numbers",MROUND(VLOOKUP($C14&Y$8,'Calc-V'!$A$4:$S$399,$AD$6,FALSE),10),ROUND(VLOOKUP($C14&Y$8,'Calc-V'!$A$4:$S$399,$AD$6,FALSE)/BA14,3)*1000) -> 1100 | AM14: =IF($A$4="Numbers",MROUND(VLOOKUP($C14&Z$8,'Calc-V'!$A$4:$S$399,$AD$6,FALSE),10),ROUND(VLOOKUP($C14&Z$8,'Calc-V'!$A$4:$S$399,$AD$6,FALSE)/BB14,3)*1000) -> 1100 | AN14: =IF($A$4="Numbers",MROUND(VLOOKUP($C14&AA$8,'Calc-V'!$A$4:$S$399,$AD$6,FALSE),10),ROUND(VLOOKUP($C14&AA$8,'Calc-V'!$A$4:$S$399,$AD$6,FALSE)/BC14,3)*1000) -> 1160 | AO14: =IF($A$4="Numbers",MROUND(VLOOKUP($C14&AB$8,'Calc-V'!$A$4:$S$399,$AD$6,FALSE),10),ROUND(VLOOKUP($C14&AB$8,'Calc-V'!$A$4:$S$399,$AD$6,FALSE)/BD14,3)*1000) -> 1150 | AS14: =VLOOKUP($C14&AS$8,'Calc-V'!$A$4:$AA$399,$AS$6,FALSE) -> 150370 | AT14: =VLOOKUP($C14&AT$8,'Calc-V'!$A$4:$AA$399,$AS$6,FALSE) -> 151010 | AU14: =VLOOKUP($C14&AU$8,'Calc-V'!$A$4:$AA$399,$AS$6,FALSE) -> 151010 | AV14: =VLOOKUP($C14&AV$8,'Calc-V'!$A$4:$AA$399,$AS$6,FALSE) -> 151160 | AW14: =VLOOKUP($C14&AW$8,'Calc-V'!$A$4:$AA$399,$AS$6,FALSE) -> 151160 | AX14: =VLOOKUP($C14&AX$8,'Calc-V'!$A$4:$AA$399,$AS$6,FALSE) -> 151100 | AY14: =VLOOKUP($C14&AY$8,'Calc-V'!$A$4:$AA$399,$AS$6,FALSE) -> 151100 | AZ14: =VLOOKUP($C14&AZ$8,'Calc-V'!$A$4:$AA$399,$AS$6,FALSE) -> 151410 | BA14: =VLOOKUP($C14&BA$8,'Calc-V'!$A$4:$AA$399,$AS$6,FALSE) -> 150830 | BB14: =VLOOKUP($C14&BB$8,'Calc-V'!$A$4:$AA$399,$AS$6,FALSE) -> 150830 | BC14: =VLOOKUP($C14&BC$8,'Calc-V'!$A$4:$AA$399,$AS$6,FALSE) -> 150270 | BD14: =VLOOKUP($C14&BD$8,'Calc-V'!$A$4:$AA$399,$AS$6,FALSE) -> 149940
C15: Dundee City | D15: =IF($A$4="Numbers",MROUND(VLOOKUP($C15&D$8,'Calc-V'!$A$4:$W$399,$D$6,FALSE),10),ROUND(VLOOKUP($C15&D$8,'Calc-V'!$A$4:$W$399,$D$6,FALSE)/AS15,3)*1000) -> 5380 | E15: =IF($A$4="Numbers",MROUND(VLOOKUP($C15&E$8,'Calc-V'!$A$4:$W$399,$D$6,FALSE),10),ROUND(VLOOKUP($C15&E$8,'Calc-V'!$A$4:$W$399,$D$6,FALSE)/AT15,3)*1000) -> 5450 | F15: =IF($A$4="Numbers",MROUND(VLOOKUP($C15&F$8,'Calc-V'!$A$4:$W$399,$D$6,FALSE),10),ROUND(VLOOKUP($C15&F$8,'Calc-V'!$A$4:$W$399,$D$6,FALSE)/AU15,3)*1000) -> 6240 | G15: =IF($A$4="Numbers",MROUND(VLOOKUP($C15&G$8,'Calc-V'!$A$4:$W$399,$D$6,FALSE),10),ROUND(VLOOKUP($C15&G$8,'Calc-V'!$A$4:$W$399,$D$6,FALSE)/AV15,3)*1000) -> 7030 | H15: =IF($A$4="Numbers",MROUND(VLOOKUP($C15&H$8,'Calc-V'!$A$4:$W$399,$D$6,FALSE),10),ROUND(VLOOKUP($C15&H$8,'Calc-V'!$A$4:$W$399,$D$6,FALSE)/AW15,3)*1000) -> 7320 | I15: =IF($A$4="Numbers",MROUND(VLOOKUP($C15&I$8,'Calc-V'!$A$4:$W$399,$D$6,FALSE),10),ROUND(VLOOKUP($C15&I$8,'Calc-V'!$A$4:$W$399,$D$6,FALSE)/AX15,3)*1000) -> 8000 | J15: =IF($A$4="Numbers",MROUND(VLOOKUP($C15&J$8,'Calc-V'!$A$4:$W$399,$D$6,FALSE),10),ROUND(VLOOKUP($C15&J$8,'Calc-V'!$A$4:$W$399,$D$6,FALSE)/AY15,3)*1000) -> 8000 | K15: =IF($A$4="Numbers",MROUND(VLOOKUP($C15&K$8,'Calc-V'!$A$4:$W$399,$D$6,FALSE),10),ROUND(VLOOKUP($C15&K$8,'Calc-V'!$A$4:$W$399,$D$6,FALSE)/AZ15,3)*1000) -> 7670 | L15: =IF($A$4="Numbers",MROUND(VLOOKUP($C15&L$8,'Calc-V'!$A$4:$W$399,$D$6,FALSE),10),ROUND(VLOOKUP($C15&L$8,'Calc-V'!$A$4:$W$399,$D$6,FALSE)/BA15,3)*1000) -> 8010 | M15: =IF($A$4="Numbers",MROUND(VLOOKUP($C15&M$8,'Calc-V'!$A$4:$W$399,$D$6,FALSE),10),ROUND(VLOOKUP($C15&M$8,'Calc-V'!$A$4:$W$399,$D$6,FALSE)/BB15,3)*1000) -> 8010 | N15: =IF($A$4="Numbers",MROUND(VLOOKUP($C15&N$8,'Calc-V'!$A$4:$W$399,$D$6,FALSE),10),ROUND(VLOOKUP($C15&N$8,'Calc-V'!$A$4:$W$399,$D$6,FALSE)/BC15,3)*1000) -> 8090 | O15: =IF($A$4="Numbers",MROUND(VLOOKUP($C15&O$8,'Calc-V'!$A$4:$W$399,$D$6,FALSE),10),ROUND(VLOOKUP($C15&O$8,'Calc-V'!$A$4:$W$399,$D$6,FALSE)/BD15,3)*1000) -> 8900 | Q15: =IF($A$4="Numbers",MROUND(VLOOKUP($C15&D$8,'Calc-V'!$A$4:$S$399,$Q$6,FALSE),10),ROUND(VLOOKUP($C15&D$8,'Calc-V'!$A$4:$S$399,$Q$6,FALSE)/AS15,3)*1000) -> 2020 | R15: =IF($A$4="Numbers",MROUND(VLOOKUP($C15&E$8,'Calc-V'!$A$4:$S$399,$Q$6,FALSE),10),ROUND(VLOOKUP($C15&E$8,'Calc-V'!$A$4:$S$399,$Q$6,FALSE)/AT15,3)*1000) -> 2160 | S15: =IF($A$4="Numbers",MROUND(VLOOKUP($C15&F$8,'Calc-V'!$A$4:$S$399,$Q$6,FALSE),10),ROUND(VLOOKUP($C15&F$8,'Calc-V'!$A$4:$S$399,$Q$6,FALSE)/AU15,3)*1000) -> 2160 | T15: =IF($A$4="Numbers",MROUND(VLOOKUP($C15&G$8,'Calc-V'!$A$4:$S$399,$Q$6,FALSE),10),ROUND(VLOOKUP($C15&G$8,'Calc-V'!$A$4:$S$399,$Q$6,FALSE)/AV15,3)*1000) -> 2340 | U15: =IF($A$4="Numbers",MROUND(VLOOKUP($C15&H$8,'Calc-V'!$A$4:$S$399,$Q$6,FALSE),10),ROUND(VLOOKUP($C15&H$8,'Calc-V'!$A$4:$S$399,$Q$6,FALSE)/AW15,3)*1000) -> 2340 | V15: =IF($A$4="Numbers",MROUND(VLOOKUP($C15&I$8,'Calc-V'!$A$4:$S$399,$Q$6,FALSE),10),ROUND(VLOOKUP($C15&I$8,'Calc-V'!$A$4:$S$399,$Q$6,FALSE)/AX15,3)*1000) -> 2810 | W15: =IF($A$4="Numbers",MROUND(VLOOKUP($C15&J$8,'Calc-V'!$A$4:$S$399,$Q$6,FALSE),10),ROUND(VLOOKUP($C15&J$8,'Calc-V'!$A$4:$S$399,$Q$6,FALSE)/AY15,3)*1000) -> 2810 | X15: =IF($A$4="Numbers",MROUND(VLOOKUP($C15&K$8,'Calc-V'!$A$4:$S$399,$Q$6,FALSE),10),ROUND(VLOOKUP($C15&K$8,'Calc-V'!$A$4:$S$399,$Q$6,FALSE)/AZ15,3)*1000) -> 2320 | Y15: =IF($A$4="Numbers",MROUND(VLOOKUP($C15&L$8,'Calc-V'!$A$4:$S$399,$Q$6,FALSE),10),ROUND(VLOOKUP($C15&L$8,'Calc-V'!$A$4:$S$399,$Q$6,FALSE)/BA15,3)*1000) -> 2700 | Z15: =IF($A$4="Numbers",MROUND(VLOOKUP($C15&M$8,'Calc-V'!$A$4:$S$399,$Q$6,FALSE),10),ROUND(VLOOKUP($C15&M$8,'Calc-V'!$A$4:$S$399,$Q$6,FALSE)/BB15,3)*1000) -> 2700 | AA15: =IF($A$4="Numbers",MROUND(VLOOKUP($C15&N$8,'Calc-V'!$A$4:$S$399,$Q$6,FALSE),10),ROUND(VLOOKUP($C15&N$8,'Calc-V'!$A$4:$S$399,$Q$6,FALSE)/BC15,3)*1000) -> 2720 | AB15: =IF($A$4="Numbers",MROUND(VLOOKUP($C15&O$8,'Calc-V'!$A$4:$S$399,$Q$6,FALSE),10),ROUND(VLOOKUP($C15&O$8,'Calc-V'!$A$4:$S$399,$Q$6,FALSE)/BD15,3)*1000) -> 2560 | AD15: =IF($A$4="Numbers",MROUND(VLOOKUP($C15&Q$8,'Calc-V'!$A$4:$S$399,$AD$6,FALSE),10),ROUND(VLOOKUP($C15&Q$8,'Calc-V'!$A$4:$S$399,$AD$6,FALSE)/AS15,3)*1000) -> 3350 | AE15: =IF($A$4="Numbers",MROUND(VLOOKUP($C15&R$8,'Calc-V'!$A$4:$S$399,$AD$6,FALSE),10),ROUND(VLOOKUP($C15&R$8,'Calc-V'!$A$4:$S$399,$AD$6,FALSE)/AT15,3)*1000) -> 3290 | AF15: =IF($A$4="Numbers",MROUND(VLOOKUP($C15&S$8,'Calc-V'!$A$4:$S$399,$AD$6,FALSE),10),ROUND(VLOOKUP($C15&S$8,'Calc-V'!$A$4:$S$399,$AD$6,FALSE)/AU15,3)*1000) -> 4080 | AG15: =IF($A$4="Numbers",MROUND(VLOOKUP($C15&T$8,'Calc-V'!$A$4:$S$399,$AD$6,FALSE),10),ROUND(VLOOKUP($C15&T$8,'Calc-V'!$A$4:$S$399,$AD$6,FALSE)/AV15,3)*1000) -> 4690 | AH15: =IF($A$4="Numbers",MROUND(VLOOKUP($C15&U$8,'Calc-V'!$A$4:$S$399,$AD$6,FALSE),10),ROUND(VLOOKUP($C15&U$8,'Calc-V'!$A$4:$S$399,$AD$6,FALSE)/AW15,3)*1000) -> 4980 | AI15: =IF($A$4="Numbers",MROUND(VLOOKUP($C15&V$8,'Calc-V'!$A$4:$S$399,$AD$6,FALSE),10),ROUND(VLOOKUP($C15&V$8,'Calc-V'!$A$4:$S$399,$AD$6,FALSE)/AX15,3)*1000) -> 5180 | AJ15: =IF($A$4="Numbers",MROUND(VLOOKUP($C15&W$8,'Calc-V'!$A$4:$S$399,$AD$6,FALSE),10),ROUND(VLOOKUP($C15&W$8,'Calc-V'!$A$4:$S$399,$AD$6,FALSE)/AY15,3)*1000) -> 5180 | AK15: =IF($A$4="Numbers",MROUND(VLOOKUP($C15&X$8,'Calc-V'!$A$4:$S$399,$AD$6,FALSE),10),ROUND(VLOOKUP($C15&X$8,'Calc-V'!$A$4:$S$399,$AD$6,FALSE)/AZ15,3)*1000) -> 5360 | AL15: =IF($A$4="Numbers",MROUND(VLOOKUP($C15&Y$8,'Calc-V'!$A$4:$S$399,$AD$6,FALSE),10),ROUND(VLOOKUP($C15&Y$8,'Calc-V'!$A$4:$S$399,$AD$6,FALSE)/BA15,3)*1000) -> 5310 | AM15: =IF($A$4="Numbers",MROUND(VLOOKUP($C15&Z$8,'Calc-V'!$A$4:$S$399,$AD$6,FALSE),10),ROUND(VLOOKUP($C15&Z$8,'Calc-V'!$A$4:$S$399,$AD$6,FALSE)/BB15,3)*1000) -> 5310 | AN15: =IF($A$4="Numbers",MROUND(VLOOKUP($C15&AA$8,'Calc-V'!$A$4:$S$399,$AD$6,FALSE),10),ROUND(VLOOKUP($C15&AA$8,'Calc-V'!$A$4:$S$399,$AD$6,FALSE)/BC15,3)*1000) -> 5370 | AO15: =IF($A$4="Numbers",MROUND(VLOOKUP($C15&AB$8,'Calc-V'!$A$4:$S$399,$AD$6,FALSE),10),ROUND(VLOOKUP($C15&AB$8,'Calc-V'!$A$4:$S$399,$AD$6,FALSE)/BD15,3)*1000) -> 6330 | AS15: =VLOOKUP($C15&AS$8,'Calc-V'!$A$4:$AA$399,$AS$6,FALSE) -> 143700 | AT15: =VLOOKUP($C15&AT$8,'Calc-V'!$A$4:$AA$399,$AS$6,FALSE) -> 144290 | AU15: =VLOOKUP($C15&AU$8,'Calc-V'!$A$4:$AA$399,$AS$6,FALSE) -> 144290 | AV15: =VLOOKUP($C15&AV$8,'Calc-V'!$A$4:$AA$399,$AS$6,FALSE) -> 145170 | AW15: =VLOOKUP($C15&AW$8,'Calc-V'!$A$4:$AA$399,$AS$6,FALSE) -> 145170 | AX15: =VLOOKUP($C15&AX$8,'Calc-V'!$A$4:$AA$399,$AS$6,FALSE) -> 146060 | AY15: =VLOOKUP($C15&AY$8,'Calc-V'!$A$4:$AA$399,$AS$6,FALSE) -> 146060 | AZ15: =VLOOKUP($C15&AZ$8,'Calc-V'!$A$4:$AA$399,$AS$6,FALSE) -> 147200 | BA15: =VLOOKUP($C15&BA$8,'Calc-V'!$A$4:$AA$399,$AS$6,FALSE) -> 147800 | BB15: =VLOOKUP($C15&BB$8,'Calc-V'!$A$4:$AA$399,$AS$6,FALSE) -> 147800 | BC15: =VLOOKUP($C15&BC$8,'Calc-V'!$A$4:$AA$399,$AS$6,FALSE) -> 148170 | BD15: =VLOOKUP($C15&BD$8,'Calc-V'!$A$4:$AA$399,$AS$6,FALSE) -> 148260
C16: East Ayrshire | D16: =IF($A$4="Numbers",MROUND(VLOOKUP($C16&D$8,'Calc-V'!$A$4:$W$399,$D$6,FALSE),10),ROUND(VLOOKUP($C16&D$8,'Calc-V'!$A$4:$W$399,$D$6,FALSE)/AS16,3)*1000) -> 3940 | E16: =IF($A$4="Numbers",MROUND(VLOOKUP($C16&E$8,'Calc-V'!$A$4:$W$399,$D$6,FALSE),10),ROUND(VLOOKUP($C16&E$8,'Calc-V'!$A$4:$W$399,$D$6,FALSE)/AT16,3)*1000) -> 4110 | F16: =IF($A$4="Numbers",MROUND(VLOOKUP($C16&F$8,'Calc-V'!$A$4:$W$399,$D$6,FALSE),10),ROUND(VLOOKUP($C16&F$8,'Calc-V'!$A$4:$W$399,$D$6,FALSE)/AU16,3)*1000) -> 6190 | G16: =IF($A$4="Numbers",MROUND(VLOOKUP($C16&G$8,'Calc-V'!$A$4:$W$399,$D$6,FALSE),10),ROUND(VLOOKUP($C16&G$8,'Calc-V'!$A$4:$W$399,$D$6,FALSE)/AV16,3)*1000) -> 6540 | H16: =IF($A$4="Numbers",MROUND(VLOOKUP($C16&H$8,'Calc-V'!$A$4:$W$399,$D$6,FALSE),10),ROUND(VLOOKUP($C16&H$8,'Calc-V'!$A$4:$W$399,$D$6,FALSE)/AW16,3)*1000) -> 6540 | I16: =IF($A$4="Numbers",MROUND(VLOOKUP($C16&I$8,'Calc-V'!$A$4:$W$399,$D$6,FALSE),10),ROUND(VLOOKUP($C16&I$8,'Calc-V'!$A$4:$W$399,$D$6,FALSE)/AX16,3)*1000) -> 6580 | J16: =IF($A$4="Numbers",MROUND(VLOOKUP($C16&J$8,'Calc-V'!$A$4:$W$399,$D$6,FALSE),10),ROUND(VLOOKUP($C16&J$8,'Calc-V'!$A$4:$W$399,$D$6,FALSE)/AY16,3)*1000) -> 6580 | K16: =IF($A$4="Numbers",MROUND(VLOOKUP($C16&K$8,'Calc-V'!$A$4:$W$399,$D$6,FALSE),10),ROUND(VLOOKUP($C16&K$8,'Calc-V'!$A$4:$W$399,$D$6,FALSE)/AZ16,3)*1000) -> 6800 | L16: =IF($A$4="Numbers",MROUND(VLOOKUP($C16&L$8,'Calc-V'!$A$4:$W$399,$D$6,FALSE),10),ROUND(VLOOKUP($C16&L$8,'Calc-V'!$A$4:$W$399,$D$6,FALSE)/BA16,3)*1000) -> 6720 | M16: =IF($A$4="Numbers",MROUND(VLOOKUP($C16&M$8,'Calc-V'!$A$4:$W$399,$D$6,FALSE),10),ROUND(VLOOKUP($C16&M$8,'Calc-V'!$A$4:$W$399,$D$6,FALSE)/BB16,3)*1000) -> 6720 | N16: =IF($A$4="Numbers",MROUND(VLOOKUP($C16&N$8,'Calc-V'!$A$4:$W$399,$D$6,FALSE),10),ROUND(VLOOKUP($C16&N$8,'Calc-V'!$A$4:$W$399,$D$6,FALSE)/BC16,3)*1000) -> 7290 | O16: =IF($A$4="Numbers",MROUND(VLOOKUP($C16&O$8,'Calc-V'!$A$4:$W$399,$D$6,FALSE),10),ROUND(VLOOKUP($C16&O$8,'Calc-V'!$A$4:$W$399,$D$6,FALSE)/BD16,3)*1000) -> 6150 | Q16: =IF($A$4="Numbers",MROUND(VLOOKUP($C16&D$8,'Calc-V'!$A$4:$S$399,$Q$6,FALSE),10),ROUND(VLOOKUP($C16&D$8,'Calc-V'!$A$4:$S$399,$Q$6,FALSE)/AS16,3)*1000) -> 1840 | R16: =IF($A$4="Numbers",MROUND(VLOOKUP($C16&E$8,'Calc-V'!$A$4:$S$399,$Q$6,FALSE),10),ROUND(VLOOKUP($C16&E$8,'Calc-V'!$A$4:$S$399,$Q$6,FALSE)/AT16,3)*1000) -> 1780 | S16: =IF($A$4="Numbers",MROUND(VLOOKUP($C16&F$8,'Calc-V'!$A$4:$S$399,$Q$6,FALSE),10),ROUND(VLOOKUP($C16&F$8,'Calc-V'!$A$4:$S$399,$Q$6,FALSE)/AU16,3)*1000) -> 1780 | T16: =IF($A$4="Numbers",MROUND(VLOOKUP($C16&G$8,'Calc-V'!$A$4:$S$399,$Q$6,FALSE),10),ROUND(VLOOKUP($C16&G$8,'Calc-V'!$A$4:$S$399,$Q$6,FALSE)/AV16,3)*1000) -> 1810 | U16: =IF($A$4="Numbers",MROUND(VLOOKUP($C16&H$8,'Calc-V'!$A$4:$S$399,$Q$6,FALSE),10),ROUND(VLOOKUP($C16&H$8,'Calc-V'!$A$4:$S$399,$Q$6,FALSE)/AW16,3)*1000) -> 1810 | V16: =IF($A$4="Numbers",MROUND(VLOOKUP($C16&I$8,'Calc-V'!$A$4:$S$399,$Q$6,FALSE),10),ROUND(VLOOKUP($C16&I$8,'Calc-V'!$A$4:$S$399,$Q$6,FALSE)/AX16,3)*1000) -> 1800 | W16: =IF($A$4="Numbers",MROUND(VLOOKUP($C16&J$8,'Calc-V'!$A$4:$S$399,$Q$6,FALSE),10),ROUND(VLOOKUP($C16&J$8,'Calc-V'!$A$4:$S$399,$Q$6,FALSE)/AY16,3)*1000) -> 1800 | X16: =IF($A$4="Numbers",MROUND(VLOOKUP($C16&K$8,'Calc-V'!$A$4:$S$399,$Q$6,FALSE),10),ROUND(VLOOKUP($C16&K$8,'Calc-V'!$A$4:$S$399,$Q$6,FALSE)/AZ16,3)*1000) -> 1920 | Y16: =IF($A$4="Numbers",MROUND(VLOOKUP($C16&L$8,'Calc-V'!$A$4:$S$399,$Q$6,FALSE),10),ROUND(VLOOKUP($C16&L$8,'Calc-V'!$A$4:$S$399,$Q$6,FALSE)/BA16,3)*1000) -> 1760 | Z16: =IF($A$4="Numbers",MROUND(VLOOKUP($C16&M$8,'Calc-V'!$A$4:$S$399,$Q$6,FALSE),10),ROUND(VLOOKUP($C16&M$8,'Calc-V'!$A$4:$S$399,$Q$6,FALSE)/BB16,3)*1000) -> 1760 | AA16: =IF($A$4="Numbers",MROUND(VLOOKUP($C16&N$8,'Calc-V'!$A$4:$S$399,$Q$6,FALSE),10),ROUND(VLOOKUP($C16&N$8,'Calc-V'!$A$4:$S$399,$Q$6,FALSE)/BC16,3)*1000) -> 1700 | AB16: =IF($A$4="Numbers",MROUND(VLOOKUP($C16&O$8,'Calc-V'!$A$4:$S$399,$Q$6,FALSE),10),ROUND(VLOOKUP($C16&O$8,'Calc-V'!$A$4:$S$399,$Q$6,FALSE)/BD16,3)*1000) -> 1630 | AD16: =IF($A$4="Numbers",MROUND(VLOOKUP($C16&Q$8,'Calc-V'!$A$4:$S$399,$AD$6,FALSE),10),ROUND(VLOOKUP($C16&Q$8,'Calc-V'!$A$4:$S$399,$AD$6,FALSE)/AS16,3)*1000) -> 2100 | AE16: =IF($A$4="Numbers",MROUND(VLOOKUP($C16&R$8,'Calc-V'!$A$4:$S$399,$AD$6,FALSE),10),ROUND(VLOOKUP($C16&R$8,'Calc-V'!$A$4:$S$399,$AD$6,FALSE)/AT16,3)*1000) -> 2330 | AF16: =IF($A$4="Numbers",MROUND(VLOOKUP($C16&S$8,'Calc-V'!$A$4:$S$399,$AD$6,FALSE),10),ROUND(VLOOKUP($C16&S$8,'Calc-V'!$A$4:$S$399,$AD$6,FALSE)/AU16,3)*1000) -> 4410 | AG16: =IF($A$4="Numbers",MROUND(VLOOKUP($C16&T$8,'Calc-V'!$A$4:$S$399,$AD$6,FALSE),10),ROUND(VLOOKUP($C16&T$8,'Calc-V'!$A$4:$S$399,$AD$6,FALSE)/AV16,3)*1000) -> 4730 | AH16: =IF($A$4="Numbers",MROUND(VLOOKUP($C16&U$8,'Calc-V'!$A$4:$S$399,$AD$6,FALSE),10),ROUND(VLOOKUP($C16&U$8,'Calc-V'!$A$4:$S$399,$AD$6,FALSE)/AW16,3)*1000) -> 4730 | AI16: =IF($A$4="Numbers",MROUND(VLOOKUP($C16&V$8,'Calc-V'!$A$4:$S$399,$AD$6,FALSE),10),ROUND(VLOOKUP($C16&V$8,'Calc-V'!$A$4:$S$399,$AD$6,FALSE)/AX16,3)*1000) -> 4780 | AJ16: =IF($A$4="Numbers",MROUND(VLOOKUP($C16&W$8,'Calc-V'!$A$4:$S$399,$AD$6,FALSE),10),ROUND(VLOOKUP($C16&W$8,'Calc-V'!$A$4:$S$399,$AD$6,FALSE)/AY16,3)*1000) -> 4780 | AK16: =IF($A$4="Numbers",MROUND(VLOOKUP($C16&X$8,'Calc-V'!$A$4:$S$399,$AD$6,FALSE),10),ROUND(VLOOKUP($C16&X$8,'Calc-V'!$A$4:$S$399,$AD$6,FALSE)/AZ16,3)*1000) -> 4880 | AL16: =IF($A$4="Numbers",MROUND(VLOOKUP($C16&Y$8,'Calc-V'!$A$4:$S$399,$AD$6,FALSE),10),ROUND(VLOOKUP($C16&Y$8,'Calc-V'!$A$4:$S$399,$AD$6,FALSE)/BA16,3)*1000) -> 4960 | AM16: =IF($A$4="Numbers",MROUND(VLOOKUP($C16&Z$8,'Calc-V'!$A$4:$S$399,$AD$6,FALSE),10),ROUND(VLOOKUP($C16&Z$8,'Calc-V'!$A$4:$S$399,$AD$6,FALSE)/BB16,3)*1000) -> 4960 | AN16: =IF($A$4="Numbers",MROUND(VLOOKUP($C16&AA$8,'Calc-V'!$A$4:$S$399,$AD$6,FALSE),10),ROUND(VLOOKUP($C16&AA$8,'Calc-V'!$A$4:$S$399,$AD$6,FALSE)/BC16,3)*1000) -> 5590 | AO16: =IF($A$4="Numbers",MROUND(VLOOKUP($C16&AB$8,'Calc-V'!$A$4:$S$399,$AD$6,FALSE),10),ROUND(VLOOKUP($C16&AB$8,'Calc-V'!$A$4:$S$399,$AD$6,FALSE)/BD16,3)*1000) -> 4510 | AS16: =VLOOKUP($C16&AS$8,'Calc-V'!$A$4:$AA$399,$AS$6,FALSE) -> 120950 | AT16: =VLOOKUP($C16&AT$8,'Calc-V'!$A$4:$AA$399,$AS$6,FALSE) -> 121590 | AU16: =VLOOKUP($C16&AU$8,'Calc-V'!$A$4:$AA$399,$AS$6,FALSE) -> 121590 | AV16: =VLOOKUP($C16&AV$8,'Calc-V'!$A$4:$AA$399,$AS$6,FALSE) -> 122110 | AW16: =VLOOKUP($C16&AW$8,'Calc-V'!$A$4:$AA$399,$AS$6,FALSE) -> 122110 | AX16: =VLOOKUP($C16&AX$8,'Calc-V'!$A$4:$AA$399,$AS$6,FALSE) -> 122410 | AY16: =VLOOKUP($C16&AY$8,'Calc-V'!$A$4:$AA$399,$AS$6,FALSE) -> 122410 | AZ16: =VLOOKUP($C16&AZ$8,'Calc-V'!$A$4:$AA$399,$AS$6,FALSE) -> 122690 | BA16: =VLOOKUP($C16&BA$8,'Calc-V'!$A$4:$AA$399,$AS$6,FALSE) -> 122720 | BB16: =VLOOKUP($C16&BB$8,'Calc-V'!$A$4:$AA$399,$AS$6,FALSE) -> 122720 | BC16: =VLOOKUP($C16&BC$8,'Calc-V'!$A$4:$AA$399,$AS$6,FALSE) -> 122440 | BD16: =VLOOKUP($C16&BD$8,'Calc-V'!$A$4:$AA$399,$AS$6,FALSE) -> 122150
C17: East Dunbartonshire | D17: =IF($A$4="Numbers",MROUND(VLOOKUP($C17&D$8,'Calc-V'!$A$4:$W$399,$D$6,FALSE),10),ROUND(VLOOKUP($C17&D$8,'Calc-V'!$A$4:$W$399,$D$6,FALSE)/AS17,3)*1000) -> 6530 | E17: =IF($A$4="Numbers",MROUND(VLOOKUP($C17&E$8,'Calc-V'!$A$4:$W$399,$D$6,FALSE),10),ROUND(VLOOKUP($C17&E$8,'Calc-V'!$A$4:$W$399,$D$6,FALSE)/AT17,3)*1000) -> 6950 | F17: =IF($A$4="Numbers",MROUND(VLOOKUP($C17&F$8,'Calc-V'!$A$4:$W$399,$D$6,FALSE),10),ROUND(VLOOKUP($C17&F$8,'Calc-V'!$A$4:$W$399,$D$6,FALSE)/AU17,3)*1000) -> 6950 | G17: =IF($A$4="Numbers",MROUND(VLOOKUP($C17&G$8,'Calc-V'!$A$4:$W$399,$D$6,FALSE),10),ROUND(VLOOKUP($C17&G$8,'Calc-V'!$A$4:$W$399,$D$6,FALSE)/AV17,3)*1000) -> 7610 | H17: =IF($A$4="Numbers",MROUND(VLOOKUP($C17&H$8,'Calc-V'!$A$4:$W$399,$D$6,FALSE),10),ROUND(VLOOKUP($C17&H$8,'Calc-V'!$A$4:$W$399,$D$6,FALSE)/AW17,3)*1000) -> 7610 | I17: =IF($A$4="Numbers",MROUND(VLOOKUP($C17&I$8,'Calc-V'!$A$4:$W$399,$D$6,FALSE),10),ROUND(VLOOKUP($C17&I$8,'Calc-V'!$A$4:$W$399,$D$6,FALSE)/AX17,3)*1000) -> 6960 | J17: =IF($A$4="Numbers",MROUND(VLOOKUP($C17&J$8,'Calc-V'!$A$4:$W$399,$D$6,FALSE),10),ROUND(VLOOKUP($C17&J$8,'Calc-V'!$A$4:$W$399,$D$6,FALSE)/AY17,3)*1000) -> 6960 | K17: =IF($A$4="Numbers",MROUND(VLOOKUP($C17&K$8,'Calc-V'!$A$4:$W$399,$D$6,FALSE),10),ROUND(VLOOKUP($C17&K$8,'Calc-V'!$A$4:$W$399,$D$6,FALSE)/AZ17,3)*1000) -> 7040 | L17: =IF($A$4="Numbers",MROUND(VLOOKUP($C17&L$8,'Calc-V'!$A$4:$W$399,$D$6,FALSE),10),ROUND(VLOOKUP($C17&L$8,'Calc-V'!$A$4:$W$399,$D$6,FALSE)/BA17,3)*1000) -> 6500 | M17: =IF($A$4="Numbers",MROUND(VLOOKUP($C17&M$8,'Calc-V'!$A$4:$W$399,$D$6,FALSE),10),ROUND(VLOOKUP($C17&M$8,'Calc-V'!$A$4:$W$399,$D$6,FALSE)/BB17,3)*1000) -> 6410 | N17: =IF($A$4="Numbers",MROUND(VLOOKUP($C17&N$8,'Calc-V'!$A$4:$W$399,$D$6,FALSE),10),ROUND(VLOOKUP($C17&N$8,'Calc-V'!$A$4:$W$399,$D$6,FALSE)/BC17,3)*1000) -> 8240 | O17: =IF($A$4="Numbers",MROUND(VLOOKUP($C17&O$8,'Calc-V'!$A$4:$W$399,$D$6,FALSE),10),ROUND(VLOOKUP($C17&O$8,'Calc-V'!$A$4:$W$399,$D$6,FALSE)/BD17,3)*1000) -> 8600 | Q17: =IF($A$4="Numbers",MROUND(VLOOKUP($C17&D$8,'Calc-V'!$A$4:$S$399,$Q$6,FALSE),10),ROUND(VLOOKUP($C17&D$8,'Calc-V'!$A$4:$S$399,$Q$6,FALSE)/AS17,3)*1000) -> 1040 | R17: =IF($A$4="Numbers",MROUND(VLOOKUP($C17&E$8,'Calc-V'!$A$4:$S$399,$Q$6,FALSE),10),ROUND(VLOOKUP($C17&E$8,'Calc-V'!$A$4:$S$399,$Q$6,FALSE)/AT17,3)*1000) -> 960 | S17: =IF($A$4="Numbers",MROUND(VLOOKUP($C17&F$8,'Calc-V'!$A$4:$S$399,$Q$6,FALSE),10),ROUND(VLOOKUP($C17&F$8,'Calc-V'!$A$4:$S$399,$Q$6,FALSE)/AU17,3)*1000) -> 960 | T17: =IF($A$4="Numbers",MROUND(VLOOKUP($C17&G$8,'Calc-V'!$A$4:$S$399,$Q$6,FALSE),10),ROUND(VLOOKUP($C17&G$8,'Calc-V'!$A$4:$S$399,$Q$6,FALSE)/AV17,3)*1000) -> 1090 | U17: =IF($A$4="Numbers",MROUND(VLOOKUP($C17&H$8,'Calc-V'!$A$4:$S$399,$Q$6,FALSE),10),ROUND(VLOOKUP($C17&H$8,'Calc-V'!$A$4:$S$399,$Q$6,FALSE)/AW17,3)*1000) -> 1090 | V17: =IF($A$4="Numbers",MROUND(VLOOKUP($C17&I$8,'Calc-V'!$A$4:$S$399,$Q$6,FALSE),10),ROUND(VLOOKUP($C17&I$8,'Calc-V'!$A$4:$S$399,$Q$6,FALSE)/AX17,3)*1000) -> 1010 | W17: =IF($A$4="Numbers",MROUND(VLOOKUP($C17&J$8,'Calc-V'!$A$4:$S$399,$Q$6,FALSE),10),ROUND(VLOOKUP($C17&J$8,'Calc-V'!$A$4:$S$399,$Q$6,FALSE)/AY17,3)*1000) -> 1010 | X17: =IF($A$4="Numbers",MROUND(VLOOKUP($C17&K$8,'Calc-V'!$A$4:$S$399,$Q$6,FALSE),10),ROUND(VLOOKUP($C17&K$8,'Calc-V'!$A$4:$S$399,$Q$6,FALSE)/AZ17,3)*1000) -> 1080 | Y17: =IF($A$4="Numbers",MROUND(VLOOKUP($C17&L$8,'Calc-V'!$A$4:$S$399,$Q$6,FALSE),10),ROUND(VLOOKUP($C17&L$8,'Calc-V'!$A$4:$S$399,$Q$6,FALSE)/BA17,3)*1000) -> 1140 | Z17: =IF($A$4="Numbers",MROUND(VLOOKUP($C17&M$8,'Calc-V'!$A$4:$S$399,$Q$6,FALSE),10),ROUND(VLOOKUP($C17&M$8,'Calc-V'!$A$4:$S$399,$Q$6,FALSE)/BB17,3)*1000) -> 1140 | AA17: =IF($A$4="Numbers",MROUND(VLOOKUP($C17&N$8,'Calc-V'!$A$4:$S$399,$Q$6,FALSE),10),ROUND(VLOOKUP($C17&N$8,'Calc-V'!$A$4:$S$399,$Q$6,FALSE)/BC17,3)*1000) -> 1180 | AB17: =IF($A$4="Numbers",MROUND(VLOOKUP($C17&O$8,'Calc-V'!$A$4:$S$399,$Q$6,FALSE),10),ROUND(VLOOKUP($C17&O$8,'Calc-V'!$A$4:$S$399,$Q$6,FALSE)/BD17,3)*1000) -> 1030 | AD17: =IF($A$4="Numbers",MROUND(VLOOKUP($C17&Q$8,'Calc-V'!$A$4:$S$399,$AD$6,FALSE),10),ROUND(VLOOKUP($C17&Q$8,'Calc-V'!$A$4:$S$399,$AD$6,FALSE)/AS17,3)*1000) -> 5490 | AE17: =IF($A$4="Numbers",MROUND(VLOOKUP($C17&R$8,'Calc-V'!$A$4:$S$399,$AD$6,FALSE),10),ROUND(VLOOKUP($C17&R$8,'Calc-V'!$A$4:$S$399,$AD$6,FALSE)/AT17,3)*1000) -> 5990 | AF17: =IF($A$4="Numbers",MROUND(VLOOKUP($C17&S$8,'Calc-V'!$A$4:$S$399,$AD$6,FALSE),10),ROUND(VLOOKUP($C17&S$8,'Calc-V'!$A$4:$S$399,$AD$6,FALSE)/AU17,3)*1000) -> 5990 | AG17: =IF($A$4="Numbers",MROUND(VLOOKUP($C17&T$8,'Calc-V'!$A$4:$S$399,$AD$6,FALSE),10),ROUND(VLOOKUP($C17&T$8,'Calc-V'!$A$4:$S$399,$AD$6,FALSE)/AV17,3)*1000) -> 6520 | AH17: =IF($A$4="Numbers",MROUND(VLOOKUP($C17&U$8,'Calc-V'!$A$4:$S$399,$AD$6,FALSE),10),ROUND(VLOOKUP($C17&U$8,'Calc-V'!$A$4:$S$399,$AD$6,FALSE)/AW17,3)*1000) -> 6520 | AI17: =IF($A$4="Numbers",MROUND(VLOOKUP($C17&V$8,'Calc-V'!$A$4:$S$399,$AD$6,FALSE),10),ROUND(VLOOKUP($C17&V$8,'Calc-V'!$A$4:$S$399,$AD$6,FALSE)/AX17,3)*1000) -> 5950 | AJ17: =IF($A$4="Numbers",MROUND(VLOOKUP($C17&W$8,'Calc-V'!$A$4:$S$399,$AD$6,FALSE),10),ROUND(VLOOKUP($C17&W$8,'Calc-V'!$A$4:$S$399,$AD$6,FALSE)/AY17,3)*1000) -> 5950 | AK17: =IF($A$4="Numbers",MROUND(VLOOKUP($C17&X$8,'Calc-V'!$A$4:$S$399,$AD$6,FALSE),10),ROUND(VLOOKUP($C17&X$8,'Calc-V'!$A$4:$S$399,$AD$6,FALSE)/AZ17,3)*1000) -> 5960 | AL17: =IF($A$4="Numbers",MROUND(VLOOKUP($C17&Y$8,'Calc-V'!$A$4:$S$399,$AD$6,FALSE),10),ROUND(VLOOKUP($C17&Y$8,'Calc-V'!$A$4:$S$399,$AD$6,FALSE)/BA17,3)*1000) -> 5360 | AM17: =IF($A$4="Numbers",MROUND(VLOOKUP($C17&Z$8,'Calc-V'!$A$4:$S$399,$AD$6,FALSE),10),ROUND(VLOOKUP($C17&Z$8,'Calc-V'!$A$4:$S$399,$AD$6,FALSE)/BB17,3)*1000) -> 5270 | AN17: =IF($A$4="Numbers",MROUND(VLOOKUP($C17&AA$8,'Calc-V'!$A$4:$S$399,$AD$6,FALSE),10),ROUND(VLOOKUP($C17&AA$8,'Calc-V'!$A$4:$S$399,$AD$6,FALSE)/BC17,3)*1000) -> 7060 | AO17: =IF($A$4="Numbers",MROUND(VLOOKUP($C17&AB$8,'Calc-V'!$A$4:$S$399,$AD$6,FALSE),10),ROUND(VLOOKUP($C17&AB$8,'Calc-V'!$A$4:$S$399,$AD$6,FALSE)/BD17,3)*1000) -> 7570 | AS17: =VLOOKUP($C17&AS$8,'Calc-V'!$A$4:$AA$399,$AS$6,FALSE) -> 105050 | AT17: =VLOOKUP($C17&AT$8,'Calc-V'!$A$4:$AA$399,$AS$6,FALSE) -> 104940 | AU17: =VLOOKUP($C17&AU$8,'Calc-V'!$A$4:$AA$399,$AS$6,FALSE) -> 104940 | AV17: =VLOOKUP($C17&AV$8,'Calc-V'!$A$4:$AA$399,$AS$6,FALSE) -> 104960 | AW17: =VLOOKUP($C17&AW$8,'Calc-V'!$A$4:$AA$399,$AS$6,FALSE) -> 104960 | AX17: =VLOOKUP($C17&AX$8,'Calc-V'!$A$4:$AA$399,$AS$6,FALSE) -> 104920 | AY17: =VLOOKUP($C17&AY$8,'Calc-V'!$A$4:$AA$399,$AS$6,FALSE) -> 104920 | AZ17: =VLOOKUP($C17&AZ$8,'Calc-V'!$A$4:$AA$399,$AS$6,FALSE) -> 105000 | BA17: =VLOOKUP($C17&BA$8,'Calc-V'!$A$4:$AA$399,$AS$6,FALSE) -> 105880 | BB17: =VLOOKUP($C17&BB$8,'Calc-V'!$A$4:$AA$399,$AS$6,FALSE) -> 105880 | BC17: =VLOOKUP($C17&BC$8,'Calc-V'!$A$4:$AA$399,$AS$6,FALSE) -> 105860 | BD17: =VLOOKUP($C17&BD$8,'Calc-V'!$A$4:$AA$399,$AS$6,FALSE) -> 106730
C18: East Lothian | D18: =IF($A$4="Numbers",MROUND(VLOOKUP($C18&D$8,'Calc-V'!$A$4:$W$399,$D$6,FALSE),10),ROUND(VLOOKUP($C18&D$8,'Calc-V'!$A$4:$W$399,$D$6,FALSE)/AS18,3)*1000) -> 1750 | E18: =IF($A$4="Numbers",MROUND(VLOOKUP($C18&E$8,'Calc-V'!$A$4:$W$399,$D$6,FALSE),10),ROUND(VLOOKUP($C18&E$8,'Calc-V'!$A$4:$W$399,$D$6,FALSE)/AT18,3)*1000) -> 1690 | F18: =IF($A$4="Numbers",MROUND(VLOOKUP($C18&F$8,'Calc-V'!$A$4:$W$399,$D$6,FALSE),10),ROUND(VLOOKUP($C18&F$8,'Calc-V'!$A$4:$W$399,$D$6,FALSE)/AU18,3)*1000) -> 1690 | G18: =IF($A$4="Numbers",MROUND(VLOOKUP($C18&G$8,'Calc-V'!$A$4:$W$399,$D$6,FALSE),10),ROUND(VLOOKUP($C18&G$8,'Calc-V'!$A$4:$W$399,$D$6,FALSE)/AV18,3)*1000) -> 1660 | H18: =IF($A$4="Numbers",MROUND(VLOOKUP($C18&H$8,'Calc-V'!$A$4:$W$399,$D$6,FALSE),10),ROUND(VLOOKUP($C18&H$8,'Calc-V'!$A$4:$W$399,$D$6,FALSE)/AW18,3)*1000) -> 1660 | I18: =IF($A$4="Numbers",MROUND(VLOOKUP($C18&I$8,'Calc-V'!$A$4:$W$399,$D$6,FALSE),10),ROUND(VLOOKUP($C18&I$8,'Calc-V'!$A$4:$W$399,$D$6,FALSE)/AX18,3)*1000) -> 1770 | J18: =IF($A$4="Numbers",MROUND(VLOOKUP($C18&J$8,'Calc-V'!$A$4:$W$399,$D$6,FALSE),10),ROUND(VLOOKUP($C18&J$8,'Calc-V'!$A$4:$W$399,$D$6,FALSE)/AY18,3)*1000) -> 1770 | K18: =IF($A$4="Numbers",MROUND(VLOOKUP($C18&K$8,'Calc-V'!$A$4:$W$399,$D$6,FALSE),10),ROUND(VLOOKUP($C18&K$8,'Calc-V'!$A$4:$W$399,$D$6,FALSE)/AZ18,3)*1000) -> 1810 | L18: =IF($A$4="Numbers",MROUND(VLOOKUP($C18&L$8,'Calc-V'!$A$4:$W$399,$D$6,FALSE),10),ROUND(VLOOKUP($C18&L$8,'Calc-V'!$A$4:$W$399,$D$6,FALSE)/BA18,3)*1000) -> 2270 | M18: =IF($A$4="Numbers",MROUND(VLOOKUP($C18&M$8,'Calc-V'!$A$4:$W$399,$D$6,FALSE),10),ROUND(VLOOKUP($C18&M$8,'Calc-V'!$A$4:$W$399,$D$6,FALSE)/BB18,3)*1000) -> 2270 | N18: =IF($A$4="Numbers",MROUND(VLOOKUP($C18&N$8,'Calc-V'!$A$4:$W$399,$D$6,FALSE),10),ROUND(VLOOKUP($C18&N$8,'Calc-V'!$A$4:$W$399,$D$6,FALSE)/BC18,3)*1000) -> 2150 | O18: =IF($A$4="Numbers",MROUND(VLOOKUP($C18&O$8,'Calc-V'!$A$4:$W$399,$D$6,FALSE),10),ROUND(VLOOKUP($C18&O$8,'Calc-V'!$A$4:$W$399,$D$6,FALSE)/BD18,3)*1000) -> 1950 | Q18: =IF($A$4="Numbers",MROUND(VLOOKUP($C18&D$8,'Calc-V'!$A$4:$S$399,$Q$6,FALSE),10),ROUND(VLOOKUP($C18&D$8,'Calc-V'!$A$4:$S$399,$Q$6,FALSE)/AS18,3)*1000) -> 1210 | R18: =IF($A$4="Numbers",MROUND(VLOOKUP($C18&E$8,'Calc-V'!$A$4:$S$399,$Q$6,FALSE),10),ROUND(VLOOKUP($C18&E$8,'Calc-V'!$A$4:$S$399,$Q$6,FALSE)/AT18,3)*1000) -> 1260 | S18: =IF($A$4="Numbers",MROUND(VLOOKUP($C18&F$8,'Calc-V'!$A$4:$S$399,$Q$6,FALSE),10),ROUND(VLOOKUP($C18&F$8,'Calc-V'!$A$4:$S$399,$Q$6,FALSE)/AU18,3)*1000) -> 1260 | T18: =IF($A$4="Numbers",MROUND(VLOOKUP($C18&G$8,'Calc-V'!$A$4:$S$399,$Q$6,FALSE),10),ROUND(VLOOKUP($C18&G$8,'Calc-V'!$A$4:$S$399,$Q$6,FALSE)/AV18,3)*1000) -> 1170 | U18: =IF($A$4="Numbers",MROUND(VLOOKUP($C18&H$8,'Calc-V'!$A$4:$S$399,$Q$6,FALSE),10),ROUND(VLOOKUP($C18&H$8,'Calc-V'!$A$4:$S$399,$Q$6,FALSE)/AW18,3)*1000) -> 1170 | V18: =IF($A$4="Numbers",MROUND(VLOOKUP($C18&I$8,'Calc-V'!$A$4:$S$399,$Q$6,FALSE),10),ROUND(VLOOKUP($C18&I$8,'Calc-V'!$A$4:$S$399,$Q$6,FALSE)/AX18,3)*1000) -> 1280 | W18: =IF($A$4="Numbers",MROUND(VLOOKUP($C18&J$8,'Calc-V'!$A$4:$S$399,$Q$6,FALSE),10),ROUND(VLOOKUP($C18&J$8,'Calc-V'!$A$4:$S$399,$Q$6,FALSE)/AY18,3)*1000) -> 1280 | X18: =IF($A$4="Numbers",MROUND(VLOOKUP($C18&K$8,'Calc-V'!$A$4:$S$399,$Q$6,FALSE),10),ROUND(VLOOKUP($C18&K$8,'Calc-V'!$A$4:$S$399,$Q$6,FALSE)/AZ18,3)*1000) -> 1300 | Y18: =IF($A$4="Numbers",MROUND(VLOOKUP($C18&L$8,'Calc-V'!$A$4:$S$399,$Q$6,FALSE),10),ROUND(VLOOKUP($C18&L$8,'Calc-V'!$A$4:$S$399,$Q$6,FALSE)/BA18,3)*1000) -> 1440 | Z18: =IF($A$4="Numbers",MROUND(VLOOKUP($C18&M$8,'Calc-V'!$A$4:$S$399,$Q$6,FALSE),10),ROUND(VLOOKUP($C18&M$8,'Calc-V'!$A$4:$S$399,$Q$6,FALSE)/BB18,3)*1000) -> 1440 | AA18: =IF($A$4="Numbers",MROUND(VLOOKUP($C18&N$8,'Calc-V'!$A$4:$S$399,$Q$6,FALSE),10),ROUND(VLOOKUP($C18&N$8,'Calc-V'!$A$4:$S$399,$Q$6,FALSE)/BC18,3)*1000) -> 1500 | AB18: =IF($A$4="Numbers",MROUND(VLOOKUP($C18&O$8,'Calc-V'!$A$4:$S$399,$Q$6,FALSE),10),ROUND(VLOOKUP($C18&O$8,'Calc-V'!$A$4:$S$399,$Q$6,FALSE)/BD18,3)*1000) -> 1290 | AD18: =IF($A$4="Numbers",MROUND(VLOOKUP($C18&Q$8,'Calc-V'!$A$4:$S$399,$AD$6,FALSE),10),ROUND(VLOOKUP($C18&Q$8,'Calc-V'!$A$4:$S$399,$AD$6,FALSE)/AS18,3)*1000) -> 530 | AE18: =IF($A$4="Numbers",MROUND(VLOOKUP($C18&R$8,'Calc-V'!$A$4:$S$399,$AD$6,FALSE),10),ROUND(VLOOKUP($C18&R$8,'Calc-V'!$A$4:$S$399,$AD$6,FALSE)/AT18,3)*1000) -> 430 | AF18: =IF($A$4="Numbers",MROUND(VLOOKUP($C18&S$8,'Calc-V'!$A$4:$S$399,$AD$6,FALSE),10),ROUND(VLOOKUP($C18&S$8,'Calc-V'!$A$4:$S$399,$AD$6,FALSE)/AU18,3)*1000) -> 430 | AG18: =IF($A$4="Numbers",MROUND(VLOOKUP($C18&T$8,'Calc-V'!$A$4:$S$399,$AD$6,FALSE),10),ROUND(VLOOKUP($C18&T$8,'Calc-V'!$A$4:$S$399,$AD$6,FALSE)/AV18,3)*1000) -> 490 | AH18: =IF($A$4="Numbers",MROUND(VLOOKUP($C18&U$8,'Calc-V'!$A$4:$S$399,$AD$6,FALSE),10),ROUND(VLOOKUP($C18&U$8,'Calc-V'!$A$4:$S$399,$AD$6,FALSE)/AW18,3)*1000) -> 490 | AI18: =IF($A$4="Numbers",MROUND(VLOOKUP($C18&V$8,'Calc-V'!$A$4:$S$399,$AD$6,FALSE),10),ROUND(VLOOKUP($C18&V$8,'Calc-V'!$A$4:$S$399,$AD$6,FALSE)/AX18,3)*1000) -> 490 | AJ18: =IF($A$4="Numbers",MROUND(VLOOKUP($C18&W$8,'Calc-V'!$A$4:$S$399,$AD$6,FALSE),10),ROUND(VLOOKUP($C18&W$8,'Calc-V'!$A$4:$S$399,$AD$6,FALSE)/AY18,3)*1000) -> 490 | AK18: =IF($A$4="Numbers",MROUND(VLOOKUP($C18&X$8,'Calc-V'!$A$4:$S$399,$AD$6,FALSE),10),ROUND(VLOOKUP($C18&X$8,'Calc-V'!$A$4:$S$399,$AD$6,FALSE)/AZ18,3)*1000) -> 520 | AL18: =IF($A$4="Numbers",MROUND(VLOOKUP($C18&Y$8,'Calc-V'!$A$4:$S$399,$AD$6,FALSE),10),ROUND(VLOOKUP($C18&Y$8,'Calc-V'!$A$4:$S$399,$AD$6,FALSE)/BA18,3)*1000) -> 830 | AM18: =IF($A$4="Numbers",MROUND(VLOOKUP($C18&Z$8,'Calc-V'!$A$4:$S$399,$AD$6,FALSE),10),ROUND(VLOOKUP($C18&Z$8,'Calc-V'!$A$4:$S$399,$AD$6,FALSE)/BB18,3)*1000) -> 830 | AN18: =IF($A$4="Numbers",MROUND(VLOOKUP($C18&AA$8,'Calc-V'!$A$4:$S$399,$AD$6,FALSE),10),ROUND(VLOOKUP($C18&AA$8,'Calc-V'!$A$4:$S$399,$AD$6,FALSE)/BC18,3)*1000) -> 650 | AO18: =IF($A$4="Numbers",MROUND(VLOOKUP($C18&AB$8,'Calc-V'!$A$4:$S$399,$AD$6,FALSE),10),ROUND(VLOOKUP($C18&AB$8,'Calc-V'!$A$4:$S$399,$AD$6,FALSE)/BD18,3)*1000) -> 670 | AS18: =VLOOKUP($C18&AS$8,'Calc-V'!$A$4:$AA$399,$AS$6,FALSE) -> 95560 | AT18: =VLOOKUP($C18&AT$8,'Calc-V'!$A$4:$AA$399,$AS$6,FALSE) -> 97470 | AU18: =VLOOKUP($C18&AU$8,'Calc-V'!$A$4:$AA$399,$AS$6,FALSE) -> 97470 | AV18: =VLOOKUP($C18&AV$8,'Calc-V'!$A$4:$AA$399,$AS$6,FALSE) -> 98340 | AW18: =VLOOKUP($C18&AW$8,'Calc-V'!$A$4:$AA$399,$AS$6,FALSE) -> 98340 | AX18: =VLOOKUP($C18&AX$8,'Calc-V'!$A$4:$AA$399,$AS$6,FALSE) -> 99140 | AY18: =VLOOKUP($C18&AY$8,'Calc-V'!$A$4:$AA$399,$AS$6,FALSE) -> 99140 | AZ18: =VLOOKUP($C18&AZ$8,'Calc-V'!$A$4:$AA$399,$AS$6,FALSE) -> 99920 | BA18: =VLOOKUP($C18&BA$8,'Calc-V'!$A$4:$AA$399,$AS$6,FALSE) -> 100850 | BB18: =VLOOKUP($C18&BB$8,'Calc-V'!$A$4:$AA$399,$AS$6,FALSE) -> 100850 | BC18: =VLOOKUP($C18&BC$8,'Calc-V'!$A$4:$AA$399,$AS$6,FALSE) -> 101360 | BD18: =VLOOKUP($C18&BD$8,'Calc-V'!$A$4:$AA$399,$AS$6,FALSE) -> 102050
C19: East Renfrewshire | D19: =IF($A$4="Numbers",MROUND(VLOOKUP($C19&D$8,'Calc-V'!$A$4:$W$399,$D$6,FALSE),10),ROUND(VLOOKUP($C19&D$8,'Calc-V'!$A$4:$W$399,$D$6,FALSE)/AS19,3)*1000) -> 4560 | E19: =IF($A$4="Numbers",MROUND(VLOOKUP($C19&E$8,'Calc-V'!$A$4:$W$399,$D$6,FALSE),10),ROUND(VLOOKUP($C19&E$8,'Calc-V'!$A$4:$W$399,$D$6,FALSE)/AT19,3)*1000) -> 4370 | F19: =IF($A$4="Numbers",MROUND(VLOOKUP($C19&F$8,'Calc-V'!$A$4:$W$399,$D$6,FALSE),10),ROUND(VLOOKUP($C19&F$8,'Calc-V'!$A$4:$W$399,$D$6,FALSE)/AU19,3)*1000) -> 4370 | G19: =IF($A$4="Numbers",MROUND(VLOOKUP($C19&G$8,'Calc-V'!$A$4:$W$399,$D$6,FALSE),10),ROUND(VLOOKUP($C19&G$8,'Calc-V'!$A$4:$W$399,$D$6,FALSE)/AV19,3)*1000) -> 4420 | H19: =IF($A$4="Numbers",MROUND(VLOOKUP($C19&H$8,'Calc-V'!$A$4:$W$399,$D$6,FALSE),10),ROUND(VLOOKUP($C19&H$8,'Calc-V'!$A$4:$W$399,$D$6,FALSE)/AW19,3)*1000) -> 4420 | I19: =IF($A$4="Numbers",MROUND(VLOOKUP($C19&I$8,'Calc-V'!$A$4:$W$399,$D$6,FALSE),10),ROUND(VLOOKUP($C19&I$8,'Calc-V'!$A$4:$W$399,$D$6,FALSE)/AX19,3)*1000) -> 4230 | J19: =IF($A$4="Numbers",MROUND(VLOOKUP($C19&J$8,'Calc-V'!$A$4:$W$399,$D$6,FALSE),10),ROUND(VLOOKUP($C19&J$8,'Calc-V'!$A$4:$W$399,$D$6,FALSE)/AY19,3)*1000) -> 4230 | K19: =IF($A$4="Numbers",MROUND(VLOOKUP($C19&K$8,'Calc-V'!$A$4:$W$399,$D$6,FALSE),10),ROUND(VLOOKUP($C19&K$8,'Calc-V'!$A$4:$W$399,$D$6,FALSE)/AZ19,3)*1000) -> 4640 | L19: =IF($A$4="Numbers",MROUND(VLOOKUP($C19&L$8,'Calc-V'!$A$4:$W$399,$D$6,FALSE),10),ROUND(VLOOKUP($C19&L$8,'Calc-V'!$A$4:$W$399,$D$6,FALSE)/BA19,3)*1000) -> 4810 | M19: =IF($A$4="Numbers",MROUND(VLOOKUP($C19&M$8,'Calc-V'!$A$4:$W$399,$D$6,FALSE),10),ROUND(VLOOKUP($C19&M$8,'Calc-V'!$A$4:$W$399,$D$6,FALSE)/BB19,3)*1000) -> 4810 | N19: =IF($A$4="Numbers",MROUND(VLOOKUP($C19&N$8,'Calc-V'!$A$4:$W$399,$D$6,FALSE),10),ROUND(VLOOKUP($C19&N$8,'Calc-V'!$A$4:$W$399,$D$6,FALSE)/BC19,3)*1000) -> 4370 | O19: =IF($A$4="Numbers",MROUND(VLOOKUP($C19&O$8,'Calc-V'!$A$4:$W$399,$D$6,FALSE),10),ROUND(VLOOKUP($C19&O$8,'Calc-V'!$A$4:$W$399,$D$6,FALSE)/BD19,3)*1000) -> 4370 | Q19: =IF($A$4="Numbers",MROUND(VLOOKUP($C19&D$8,'Calc-V'!$A$4:$S$399,$Q$6,FALSE),10),ROUND(VLOOKUP($C19&D$8,'Calc-V'!$A$4:$S$399,$Q$6,FALSE)/AS19,3)*1000) -> 1520 | R19: =IF($A$4="Numbers",MROUND(VLOOKUP($C19&E$8,'Calc-V'!$A$4:$S$399,$Q$6,FALSE),10),ROUND(VLOOKUP($C19&E$8,'Calc-V'!$A$4:$S$399,$Q$6,FALSE)/AT19,3)*1000) -> 1200 | S19: =IF($A$4="Numbers",MROUND(VLOOKUP($C19&F$8,'Calc-V'!$A$4:$S$399,$Q$6,FALSE),10),ROUND(VLOOKUP($C19&F$8,'Calc-V'!$A$4:$S$399,$Q$6,FALSE)/AU19,3)*1000) -> 1200 | T19: =IF($A$4="Numbers",MROUND(VLOOKUP($C19&G$8,'Calc-V'!$A$4:$S$399,$Q$6,FALSE),10),ROUND(VLOOKUP($C19&G$8,'Calc-V'!$A$4:$S$399,$Q$6,FALSE)/AV19,3)*1000) -> 1200 | U19: =IF($A$4="Numbers",MROUND(VLOOKUP($C19&H$8,'Calc-V'!$A$4:$S$399,$Q$6,FALSE),10),ROUND(VLOOKUP($C19&H$8,'Calc-V'!$A$4:$S$399,$Q$6,FALSE)/AW19,3)*1000) -> 1200 | V19: =IF($A$4="Numbers",MROUND(VLOOKUP($C19&I$8,'Calc-V'!$A$4:$S$399,$Q$6,FALSE),10),ROUND(VLOOKUP($C19&I$8,'Calc-V'!$A$4:$S$399,$Q$6,FALSE)/AX19,3)*1000) -> 1150 | W19: =IF($A$4="Numbers",MROUND(VLOOKUP($C19&J$8,'Calc-V'!$A$4:$S$399,$Q$6,FALSE),10),ROUND(VLOOKUP($C19&J$8,'Calc-V'!$A$4:$S$399,$Q$6,FALSE)/AY19,3)*1000) -> 1150 | X19: =IF($A$4="Numbers",MROUND(VLOOKUP($C19&K$8,'Calc-V'!$A$4:$S$399,$Q$6,FALSE),10),ROUND(VLOOKUP($C19&K$8,'Calc-V'!$A$4:$S$399,$Q$6,FALSE)/AZ19,3)*1000) -> 1260 | Y19: =IF($A$4="Numbers",MROUND(VLOOKUP($C19&L$8,'Calc-V'!$A$4:$S$399,$Q$6,FALSE),10),ROUND(VLOOKUP($C19&L$8,'Calc-V'!$A$4:$S$399,$Q$6,FALSE)/BA19,3)*1000) -> 1320 | Z19: =IF($A$4="Numbers",MROUND(VLOOKUP($C19&M$8,'Calc-V'!$A$4:$S$399,$Q$6,FALSE),10),ROUND(VLOOKUP($C19&M$8,'Calc-V'!$A$4:$S$399,$Q$6,FALSE)/BB19,3)*1000) -> 1320 | AA19: =IF($A$4="Numbers",MROUND(VLOOKUP($C19&N$8,'Calc-V'!$A$4:$S$399,$Q$6,FALSE),10),ROUND(VLOOKUP($C19&N$8,'Calc-V'!$A$4:$S$399,$Q$6,FALSE)/BC19,3)*1000) -> 990 | AB19: =IF($A$4="Numbers",MROUND(VLOOKUP($C19&O$8,'Calc-V'!$A$4:$S$399,$Q$6,FALSE),10),ROUND(VLOOKUP($C19&O$8,'Calc-V'!$A$4:$S$399,$Q$6,FALSE)/BD19,3)*1000) -> 990 | AD19: =IF($A$4="Numbers",MROUND(VLOOKUP($C19&Q$8,'Calc-V'!$A$4:$S$399,$AD$6,FALSE),10),ROUND(VLOOKUP($C19&Q$8,'Calc-V'!$A$4:$S$399,$AD$6,FALSE)/AS19,3)*1000) -> 3040 | AE19: =IF($A$4="Numbers",MROUND(VLOOKUP($C19&R$8,'Calc-V'!$A$4:$S$399,$AD$6,FALSE),10),ROUND(VLOOKUP($C19&R$8,'Calc-V'!$A$4:$S$399,$AD$6,FALSE)/AT19,3)*1000) -> 3170 | AF19: =IF($A$4="Numbers",MROUND(VLOOKUP($C19&S$8,'Calc-V'!$A$4:$S$399,$AD$6,FALSE),10),ROUND(VLOOKUP($C19&S$8,'Calc-V'!$A$4:$S$399,$AD$6,FALSE)/AU19,3)*1000) -> 3170 | AG19: =IF($A$4="Numbers",MROUND(VLOOKUP($C19&T$8,'Calc-V'!$A$4:$S$399,$AD$6,FALSE),10),ROUND(VLOOKUP($C19&T$8,'Calc-V'!$A$4:$S$399,$AD$6,FALSE)/AV19,3)*1000) -> 3220 | AH19: =IF($A$4="Numbers",MROUND(VLOOKUP($C19&U$8,'Calc-V'!$A$4:$S$399,$AD$6,FALSE),10),ROUND(VLOOKUP($C19&U$8,'Calc-V'!$A$4:$S$399,$AD$6,FALSE)/AW19,3)*1000) -> 3220 | AI19: =IF($A$4="Numbers",MROUND(VLOOKUP($C19&V$8,'Calc-V'!$A$4:$S$399,$AD$6,FALSE),10),ROUND(VLOOKUP($C19&V$8,'Calc-V'!$A$4:$S$399,$AD$6,FALSE)/AX19,3)*1000) -> 3080 | AJ19: =IF($A$4="Numbers",MROUND(VLOOKUP($C19&W$8,'Calc-V'!$A$4:$S$399,$AD$6,FALSE),10),ROUND(VLOOKUP($C19&W$8,'Calc-V'!$A$4:$S$399,$AD$6,FALSE)/AY19,3)*1000) -> 3080 | AK19: =IF($A$4="Numbers",MROUND(VLOOKUP($C19&X$8,'Calc-V'!$A$4:$S$399,$AD$6,FALSE),10),ROUND(VLOOKUP($C19&X$8,'Calc-V'!$A$4:$S$399,$AD$6,FALSE)/AZ19,3)*1000) -> 3380 | AL19: =IF($A$4="Numbers",MROUND(VLOOKUP($C19&Y$8,'Calc-V'!$A$4:$S$399,$AD$6,FALSE),10),ROUND(VLOOKUP($C19&Y$8,'Calc-V'!$A$4:$S$399,$AD$6,FALSE)/BA19,3)*1000) -> 3490 | AM19: =IF($A$4="Numbers",MROUND(VLOOKUP($C19&Z$8,'Calc-V'!$A$4:$S$399,$AD$6,FALSE),10),ROUND(VLOOKUP($C19&Z$8,'Calc-V'!$A$4:$S$399,$AD$6,FALSE)/BB19,3)*1000) -> 3490 | AN19: =IF($A$4="Numbers",MROUND(VLOOKUP($C19&AA$8,'Calc-V'!$A$4:$S$399,$AD$6,FALSE),10),ROUND(VLOOKUP($C19&AA$8,'Calc-V'!$A$4:$S$399,$AD$6,FALSE)/BC19,3)*1000) -> 3370 | AO19: =IF($A$4="Numbers",MROUND(VLOOKUP($C19&AB$8,'Calc-V'!$A$4:$S$399,$AD$6,FALSE),10),ROUND(VLOOKUP($C19&AB$8,'Calc-V'!$A$4:$S$399,$AD$6,FALSE)/BD19,3)*1000) -> 3370 | AS19: =VLOOKUP($C19&AS$8,'Calc-V'!$A$4:$AA$399,$AS$6,FALSE) -> 89840 | AT19: =VLOOKUP($C19&AT$8,'Calc-V'!$A$4:$AA$399,$AS$6,FALSE) -> 89870 | AU19: =VLOOKUP($C19&AU$8,'Calc-V'!$A$4:$AA$399,$AS$6,FALSE) -> 89870 | AV19: =VLOOKUP($C19&AV$8,'Calc-V'!$A$4:$AA$399,$AS$6,FALSE) -> 89980 | AW19: =VLOOKUP($C19&AW$8,'Calc-V'!$A$4:$AA$399,$AS$6,FALSE) -> 89980 | AX19: =VLOOKUP($C19&AX$8,'Calc-V'!$A$4:$AA$399,$AS$6,FALSE) -> 90410 | AY19: =VLOOKUP($C19&AY$8,'Calc-V'!$A$4:$AA$399,$AS$6,FALSE) -> 90410 | AZ19: =VLOOKUP($C19&AZ$8,'Calc-V'!$A$4:$AA$399,$AS$6,FALSE) -> 90810 | BA19: =VLOOKUP($C19&BA$8,'Calc-V'!$A$4:$AA$399,$AS$6,FALSE) -> 91030 | BB19: =VLOOKUP($C19&BB$8,'Calc-V'!$A$4:$AA$399,$AS$6,FALSE) -> 91030 | BC19: =VLOOKUP($C19&BC$8,'Calc-V'!$A$4:$AA$399,$AS$6,FALSE) -> 91500 | BD19: =VLOOKUP($C19&BD$8,'Calc-V'!$A$4:$AA$399,$AS$6,FALSE) -> 92380
C20: Edinburgh, City of | D20: =IF($A$4="Numbers",MROUND(VLOOKUP($C20&D$8,'Calc-V'!$A$4:$W$399,$D$6,FALSE),10),ROUND(VLOOKUP($C20&D$8,'Calc-V'!$A$4:$W$399,$D$6,FALSE)/AS20,3)*1000) -> 21230 | E20: =IF($A$4="Numbers",MROUND(VLOOKUP($C20&E$8,'Calc-V'!$A$4:$W$399,$D$6,FALSE),10),ROUND(VLOOKUP($C20&E$8,'Calc-V'!$A$4:$W$399,$D$6,FALSE)/AT20,3)*1000) -> 21300 | F20: =IF($A$4="Numbers",MROUND(VLOOKUP($C20&F$8,'Calc-V'!$A$4:$W$399,$D$6,FALSE),10),ROUND(VLOOKUP($C20&F$8,'Calc-V'!$A$4:$W$399,$D$6,FALSE)/AU20,3)*1000) -> 21300 | G20: =IF($A$4="Numbers",MROUND(VLOOKUP($C20&G$8,'Calc-V'!$A$4:$W$399,$D$6,FALSE),10),ROUND(VLOOKUP($C20&G$8,'Calc-V'!$A$4:$W$399,$D$6,FALSE)/AV20,3)*1000) -> 21820 | H20: =IF($A$4="Numbers",MROUND(VLOOKUP($C20&H$8,'Calc-V'!$A$4:$W$399,$D$6,FALSE),10),ROUND(VLOOKUP($C20&H$8,'Calc-V'!$A$4:$W$399,$D$6,FALSE)/AW20,3)*1000) -> 21820 | I20: =IF($A$4="Numbers",MROUND(VLOOKUP($C20&I$8,'Calc-V'!$A$4:$W$399,$D$6,FALSE),10),ROUND(VLOOKUP($C20&I$8,'Calc-V'!$A$4:$W$399,$D$6,FALSE)/AX20,3)*1000) -> 21840 | J20: =IF($A$4="Numbers",MROUND(VLOOKUP($C20&J$8,'Calc-V'!$A$4:$W$399,$D$6,FALSE),10),ROUND(VLOOKUP($C20&J$8,'Calc-V'!$A$4:$W$399,$D$6,FALSE)/AY20,3)*1000) -> 16220 | K20: =IF($A$4="Numbers",MROUND(VLOOKUP($C20&K$8,'Calc-V'!$A$4:$W$399,$D$6,FALSE),10),ROUND(VLOOKUP($C20&K$8,'Calc-V'!$A$4:$W$399,$D$6,FALSE)/AZ20,3)*1000) -> 16720 | L20: =IF($A$4="Numbers",MROUND(VLOOKUP($C20&L$8,'Calc-V'!$A$4:$W$399,$D$6,FALSE),10),ROUND(VLOOKUP($C20&L$8,'Calc-V'!$A$4:$W$399,$D$6,FALSE)/BA20,3)*1000) -> 15310 | M20: =IF($A$4="Numbers",MROUND(VLOOKUP($C20&M$8,'Calc-V'!$A$4:$W$399,$D$6,FALSE),10),ROUND(VLOOKUP($C20&M$8,'Calc-V'!$A$4:$W$399,$D$6,FALSE)/BB20,3)*1000) -> 15310 | N20: =IF($A$4="Numbers",MROUND(VLOOKUP($C20&N$8,'Calc-V'!$A$4:$W$399,$D$6,FALSE),10),ROUND(VLOOKUP($C20&N$8,'Calc-V'!$A$4:$W$399,$D$6,FALSE)/BC20,3)*1000) -> 14990 | O20: =IF($A$4="Numbers",MROUND(VLOOKUP($C20&O$8,'Calc-V'!$A$4:$W$399,$D$6,FALSE),10),ROUND(VLOOKUP($C20&O$8,'Calc-V'!$A$4:$W$399,$D$6,FALSE)/BD20,3)*1000) -> 14880 | Q20: =IF($A$4="Numbers",MROUND(VLOOKUP($C20&D$8,'Calc-V'!$A$4:$S$399,$Q$6,FALSE),10),ROUND(VLOOKUP($C20&D$8,'Calc-V'!$A$4:$S$399,$Q$6,FALSE)/AS20,3)*1000) -> 3930 | R20: =IF($A$4="Numbers",MROUND(VLOOKUP($C20&E$8,'Calc-V'!$A$4:$S$399,$Q$6,FALSE),10),ROUND(VLOOKUP($C20&E$8,'Calc-V'!$A$4:$S$399,$Q$6,FALSE)/AT20,3)*1000) -> 3930 | S20: =IF($A$4="Numbers",MROUND(VLOOKUP($C20&F$8,'Calc-V'!$A$4:$S$399,$Q$6,FALSE),10),ROUND(VLOOKUP($C20&F$8,'Calc-V'!$A$4:$S$399,$Q$6,FALSE)/AU20,3)*1000) -> 3930 | T20: =IF($A$4="Numbers",MROUND(VLOOKUP($C20&G$8,'Calc-V'!$A$4:$S$399,$Q$6,FALSE),10),ROUND(VLOOKUP($C20&G$8,'Calc-V'!$A$4:$S$399,$Q$6,FALSE)/AV20,3)*1000) -> 4110 | U20: =IF($A$4="Numbers",MROUND(VLOOKUP($C20&H$8,'Calc-V'!$A$4:$S$399,$Q$6,FALSE),10),ROUND(VLOOKUP($C20&H$8,'Calc-V'!$A$4:$S$399,$Q$6,FALSE)/AW20,3)*1000) -> 4110 | V20: =IF($A$4="Numbers",MROUND(VLOOKUP($C20&I$8,'Calc-V'!$A$4:$S$399,$Q$6,FALSE),10),ROUND(VLOOKUP($C20&I$8,'Calc-V'!$A$4:$S$399,$Q$6,FALSE)/AX20,3)*1000) -> 4150 | W20: =IF($A$4="Numbers",MROUND(VLOOKUP($C20&J$8,'Calc-V'!$A$4:$S$399,$Q$6,FALSE),10),ROUND(VLOOKUP($C20&J$8,'Calc-V'!$A$4:$S$399,$Q$6,FALSE)/AY20,3)*1000) -> 4150 | X20: =IF($A$4="Numbers",MROUND(VLOOKUP($C20&K$8,'Calc-V'!$A$4:$S$399,$Q$6,FALSE),10),ROUND(VLOOKUP($C20&K$8,'Calc-V'!$A$4:$S$399,$Q$6,FALSE)/AZ20,3)*1000) -> 4520 | Y20: =IF($A$4="Numbers",MROUND(VLOOKUP($C20&L$8,'Calc-V'!$A$4:$S$399,$Q$6,FALSE),10),ROUND(VLOOKUP($C20&L$8,'Calc-V'!$A$4:$S$399,$Q$6,FALSE)/BA20,3)*1000) -> 3790 | Z20: =IF($A$4="Numbers",MROUND(VLOOKUP($C20&M$8,'Calc-V'!$A$4:$S$399,$Q$6,FALSE),10),ROUND(VLOOKUP($C20&M$8,'Calc-V'!$A$4:$S$399,$Q$6,FALSE)/BB20,3)*1000) -> 3790 | AA20: =IF($A$4="Numbers",MROUND(VLOOKUP($C20&N$8,'Calc-V'!$A$4:$S$399,$Q$6,FALSE),10),ROUND(VLOOKUP($C20&N$8,'Calc-V'!$A$4:$S$399,$Q$6,FALSE)/BC20,3)*1000) -> 3590 | AB20: =IF($A$4="Numbers",MROUND(VLOOKUP($C20&O$8,'Calc-V'!$A$4:$S$399,$Q$6,FALSE),10),ROUND(VLOOKUP($C20&O$8,'Calc-V'!$A$4:$S$399,$Q$6,FALSE)/BD20,3)*1000) -> 3280 | AD20: =IF($A$4="Numbers",MROUND(VLOOKUP($C20&Q$8,'Calc-V'!$A$4:$S$399,$AD$6,FALSE),10),ROUND(VLOOKUP($C20&Q$8,'Calc-V'!$A$4:$S$399,$AD$6,FALSE)/AS20,3)*1000) -> 17300 | AE20: =IF($A$4="Numbers",MROUND(VLOOKUP($C20&R$8,'Calc-V'!$A$4:$S$399,$AD$6,FALSE),10),ROUND(VLOOKUP($C20&R$8,'Calc-V'!$A$4:$S$399,$AD$6,FALSE)/AT20,3)*1000) -> 17360 | AF20: =IF($A$4="Numbers",MROUND(VLOOKUP($C20&S$8,'Calc-V'!$A$4:$S$399,$AD$6,FALSE),10),ROUND(VLOOKUP($C20&S$8,'Calc-V'!$A$4:$S$399,$AD$6,FALSE)/AU20,3)*1000) -> 17360 | AG20: =IF($A$4="Numbers",MROUND(VLOOKUP($C20&T$8,'Calc-V'!$A$4:$S$399,$AD$6,FALSE),10),ROUND(VLOOKUP($C20&T$8,'Calc-V'!$A$4:$S$399,$AD$6,FALSE)/AV20,3)*1000) -> 17710 | AH20: =IF($A$4="Numbers",MROUND(VLOOKUP($C20&U$8,'Calc-V'!$A$4:$S$399,$AD$6,FALSE),10),ROUND(VLOOKUP($C20&U$8,'Calc-V'!$A$4:$S$399,$AD$6,FALSE)/AW20,3)*1000) -> 17710 | AI20: =IF($A$4="Numbers",MROUND(VLOOKUP($C20&V$8,'Calc-V'!$A$4:$S$399,$AD$6,FALSE),10),ROUND(VLOOKUP($C20&V$8,'Calc-V'!$A$4:$S$399,$AD$6,FALSE)/AX20,3)*1000) -> 17680 | AJ20: =IF($A$4="Numbers",MROUND(VLOOKUP($C20&W$8,'Calc-V'!$A$4:$S$399,$AD$6,FALSE),10),ROUND(VLOOKUP($C20&W$8,'Calc-V'!$A$4:$S$399,$AD$6,FALSE)/AY20,3)*1000) -> 12070 | AK20: =IF($A$4="Numbers",MROUND(VLOOKUP($C20&X$8,'Calc-V'!$A$4:$S$399,$AD$6,FALSE),10),ROUND(VLOOKUP($C20&X$8,'Calc-V'!$A$4:$S$399,$AD$6,FALSE)/AZ20,3)*1000) -> 12200 | AL20: =IF($A$4="Numbers",MROUND(VLOOKUP($C20&Y$8,'Calc-V'!$A$4:$S$399,$AD$6,FALSE),10),ROUND(VLOOKUP($C20&Y$8,'Calc-V'!$A$4:$S$399,$AD$6,FALSE)/BA20,3)*1000) -> 11530 | AM20: =IF($A$4="Numbers",MROUND(VLOOKUP($C20&Z$8,'Calc-V'!$A$4:$S$399,$AD$6,FALSE),10),ROUND(VLOOKUP($C20&Z$8,'Calc-V'!$A$4:$S$399,$AD$6,FALSE)/BB20,3)*1000) -> 11530 | AN20: =IF($A$4="Numbers",MROUND(VLOOKUP($C20&AA$8,'Calc-V'!$A$4:$S$399,$AD$6,FALSE),10),ROUND(VLOOKUP($C20&AA$8,'Calc-V'!$A$4:$S$399,$AD$6,FALSE)/BC20,3)*1000) -> 11400 | AO20: =IF($A$4="Numbers",MROUND(VLOOKUP($C20&AB$8,'Calc-V'!$A$4:$S$399,$AD$6,FALSE),10),ROUND(VLOOKUP($C20&AB$8,'Calc-V'!$A$4:$S$399,$AD$6,FALSE)/BD20,3)*1000) -> 11590 | AS20: =VLOOKUP($C20&AS$8,'Calc-V'!$A$4:$AA$399,$AS$6,FALSE) -> 456040 | AT20: =VLOOKUP($C20&AT$8,'Calc-V'!$A$4:$AA$399,$AS$6,FALSE) -> 458520 | AU20: =VLOOKUP($C20&AU$8,'Calc-V'!$A$4:$AA$399,$AS$6,FALSE) -> 458520 | AV20: =VLOOKUP($C20&AV$8,'Calc-V'!$A$4:$AA$399,$AS$6,FALSE) -> 463240 | AW20: =VLOOKUP($C20&AW$8,'Calc-V'!$A$4:$AA$399,$AS$6,FALSE) -> 463240 | AX20: =VLOOKUP($C20&AX$8,'Calc-V'!$A$4:$AA$399,$AS$6,FALSE) -> 469940 | AY20: =VLOOKUP($C20&AY$8,'Calc-V'!$A$4:$AA$399,$AS$6,FALSE) -> 469940 | AZ20: =VLOOKUP($C20&AZ$8,'Calc-V'!$A$4:$AA$399,$AS$6,FALSE) -> 477940 | BA20: =VLOOKUP($C20&BA$8,'Calc-V'!$A$4:$AA$399,$AS$6,FALSE) -> 482640 | BB20: =VLOOKUP($C20&BB$8,'Calc-V'!$A$4:$AA$399,$AS$6,FALSE) -> 482640 | BC20: =VLOOKUP($C20&BC$8,'Calc-V'!$A$4:$AA$399,$AS$6,FALSE) -> 487500 | BD20: =VLOOKUP($C20&BD$8,'Calc-V'!$A$4:$AA$399,$AS$6,FALSE) -> 492680
C21: Eilean Siar | D21: =IF($A$4="Numbers",MROUND(VLOOKUP($C21&D$8,'Calc-V'!$A$4:$W$399,$D$6,FALSE),10),ROUND(VLOOKUP($C21&D$8,'Calc-V'!$A$4:$W$399,$D$6,FALSE)/AS21,3)*1000) -> 1000 | E21: =IF($A$4="Numbers",MROUND(VLOOKUP($C21&E$8,'Calc-V'!$A$4:$W$399,$D$6,FALSE),10),ROUND(VLOOKUP($C21&E$8,'Calc-V'!$A$4:$W$399,$D$6,FALSE)/AT21,3)*1000) -> 1100 | F21: =IF($A$4="Numbers",MROUND(VLOOKUP($C21&F$8,'Calc-V'!$A$4:$W$399,$D$6,FALSE),10),ROUND(VLOOKUP($C21&F$8,'Calc-V'!$A$4:$W$399,$D$6,FALSE)/AU21,3)*1000) -> 1100 | G21: =IF($A$4="Numbers",MROUND(VLOOKUP($C21&G$8,'Calc-V'!$A$4:$W$399,$D$6,FALSE),10),ROUND(VLOOKUP($C21&G$8,'Calc-V'!$A$4:$W$399,$D$6,FALSE)/AV21,3)*1000) -> 1220 | H21: =IF($A$4="Numbers",MROUND(VLOOKUP($C21&H$8,'Calc-V'!$A$4:$W$399,$D$6,FALSE),10),ROUND(VLOOKUP($C21&H$8,'Calc-V'!$A$4:$W$399,$D$6,FALSE)/AW21,3)*1000) -> 1220 | I21: =IF($A$4="Numbers",MROUND(VLOOKUP($C21&I$8,'Calc-V'!$A$4:$W$399,$D$6,FALSE),10),ROUND(VLOOKUP($C21&I$8,'Calc-V'!$A$4:$W$399,$D$6,FALSE)/AX21,3)*1000) -> 1350 | J21: =IF($A$4="Numbers",MROUND(VLOOKUP($C21&J$8,'Calc-V'!$A$4:$W$399,$D$6,FALSE),10),ROUND(VLOOKUP($C21&J$8,'Calc-V'!$A$4:$W$399,$D$6,FALSE)/AY21,3)*1000) -> 1350 | K21: =IF($A$4="Numbers",MROUND(VLOOKUP($C21&K$8,'Calc-V'!$A$4:$W$399,$D$6,FALSE),10),ROUND(VLOOKUP($C21&K$8,'Calc-V'!$A$4:$W$399,$D$6,FALSE)/AZ21,3)*1000) -> 1300 | L21: =IF($A$4="Numbers",MROUND(VLOOKUP($C21&L$8,'Calc-V'!$A$4:$W$399,$D$6,FALSE),10),ROUND(VLOOKUP($C21&L$8,'Calc-V'!$A$4:$W$399,$D$6,FALSE)/BA21,3)*1000) -> 1300 | M21: =IF($A$4="Numbers",MROUND(VLOOKUP($C21&M$8,'Calc-V'!$A$4:$W$399,$D$6,FALSE),10),ROUND(VLOOKUP($C21&M$8,'Calc-V'!$A$4:$W$399,$D$6,FALSE)/BB21,3)*1000) -> 1160 | N21: =IF($A$4="Numbers",MROUND(VLOOKUP($C21&N$8,'Calc-V'!$A$4:$W$399,$D$6,FALSE),10),ROUND(VLOOKUP($C21&N$8,'Calc-V'!$A$4:$W$399,$D$6,FALSE)/BC21,3)*1000) -> 1190 | O21: =IF($A$4="Numbers",MROUND(VLOOKUP($C21&O$8,'Calc-V'!$A$4:$W$399,$D$6,FALSE),10),ROUND(VLOOKUP($C21&O$8,'Calc-V'!$A$4:$W$399,$D$6,FALSE)/BD21,3)*1000) -> 1250 | Q21: =IF($A$4="Numbers",MROUND(VLOOKUP($C21&D$8,'Calc-V'!$A$4:$S$399,$Q$6,FALSE),10),ROUND(VLOOKUP($C21&D$8,'Calc-V'!$A$4:$S$399,$Q$6,FALSE)/AS21,3)*1000) -> 710 | R21: =IF($A$4="Numbers",MROUND(VLOOKUP($C21&E$8,'Calc-V'!$A$4:$S$399,$Q$6,FALSE),10),ROUND(VLOOKUP($C21&E$8,'Calc-V'!$A$4:$S$399,$Q$6,FALSE)/AT21,3)*1000) -> 800 | S21: =IF($A$4="Numbers",MROUND(VLOOKUP($C21&F$8,'Calc-V'!$A$4:$S$399,$Q$6,FALSE),10),ROUND(VLOOKUP($C21&F$8,'Calc-V'!$A$4:$S$399,$Q$6,FALSE)/AU21,3)*1000) -> 800 | T21: =IF($A$4="Numbers",MROUND(VLOOKUP($C21&G$8,'Calc-V'!$A$4:$S$399,$Q$6,FALSE),10),ROUND(VLOOKUP($C21&G$8,'Calc-V'!$A$4:$S$399,$Q$6,FALSE)/AV21,3)*1000) -> 820 | U21: =IF($A$4="Numbers",MROUND(VLOOKUP($C21&H$8,'Calc-V'!$A$4:$S$399,$Q$6,FALSE),10),ROUND(VLOOKUP($C21&H$8,'Calc-V'!$A$4:$S$399,$Q$6,FALSE)/AW21,3)*1000) -> 820 | V21: =IF($A$4="Numbers",MROUND(VLOOKUP($C21&I$8,'Calc-V'!$A$4:$S$399,$Q$6,FALSE),10),ROUND(VLOOKUP($C21&I$8,'Calc-V'!$A$4:$S$399,$Q$6,FALSE)/AX21,3)*1000) -> 920 | W21: =IF($A$4="Numbers",MROUND(VLOOKUP($C21&J$8,'Calc-V'!$A$4:$S$399,$Q$6,FALSE),10),ROUND(VLOOKUP($C21&J$8,'Calc-V'!$A$4:$S$399,$Q$6,FALSE)/AY21,3)*1000) -> 920 | X21: =IF($A$4="Numbers",MROUND(VLOOKUP($C21&K$8,'Calc-V'!$A$4:$S$399,$Q$6,FALSE),10),ROUND(VLOOKUP($C21&K$8,'Calc-V'!$A$4:$S$399,$Q$6,FALSE)/AZ21,3)*1000) -> 740 | Y21: =IF($A$4="Numbers",MROUND(VLOOKUP($C21&L$8,'Calc-V'!$A$4:$S$399,$Q$6,FALSE),10),ROUND(VLOOKUP($C21&L$8,'Calc-V'!$A$4:$S$399,$Q$6,FALSE)/BA21,3)*1000) -> 690 | Z21: =IF($A$4="Numbers",MROUND(VLOOKUP($C21&M$8,'Calc-V'!$A$4:$S$399,$Q$6,FALSE),10),ROUND(VLOOKUP($C21&M$8,'Calc-V'!$A$4:$S$399,$Q$6,FALSE)/BB21,3)*1000) -> 690 | AA21: =IF($A$4="Numbers",MROUND(VLOOKUP($C21&N$8,'Calc-V'!$A$4:$S$399,$Q$6,FALSE),10),ROUND(VLOOKUP($C21&N$8,'Calc-V'!$A$4:$S$399,$Q$6,FALSE)/BC21,3)*1000) -> 730 | AB21: =IF($A$4="Numbers",MROUND(VLOOKUP($C21&O$8,'Calc-V'!$A$4:$S$399,$Q$6,FALSE),10),ROUND(VLOOKUP($C21&O$8,'Calc-V'!$A$4:$S$399,$Q$6,FALSE)/BD21,3)*1000) -> 680 | AD21: =IF($A$4="Numbers",MROUND(VLOOKUP($C21&Q$8,'Calc-V'!$A$4:$S$399,$AD$6,FALSE),10),ROUND(VLOOKUP($C21&Q$8,'Calc-V'!$A$4:$S$399,$AD$6,FALSE)/AS21,3)*1000) -> 300 | AE21: =IF($A$4="Numbers",MROUND(VLOOKUP($C21&R$8,'Calc-V'!$A$4:$S$399,$AD$6,FALSE),10),ROUND(VLOOKUP($C21&R$8,'Calc-V'!$A$4:$S$399,$AD$6,FALSE)/AT21,3)*1000) -> 290 | AF21: =IF($A$4="Numbers",MROUND(VLOOKUP($C21&S$8,'Calc-V'!$A$4:$S$399,$AD$6,FALSE),10),ROUND(VLOOKUP($C21&S$8,'Calc-V'!$A$4:$S$399,$AD$6,FALSE)/AU21,3)*1000) -> 290 | AG21: =IF($A$4="Numbers",MROUND(VLOOKUP($C21&T$8,'Calc-V'!$A$4:$S$399,$AD$6,FALSE),10),ROUND(VLOOKUP($C21&T$8,'Calc-V'!$A$4:$S$399,$AD$6,FALSE)/AV21,3)*1000) -> 400 | AH21: =IF($A$4="Numbers",MROUND(VLOOKUP($C21&U$8,'Calc-V'!$A$4:$S$399,$AD$6,FALSE),10),ROUND(VLOOKUP($C21&U$8,'Calc-V'!$A$4:$S$399,$AD$6,FALSE)/AW21,3)*1000) -> 400 | AI21: =IF($A$4="Numbers",MROUND(VLOOKUP($C21&V$8,'Calc-V'!$A$4:$S$399,$AD$6,FALSE),10),ROUND(VLOOKUP($C21&V$8,'Calc-V'!$A$4:$S$399,$AD$6,FALSE)/AX21,3)*1000) -> 430 | AJ21: =IF($A$4="Numbers",MROUND(VLOOKUP($C21&W$8,'Calc-V'!$A$4:$S$399,$AD$6,FALSE),10),ROUND(VLOOKUP($C21&W$8,'Calc-V'!$A$4:$S$399,$AD$6,FALSE)/AY21,3)*1000) -> 430 | AK21: =IF($A$4="Numbers",MROUND(VLOOKUP($C21&X$8,'Calc-V'!$A$4:$S$399,$AD$6,FALSE),10),ROUND(VLOOKUP($C21&X$8,'Calc-V'!$A$4:$S$399,$AD$6,FALSE)/AZ21,3)*1000) -> 570 | AL21: =IF($A$4="Numbers",MROUND(VLOOKUP($C21&Y$8,'Calc-V'!$A$4:$S$399,$AD$6,FALSE),10),ROUND(VLOOKUP($C21&Y$8,'Calc-V'!$A$4:$S$399,$AD$6,FALSE)/BA21,3)*1000) -> 610 | AM21: =IF($A$4="Numbers",MROUND(VLOOKUP($C21&Z$8,'Calc-V'!$A$4:$S$399,$AD$6,FALSE),10),ROUND(VLOOKUP($C21&Z$8,'Calc-V'!$A$4:$S$399,$AD$6,FALSE)/BB21,3)*1000) -> 470 | AN21: =IF($A$4="Numbers",MROUND(VLOOKUP($C21&AA$8,'Calc-V'!$A$4:$S$399,$AD$6,FALSE),10),ROUND(VLOOKUP($C21&AA$8,'Calc-V'!$A$4:$S$399,$AD$6,FALSE)/BC21,3)*1000) -> 460 | AO21: =IF($A$4="Numbers",MROUND(VLOOKUP($C21&AB$8,'Calc-V'!$A$4:$S$399,$AD$6,FALSE),10),ROUND(VLOOKUP($C21&AB$8,'Calc-V'!$A$4:$S$399,$AD$6,FALSE)/BD21,3)*1000) -> 580 | AS21: =VLOOKUP($C21&AS$8,'Calc-V'!$A$4:$AA$399,$AS$6,FALSE) -> 27210 | AT21: =VLOOKUP($C21&AT$8,'Calc-V'!$A$4:$AA$399,$AS$6,FALSE) -> 27280 | AU21: =VLOOKUP($C21&AU$8,'Calc-V'!$A$4:$AA$399,$AS$6,FALSE) -> 27280 | AV21: =VLOOKUP($C21&AV$8,'Calc-V'!$A$4:$AA$399,$AS$6,FALSE) -> 27420 | AW21: =VLOOKUP($C21&AW$8,'Calc-V'!$A$4:$AA$399,$AS$6,FALSE) -> 27420 | AX21: =VLOOKUP($C21&AX$8,'Calc-V'!$A$4:$AA$399,$AS$6,FALSE) -> 27600 | AY21: =VLOOKUP($C21&AY$8,'Calc-V'!$A$4:$AA$399,$AS$6,FALSE) -> 27600 | AZ21: =VLOOKUP($C21&AZ$8,'Calc-V'!$A$4:$AA$399,$AS$6,FALSE) -> 27690 | BA21: =VLOOKUP($C21&BA$8,'Calc-V'!$A$4:$AA$399,$AS$6,FALSE) -> 27560 | BB21: =VLOOKUP($C21&BB$8,'Calc-V'!$A$4:$AA$399,$AS$6,FALSE) -> 27560 | BC21: =VLOOKUP($C21&BC$8,'Calc-V'!$A$4:$AA$399,$AS$6,FALSE) -> 27400 | BD21: =VLOOKUP($C21&BD$8,'Calc-V'!$A$4:$AA$399,$AS$6,FALSE) -> 27250
C22: Falkirk | D22: =IF($A$4="Numbers",MROUND(VLOOKUP($C22&D$8,'Calc-V'!$A$4:$W$399,$D$6,FALSE),10),ROUND(VLOOKUP($C22&D$8,'Calc-V'!$A$4:$W$399,$D$6,FALSE)/AS22,3)*1000) -> 3250 | E22: =IF($A$4="Numbers",MROUND(VLOOKUP($C22&E$8,'Calc-V'!$A$4:$W$399,$D$6,FALSE),10),ROUND(VLOOKUP($C22&E$8,'Calc-V'!$A$4:$W$399,$D$6,FALSE)/AT22,3)*1000) -> 3330 | F22: =IF($A$4="Numbers",MROUND(VLOOKUP($C22&F$8,'Calc-V'!$A$4:$W$399,$D$6,FALSE),10),ROUND(VLOOKUP($C22&F$8,'Calc-V'!$A$4:$W$399,$D$6,FALSE)/AU22,3)*1000) -> 3240 | G22: =IF($A$4="Numbers",MROUND(VLOOKUP($C22&G$8,'Calc-V'!$A$4:$W$399,$D$6,FALSE),10),ROUND(VLOOKUP($C22&G$8,'Calc-V'!$A$4:$W$399,$D$6,FALSE)/AV22,3)*1000) -> 3330 | H22: =IF($A$4="Numbers",MROUND(VLOOKUP($C22&H$8,'Calc-V'!$A$4:$W$399,$D$6,FALSE),10),ROUND(VLOOKUP($C22&H$8,'Calc-V'!$A$4:$W$399,$D$6,FALSE)/AW22,3)*1000) -> 3330 | I22: =IF($A$4="Numbers",MROUND(VLOOKUP($C22&I$8,'Calc-V'!$A$4:$W$399,$D$6,FALSE),10),ROUND(VLOOKUP($C22&I$8,'Calc-V'!$A$4:$W$399,$D$6,FALSE)/AX22,3)*1000) -> 3300 | J22: =IF($A$4="Numbers",MROUND(VLOOKUP($C22&J$8,'Calc-V'!$A$4:$W$399,$D$6,FALSE),10),ROUND(VLOOKUP($C22&J$8,'Calc-V'!$A$4:$W$399,$D$6,FALSE)/AY22,3)*1000) -> 3300 | K22: =IF($A$4="Numbers",MROUND(VLOOKUP($C22&K$8,'Calc-V'!$A$4:$W$399,$D$6,FALSE),10),ROUND(VLOOKUP($C22&K$8,'Calc-V'!$A$4:$W$399,$D$6,FALSE)/AZ22,3)*1000) -> 3340 | L22: =IF($A$4="Numbers",MROUND(VLOOKUP($C22&L$8,'Calc-V'!$A$4:$W$399,$D$6,FALSE),10),ROUND(VLOOKUP($C22&L$8,'Calc-V'!$A$4:$W$399,$D$6,FALSE)/BA22,3)*1000) -> 3390 | M22: =IF($A$4="Numbers",MROUND(VLOOKUP($C22&M$8,'Calc-V'!$A$4:$W$399,$D$6,FALSE),10),ROUND(VLOOKUP($C22&M$8,'Calc-V'!$A$4:$W$399,$D$6,FALSE)/BB22,3)*1000) -> 3390 | N22: =IF($A$4="Numbers",MROUND(VLOOKUP($C22&N$8,'Calc-V'!$A$4:$W$399,$D$6,FALSE),10),ROUND(VLOOKUP($C22&N$8,'Calc-V'!$A$4:$W$399,$D$6,FALSE)/BC22,3)*1000) -> 3110 | O22: =IF($A$4="Numbers",MROUND(VLOOKUP($C22&O$8,'Calc-V'!$A$4:$W$399,$D$6,FALSE),10),ROUND(VLOOKUP($C22&O$8,'Calc-V'!$A$4:$W$399,$D$6,FALSE)/BD22,3)*1000) -> 3220 | Q22: =IF($A$4="Numbers",MROUND(VLOOKUP($C22&D$8,'Calc-V'!$A$4:$S$399,$Q$6,FALSE),10),ROUND(VLOOKUP($C22&D$8,'Calc-V'!$A$4:$S$399,$Q$6,FALSE)/AS22,3)*1000) -> 1780 | R22: =IF($A$4="Numbers",MROUND(VLOOKUP($C22&E$8,'Calc-V'!$A$4:$S$399,$Q$6,FALSE),10),ROUND(VLOOKUP($C22&E$8,'Calc-V'!$A$4:$S$399,$Q$6,FALSE)/AT22,3)*1000) -> 1840 | S22: =IF($A$4="Numbers",MROUND(VLOOKUP($C22&F$8,'Calc-V'!$A$4:$S$399,$Q$6,FALSE),10),ROUND(VLOOKUP($C22&F$8,'Calc-V'!$A$4:$S$399,$Q$6,FALSE)/AU22,3)*1000) -> 1640 | T22: =IF($A$4="Numbers",MROUND(VLOOKUP($C22&G$8,'Calc-V'!$A$4:$S$399,$Q$6,FALSE),10),ROUND(VLOOKUP($C22&G$8,'Calc-V'!$A$4:$S$399,$Q$6,FALSE)/AV22,3)*1000) -> 1660 | U22: =IF($A$4="Numbers",MROUND(VLOOKUP($C22&H$8,'Calc-V'!$A$4:$S$399,$Q$6,FALSE),10),ROUND(VLOOKUP($C22&H$8,'Calc-V'!$A$4:$S$399,$Q$6,FALSE)/AW22,3)*1000) -> 1660 | V22: =IF($A$4="Numbers",MROUND(VLOOKUP($C22&I$8,'Calc-V'!$A$4:$S$399,$Q$6,FALSE),10),ROUND(VLOOKUP($C22&I$8,'Calc-V'!$A$4:$S$399,$Q$6,FALSE)/AX22,3)*1000) -> 1610 | W22: =IF($A$4="Numbers",MROUND(VLOOKUP($C22&J$8,'Calc-V'!$A$4:$S$399,$Q$6,FALSE),10),ROUND(VLOOKUP($C22&J$8,'Calc-V'!$A$4:$S$399,$Q$6,FALSE)/AY22,3)*1000) -> 1610 | X22: =IF($A$4="Numbers",MROUND(VLOOKUP($C22&K$8,'Calc-V'!$A$4:$S$399,$Q$6,FALSE),10),ROUND(VLOOKUP($C22&K$8,'Calc-V'!$A$4:$S$399,$Q$6,FALSE)/AZ22,3)*1000) -> 1660 | Y22: =IF($A$4="Numbers",MROUND(VLOOKUP($C22&L$8,'Calc-V'!$A$4:$S$399,$Q$6,FALSE),10),ROUND(VLOOKUP($C22&L$8,'Calc-V'!$A$4:$S$399,$Q$6,FALSE)/BA22,3)*1000) -> 1780 | Z22: =IF($A$4="Numbers",MROUND(VLOOKUP($C22&M$8,'Calc-V'!$A$4:$S$399,$Q$6,FALSE),10),ROUND(VLOOKUP($C22&M$8,'Calc-V'!$A$4:$S$399,$Q$6,FALSE)/BB22,3)*1000) -> 1780 | AA22: =IF($A$4="Numbers",MROUND(VLOOKUP($C22&N$8,'Calc-V'!$A$4:$S$399,$Q$6,FALSE),10),ROUND(VLOOKUP($C22&N$8,'Calc-V'!$A$4:$S$399,$Q$6,FALSE)/BC22,3)*1000) -> 1570 | AB22: =IF($A$4="Numbers",MROUND(VLOOKUP($C22&O$8,'Calc-V'!$A$4:$S$399,$Q$6,FALSE),10),ROUND(VLOOKUP($C22&O$8,'Calc-V'!$A$4:$S$399,$Q$6,FALSE)/BD22,3)*1000) -> 1690 | AD22: =IF($A$4="Numbers",MROUND(VLOOKUP($C22&Q$8,'Calc-V'!$A$4:$S$399,$AD$6,FALSE),10),ROUND(VLOOKUP($C22&Q$8,'Calc-V'!$A$4:$S$399,$AD$6,FALSE)/AS22,3)*1000) -> 1470 | AE22: =IF($A$4="Numbers",MROUND(VLOOKUP($C22&R$8,'Calc-V'!$A$4:$S$399,$AD$6,FALSE),10),ROUND(VLOOKUP($C22&R$8,'Calc-V'!$A$4:$S$399,$AD$6,FALSE)/AT22,3)*1000) -> 1490 | AF22: =IF($A$4="Numbers",MROUND(VLOOKUP($C22&S$8,'Calc-V'!$A$4:$S$399,$AD$6,FALSE),10),ROUND(VLOOKUP($C22&S$8,'Calc-V'!$A$4:$S$399,$AD$6,FALSE)/AU22,3)*1000) -> 1600 | AG22: =IF($A$4="Numbers",MROUND(VLOOKUP($C22&T$8,'Calc-V'!$A$4:$S$399,$AD$6,FALSE),10),ROUND(VLOOKUP($C22&T$8,'Calc-V'!$A$4:$S$399,$AD$6,FALSE)/AV22,3)*1000) -> 1670 | AH22: =IF($A$4="Numbers",MROUND(VLOOKUP($C22&U$8,'Calc-V'!$A$4:$S$399,$AD$6,FALSE),10),ROUND(VLOOKUP($C22&U$8,'Calc-V'!$A$4:$S$399,$AD$6,FALSE)/AW22,3)*1000) -> 1670 | AI22: =IF($A$4="Numbers",MROUND(VLOOKUP($C22&V$8,'Calc-V'!$A$4:$S$399,$AD$6,FALSE),10),ROUND(VLOOKUP($C22&V$8,'Calc-V'!$A$4:$S$399,$AD$6,FALSE)/AX22,3)*1000) -> 1690 | AJ22: =IF($A$4="Numbers",MROUND(VLOOKUP($C22&W$8,'Calc-V'!$A$4:$S$399,$AD$6,FALSE),10),ROUND(VLOOKUP($C22&W$8,'Calc-V'!$A$4:$S$399,$AD$6,FALSE)/AY22,3)*1000) -> 1690 | AK22: =IF($A$4="Numbers",MROUND(VLOOKUP($C22&X$8,'Calc-V'!$A$4:$S$399,$AD$6,FALSE),10),ROUND(VLOOKUP($C22&X$8,'Calc-V'!$A$4:$S$399,$AD$6,FALSE)/AZ22,3)*1000) -> 1680 | AL22: =IF($A$4="Numbers",MROUND(VLOOKUP($C22&Y$8,'Calc-V'!$A$4:$S$399,$AD$6,FALSE),10),ROUND(VLOOKUP($C22&Y$8,'Calc-V'!$A$4:$S$399,$AD$6,FALSE)/BA22,3)*1000) -> 1610 | AM22: =IF($A$4="Numbers",MROUND(VLOOKUP($C22&Z$8,'Calc-V'!$A$4:$S$399,$AD$6,FALSE),10),ROUND(VLOOKUP($C22&Z$8,'Calc-V'!$A$4:$S$399,$AD$6,FALSE)/BB22,3)*1000) -> 1610 | AN22: =IF($A$4="Numbers",MROUND(VLOOKUP($C22&AA$8,'Calc-V'!$A$4:$S$399,$AD$6,FALSE),10),ROUND(VLOOKUP($C22&AA$8,'Calc-V'!$A$4:$S$399,$AD$6,FALSE)/BC22,3)*1000) -> 1540 | AO22: =IF($A$4="Numbers",MROUND(VLOOKUP($C22&AB$8,'Calc-V'!$A$4:$S$399,$AD$6,FALSE),10),ROUND(VLOOKUP($C22&AB$8,'Calc-V'!$A$4:$S$399,$AD$6,FALSE)/BD22,3)*1000) -> 1530 | AS22: =VLOOKUP($C22&AS$8,'Calc-V'!$A$4:$AA$399,$AS$6,FALSE) -> 152320 | AT22: =VLOOKUP($C22&AT$8,'Calc-V'!$A$4:$AA$399,$AS$6,FALSE) -> 153290 | AU22: =VLOOKUP($C22&AU$8,'Calc-V'!$A$4:$AA$399,$AS$6,FALSE) -> 153290 | AV22: =VLOOKUP($C22&AV$8,'Calc-V'!$A$4:$AA$399,$AS$6,FALSE) -> 154210 | AW22: =VLOOKUP($C22&AW$8,'Calc-V'!$A$4:$AA$399,$AS$6,FALSE) -> 154210 | AX22: =VLOOKUP($C22&AX$8,'Calc-V'!$A$4:$AA$399,$AS$6,FALSE) -> 155140 | AY22: =VLOOKUP($C22&AY$8,'Calc-V'!$A$4:$AA$399,$AS$6,FALSE) -> 155140 | AZ22: =VLOOKUP($C22&AZ$8,'Calc-V'!$A$4:$AA$399,$AS$6,FALSE) -> 156250 | BA22: =VLOOKUP($C22&BA$8,'Calc-V'!$A$4:$AA$399,$AS$6,FALSE) -> 156800 | BB22: =VLOOKUP($C22&BB$8,'Calc-V'!$A$4:$AA$399,$AS$6,FALSE) -> 156800 | BC22: =VLOOKUP($C22&BC$8,'Calc-V'!$A$4:$AA$399,$AS$6,FALSE) -> 157140 | BD22: =VLOOKUP($C22&BD$8,'Calc-V'!$A$4:$AA$399,$AS$6,FALSE) -> 157640
C23: Fife | D23: =IF($A$4="Numbers",MROUND(VLOOKUP($C23&D$8,'Calc-V'!$A$4:$W$399,$D$6,FALSE),10),ROUND(VLOOKUP($C23&D$8,'Calc-V'!$A$4:$W$399,$D$6,FALSE)/AS23,3)*1000) -> 8340 | E23: =IF($A$4="Numbers",MROUND(VLOOKUP($C23&E$8,'Calc-V'!$A$4:$W$399,$D$6,FALSE),10),ROUND(VLOOKUP($C23&E$8,'Calc-V'!$A$4:$W$399,$D$6,FALSE)/AT23,3)*1000) -> 7960 | F23: =IF($A$4="Numbers",MROUND(VLOOKUP($C23&F$8,'Calc-V'!$A$4:$W$399,$D$6,FALSE),10),ROUND(VLOOKUP($C23&F$8,'Calc-V'!$A$4:$W$399,$D$6,FALSE)/AU23,3)*1000) -> 18670 | G23: =IF($A$4="Numbers",MROUND(VLOOKUP($C23&G$8,'Calc-V'!$A$4:$W$399,$D$6,FALSE),10),ROUND(VLOOKUP($C23&G$8,'Calc-V'!$A$4:$W$399,$D$6,FALSE)/AV23,3)*1000) -> 20460 | H23: =IF($A$4="Numbers",MROUND(VLOOKUP($C23&H$8,'Calc-V'!$A$4:$W$399,$D$6,FALSE),10),ROUND(VLOOKUP($C23&H$8,'Calc-V'!$A$4:$W$399,$D$6,FALSE)/AW23,3)*1000) -> 22440 | I23: =IF($A$4="Numbers",MROUND(VLOOKUP($C23&I$8,'Calc-V'!$A$4:$W$399,$D$6,FALSE),10),ROUND(VLOOKUP($C23&I$8,'Calc-V'!$A$4:$W$399,$D$6,FALSE)/AX23,3)*1000) -> 23680 | J23: =IF($A$4="Numbers",MROUND(VLOOKUP($C23&J$8,'Calc-V'!$A$4:$W$399,$D$6,FALSE),10),ROUND(VLOOKUP($C23&J$8,'Calc-V'!$A$4:$W$399,$D$6,FALSE)/AY23,3)*1000) -> 18260 | K23: =IF($A$4="Numbers",MROUND(VLOOKUP($C23&K$8,'Calc-V'!$A$4:$W$399,$D$6,FALSE),10),ROUND(VLOOKUP($C23&K$8,'Calc-V'!$A$4:$W$399,$D$6,FALSE)/AZ23,3)*1000) -> 17470 | L23: =IF($A$4="Numbers",MROUND(VLOOKUP($C23&L$8,'Calc-V'!$A$4:$W$399,$D$6,FALSE),10),ROUND(VLOOKUP($C23&L$8,'Calc-V'!$A$4:$W$399,$D$6,FALSE)/BA23,3)*1000) -> 18070 | M23: =IF($A$4="Numbers",MROUND(VLOOKUP($C23&M$8,'Calc-V'!$A$4:$W$399,$D$6,FALSE),10),ROUND(VLOOKUP($C23&M$8,'Calc-V'!$A$4:$W$399,$D$6,FALSE)/BB23,3)*1000) -> 18070 | N23: =IF($A$4="Numbers",MROUND(VLOOKUP($C23&N$8,'Calc-V'!$A$4:$W$399,$D$6,FALSE),10),ROUND(VLOOKUP($C23&N$8,'Calc-V'!$A$4:$W$399,$D$6,FALSE)/BC23,3)*1000) -> 18800 | O23: =IF($A$4="Numbers",MROUND(VLOOKUP($C23&O$8,'Calc-V'!$A$4:$W$399,$D$6,FALSE),10),ROUND(VLOOKUP($C23&O$8,'Calc-V'!$A$4:$W$399,$D$6,FALSE)/BD23,3)*1000) -> 18430 | Q23: =IF($A$4="Numbers",MROUND(VLOOKUP($C23&D$8,'Calc-V'!$A$4:$S$399,$Q$6,FALSE),10),ROUND(VLOOKUP($C23&D$8,'Calc-V'!$A$4:$S$399,$Q$6,FALSE)/AS23,3)*1000) -> 4330 | R23: =IF($A$4="Numbers",MROUND(VLOOKUP($C23&E$8,'Calc-V'!$A$4:$S$399,$Q$6,FALSE),10),ROUND(VLOOKUP($C23&E$8,'Calc-V'!$A$4:$S$399,$Q$6,FALSE)/AT23,3)*1000) -> 4000 | S23: =IF($A$4="Numbers",MROUND(VLOOKUP($C23&F$8,'Calc-V'!$A$4:$S$399,$Q$6,FALSE),10),ROUND(VLOOKUP($C23&F$8,'Calc-V'!$A$4:$S$399,$Q$6,FALSE)/AU23,3)*1000) -> 4000 | T23: =IF($A$4="Numbers",MROUND(VLOOKUP($C23&G$8,'Calc-V'!$A$4:$S$399,$Q$6,FALSE),10),ROUND(VLOOKUP($C23&G$8,'Calc-V'!$A$4:$S$399,$Q$6,FALSE)/AV23,3)*1000) -> 4110 | U23: =IF($A$4="Numbers",MROUND(VLOOKUP($C23&H$8,'Calc-V'!$A$4:$S$399,$Q$6,FALSE),10),ROUND(VLOOKUP($C23&H$8,'Calc-V'!$A$4:$S$399,$Q$6,FALSE)/AW23,3)*1000) -> 3860 | V23: =IF($A$4="Numbers",MROUND(VLOOKUP($C23&I$8,'Calc-V'!$A$4:$S$399,$Q$6,FALSE),10),ROUND(VLOOKUP($C23&I$8,'Calc-V'!$A$4:$S$399,$Q$6,FALSE)/AX23,3)*1000) -> 4160 | W23: =IF($A$4="Numbers",MROUND(VLOOKUP($C23&J$8,'Calc-V'!$A$4:$S$399,$Q$6,FALSE),10),ROUND(VLOOKUP($C23&J$8,'Calc-V'!$A$4:$S$399,$Q$6,FALSE)/AY23,3)*1000) -> 4160 | X23: =IF($A$4="Numbers",MROUND(VLOOKUP($C23&K$8,'Calc-V'!$A$4:$S$399,$Q$6,FALSE),10),ROUND(VLOOKUP($C23&K$8,'Calc-V'!$A$4:$S$399,$Q$6,FALSE)/AZ23,3)*1000) -> 4410 | Y23: =IF($A$4="Numbers",MROUND(VLOOKUP($C23&L$8,'Calc-V'!$A$4:$S$399,$Q$6,FALSE),10),ROUND(VLOOKUP($C23&L$8,'Calc-V'!$A$4:$S$399,$Q$6,FALSE)/BA23,3)*1000) -> 4470 | Z23: =IF($A$4="Numbers",MROUND(VLOOKUP($C23&M$8,'Calc-V'!$A$4:$S$399,$Q$6,FALSE),10),ROUND(VLOOKUP($C23&M$8,'Calc-V'!$A$4:$S$399,$Q$6,FALSE)/BB23,3)*1000) -> 4470 | AA23: =IF($A$4="Numbers",MROUND(VLOOKUP($C23&N$8,'Calc-V'!$A$4:$S$399,$Q$6,FALSE),10),ROUND(VLOOKUP($C23&N$8,'Calc-V'!$A$4:$S$399,$Q$6,FALSE)/BC23,3)*1000) -> 4730 | AB23: =IF($A$4="Numbers",MROUND(VLOOKUP($C23&O$8,'Calc-V'!$A$4:$S$399,$Q$6,FALSE),10),ROUND(VLOOKUP($C23&O$8,'Calc-V'!$A$4:$S$399,$Q$6,FALSE)/BD23,3)*1000) -> 5600 | AD23: =IF($A$4="Numbers",MROUND(VLOOKUP($C23&Q$8,'Calc-V'!$A$4:$S$399,$AD$6,FALSE),10),ROUND(VLOOKUP($C23&Q$8,'Calc-V'!$A$4:$S$399,$AD$6,FALSE)/AS23,3)*1000) -> 4020 | AE23: =IF($A$4="Numbers",MROUND(VLOOKUP($C23&R$8,'Calc-V'!$A$4:$S$399,$AD$6,FALSE),10),ROUND(VLOOKUP($C23&R$8,'Calc-V'!$A$4:$S$399,$AD$6,FALSE)/AT23,3)*1000) -> 3970 | AF23: =IF($A$4="Numbers",MROUND(VLOOKUP($C23&S$8,'Calc-V'!$A$4:$S$399,$AD$6,FALSE),10),ROUND(VLOOKUP($C23&S$8,'Calc-V'!$A$4:$S$399,$AD$6,FALSE)/AU23,3)*1000) -> 14670 | AG23: =IF($A$4="Numbers",MROUND(VLOOKUP($C23&T$8,'Calc-V'!$A$4:$S$399,$AD$6,FALSE),10),ROUND(VLOOKUP($C23&T$8,'Calc-V'!$A$4:$S$399,$AD$6,FALSE)/AV23,3)*1000) -> 16350 | AH23: =IF($A$4="Numbers",MROUND(VLOOKUP($C23&U$8,'Calc-V'!$A$4:$S$399,$AD$6,FALSE),10),ROUND(VLOOKUP($C23&U$8,'Calc-V'!$A$4:$S$399,$AD$6,FALSE)/AW23,3)*1000) -> 18580 | AI23: =IF($A$4="Numbers",MROUND(VLOOKUP($C23&V$8,'Calc-V'!$A$4:$S$399,$AD$6,FALSE),10),ROUND(VLOOKUP($C23&V$8,'Calc-V'!$A$4:$S$399,$AD$6,FALSE)/AX23,3)*1000) -> 19520 | AJ23: =IF($A$4="Numbers",MROUND(VLOOKUP($C23&W$8,'Calc-V'!$A$4:$S$399,$AD$6,FALSE),10),ROUND(VLOOKUP($C23&W$8,'Calc-V'!$A$4:$S$399,$AD$6,FALSE)/AY23,3)*1000) -> 14100 | AK23: =IF($A$4="Numbers",MROUND(VLOOKUP($C23&X$8,'Calc-V'!$A$4:$S$399,$AD$6,FALSE),10),ROUND(VLOOKUP($C23&X$8,'Calc-V'!$A$4:$S$399,$AD$6,FALSE)/AZ23,3)*1000) -> 13060 | AL23: =IF($A$4="Numbers",MROUND(VLOOKUP($C23&Y$8,'Calc-V'!$A$4:$S$399,$AD$6,FALSE),10),ROUND(VLOOKUP($C23&Y$8,'Calc-V'!$A$4:$S$399,$AD$6,FALSE)/BA23,3)*1000) -> 13600 | AM23: =IF($A$4="Numbers",MROUND(VLOOKUP($C23&Z$8,'Calc-V'!$A$4:$S$399,$AD$6,FALSE),10),ROUND(VLOOKUP($C23&Z$8,'Calc-V'!$A$4:$S$399,$AD$6,FALSE)/BB23,3)*1000) -> 13600 | AN23: =IF($A$4="Numbers",MROUND(VLOOKUP($C23&AA$8,'Calc-V'!$A$4:$S$399,$AD$6,FALSE),10),ROUND(VLOOKUP($C23&AA$8,'Calc-V'!$A$4:$S$399,$AD$6,FALSE)/BC23,3)*1000) -> 14070 | AO23: =IF($A$4="Numbers",MROUND(VLOOKUP($C23&AB$8,'Calc-V'!$A$4:$S$399,$AD$6,FALSE),10),ROUND(VLOOKUP($C23&AB$8,'Calc-V'!$A$4:$S$399,$AD$6,FALSE)/BD23,3)*1000) -> 12830 | AS23: =VLOOKUP($C23&AS$8,'Calc-V'!$A$4:$AA$399,$AS$6,FALSE) -> 358750 | AT23: =VLOOKUP($C23&AT$8,'Calc-V'!$A$4:$AA$399,$AS$6,FALSE) -> 360050 | AU23: =VLOOKUP($C23&AU$8,'Calc-V'!$A$4:$AA$399,$AS$6,FALSE) -> 360050 | AV23: =VLOOKUP($C23&AV$8,'Calc-V'!$A$4:$AA$399,$AS$6,FALSE) -> 361410 | AW23: =VLOOKUP($C23&AW$8,'Calc-V'!$A$4:$AA$399,$AS$6,FALSE) -> 361410 | AX23: =VLOOKUP($C23&AX$8,'Calc-V'!$A$4:$AA$399,$AS$6,FALSE) -> 362610 | AY23: =VLOOKUP($C23&AY$8,'Calc-V'!$A$4:$AA$399,$AS$6,FALSE) -> 362610 | AZ23: =VLOOKUP($C23&AZ$8,'Calc-V'!$A$4:$AA$399,$AS$6,FALSE) -> 365300 | BA23: =VLOOKUP($C23&BA$8,'Calc-V'!$A$4:$AA$399,$AS$6,FALSE) -> 366220 | BB23: =VLOOKUP($C23&BB$8,'Calc-V'!$A$4:$AA$399,$AS$6,FALSE) -> 366220 | BC23: =VLOOKUP($C23&BC$8,'Calc-V'!$A$4:$AA$399,$AS$6,FALSE) -> 366910 | BD23: =VLOOKUP($C23&BD$8,'Calc-V'!$A$4:$AA$399,$AS$6,FALSE) -> 367260
C24: Glasgow City | D24: =IF($A$4="Numbers",MROUND(VLOOKUP($C24&D$8,'Calc-V'!$A$4:$W$399,$D$6,FALSE),10),ROUND(VLOOKUP($C24&D$8,'Calc-V'!$A$4:$W$399,$D$6,FALSE)/AS24,3)*1000) -> 25210 | E24: =IF($A$4="Numbers",MROUND(VLOOKUP($C24&E$8,'Calc-V'!$A$4:$W$399,$D$6,FALSE),10),ROUND(VLOOKUP($C24&E$8,'Calc-V'!$A$4:$W$399,$D$6,FALSE)/AT24,3)*1000) -> 22960 | F24: =IF($A$4="Numbers",MROUND(VLOOKUP($C24&F$8,'Calc-V'!$A$4:$W$399,$D$6,FALSE),10),ROUND(VLOOKUP($C24&F$8,'Calc-V'!$A$4:$W$399,$D$6,FALSE)/AU24,3)*1000) -> 22960 | G24: =IF($A$4="Numbers",MROUND(VLOOKUP($C24&G$8,'Calc-V'!$A$4:$W$399,$D$6,FALSE),10),ROUND(VLOOKUP($C24&G$8,'Calc-V'!$A$4:$W$399,$D$6,FALSE)/AV24,3)*1000) -> 21650 | H24: =IF($A$4="Numbers",MROUND(VLOOKUP($C24&H$8,'Calc-V'!$A$4:$W$399,$D$6,FALSE),10),ROUND(VLOOKUP($C24&H$8,'Calc-V'!$A$4:$W$399,$D$6,FALSE)/AW24,3)*1000) -> 21650 | I24: =IF($A$4="Numbers",MROUND(VLOOKUP($C24&I$8,'Calc-V'!$A$4:$W$399,$D$6,FALSE),10),ROUND(VLOOKUP($C24&I$8,'Calc-V'!$A$4:$W$399,$D$6,FALSE)/AX24,3)*1000) -> 22210 | J24: =IF($A$4="Numbers",MROUND(VLOOKUP($C24&J$8,'Calc-V'!$A$4:$W$399,$D$6,FALSE),10),ROUND(VLOOKUP($C24&J$8,'Calc-V'!$A$4:$W$399,$D$6,FALSE)/AY24,3)*1000) -> 23320 | K24: =IF($A$4="Numbers",MROUND(VLOOKUP($C24&K$8,'Calc-V'!$A$4:$W$399,$D$6,FALSE),10),ROUND(VLOOKUP($C24&K$8,'Calc-V'!$A$4:$W$399,$D$6,FALSE)/AZ24,3)*1000) -> 21450 | L24: =IF($A$4="Numbers",MROUND(VLOOKUP($C24&L$8,'Calc-V'!$A$4:$W$399,$D$6,FALSE),10),ROUND(VLOOKUP($C24&L$8,'Calc-V'!$A$4:$W$399,$D$6,FALSE)/BA24,3)*1000) -> 20720 | M24: =IF($A$4="Numbers",MROUND(VLOOKUP($C24&M$8,'Calc-V'!$A$4:$W$399,$D$6,FALSE),10),ROUND(VLOOKUP($C24&M$8,'Calc-V'!$A$4:$W$399,$D$6,FALSE)/BB24,3)*1000) -> 20720 | N24: =IF($A$4="Numbers",MROUND(VLOOKUP($C24&N$8,'Calc-V'!$A$4:$W$399,$D$6,FALSE),10),ROUND(VLOOKUP($C24&N$8,'Calc-V'!$A$4:$W$399,$D$6,FALSE)/BC24,3)*1000) -> 15920 | O24: =IF($A$4="Numbers",MROUND(VLOOKUP($C24&O$8,'Calc-V'!$A$4:$W$399,$D$6,FALSE),10),ROUND(VLOOKUP($C24&O$8,'Calc-V'!$A$4:$W$399,$D$6,FALSE)/BD24,3)*1000) -> 11990 | Q24: =IF($A$4="Numbers",MROUND(VLOOKUP($C24&D$8,'Calc-V'!$A$4:$S$399,$Q$6,FALSE),10),ROUND(VLOOKUP($C24&D$8,'Calc-V'!$A$4:$S$399,$Q$6,FALSE)/AS24,3)*1000) -> 6930 | R24: =IF($A$4="Numbers",MROUND(VLOOKUP($C24&E$8,'Calc-V'!$A$4:$S$399,$Q$6,FALSE),10),ROUND(VLOOKUP($C24&E$8,'Calc-V'!$A$4:$S$399,$Q$6,FALSE)/AT24,3)*1000) -> 6530 | S24: =IF($A$4="Numbers",MROUND(VLOOKUP($C24&F$8,'Calc-V'!$A$4:$S$399,$Q$6,FALSE),10),ROUND(VLOOKUP($C24&F$8,'Calc-V'!$A$4:$S$399,$Q$6,FALSE)/AU24,3)*1000) -> 6530 | T24: =IF($A$4="Numbers",MROUND(VLOOKUP($C24&G$8,'Calc-V'!$A$4:$S$399,$Q$6,FALSE),10),ROUND(VLOOKUP($C24&G$8,'Calc-V'!$A$4:$S$399,$Q$6,FALSE)/AV24,3)*1000) -> 6210 | U24: =IF($A$4="Numbers",MROUND(VLOOKUP($C24&H$8,'Calc-V'!$A$4:$S$399,$Q$6,FALSE),10),ROUND(VLOOKUP($C24&H$8,'Calc-V'!$A$4:$S$399,$Q$6,FALSE)/AW24,3)*1000) -> 6210 | V24: =IF($A$4="Numbers",MROUND(VLOOKUP($C24&I$8,'Calc-V'!$A$4:$S$399,$Q$6,FALSE),10),ROUND(VLOOKUP($C24&I$8,'Calc-V'!$A$4:$S$399,$Q$6,FALSE)/AX24,3)*1000) -> 4780 | W24: =IF($A$4="Numbers",MROUND(VLOOKUP($C24&J$8,'Calc-V'!$A$4:$S$399,$Q$6,FALSE),10),ROUND(VLOOKUP($C24&J$8,'Calc-V'!$A$4:$S$399,$Q$6,FALSE)/AY24,3)*1000) -> 4780 | X24: =IF($A$4="Numbers",MROUND(VLOOKUP($C24&K$8,'Calc-V'!$A$4:$S$399,$Q$6,FALSE),10),ROUND(VLOOKUP($C24&K$8,'Calc-V'!$A$4:$S$399,$Q$6,FALSE)/AZ24,3)*1000) -> 4160 | Y24: =IF($A$4="Numbers",MROUND(VLOOKUP($C24&L$8,'Calc-V'!$A$4:$S$399,$Q$6,FALSE),10),ROUND(VLOOKUP($C24&L$8,'Calc-V'!$A$4:$S$399,$Q$6,FALSE)/BA24,3)*1000) -> 4040 | Z24: =IF($A$4="Numbers",MROUND(VLOOKUP($C24&M$8,'Calc-V'!$A$4:$S$399,$Q$6,FALSE),10),ROUND(VLOOKUP($C24&M$8,'Calc-V'!$A$4:$S$399,$Q$6,FALSE)/BB24,3)*1000) -> 4040 | AA24: =IF($A$4="Numbers",MROUND(VLOOKUP($C24&N$8,'Calc-V'!$A$4:$S$399,$Q$6,FALSE),10),ROUND(VLOOKUP($C24&N$8,'Calc-V'!$A$4:$S$399,$Q$6,FALSE)/BC24,3)*1000) -> 2500 | AB24: =IF($A$4="Numbers",MROUND(VLOOKUP($C24&O$8,'Calc-V'!$A$4:$S$399,$Q$6,FALSE),10),ROUND(VLOOKUP($C24&O$8,'Calc-V'!$A$4:$S$399,$Q$6,FALSE)/BD24,3)*1000) -> 1990 | AD24: =IF($A$4="Numbers",MROUND(VLOOKUP($C24&Q$8,'Calc-V'!$A$4:$S$399,$AD$6,FALSE),10),ROUND(VLOOKUP($C24&Q$8,'Calc-V'!$A$4:$S$399,$AD$6,FALSE)/AS24,3)*1000) -> 18280 | AE24: =IF($A$4="Numbers",MROUND(VLOOKUP($C24&R$8,'Calc-V'!$A$4:$S$399,$AD$6,FALSE),10),ROUND(VLOOKUP($C24&R$8,'Calc-V'!$A$4:$S$399,$AD$6,FALSE)/AT24,3)*1000) -> 16430 | AF24: =IF($A$4="Numbers",MROUND(VLOOKUP($C24&S$8,'Calc-V'!$A$4:$S$399,$AD$6,FALSE),10),ROUND(VLOOKUP($C24&S$8,'Calc-V'!$A$4:$S$399,$AD$6,FALSE)/AU24,3)*1000) -> 16430 | AG24: =IF($A$4="Numbers",MROUND(VLOOKUP($C24&T$8,'Calc-V'!$A$4:$S$399,$AD$6,FALSE),10),ROUND(VLOOKUP($C24&T$8,'Calc-V'!$A$4:$S$399,$AD$6,FALSE)/AV24,3)*1000) -> 15440 | AH24: =IF($A$4="Numbers",MROUND(VLOOKUP($C24&U$8,'Calc-V'!$A$4:$S$399,$AD$6,FALSE),10),ROUND(VLOOKUP($C24&U$8,'Calc-V'!$A$4:$S$399,$AD$6,FALSE)/AW24,3)*1000) -> 15440 | AI24: =IF($A$4="Numbers",MROUND(VLOOKUP($C24&V$8,'Calc-V'!$A$4:$S$399,$AD$6,FALSE),10),ROUND(VLOOKUP($C24&V$8,'Calc-V'!$A$4:$S$399,$AD$6,FALSE)/AX24,3)*1000) -> 17440 | AJ24: =IF($A$4="Numbers",MROUND(VLOOKUP($C24&W$8,'Calc-V'!$A$4:$S$399,$AD$6,FALSE),10),ROUND(VLOOKUP($C24&W$8,'Calc-V'!$A$4:$S$399,$AD$6,FALSE)/AY24,3)*1000) -> 18540 | AK24: =IF($A$4="Numbers",MROUND(VLOOKUP($C24&X$8,'Calc-V'!$A$4:$S$399,$AD$6,FALSE),10),ROUND(VLOOKUP($C24&X$8,'Calc-V'!$A$4:$S$399,$AD$6,FALSE)/AZ24,3)*1000) -> 17290 | AL24: =IF($A$4="Numbers",MROUND(VLOOKUP($C24&Y$8,'Calc-V'!$A$4:$S$399,$AD$6,FALSE),10),ROUND(VLOOKUP($C24&Y$8,'Calc-V'!$A$4:$S$399,$AD$6,FALSE)/BA24,3)*1000) -> 16680 | AM24: =IF($A$4="Numbers",MROUND(VLOOKUP($C24&Z$8,'Calc-V'!$A$4:$S$399,$AD$6,FALSE),10),ROUND(VLOOKUP($C24&Z$8,'Calc-V'!$A$4:$S$399,$AD$6,FALSE)/BB24,3)*1000) -> 16680 | AN24: =IF($A$4="Numbers",MROUND(VLOOKUP($C24&AA$8,'Calc-V'!$A$4:$S$399,$AD$6,FALSE),10),ROUND(VLOOKUP($C24&AA$8,'Calc-V'!$A$4:$S$399,$AD$6,FALSE)/BC24,3)*1000) -> 13410 | AO24: =IF($A$4="Numbers",MROUND(VLOOKUP($C24&AB$8,'Calc-V'!$A$4:$S$399,$AD$6,FALSE),10),ROUND(VLOOKUP($C24&AB$8,'Calc-V'!$A$4:$S$399,$AD$6,FALSE)/BD24,3)*1000) -> 10000 | AS24: =VLOOKUP($C24&AS$8,'Calc-V'!$A$4:$AA$399,$AS$6,FALSE) -> 571760 | AT24: =VLOOKUP($C24&AT$8,'Calc-V'!$A$4:$AA$399,$AS$6,FALSE) -> 576200 | AU24: =VLOOKUP($C24&AU$8,'Calc-V'!$A$4:$AA$399,$AS$6,FALSE) -> 576200 | AV24: =VLOOKUP($C24&AV$8,'Calc-V'!$A$4:$AA$399,$AS$6,FALSE) -> 581620 | AW24: =VLOOKUP($C24&AW$8,'Calc-V'!$A$4:$AA$399,$AS$6,FALSE) -> 581620 | AX24: =VLOOKUP($C24&AX$8,'Calc-V'!$A$4:$AA$399,$AS$6,FALSE) -> 586500 | AY24: =VLOOKUP($C24&AY$8,'Calc-V'!$A$4:$AA$399,$AS$6,FALSE) -> 586500 | AZ24: =VLOOKUP($C24&AZ$8,'Calc-V'!$A$4:$AA$399,$AS$6,FALSE) -> 593060 | BA24: =VLOOKUP($C24&BA$8,'Calc-V'!$A$4:$AA$399,$AS$6,FALSE) -> 595080 | BB24: =VLOOKUP($C24&BB$8,'Calc-V'!$A$4:$AA$399,$AS$6,FALSE) -> 595080 | BC24: =VLOOKUP($C24&BC$8,'Calc-V'!$A$4:$AA$399,$AS$6,FALSE) -> 596550 | BD24: =VLOOKUP($C24&BD$8,'Calc-V'!$A$4:$AA$399,$AS$6,FALSE) -> 599650
C25: Highland | D25: =IF($A$4="Numbers",MROUND(VLOOKUP($C25&D$8,'Calc-V'!$A$4:$W$399,$D$6,FALSE),10),ROUND(VLOOKUP($C25&D$8,'Calc-V'!$A$4:$W$399,$D$6,FALSE)/AS25,3)*1000) -> 3860 | E25: =IF($A$4="Numbers",MROUND(VLOOKUP($C25&E$8,'Calc-V'!$A$4:$W$399,$D$6,FALSE),10),ROUND(VLOOKUP($C25&E$8,'Calc-V'!$A$4:$W$399,$D$6,FALSE)/AT25,3)*1000) -> 3850 | F25: =IF($A$4="Numbers",MROUND(VLOOKUP($C25&F$8,'Calc-V'!$A$4:$W$399,$D$6,FALSE),10),ROUND(VLOOKUP($C25&F$8,'Calc-V'!$A$4:$W$399,$D$6,FALSE)/AU25,3)*1000) -> 4850 | G25: =IF($A$4="Numbers",MROUND(VLOOKUP($C25&G$8,'Calc-V'!$A$4:$W$399,$D$6,FALSE),10),ROUND(VLOOKUP($C25&G$8,'Calc-V'!$A$4:$W$399,$D$6,FALSE)/AV25,3)*1000) -> 5690 | H25: =IF($A$4="Numbers",MROUND(VLOOKUP($C25&H$8,'Calc-V'!$A$4:$W$399,$D$6,FALSE),10),ROUND(VLOOKUP($C25&H$8,'Calc-V'!$A$4:$W$399,$D$6,FALSE)/AW25,3)*1000) -> 5690 | I25: =IF($A$4="Numbers",MROUND(VLOOKUP($C25&I$8,'Calc-V'!$A$4:$W$399,$D$6,FALSE),10),ROUND(VLOOKUP($C25&I$8,'Calc-V'!$A$4:$W$399,$D$6,FALSE)/AX25,3)*1000) -> 5090 | J25: =IF($A$4="Numbers",MROUND(VLOOKUP($C25&J$8,'Calc-V'!$A$4:$W$399,$D$6,FALSE),10),ROUND(VLOOKUP($C25&J$8,'Calc-V'!$A$4:$W$399,$D$6,FALSE)/AY25,3)*1000) -> 5090 | K25: =IF($A$4="Numbers",MROUND(VLOOKUP($C25&K$8,'Calc-V'!$A$4:$W$399,$D$6,FALSE),10),ROUND(VLOOKUP($C25&K$8,'Calc-V'!$A$4:$W$399,$D$6,FALSE)/AZ25,3)*1000) -> 4940 | L25: =IF($A$4="Numbers",MROUND(VLOOKUP($C25&L$8,'Calc-V'!$A$4:$W$399,$D$6,FALSE),10),ROUND(VLOOKUP($C25&L$8,'Calc-V'!$A$4:$W$399,$D$6,FALSE)/BA25,3)*1000) -> 5020 | M25: =IF($A$4="Numbers",MROUND(VLOOKUP($C25&M$8,'Calc-V'!$A$4:$W$399,$D$6,FALSE),10),ROUND(VLOOKUP($C25&M$8,'Calc-V'!$A$4:$W$399,$D$6,FALSE)/BB25,3)*1000) -> 5020 | N25: =IF($A$4="Numbers",MROUND(VLOOKUP($C25&N$8,'Calc-V'!$A$4:$W$399,$D$6,FALSE),10),ROUND(VLOOKUP($C25&N$8,'Calc-V'!$A$4:$W$399,$D$6,FALSE)/BC25,3)*1000) -> 5110 | O25: =IF($A$4="Numbers",MROUND(VLOOKUP($C25&O$8,'Calc-V'!$A$4:$W$399,$D$6,FALSE),10),ROUND(VLOOKUP($C25&O$8,'Calc-V'!$A$4:$W$399,$D$6,FALSE)/BD25,3)*1000) -> 5270 | Q25: =IF($A$4="Numbers",MROUND(VLOOKUP($C25&D$8,'Calc-V'!$A$4:$S$399,$Q$6,FALSE),10),ROUND(VLOOKUP($C25&D$8,'Calc-V'!$A$4:$S$399,$Q$6,FALSE)/AS25,3)*1000) -> 2140 | R25: =IF($A$4="Numbers",MROUND(VLOOKUP($C25&E$8,'Calc-V'!$A$4:$S$399,$Q$6,FALSE),10),ROUND(VLOOKUP($C25&E$8,'Calc-V'!$A$4:$S$399,$Q$6,FALSE)/AT25,3)*1000) -> 2130 | S25: =IF($A$4="Numbers",MROUND(VLOOKUP($C25&F$8,'Calc-V'!$A$4:$S$399,$Q$6,FALSE),10),ROUND(VLOOKUP($C25&F$8,'Calc-V'!$A$4:$S$399,$Q$6,FALSE)/AU25,3)*1000) -> 2130 | T25: =IF($A$4="Numbers",MROUND(VLOOKUP($C25&G$8,'Calc-V'!$A$4:$S$399,$Q$6,FALSE),10),ROUND(VLOOKUP($C25&G$8,'Calc-V'!$A$4:$S$399,$Q$6,FALSE)/AV25,3)*1000) -> 2760 | U25: =IF($A$4="Numbers",MROUND(VLOOKUP($C25&H$8,'Calc-V'!$A$4:$S$399,$Q$6,FALSE),10),ROUND(VLOOKUP($C25&H$8,'Calc-V'!$A$4:$S$399,$Q$6,FALSE)/AW25,3)*1000) -> 2760 | V25: =IF($A$4="Numbers",MROUND(VLOOKUP($C25&I$8,'Calc-V'!$A$4:$S$399,$Q$6,FALSE),10),ROUND(VLOOKUP($C25&I$8,'Calc-V'!$A$4:$S$399,$Q$6,FALSE)/AX25,3)*1000) -> 2410 | W25: =IF($A$4="Numbers",MROUND(VLOOKUP($C25&J$8,'Calc-V'!$A$4:$S$399,$Q$6,FALSE),10),ROUND(VLOOKUP($C25&J$8,'Calc-V'!$A$4:$S$399,$Q$6,FALSE)/AY25,3)*1000) -> 2410 | X25: =IF($A$4="Numbers",MROUND(VLOOKUP($C25&K$8,'Calc-V'!$A$4:$S$399,$Q$6,FALSE),10),ROUND(VLOOKUP($C25&K$8,'Calc-V'!$A$4:$S$399,$Q$6,FALSE)/AZ25,3)*1000) -> 2520 | Y25: =IF($A$4="Numbers",MROUND(VLOOKUP($C25&L$8,'Calc-V'!$A$4:$S$399,$Q$6,FALSE),10),ROUND(VLOOKUP($C25&L$8,'Calc-V'!$A$4:$S$399,$Q$6,FALSE)/BA25,3)*1000) -> 2680 | Z25: =IF($A$4="Numbers",MROUND(VLOOKUP($C25&M$8,'Calc-V'!$A$4:$S$399,$Q$6,FALSE),10),ROUND(VLOOKUP($C25&M$8,'Calc-V'!$A$4:$S$399,$Q$6,FALSE)/BB25,3)*1000) -> 2680 | AA25: =IF($A$4="Numbers",MROUND(VLOOKUP($C25&N$8,'Calc-V'!$A$4:$S$399,$Q$6,FALSE),10),ROUND(VLOOKUP($C25&N$8,'Calc-V'!$A$4:$S$399,$Q$6,FALSE)/BC25,3)*1000) -> 2390 | AB25: =IF($A$4="Numbers",MROUND(VLOOKUP($C25&O$8,'Calc-V'!$A$4:$S$399,$Q$6,FALSE),10),ROUND(VLOOKUP($C25&O$8,'Calc-V'!$A$4:$S$399,$Q$6,FALSE)/BD25,3)*1000) -> 2480 | AD25: =IF($A$4="Numbers",MROUND(VLOOKUP($C25&Q$8,'Calc-V'!$A$4:$S$399,$AD$6,FALSE),10),ROUND(VLOOKUP($C25&Q$8,'Calc-V'!$A$4:$S$399,$AD$6,FALSE)/AS25,3)*1000) -> 1710 | AE25: =IF($A$4="Numbers",MROUND(VLOOKUP($C25&R$8,'Calc-V'!$A$4:$S$399,$AD$6,FALSE),10),ROUND(VLOOKUP($C25&R$8,'Calc-V'!$A$4:$S$399,$AD$6,FALSE)/AT25,3)*1000) -> 1730 | AF25: =IF($A$4="Numbers",MROUND(VLOOKUP($C25&S$8,'Calc-V'!$A$4:$S$399,$AD$6,FALSE),10),ROUND(VLOOKUP($C25&S$8,'Calc-V'!$A$4:$S$399,$AD$6,FALSE)/AU25,3)*1000) -> 2720 | AG25: =IF($A$4="Numbers",MROUND(VLOOKUP($C25&T$8,'Calc-V'!$A$4:$S$399,$AD$6,FALSE),10),ROUND(VLOOKUP($C25&T$8,'Calc-V'!$A$4:$S$399,$AD$6,FALSE)/AV25,3)*1000) -> 2930 | AH25: =IF($A$4="Numbers",MROUND(VLOOKUP($C25&U$8,'Calc-V'!$A$4:$S$399,$AD$6,FALSE),10),ROUND(VLOOKUP($C25&U$8,'Calc-V'!$A$4:$S$399,$AD$6,FALSE)/AW25,3)*1000) -> 2930 | AI25: =IF($A$4="Numbers",MROUND(VLOOKUP($C25&V$8,'Calc-V'!$A$4:$S$399,$AD$6,FALSE),10),ROUND(VLOOKUP($C25&V$8,'Calc-V'!$A$4:$S$399,$AD$6,FALSE)/AX25,3)*1000) -> 2680 | AJ25: =IF($A$4="Numbers",MROUND(VLOOKUP($C25&W$8,'Calc-V'!$A$4:$S$399,$AD$6,FALSE),10),ROUND(VLOOKUP($C25&W$8,'Calc-V'!$A$4:$S$399,$AD$6,FALSE)/AY25,3)*1000) -> 2680 | AK25: =IF($A$4="Numbers",MROUND(VLOOKUP($C25&X$8,'Calc-V'!$A$4:$S$399,$AD$6,FALSE),10),ROUND(VLOOKUP($C25&X$8,'Calc-V'!$A$4:$S$399,$AD$6,FALSE)/AZ25,3)*1000) -> 2420 | AL25: =IF($A$4="Numbers",MROUND(VLOOKUP($C25&Y$8,'Calc-V'!$A$4:$S$399,$AD$6,FALSE),10),ROUND(VLOOKUP($C25&Y$8,'Calc-V'!$A$4:$S$399,$AD$6,FALSE)/BA25,3)*1000) -> 2350 | AM25: =IF($A$4="Numbers",MROUND(VLOOKUP($C25&Z$8,'Calc-V'!$A$4:$S$399,$AD$6,FALSE),10),ROUND(VLOOKUP($C25&Z$8,'Calc-V'!$A$4:$S$399,$AD$6,FALSE)/BB25,3)*1000) -> 2350 | AN25: =IF($A$4="Numbers",MROUND(VLOOKUP($C25&AA$8,'Calc-V'!$A$4:$S$399,$AD$6,FALSE),10),ROUND(VLOOKUP($C25&AA$8,'Calc-V'!$A$4:$S$399,$AD$6,FALSE)/BC25,3)*1000) -> 2720 | AO25: =IF($A$4="Numbers",MROUND(VLOOKUP($C25&AB$8,'Calc-V'!$A$4:$S$399,$AD$6,FALSE),10),ROUND(VLOOKUP($C25&AB$8,'Calc-V'!$A$4:$S$399,$AD$6,FALSE)/BD25,3)*1000) -> 2790 | AS25: =VLOOKUP($C25&AS$8,'Calc-V'!$A$4:$AA$399,$AS$6,FALSE) -> 224000 | AT25: =VLOOKUP($C25&AT$8,'Calc-V'!$A$4:$AA$399,$AS$6,FALSE) -> 226980 | AU25: =VLOOKUP($C25&AU$8,'Calc-V'!$A$4:$AA$399,$AS$6,FALSE) -> 226980 | AV25: =VLOOKUP($C25&AV$8,'Calc-V'!$A$4:$AA$399,$AS$6,FALSE) -> 228750 | AW25: =VLOOKUP($C25&AW$8,'Calc-V'!$A$4:$AA$399,$AS$6,FALSE) -> 228750 | AX25: =VLOOKUP($C25&AX$8,'Calc-V'!$A$4:$AA$399,$AS$6,FALSE) -> 230730 | AY25: =VLOOKUP($C25&AY$8,'Calc-V'!$A$4:$AA$399,$AS$6,FALSE) -> 230730 | AZ25: =VLOOKUP($C25&AZ$8,'Calc-V'!$A$4:$AA$399,$AS$6,FALSE) -> 232730 | BA25: =VLOOKUP($C25&BA$8,'Calc-V'!$A$4:$AA$399,$AS$6,FALSE) -> 232910 | BB25: =VLOOKUP($C25&BB$8,'Calc-V'!$A$4:$AA$399,$AS$6,FALSE) -> 232910 | BC25: =VLOOKUP($C25&BC$8,'Calc-V'!$A$4:$AA$399,$AS$6,FALSE) -> 232950 | BD25: =VLOOKUP($C25&BD$8,'Calc-V'!$A$4:$AA$399,$AS$6,FALSE) -> 233100
C26: Inverclyde | D26: =IF($A$4="Numbers",MROUND(VLOOKUP($C26&D$8,'Calc-V'!$A$4:$W$399,$D$6,FALSE),10),ROUND(VLOOKUP($C26&D$8,'Calc-V'!$A$4:$W$399,$D$6,FALSE)/AS26,3)*1000) -> 6990 | E26: =IF($A$4="Numbers",MROUND(VLOOKUP($C26&E$8,'Calc-V'!$A$4:$W$399,$D$6,FALSE),10),ROUND(VLOOKUP($C26&E$8,'Calc-V'!$A$4:$W$399,$D$6,FALSE)/AT26,3)*1000) -> 6790 | F26: =IF($A$4="Numbers",MROUND(VLOOKUP($C26&F$8,'Calc-V'!$A$4:$W$399,$D$6,FALSE),10),ROUND(VLOOKUP($C26&F$8,'Calc-V'!$A$4:$W$399,$D$6,FALSE)/AU26,3)*1000) -> 12350 | G26: =IF($A$4="Numbers",MROUND(VLOOKUP($C26&G$8,'Calc-V'!$A$4:$W$399,$D$6,FALSE),10),ROUND(VLOOKUP($C26&G$8,'Calc-V'!$A$4:$W$399,$D$6,FALSE)/AV26,3)*1000) -> 12780 | H26: =IF($A$4="Numbers",MROUND(VLOOKUP($C26&H$8,'Calc-V'!$A$4:$W$399,$D$6,FALSE),10),ROUND(VLOOKUP($C26&H$8,'Calc-V'!$A$4:$W$399,$D$6,FALSE)/AW26,3)*1000) -> 12780 | I26: =IF($A$4="Numbers",MROUND(VLOOKUP($C26&I$8,'Calc-V'!$A$4:$W$399,$D$6,FALSE),10),ROUND(VLOOKUP($C26&I$8,'Calc-V'!$A$4:$W$399,$D$6,FALSE)/AX26,3)*1000) -> 11940 | J26: =IF($A$4="Numbers",MROUND(VLOOKUP($C26&J$8,'Calc-V'!$A$4:$W$399,$D$6,FALSE),10),ROUND(VLOOKUP($C26&J$8,'Calc-V'!$A$4:$W$399,$D$6,FALSE)/AY26,3)*1000) -> 11940 | K26: =IF($A$4="Numbers",MROUND(VLOOKUP($C26&K$8,'Calc-V'!$A$4:$W$399,$D$6,FALSE),10),ROUND(VLOOKUP($C26&K$8,'Calc-V'!$A$4:$W$399,$D$6,FALSE)/AZ26,3)*1000) -> 12650 | L26: =IF($A$4="Numbers",MROUND(VLOOKUP($C26&L$8,'Calc-V'!$A$4:$W$399,$D$6,FALSE),10),ROUND(VLOOKUP($C26&L$8,'Calc-V'!$A$4:$W$399,$D$6,FALSE)/BA26,3)*1000) -> 10920 | M26: =IF($A$4="Numbers",MROUND(VLOOKUP($C26&M$8,'Calc-V'!$A$4:$W$399,$D$6,FALSE),10),ROUND(VLOOKUP($C26&M$8,'Calc-V'!$A$4:$W$399,$D$6,FALSE)/BB26,3)*1000) -> 10920 | N26: =IF($A$4="Numbers",MROUND(VLOOKUP($C26&N$8,'Calc-V'!$A$4:$W$399,$D$6,FALSE),10),ROUND(VLOOKUP($C26&N$8,'Calc-V'!$A$4:$W$399,$D$6,FALSE)/BC26,3)*1000) -> 10980 | O26: =IF($A$4="Numbers",MROUND(VLOOKUP($C26&O$8,'Calc-V'!$A$4:$W$399,$D$6,FALSE),10),ROUND(VLOOKUP($C26&O$8,'Calc-V'!$A$4:$W$399,$D$6,FALSE)/BD26,3)*1000) -> 10700 | Q26: =IF($A$4="Numbers",MROUND(VLOOKUP($C26&D$8,'Calc-V'!$A$4:$S$399,$Q$6,FALSE),10),ROUND(VLOOKUP($C26&D$8,'Calc-V'!$A$4:$S$399,$Q$6,FALSE)/AS26,3)*1000) -> 850 | R26: =IF($A$4="Numbers",MROUND(VLOOKUP($C26&E$8,'Calc-V'!$A$4:$S$399,$Q$6,FALSE),10),ROUND(VLOOKUP($C26&E$8,'Calc-V'!$A$4:$S$399,$Q$6,FALSE)/AT26,3)*1000) -> 930 | S26: =IF($A$4="Numbers",MROUND(VLOOKUP($C26&F$8,'Calc-V'!$A$4:$S$399,$Q$6,FALSE),10),ROUND(VLOOKUP($C26&F$8,'Calc-V'!$A$4:$S$399,$Q$6,FALSE)/AU26,3)*1000) -> 930 | T26: =IF($A$4="Numbers",MROUND(VLOOKUP($C26&G$8,'Calc-V'!$A$4:$S$399,$Q$6,FALSE),10),ROUND(VLOOKUP($C26&G$8,'Calc-V'!$A$4:$S$399,$Q$6,FALSE)/AV26,3)*1000) -> 970 | U26: =IF($A$4="Numbers",MROUND(VLOOKUP($C26&H$8,'Calc-V'!$A$4:$S$399,$Q$6,FALSE),10),ROUND(VLOOKUP($C26&H$8,'Calc-V'!$A$4:$S$399,$Q$6,FALSE)/AW26,3)*1000) -> 970 | V26: =IF($A$4="Numbers",MROUND(VLOOKUP($C26&I$8,'Calc-V'!$A$4:$S$399,$Q$6,FALSE),10),ROUND(VLOOKUP($C26&I$8,'Calc-V'!$A$4:$S$399,$Q$6,FALSE)/AX26,3)*1000) -> 950 | W26: =IF($A$4="Numbers",MROUND(VLOOKUP($C26&J$8,'Calc-V'!$A$4:$S$399,$Q$6,FALSE),10),ROUND(VLOOKUP($C26&J$8,'Calc-V'!$A$4:$S$399,$Q$6,FALSE)/AY26,3)*1000) -> 950 | X26: =IF($A$4="Numbers",MROUND(VLOOKUP($C26&K$8,'Calc-V'!$A$4:$S$399,$Q$6,FALSE),10),ROUND(VLOOKUP($C26&K$8,'Calc-V'!$A$4:$S$399,$Q$6,FALSE)/AZ26,3)*1000) -> 870 | Y26: =IF($A$4="Numbers",MROUND(VLOOKUP($C26&L$8,'Calc-V'!$A$4:$S$399,$Q$6,FALSE),10),ROUND(VLOOKUP($C26&L$8,'Calc-V'!$A$4:$S$399,$Q$6,FALSE)/BA26,3)*1000) -> 1060 | Z26: =IF($A$4="Numbers",MROUND(VLOOKUP($C26&M$8,'Calc-V'!$A$4:$S$399,$Q$6,FALSE),10),ROUND(VLOOKUP($C26&M$8,'Calc-V'!$A$4:$S$399,$Q$6,FALSE)/BB26,3)*1000) -> 1060 | AA26: =IF($A$4="Numbers",MROUND(VLOOKUP($C26&N$8,'Calc-V'!$A$4:$S$399,$Q$6,FALSE),10),ROUND(VLOOKUP($C26&N$8,'Calc-V'!$A$4:$S$399,$Q$6,FALSE)/BC26,3)*1000) -> 1120 | AB26: =IF($A$4="Numbers",MROUND(VLOOKUP($C26&O$8,'Calc-V'!$A$4:$S$399,$Q$6,FALSE),10),ROUND(VLOOKUP($C26&O$8,'Calc-V'!$A$4:$S$399,$Q$6,FALSE)/BD26,3)*1000) -> 900 | AD26: =IF($A$4="Numbers",MROUND(VLOOKUP($C26&Q$8,'Calc-V'!$A$4:$S$399,$AD$6,FALSE),10),ROUND(VLOOKUP($C26&Q$8,'Calc-V'!$A$4:$S$399,$AD$6,FALSE)/AS26,3)*1000) -> 6140 | AE26: =IF($A$4="Numbers",MROUND(VLOOKUP($C26&R$8,'Calc-V'!$A$4:$S$399,$AD$6,FALSE),10),ROUND(VLOOKUP($C26&R$8,'Calc-V'!$A$4:$S$399,$AD$6,FALSE)/AT26,3)*1000) -> 5860 | AF26: =IF($A$4="Numbers",MROUND(VLOOKUP($C26&S$8,'Calc-V'!$A$4:$S$399,$AD$6,FALSE),10),ROUND(VLOOKUP($C26&S$8,'Calc-V'!$A$4:$S$399,$AD$6,FALSE)/AU26,3)*1000) -> 11420 | AG26: =IF($A$4="Numbers",MROUND(VLOOKUP($C26&T$8,'Calc-V'!$A$4:$S$399,$AD$6,FALSE),10),ROUND(VLOOKUP($C26&T$8,'Calc-V'!$A$4:$S$399,$AD$6,FALSE)/AV26,3)*1000) -> 11810 | AH26: =IF($A$4="Numbers",MROUND(VLOOKUP($C26&U$8,'Calc-V'!$A$4:$S$399,$AD$6,FALSE),10),ROUND(VLOOKUP($C26&U$8,'Calc-V'!$A$4:$S$399,$AD$6,FALSE)/AW26,3)*1000) -> 11810 | AI26: =IF($A$4="Numbers",MROUND(VLOOKUP($C26&V$8,'Calc-V'!$A$4:$S$399,$AD$6,FALSE),10),ROUND(VLOOKUP($C26&V$8,'Calc-V'!$A$4:$S$399,$AD$6,FALSE)/AX26,3)*1000) -> 10990 | AJ26: =IF($A$4="Numbers",MROUND(VLOOKUP($C26&W$8,'Calc-V'!$A$4:$S$399,$AD$6,FALSE),10),ROUND(VLOOKUP($C26&W$8,'Calc-V'!$A$4:$S$399,$AD$6,FALSE)/AY26,3)*1000) -> 10990 | AK26: =IF($A$4="Numbers",MROUND(VLOOKUP($C26&X$8,'Calc-V'!$A$4:$S$399,$AD$6,FALSE),10),ROUND(VLOOKUP($C26&X$8,'Calc-V'!$A$4:$S$399,$AD$6,FALSE)/AZ26,3)*1000) -> 11790 | AL26: =IF($A$4="Numbers",MROUND(VLOOKUP($C26&Y$8,'Calc-V'!$A$4:$S$399,$AD$6,FALSE),10),ROUND(VLOOKUP($C26&Y$8,'Calc-V'!$A$4:$S$399,$AD$6,FALSE)/BA26,3)*1000) -> 9860 | AM26: =IF($A$4="Numbers",MROUND(VLOOKUP($C26&Z$8,'Calc-V'!$A$4:$S$399,$AD$6,FALSE),10),ROUND(VLOOKUP($C26&Z$8,'Calc-V'!$A$4:$S$399,$AD$6,FALSE)/BB26,3)*1000) -> 9860 | AN26: =IF($A$4="Numbers",MROUND(VLOOKUP($C26&AA$8,'Calc-V'!$A$4:$S$399,$AD$6,FALSE),10),ROUND(VLOOKUP($C26&AA$8,'Calc-V'!$A$4:$S$399,$AD$6,FALSE)/BC26,3)*1000) -> 9860 | AO26: =IF($A$4="Numbers",MROUND(VLOOKUP($C26&AB$8,'Calc-V'!$A$4:$S$399,$AD$6,FALSE),10),ROUND(VLOOKUP($C26&AB$8,'Calc-V'!$A$4:$S$399,$AD$6,FALSE)/BD26,3)*1000) -> 9800 | AS26: =VLOOKUP($C26&AS$8,'Calc-V'!$A$4:$AA$399,$AS$6,FALSE) -> 82110 | AT26: =VLOOKUP($C26&AT$8,'Calc-V'!$A$4:$AA$399,$AS$6,FALSE) -> 82000 | AU26: =VLOOKUP($C26&AU$8,'Calc-V'!$A$4:$AA$399,$AS$6,FALSE) -> 82000 | AV26: =VLOOKUP($C26&AV$8,'Calc-V'!$A$4:$AA$399,$AS$6,FALSE) -> 81670 | AW26: =VLOOKUP($C26&AW$8,'Calc-V'!$A$4:$AA$399,$AS$6,FALSE) -> 81670 | AX26: =VLOOKUP($C26&AX$8,'Calc-V'!$A$4:$AA$399,$AS$6,FALSE) -> 81510 | AY26: =VLOOKUP($C26&AY$8,'Calc-V'!$A$4:$AA$399,$AS$6,FALSE) -> 81510 | AZ26: =VLOOKUP($C26&AZ$8,'Calc-V'!$A$4:$AA$399,$AS$6,FALSE) -> 81220 | BA26: =VLOOKUP($C26&BA$8,'Calc-V'!$A$4:$AA$399,$AS$6,FALSE) -> 80680 | BB26: =VLOOKUP($C26&BB$8,'Calc-V'!$A$4:$AA$399,$AS$6,FALSE) -> 80680 | BC26: =VLOOKUP($C26&BC$8,'Calc-V'!$A$4:$AA$399,$AS$6,FALSE) -> 80310 | BD26: =VLOOKUP($C26&BD$8,'Calc-V'!$A$4:$AA$399,$AS$6,FALSE) -> 79860
C27: Midlothian | D27: =IF($A$4="Numbers",MROUND(VLOOKUP($C27&D$8,'Calc-V'!$A$4:$W$399,$D$6,FALSE),10),ROUND(VLOOKUP($C27&D$8,'Calc-V'!$A$4:$W$399,$D$6,FALSE)/AS27,3)*1000) -> 3080 | E27: =IF($A$4="Numbers",MROUND(VLOOKUP($C27&E$8,'Calc-V'!$A$4:$W$399,$D$6,FALSE),10),ROUND(VLOOKUP($C27&E$8,'Calc-V'!$A$4:$W$399,$D$6,FALSE)/AT27,3)*1000) -> 3400 | F27: =IF($A$4="Numbers",MROUND(VLOOKUP($C27&F$8,'Calc-V'!$A$4:$W$399,$D$6,FALSE),10),ROUND(VLOOKUP($C27&F$8,'Calc-V'!$A$4:$W$399,$D$6,FALSE)/AU27,3)*1000) -> 3310 | G27: =IF($A$4="Numbers",MROUND(VLOOKUP($C27&G$8,'Calc-V'!$A$4:$W$399,$D$6,FALSE),10),ROUND(VLOOKUP($C27&G$8,'Calc-V'!$A$4:$W$399,$D$6,FALSE)/AV27,3)*1000) -> 3560 | H27: =IF($A$4="Numbers",MROUND(VLOOKUP($C27&H$8,'Calc-V'!$A$4:$W$399,$D$6,FALSE),10),ROUND(VLOOKUP($C27&H$8,'Calc-V'!$A$4:$W$399,$D$6,FALSE)/AW27,3)*1000) -> 3560 | I27: =IF($A$4="Numbers",MROUND(VLOOKUP($C27&I$8,'Calc-V'!$A$4:$W$399,$D$6,FALSE),10),ROUND(VLOOKUP($C27&I$8,'Calc-V'!$A$4:$W$399,$D$6,FALSE)/AX27,3)*1000) -> 3460 | J27: =IF($A$4="Numbers",MROUND(VLOOKUP($C27&J$8,'Calc-V'!$A$4:$W$399,$D$6,FALSE),10),ROUND(VLOOKUP($C27&J$8,'Calc-V'!$A$4:$W$399,$D$6,FALSE)/AY27,3)*1000) -> 4070 | K27: =IF($A$4="Numbers",MROUND(VLOOKUP($C27&K$8,'Calc-V'!$A$4:$W$399,$D$6,FALSE),10),ROUND(VLOOKUP($C27&K$8,'Calc-V'!$A$4:$W$399,$D$6,FALSE)/AZ27,3)*1000) -> 4790 | L27: =IF($A$4="Numbers",MROUND(VLOOKUP($C27&L$8,'Calc-V'!$A$4:$W$399,$D$6,FALSE),10),ROUND(VLOOKUP($C27&L$8,'Calc-V'!$A$4:$W$399,$D$6,FALSE)/BA27,3)*1000) -> 5080 | M27: =IF($A$4="Numbers",MROUND(VLOOKUP($C27&M$8,'Calc-V'!$A$4:$W$399,$D$6,FALSE),10),ROUND(VLOOKUP($C27&M$8,'Calc-V'!$A$4:$W$399,$D$6,FALSE)/BB27,3)*1000) -> 5090 | N27: =IF($A$4="Numbers",MROUND(VLOOKUP($C27&N$8,'Calc-V'!$A$4:$W$399,$D$6,FALSE),10),ROUND(VLOOKUP($C27&N$8,'Calc-V'!$A$4:$W$399,$D$6,FALSE)/BC27,3)*1000) -> 5150 | O27: =IF($A$4="Numbers",MROUND(VLOOKUP($C27&O$8,'Calc-V'!$A$4:$W$399,$D$6,FALSE),10),ROUND(VLOOKUP($C27&O$8,'Calc-V'!$A$4:$W$399,$D$6,FALSE)/BD27,3)*1000) -> 5380 | Q27: =IF($A$4="Numbers",MROUND(VLOOKUP($C27&D$8,'Calc-V'!$A$4:$S$399,$Q$6,FALSE),10),ROUND(VLOOKUP($C27&D$8,'Calc-V'!$A$4:$S$399,$Q$6,FALSE)/AS27,3)*1000) -> 910 | R27: =IF($A$4="Numbers",MROUND(VLOOKUP($C27&E$8,'Calc-V'!$A$4:$S$399,$Q$6,FALSE),10),ROUND(VLOOKUP($C27&E$8,'Calc-V'!$A$4:$S$399,$Q$6,FALSE)/AT27,3)*1000) -> 1120 | S27: =IF($A$4="Numbers",MROUND(VLOOKUP($C27&F$8,'Calc-V'!$A$4:$S$399,$Q$6,FALSE),10),ROUND(VLOOKUP($C27&F$8,'Calc-V'!$A$4:$S$399,$Q$6,FALSE)/AU27,3)*1000) -> 1040 | T27: =IF($A$4="Numbers",MROUND(VLOOKUP($C27&G$8,'Calc-V'!$A$4:$S$399,$Q$6,FALSE),10),ROUND(VLOOKUP($C27&G$8,'Calc-V'!$A$4:$S$399,$Q$6,FALSE)/AV27,3)*1000) -> 900 | U27: =IF($A$4="Numbers",MROUND(VLOOKUP($C27&H$8,'Calc-V'!$A$4:$S$399,$Q$6,FALSE),10),ROUND(VLOOKUP($C27&H$8,'Calc-V'!$A$4:$S$399,$Q$6,FALSE)/AW27,3)*1000) -> 900 | V27: =IF($A$4="Numbers",MROUND(VLOOKUP($C27&I$8,'Calc-V'!$A$4:$S$399,$Q$6,FALSE),10),ROUND(VLOOKUP($C27&I$8,'Calc-V'!$A$4:$S$399,$Q$6,FALSE)/AX27,3)*1000) -> 850 | W27: =IF($A$4="Numbers",MROUND(VLOOKUP($C27&J$8,'Calc-V'!$A$4:$S$399,$Q$6,FALSE),10),ROUND(VLOOKUP($C27&J$8,'Calc-V'!$A$4:$S$399,$Q$6,FALSE)/AY27,3)*1000) -> 850 | X27: =IF($A$4="Numbers",MROUND(VLOOKUP($C27&K$8,'Calc-V'!$A$4:$S$399,$Q$6,FALSE),10),ROUND(VLOOKUP($C27&K$8,'Calc-V'!$A$4:$S$399,$Q$6,FALSE)/AZ27,3)*1000) -> 940 | Y27: =IF($A$4="Numbers",MROUND(VLOOKUP($C27&L$8,'Calc-V'!$A$4:$S$399,$Q$6,FALSE),10),ROUND(VLOOKUP($C27&L$8,'Calc-V'!$A$4:$S$399,$Q$6,FALSE)/BA27,3)*1000) -> 930 | Z27: =IF($A$4="Numbers",MROUND(VLOOKUP($C27&M$8,'Calc-V'!$A$4:$S$399,$Q$6,FALSE),10),ROUND(VLOOKUP($C27&M$8,'Calc-V'!$A$4:$S$399,$Q$6,FALSE)/BB27,3)*1000) -> 940 | AA27: =IF($A$4="Numbers",MROUND(VLOOKUP($C27&N$8,'Calc-V'!$A$4:$S$399,$Q$6,FALSE),10),ROUND(VLOOKUP($C27&N$8,'Calc-V'!$A$4:$S$399,$Q$6,FALSE)/BC27,3)*1000) -> 590 | AB27: =IF($A$4="Numbers",MROUND(VLOOKUP($C27&O$8,'Calc-V'!$A$4:$S$399,$Q$6,FALSE),10),ROUND(VLOOKUP($C27&O$8,'Calc-V'!$A$4:$S$399,$Q$6,FALSE)/BD27,3)*1000) -> 630 | AD27: =IF($A$4="Numbers",MROUND(VLOOKUP($C27&Q$8,'Calc-V'!$A$4:$S$399,$AD$6,FALSE),10),ROUND(VLOOKUP($C27&Q$8,'Calc-V'!$A$4:$S$399,$AD$6,FALSE)/AS27,3)*1000) -> 2170 | AE27: =IF($A$4="Numbers",MROUND(VLOOKUP($C27&R$8,'Calc-V'!$A$4:$S$399,$AD$6,FALSE),10),ROUND(VLOOKUP($C27&R$8,'Calc-V'!$A$4:$S$399,$AD$6,FALSE)/AT27,3)*1000) -> 2280 | AF27: =IF($A$4="Numbers",MROUND(VLOOKUP($C27&S$8,'Calc-V'!$A$4:$S$399,$AD$6,FALSE),10),ROUND(VLOOKUP($C27&S$8,'Calc-V'!$A$4:$S$399,$AD$6,FALSE)/AU27,3)*1000) -> 2270 | AG27: =IF($A$4="Numbers",MROUND(VLOOKUP($C27&T$8,'Calc-V'!$A$4:$S$399,$AD$6,FALSE),10),ROUND(VLOOKUP($C27&T$8,'Calc-V'!$A$4:$S$399,$AD$6,FALSE)/AV27,3)*1000) -> 2650 | AH27: =IF($A$4="Numbers",MROUND(VLOOKUP($C27&U$8,'Calc-V'!$A$4:$S$399,$AD$6,FALSE),10),ROUND(VLOOKUP($C27&U$8,'Calc-V'!$A$4:$S$399,$AD$6,FALSE)/AW27,3)*1000) -> 2650 | AI27: =IF($A$4="Numbers",MROUND(VLOOKUP($C27&V$8,'Calc-V'!$A$4:$S$399,$AD$6,FALSE),10),ROUND(VLOOKUP($C27&V$8,'Calc-V'!$A$4:$S$399,$AD$6,FALSE)/AX27,3)*1000) -> 2610 | AJ27: =IF($A$4="Numbers",MROUND(VLOOKUP($C27&W$8,'Calc-V'!$A$4:$S$399,$AD$6,FALSE),10),ROUND(VLOOKUP($C27&W$8,'Calc-V'!$A$4:$S$399,$AD$6,FALSE)/AY27,3)*1000) -> 3220 | AK27: =IF($A$4="Numbers",MROUND(VLOOKUP($C27&X$8,'Calc-V'!$A$4:$S$399,$AD$6,FALSE),10),ROUND(VLOOKUP($C27&X$8,'Calc-V'!$A$4:$S$399,$AD$6,FALSE)/AZ27,3)*1000) -> 3850 | AL27: =IF($A$4="Numbers",MROUND(VLOOKUP($C27&Y$8,'Calc-V'!$A$4:$S$399,$AD$6,FALSE),10),ROUND(VLOOKUP($C27&Y$8,'Calc-V'!$A$4:$S$399,$AD$6,FALSE)/BA27,3)*1000) -> 4150 | AM27: =IF($A$4="Numbers",MROUND(VLOOKUP($C27&Z$8,'Calc-V'!$A$4:$S$399,$AD$6,FALSE),10),ROUND(VLOOKUP($C27&Z$8,'Calc-V'!$A$4:$S$399,$AD$6,FALSE)/BB27,3)*1000) -> 4150 | AN27: =IF($A$4="Numbers",MROUND(VLOOKUP($C27&AA$8,'Calc-V'!$A$4:$S$399,$AD$6,FALSE),10),ROUND(VLOOKUP($C27&AA$8,'Calc-V'!$A$4:$S$399,$AD$6,FALSE)/BC27,3)*1000) -> 4560 | AO27: =IF($A$4="Numbers",MROUND(VLOOKUP($C27&AB$8,'Calc-V'!$A$4:$S$399,$AD$6,FALSE),10),ROUND(VLOOKUP($C27&AB$8,'Calc-V'!$A$4:$S$399,$AD$6,FALSE)/BD27,3)*1000) -> 4750 | AS27: =VLOOKUP($C27&AS$8,'Calc-V'!$A$4:$AA$399,$AS$6,FALSE) -> 80370 | AT27: =VLOOKUP($C27&AT$8,'Calc-V'!$A$4:$AA$399,$AS$6,FALSE) -> 81540 | AU27: =VLOOKUP($C27&AU$8,'Calc-V'!$A$4:$AA$399,$AS$6,FALSE) -> 81540 | AV27: =VLOOKUP($C27&AV$8,'Calc-V'!$A$4:$AA$399,$AS$6,FALSE) -> 81900 | AW27: =VLOOKUP($C27&AW$8,'Calc-V'!$A$4:$AA$399,$AS$6,FALSE) -> 81900 | AX27: =VLOOKUP($C27&AX$8,'Calc-V'!$A$4:$AA$399,$AS$6,FALSE) -> 82360 | AY27: =VLOOKUP($C27&AY$8,'Calc-V'!$A$4:$AA$399,$AS$6,FALSE) -> 82360 | AZ27: =VLOOKUP($C27&AZ$8,'Calc-V'!$A$4:$AA$399,$AS$6,FALSE) -> 83450 | BA27: =VLOOKUP($C27&BA$8,'Calc-V'!$A$4:$AA$399,$AS$6,FALSE) -> 84240 | BB27: =VLOOKUP($C27&BB$8,'Calc-V'!$A$4:$AA$399,$AS$6,FALSE) -> 84240 | BC27: =VLOOKUP($C27&BC$8,'Calc-V'!$A$4:$AA$399,$AS$6,FALSE) -> 84700 | BD27: =VLOOKUP($C27&BD$8,'Calc-V'!$A$4:$AA$399,$AS$6,FALSE) -> 86210
C28: Moray | D28: =IF($A$4="Numbers",MROUND(VLOOKUP($C28&D$8,'Calc-V'!$A$4:$W$399,$D$6,FALSE),10),ROUND(VLOOKUP($C28&D$8,'Calc-V'!$A$4:$W$399,$D$6,FALSE)/AS28,3)*1000) -> 1820 | E28: =IF($A$4="Numbers",MROUND(VLOOKUP($C28&E$8,'Calc-V'!$A$4:$W$399,$D$6,FALSE),10),ROUND(VLOOKUP($C28&E$8,'Calc-V'!$A$4:$W$399,$D$6,FALSE)/AT28,3)*1000) -> 1870 | F28: =IF($A$4="Numbers",MROUND(VLOOKUP($C28&F$8,'Calc-V'!$A$4:$W$399,$D$6,FALSE),10),ROUND(VLOOKUP($C28&F$8,'Calc-V'!$A$4:$W$399,$D$6,FALSE)/AU28,3)*1000) -> 1790 | G28: =IF($A$4="Numbers",MROUND(VLOOKUP($C28&G$8,'Calc-V'!$A$4:$W$399,$D$6,FALSE),10),ROUND(VLOOKUP($C28&G$8,'Calc-V'!$A$4:$W$399,$D$6,FALSE)/AV28,3)*1000) -> 1950 | H28: =IF($A$4="Numbers",MROUND(VLOOKUP($C28&H$8,'Calc-V'!$A$4:$W$399,$D$6,FALSE),10),ROUND(VLOOKUP($C28&H$8,'Calc-V'!$A$4:$W$399,$D$6,FALSE)/AW28,3)*1000) -> 1950 | I28: =IF($A$4="Numbers",MROUND(VLOOKUP($C28&I$8,'Calc-V'!$A$4:$W$399,$D$6,FALSE),10),ROUND(VLOOKUP($C28&I$8,'Calc-V'!$A$4:$W$399,$D$6,FALSE)/AX28,3)*1000) -> 1990 | J28: =IF($A$4="Numbers",MROUND(VLOOKUP($C28&J$8,'Calc-V'!$A$4:$W$399,$D$6,FALSE),10),ROUND(VLOOKUP($C28&J$8,'Calc-V'!$A$4:$W$399,$D$6,FALSE)/AY28,3)*1000) -> 1990 | K28: =IF($A$4="Numbers",MROUND(VLOOKUP($C28&K$8,'Calc-V'!$A$4:$W$399,$D$6,FALSE),10),ROUND(VLOOKUP($C28&K$8,'Calc-V'!$A$4:$W$399,$D$6,FALSE)/AZ28,3)*1000) -> 1990 | L28: =IF($A$4="Numbers",MROUND(VLOOKUP($C28&L$8,'Calc-V'!$A$4:$W$399,$D$6,FALSE),10),ROUND(VLOOKUP($C28&L$8,'Calc-V'!$A$4:$W$399,$D$6,FALSE)/BA28,3)*1000) -> 2090 | M28: =IF($A$4="Numbers",MROUND(VLOOKUP($C28&M$8,'Calc-V'!$A$4:$W$399,$D$6,FALSE),10),ROUND(VLOOKUP($C28&M$8,'Calc-V'!$A$4:$W$399,$D$6,FALSE)/BB28,3)*1000) -> 2090 | N28: =IF($A$4="Numbers",MROUND(VLOOKUP($C28&N$8,'Calc-V'!$A$4:$W$399,$D$6,FALSE),10),ROUND(VLOOKUP($C28&N$8,'Calc-V'!$A$4:$W$399,$D$6,FALSE)/BC28,3)*1000) -> 2030 | O28: =IF($A$4="Numbers",MROUND(VLOOKUP($C28&O$8,'Calc-V'!$A$4:$W$399,$D$6,FALSE),10),ROUND(VLOOKUP($C28&O$8,'Calc-V'!$A$4:$W$399,$D$6,FALSE)/BD28,3)*1000) -> 1950 | Q28: =IF($A$4="Numbers",MROUND(VLOOKUP($C28&D$8,'Calc-V'!$A$4:$S$399,$Q$6,FALSE),10),ROUND(VLOOKUP($C28&D$8,'Calc-V'!$A$4:$S$399,$Q$6,FALSE)/AS28,3)*1000) -> 980 | R28: =IF($A$4="Numbers",MROUND(VLOOKUP($C28&E$8,'Calc-V'!$A$4:$S$399,$Q$6,FALSE),10),ROUND(VLOOKUP($C28&E$8,'Calc-V'!$A$4:$S$399,$Q$6,FALSE)/AT28,3)*1000) -> 940 | S28: =IF($A$4="Numbers",MROUND(VLOOKUP($C28&F$8,'Calc-V'!$A$4:$S$399,$Q$6,FALSE),10),ROUND(VLOOKUP($C28&F$8,'Calc-V'!$A$4:$S$399,$Q$6,FALSE)/AU28,3)*1000) -> 940 | T28: =IF($A$4="Numbers",MROUND(VLOOKUP($C28&G$8,'Calc-V'!$A$4:$S$399,$Q$6,FALSE),10),ROUND(VLOOKUP($C28&G$8,'Calc-V'!$A$4:$S$399,$Q$6,FALSE)/AV28,3)*1000) -> 1230 | U28: =IF($A$4="Numbers",MROUND(VLOOKUP($C28&H$8,'Calc-V'!$A$4:$S$399,$Q$6,FALSE),10),ROUND(VLOOKUP($C28&H$8,'Calc-V'!$A$4:$S$399,$Q$6,FALSE)/AW28,3)*1000) -> 1230 | V28: =IF($A$4="Numbers",MROUND(VLOOKUP($C28&I$8,'Calc-V'!$A$4:$S$399,$Q$6,FALSE),10),ROUND(VLOOKUP($C28&I$8,'Calc-V'!$A$4:$S$399,$Q$6,FALSE)/AX28,3)*1000) -> 1240 | W28: =IF($A$4="Numbers",MROUND(VLOOKUP($C28&J$8,'Calc-V'!$A$4:$S$399,$Q$6,FALSE),10),ROUND(VLOOKUP($C28&J$8,'Calc-V'!$A$4:$S$399,$Q$6,FALSE)/AY28,3)*1000) -> 1240 | X28: =IF($A$4="Numbers",MROUND(VLOOKUP($C28&K$8,'Calc-V'!$A$4:$S$399,$Q$6,FALSE),10),ROUND(VLOOKUP($C28&K$8,'Calc-V'!$A$4:$S$399,$Q$6,FALSE)/AZ28,3)*1000) -> 1160 | Y28: =IF($A$4="Numbers",MROUND(VLOOKUP($C28&L$8,'Calc-V'!$A$4:$S$399,$Q$6,FALSE),10),ROUND(VLOOKUP($C28&L$8,'Calc-V'!$A$4:$S$399,$Q$6,FALSE)/BA28,3)*1000) -> 1270 | Z28: =IF($A$4="Numbers",MROUND(VLOOKUP($C28&M$8,'Calc-V'!$A$4:$S$399,$Q$6,FALSE),10),ROUND(VLOOKUP($C28&M$8,'Calc-V'!$A$4:$S$399,$Q$6,FALSE)/BB28,3)*1000) -> 1270 | AA28: =IF($A$4="Numbers",MROUND(VLOOKUP($C28&N$8,'Calc-V'!$A$4:$S$399,$Q$6,FALSE),10),ROUND(VLOOKUP($C28&N$8,'Calc-V'!$A$4:$S$399,$Q$6,FALSE)/BC28,3)*1000) -> 1040 | AB28: =IF($A$4="Numbers",MROUND(VLOOKUP($C28&O$8,'Calc-V'!$A$4:$S$399,$Q$6,FALSE),10),ROUND(VLOOKUP($C28&O$8,'Calc-V'!$A$4:$S$399,$Q$6,FALSE)/BD28,3)*1000) -> 1090 | AD28: =IF($A$4="Numbers",MROUND(VLOOKUP($C28&Q$8,'Calc-V'!$A$4:$S$399,$AD$6,FALSE),10),ROUND(VLOOKUP($C28&Q$8,'Calc-V'!$A$4:$S$399,$AD$6,FALSE)/AS28,3)*1000) -> 850 | AE28: =IF($A$4="Numbers",MROUND(VLOOKUP($C28&R$8,'Calc-V'!$A$4:$S$399,$AD$6,FALSE),10),ROUND(VLOOKUP($C28&R$8,'Calc-V'!$A$4:$S$399,$AD$6,FALSE)/AT28,3)*1000) -> 920 | AF28: =IF($A$4="Numbers",MROUND(VLOOKUP($C28&S$8,'Calc-V'!$A$4:$S$399,$AD$6,FALSE),10),ROUND(VLOOKUP($C28&S$8,'Calc-V'!$A$4:$S$399,$AD$6,FALSE)/AU28,3)*1000) -> 850 | AG28: =IF($A$4="Numbers",MROUND(VLOOKUP($C28&T$8,'Calc-V'!$A$4:$S$399,$AD$6,FALSE),10),ROUND(VLOOKUP($C28&T$8,'Calc-V'!$A$4:$S$399,$AD$6,FALSE)/AV28,3)*1000) -> 720 | AH28: =IF($A$4="Numbers",MROUND(VLOOKUP($C28&U$8,'Calc-V'!$A$4:$S$399,$AD$6,FALSE),10),ROUND(VLOOKUP($C28&U$8,'Calc-V'!$A$4:$S$399,$AD$6,FALSE)/AW28,3)*1000) -> 720 | AI28: =IF($A$4="Numbers",MROUND(VLOOKUP($C28&V$8,'Calc-V'!$A$4:$S$399,$AD$6,FALSE),10),ROUND(VLOOKUP($C28&V$8,'Calc-V'!$A$4:$S$399,$AD$6,FALSE)/AX28,3)*1000) -> 750 | AJ28: =IF($A$4="Numbers",MROUND(VLOOKUP($C28&W$8,'Calc-V'!$A$4:$S$399,$AD$6,FALSE),10),ROUND(VLOOKUP($C28&W$8,'Calc-V'!$A$4:$S$399,$AD$6,FALSE)/AY28,3)*1000) -> 750 | AK28: =IF($A$4="Numbers",MROUND(VLOOKUP($C28&X$8,'Calc-V'!$A$4:$S$399,$AD$6,FALSE),10),ROUND(VLOOKUP($C28&X$8,'Calc-V'!$A$4:$S$399,$AD$6,FALSE)/AZ28,3)*1000) -> 830 | AL28: =IF($A$4="Numbers",MROUND(VLOOKUP($C28&Y$8,'Calc-V'!$A$4:$S$399,$AD$6,FALSE),10),ROUND(VLOOKUP($C28&Y$8,'Calc-V'!$A$4:$S$399,$AD$6,FALSE)/BA28,3)*1000) -> 820 | AM28: =IF($A$4="Numbers",MROUND(VLOOKUP($C28&Z$8,'Calc-V'!$A$4:$S$399,$AD$6,FALSE),10),ROUND(VLOOKUP($C28&Z$8,'Calc-V'!$A$4:$S$399,$AD$6,FALSE)/BB28,3)*1000) -> 820 | AN28: =IF($A$4="Numbers",MROUND(VLOOKUP($C28&AA$8,'Calc-V'!$A$4:$S$399,$AD$6,FALSE),10),ROUND(VLOOKUP($C28&AA$8,'Calc-V'!$A$4:$S$399,$AD$6,FALSE)/BC28,3)*1000) -> 1000 | AO28: =IF($A$4="Numbers",MROUND(VLOOKUP($C28&AB$8,'Calc-V'!$A$4:$S$399,$AD$6,FALSE),10),ROUND(VLOOKUP($C28&AB$8,'Calc-V'!$A$4:$S$399,$AD$6,FALSE)/BD28,3)*1000) -> 870 | AS28: =VLOOKUP($C28&AS$8,'Calc-V'!$A$4:$AA$399,$AS$6,FALSE) -> 91440 | AT28: =VLOOKUP($C28&AT$8,'Calc-V'!$A$4:$AA$399,$AS$6,FALSE) -> 92830 | AU28: =VLOOKUP($C28&AU$8,'Calc-V'!$A$4:$AA$399,$AS$6,FALSE) -> 92830 | AV28: =VLOOKUP($C28&AV$8,'Calc-V'!$A$4:$AA$399,$AS$6,FALSE) -> 93170 | AW28: =VLOOKUP($C28&AW$8,'Calc-V'!$A$4:$AA$399,$AS$6,FALSE) -> 93170 | AX28: =VLOOKUP($C28&AX$8,'Calc-V'!$A$4:$AA$399,$AS$6,FALSE) -> 93690 | AY28: =VLOOKUP($C28&AY$8,'Calc-V'!$A$4:$AA$399,$AS$6,FALSE) -> 93690 | AZ28: =VLOOKUP($C28&AZ$8,'Calc-V'!$A$4:$AA$399,$AS$6,FALSE) -> 93470 | BA28: =VLOOKUP($C28&BA$8,'Calc-V'!$A$4:$AA$399,$AS$6,FALSE) -> 92910 | BB28: =VLOOKUP($C28&BB$8,'Calc-V'!$A$4:$AA$399,$AS$6,FALSE) -> 92910 | BC28: =VLOOKUP($C28&BC$8,'Calc-V'!$A$4:$AA$399,$AS$6,FALSE) -> 94350 | BD28: =VLOOKUP($C28&BD$8,'Calc-V'!$A$4:$AA$399,$AS$6,FALSE) -> 94750
C29: North Ayrshire | D29: =IF($A$4="Numbers",MROUND(VLOOKUP($C29&D$8,'Calc-V'!$A$4:$W$399,$D$6,FALSE),10),ROUND(VLOOKUP($C29&D$8,'Calc-V'!$A$4:$W$399,$D$6,FALSE)/AS29,3)*1000) -> 4490 | E29: =IF($A$4="Numbers",MROUND(VLOOKUP($C29&E$8,'Calc-V'!$A$4:$W$399,$D$6,FALSE),10),ROUND(VLOOKUP($C29&E$8,'Calc-V'!$A$4:$W$399,$D$6,FALSE)/AT29,3)*1000) -> 4880 | F29: =IF($A$4="Numbers",MROUND(VLOOKUP($C29&F$8,'Calc-V'!$A$4:$W$399,$D$6,FALSE),10),ROUND(VLOOKUP($C29&F$8,'Calc-V'!$A$4:$W$399,$D$6,FALSE)/AU29,3)*1000) -> 4880 | G29: =IF($A$4="Numbers",MROUND(VLOOKUP($C29&G$8,'Calc-V'!$A$4:$W$399,$D$6,FALSE),10),ROUND(VLOOKUP($C29&G$8,'Calc-V'!$A$4:$W$399,$D$6,FALSE)/AV29,3)*1000) -> 4770 | H29: =IF($A$4="Numbers",MROUND(VLOOKUP($C29&H$8,'Calc-V'!$A$4:$W$399,$D$6,FALSE),10),ROUND(VLOOKUP($C29&H$8,'Calc-V'!$A$4:$W$399,$D$6,FALSE)/AW29,3)*1000) -> 4770 | I29: =IF($A$4="Numbers",MROUND(VLOOKUP($C29&I$8,'Calc-V'!$A$4:$W$399,$D$6,FALSE),10),ROUND(VLOOKUP($C29&I$8,'Calc-V'!$A$4:$W$399,$D$6,FALSE)/AX29,3)*1000) -> 4850 | J29: =IF($A$4="Numbers",MROUND(VLOOKUP($C29&J$8,'Calc-V'!$A$4:$W$399,$D$6,FALSE),10),ROUND(VLOOKUP($C29&J$8,'Calc-V'!$A$4:$W$399,$D$6,FALSE)/AY29,3)*1000) -> 4850 | K29: =IF($A$4="Numbers",MROUND(VLOOKUP($C29&K$8,'Calc-V'!$A$4:$W$399,$D$6,FALSE),10),ROUND(VLOOKUP($C29&K$8,'Calc-V'!$A$4:$W$399,$D$6,FALSE)/AZ29,3)*1000) -> 4560 | L29: =IF($A$4="Numbers",MROUND(VLOOKUP($C29&L$8,'Calc-V'!$A$4:$W$399,$D$6,FALSE),10),ROUND(VLOOKUP($C29&L$8,'Calc-V'!$A$4:$W$399,$D$6,FALSE)/BA29,3)*1000) -> 6190 | M29: =IF($A$4="Numbers",MROUND(VLOOKUP($C29&M$8,'Calc-V'!$A$4:$W$399,$D$6,FALSE),10),ROUND(VLOOKUP($C29&M$8,'Calc-V'!$A$4:$W$399,$D$6,FALSE)/BB29,3)*1000) -> 6250 | N29: =IF($A$4="Numbers",MROUND(VLOOKUP($C29&N$8,'Calc-V'!$A$4:$W$399,$D$6,FALSE),10),ROUND(VLOOKUP($C29&N$8,'Calc-V'!$A$4:$W$399,$D$6,FALSE)/BC29,3)*1000) -> 6030 | O29: =IF($A$4="Numbers",MROUND(VLOOKUP($C29&O$8,'Calc-V'!$A$4:$W$399,$D$6,FALSE),10),ROUND(VLOOKUP($C29&O$8,'Calc-V'!$A$4:$W$399,$D$6,FALSE)/BD29,3)*1000) -> 6180 | Q29: =IF($A$4="Numbers",MROUND(VLOOKUP($C29&D$8,'Calc-V'!$A$4:$S$399,$Q$6,FALSE),10),ROUND(VLOOKUP($C29&D$8,'Calc-V'!$A$4:$S$399,$Q$6,FALSE)/AS29,3)*1000) -> 2350 | R29: =IF($A$4="Numbers",MROUND(VLOOKUP($C29&E$8,'Calc-V'!$A$4:$S$399,$Q$6,FALSE),10),ROUND(VLOOKUP($C29&E$8,'Calc-V'!$A$4:$S$399,$Q$6,FALSE)/AT29,3)*1000) -> 2640 | S29: =IF($A$4="Numbers",MROUND(VLOOKUP($C29&F$8,'Calc-V'!$A$4:$S$399,$Q$6,FALSE),10),ROUND(VLOOKUP($C29&F$8,'Calc-V'!$A$4:$S$399,$Q$6,FALSE)/AU29,3)*1000) -> 2640 | T29: =IF($A$4="Numbers",MROUND(VLOOKUP($C29&G$8,'Calc-V'!$A$4:$S$399,$Q$6,FALSE),10),ROUND(VLOOKUP($C29&G$8,'Calc-V'!$A$4:$S$399,$Q$6,FALSE)/AV29,3)*1000) -> 2470 | U29: =IF($A$4="Numbers",MROUND(VLOOKUP($C29&H$8,'Calc-V'!$A$4:$S$399,$Q$6,FALSE),10),ROUND(VLOOKUP($C29&H$8,'Calc-V'!$A$4:$S$399,$Q$6,FALSE)/AW29,3)*1000) -> 2470 | V29: =IF($A$4="Numbers",MROUND(VLOOKUP($C29&I$8,'Calc-V'!$A$4:$S$399,$Q$6,FALSE),10),ROUND(VLOOKUP($C29&I$8,'Calc-V'!$A$4:$S$399,$Q$6,FALSE)/AX29,3)*1000) -> 2390 | W29: =IF($A$4="Numbers",MROUND(VLOOKUP($C29&J$8,'Calc-V'!$A$4:$S$399,$Q$6,FALSE),10),ROUND(VLOOKUP($C29&J$8,'Calc-V'!$A$4:$S$399,$Q$6,FALSE)/AY29,3)*1000) -> 2390 | X29: =IF($A$4="Numbers",MROUND(VLOOKUP($C29&K$8,'Calc-V'!$A$4:$S$399,$Q$6,FALSE),10),ROUND(VLOOKUP($C29&K$8,'Calc-V'!$A$4:$S$399,$Q$6,FALSE)/AZ29,3)*1000) -> 2280 | Y29: =IF($A$4="Numbers",MROUND(VLOOKUP($C29&L$8,'Calc-V'!$A$4:$S$399,$Q$6,FALSE),10),ROUND(VLOOKUP($C29&L$8,'Calc-V'!$A$4:$S$399,$Q$6,FALSE)/BA29,3)*1000) -> 2000 | Z29: =IF($A$4="Numbers",MROUND(VLOOKUP($C29&M$8,'Calc-V'!$A$4:$S$399,$Q$6,FALSE),10),ROUND(VLOOKUP($C29&M$8,'Calc-V'!$A$4:$S$399,$Q$6,FALSE)/BB29,3)*1000) -> 2050 | AA29: =IF($A$4="Numbers",MROUND(VLOOKUP($C29&N$8,'Calc-V'!$A$4:$S$399,$Q$6,FALSE),10),ROUND(VLOOKUP($C29&N$8,'Calc-V'!$A$4:$S$399,$Q$6,FALSE)/BC29,3)*1000) -> 1990 | AB29: =IF($A$4="Numbers",MROUND(VLOOKUP($C29&O$8,'Calc-V'!$A$4:$S$399,$Q$6,FALSE),10),ROUND(VLOOKUP($C29&O$8,'Calc-V'!$A$4:$S$399,$Q$6,FALSE)/BD29,3)*1000) -> 2210 | AD29: =IF($A$4="Numbers",MROUND(VLOOKUP($C29&Q$8,'Calc-V'!$A$4:$S$399,$AD$6,FALSE),10),ROUND(VLOOKUP($C29&Q$8,'Calc-V'!$A$4:$S$399,$AD$6,FALSE)/AS29,3)*1000) -> 2140 | AE29: =IF($A$4="Numbers",MROUND(VLOOKUP($C29&R$8,'Calc-V'!$A$4:$S$399,$AD$6,FALSE),10),ROUND(VLOOKUP($C29&R$8,'Calc-V'!$A$4:$S$399,$AD$6,FALSE)/AT29,3)*1000) -> 2240 | AF29: =IF($A$4="Numbers",MROUND(VLOOKUP($C29&S$8,'Calc-V'!$A$4:$S$399,$AD$6,FALSE),10),ROUND(VLOOKUP($C29&S$8,'Calc-V'!$A$4:$S$399,$AD$6,FALSE)/AU29,3)*1000) -> 2240 | AG29: =IF($A$4="Numbers",MROUND(VLOOKUP($C29&T$8,'Calc-V'!$A$4:$S$399,$AD$6,FALSE),10),ROUND(VLOOKUP($C29&T$8,'Calc-V'!$A$4:$S$399,$AD$6,FALSE)/AV29,3)*1000) -> 2300 | AH29: =IF($A$4="Numbers",MROUND(VLOOKUP($C29&U$8,'Calc-V'!$A$4:$S$399,$AD$6,FALSE),10),ROUND(VLOOKUP($C29&U$8,'Calc-V'!$A$4:$S$399,$AD$6,FALSE)/AW29,3)*1000) -> 2300 | AI29: =IF($A$4="Numbers",MROUND(VLOOKUP($C29&V$8,'Calc-V'!$A$4:$S$399,$AD$6,FALSE),10),ROUND(VLOOKUP($C29&V$8,'Calc-V'!$A$4:$S$399,$AD$6,FALSE)/AX29,3)*1000) -> 2450 | AJ29: =IF($A$4="Numbers",MROUND(VLOOKUP($C29&W$8,'Calc-V'!$A$4:$S$399,$AD$6,FALSE),10),ROUND(VLOOKUP($C29&W$8,'Calc-V'!$A$4:$S$399,$AD$6,FALSE)/AY29,3)*1000) -> 2450 | AK29: =IF($A$4="Numbers",MROUND(VLOOKUP($C29&X$8,'Calc-V'!$A$4:$S$399,$AD$6,FALSE),10),ROUND(VLOOKUP($C29&X$8,'Calc-V'!$A$4:$S$399,$AD$6,FALSE)/AZ29,3)*1000) -> 2270 | AL29: =IF($A$4="Numbers",MROUND(VLOOKUP($C29&Y$8,'Calc-V'!$A$4:$S$399,$AD$6,FALSE),10),ROUND(VLOOKUP($C29&Y$8,'Calc-V'!$A$4:$S$399,$AD$6,FALSE)/BA29,3)*1000) -> 4190 | AM29: =IF($A$4="Numbers",MROUND(VLOOKUP($C29&Z$8,'Calc-V'!$A$4:$S$399,$AD$6,FALSE),10),ROUND(VLOOKUP($C29&Z$8,'Calc-V'!$A$4:$S$399,$AD$6,FALSE)/BB29,3)*1000) -> 4190 | AN29: =IF($A$4="Numbers",MROUND(VLOOKUP($C29&AA$8,'Calc-V'!$A$4:$S$399,$AD$6,FALSE),10),ROUND(VLOOKUP($C29&AA$8,'Calc-V'!$A$4:$S$399,$AD$6,FALSE)/BC29,3)*1000) -> 4030 | AO29: =IF($A$4="Numbers",MROUND(VLOOKUP($C29&AB$8,'Calc-V'!$A$4:$S$399,$AD$6,FALSE),10),ROUND(VLOOKUP($C29&AB$8,'Calc-V'!$A$4:$S$399,$AD$6,FALSE)/BD29,3)*1000) -> 3970 | AS29: =VLOOKUP($C29&AS$8,'Calc-V'!$A$4:$AA$399,$AS$6,FALSE) -> 137420 | AT29: =VLOOKUP($C29&AT$8,'Calc-V'!$A$4:$AA$399,$AS$6,FALSE) -> 137910 | AU29: =VLOOKUP($C29&AU$8,'Calc-V'!$A$4:$AA$399,$AS$6,FALSE) -> 137910 | AV29: =VLOOKUP($C29&AV$8,'Calc-V'!$A$4:$AA$399,$AS$6,FALSE) -> 137830 | AW29: =VLOOKUP($C29&AW$8,'Calc-V'!$A$4:$AA$399,$AS$6,FALSE) -> 137830 | AX29: =VLOOKUP($C29&AX$8,'Calc-V'!$A$4:$AA$399,$AS$6,FALSE) -> 137790 | AY29: =VLOOKUP($C29&AY$8,'Calc-V'!$A$4:$AA$399,$AS$6,FALSE) -> 137790 | AZ29: =VLOOKUP($C29&AZ$8,'Calc-V'!$A$4:$AA$399,$AS$6,FALSE) -> 138090 | BA29: =VLOOKUP($C29&BA$8,'Calc-V'!$A$4:$AA$399,$AS$6,FALSE) -> 137560 | BB29: =VLOOKUP($C29&BB$8,'Calc-V'!$A$4:$AA$399,$AS$6,FALSE) -> 137560 | BC29: =VLOOKUP($C29&BC$8,'Calc-V'!$A$4:$AA$399,$AS$6,FALSE) -> 136920 | BD29: =VLOOKUP($C29&BD$8,'Calc-V'!$A$4:$AA$399,$AS$6,FALSE) -> 136450
